Workbook

Sheet Instructions
A1: Data Entry Instructions
A3: Limitations:
A4: * This tool does not adjust performance for mid-hour deassignments (units deassigned mid-hour)
A5: * Ramp-in and ramp-out at shoulder hours are not adjusted
A6: * Italitized lines are calculated inputs.
A8: For the time period where the resource was actively providing regulation:
A10: 1) Capture resource response, which is the 10second-sample net energy of your resource,
A11: and enter the data in column C
A13: This data is the unit specific response to the combination of energy dispatch and regulation signal.
A15: 2) Capture 10 second-sample data for the economic basepoint (ECOBP) or setpoint that the
A16: resource was regulating around during the time period, and enter the data in column D
A18: 3) Provide the Ramp Rate Limit that was in effect for the resource during the time period, and
A19: enter the data in column E.
A21: This data should match the ramp rate data submitted in Markets Gateway. If not available, use 9999
A23: Using the data from the steps above, columns F and G will calculate a ramped basepoint per 10 second interval.
A25: 4) Capture 10 second-sample for the PJM-assigned regulation (AREG), and enter the data in
A26: column H
A28: 5) Capture 10 second-sample data for the Fleet Total Regulation Capability (TREG), and enter the
A29: data in column I.
A31: This data should match the data submitted by your fleet to PJM. It should equal the total
A32: of all PJM-assigned regulation (AREG) across all resources in your fleet.
A34: 6) Capture 10 second-sample data for the Fleet Regulation Signal (REGA or REGD), and enter the
A35: data in column J.
A37: 7) If the Load Basepoint radio button is checked, Ramped EcoBP is equal to Raw EcoBP.
A40: Column K calculates a unit-specific share of the regulation signal. This is the ideal response that is
A41: expected from the resource.
A43: Column L is the desired net energy of the resource, which is calculated as the sum of the ramp-rate
A44: limited economic basepoint plus the ramp-rate limited share of the regulation signal.
A46: Column M is the resource response, which is calculated as the difference of the net energy (Column C)
A47: minus the ramp-rate limited economic basepoint (Column G).
A49: Chart 1 depicts the relationship between resource energy, economic basepoint, and desired energy.
A51: Chart 2 depicts the difference between what the resource acutally performs and what it is requested
A52: to perform.

Sheet Template
P1: Testing Resource
P2: Testing Company | U2: Start Time
D3: Weight | H3: Hrly Avg | P3: Tested MW | U3: B39
C4: Precision | D4: =1-SUM(D2:D3) -> 1 | F4: Precision Score | H4: =IF(AT5 = 1, AQ6, IF(AT5 = 2, AR6, AS6) ) -> 0 | M4: Denominator | N4: =IF( AT5 = 1, AVERAGE(H39:H397), AO39 ) -> 0 | P4: Date and Time | AF4: SlopeToUse | AG4: 1 | AH4: Signal | AT4: Precision Method | AW4: 1 | AX4: AREG Denominator
C5: Slope Limit | D5: 0 | F5: Composite Score | H5: =H4 -> 0 | J5: FALSE | M5: Hourly Mileage | N5: =BB6 -> 0 | P5: Reg ID | U5: End Time | AF5: 2 | AG5: 2 | AH5: Percent | AQ5: Prec. 1 | AR5: Prec. 2 | AS5: Prec. 3 | AT5: 3 | AW5: 2 | AX5: AvgAbsSignal Denominator | BB5: Mileage
C6: StDev Limit | D6: 0.05 | P6: Resource ID | U6: B279 | AQ6: =AVERAGE(AQ39:AQ398) -> 0 | AR6: =AVERAGE(AR39:AR398) -> 0 | AS6: =AVERAGE(AS39:AS398) -> 0 | BB6: =SUM(BB39:BB398) -> 0
K7: Signal | M7: Response
A8: Interval | B8: TIME | C8: AGC MW | D8: Raw ECOBP | E8: Energy RR at AGC MW (MW/min) | F8: RR MW/10sec | G8: Ramped EcoBP | H8: Unit AREG | I8: Fleet TREG | J8: Fleet Regulation Control Signal | K8: Raw Unit REG | L8: Raw EcoBP + Raw Reg | M8: Unit Resp. | N8: Mileage | P8: RESOURCE REPORT | AD8: Reg Signal Percent | AE8: 5-minute Signal Slope | AF8: 5-minute Signal Percent Slope | AG8: Slope Used | AH8: Slope Limit | AI8: -Slope Limit | AJ8: StDev Used | AK8: StdDev Limit | AN8: Absolute Signal | AO8: Average Absolute Signal | AQ8: Precis. Score AREG | AR8: Precis. Score AbsSig | AS8: Precis. Score Blend | AX8: Precis. Score | AY8: +AREG | AZ8: -AREG | BB8: Mileage | BD8: StdDev of Slopes | BE8: StdDev of Percent Signal
B9: =IF(B10-TIME(0,0,5)<=0,TIME(23,59,50),IF(B10-TIME(0,0,10)<0,TIME(0,0,0),B10-TIME(0,0,10))) -> 23:55:00 | F9: =E9/6 -> 0 | G9: =D9 -> 0 | K9: =IF(I9 = 0, 0, H9 * J9 / I9) -> 0 | L9: =D9 + K9 -> 0 | M9: =C9 - G9 -> 0 | AY9: =H9 -> 0 | AZ9: =-AY9 -> 0
B10: 23:55:10 | F10: 0 | G10: =IF($J$5=TRUE,D10,IF( ABS(D10 -G9) < F10, D10,G9 + SIGN( D10 - G9 ) * F10 )) -> 0 | K10: 0 | L10: 0 | M10: 0 | AY10: 0 | AZ10: =-AY10 -> 0
B11: 23:55:20 | F11: 0 | G11: 0 | K11: 0 | L11: 0 | M11: 0 | AY11: 0 | AZ11: 0
B12: 23:55:30 | F12: 0 | G12: 0 | K12: 0 | L12: 0 | M12: 0 | AY12: 0 | AZ12: 0
B13: 23:55:40 | F13: 0 | G13: 0 | K13: 0 | L13: 0 | M13: 0 | AY13: 0 | AZ13: 0
B14: 23:55:50 | F14: 0 | G14: 0 | K14: 0 | L14: 0 | M14: 0 | AY14: 0 | AZ14: 0
B15: 23:56:00 | F15: 0 | G15: 0 | K15: 0 | L15: 0 | M15: 0 | AY15: 0 | AZ15: 0
B16: 23:56:10 | F16: 0 | G16: 0 | K16: 0 | L16: 0 | M16: 0 | AY16: 0 | AZ16: 0
B17: 23:56:20 | F17: 0 | G17: 0 | K17: 0 | L17: 0 | M17: 0 | AY17: 0 | AZ17: 0
B18: 23:56:30 | F18: 0 | G18: 0 | K18: 0 | L18: 0 | M18: 0 | AY18: 0 | AZ18: 0
B19: 23:56:40 | F19: 0 | G19: 0 | K19: 0 | L19: 0 | M19: 0 | AY19: 0 | AZ19: 0
B20: 23:56:50 | F20: 0 | G20: 0 | K20: 0 | L20: 0 | M20: 0 | AY20: 0 | AZ20: 0
B21: 23:57:00 | F21: 0 | G21: 0 | K21: 0 | L21: 0 | M21: 0 | AY21: 0 | AZ21: 0
B22: 23:57:10 | F22: 0 | G22: 0 | K22: 0 | L22: 0 | M22: 0 | AY22: 0 | AZ22: 0
B23: 23:57:20 | F23: 0 | G23: 0 | K23: 0 | L23: 0 | M23: 0 | AY23: 0 | AZ23: 0
B24: 23:57:30 | F24: 0 | G24: 0 | K24: 0 | L24: 0 | M24: 0 | AY24: 0 | AZ24: 0
B25: 23:57:40 | F25: 0 | G25: 0 | K25: 0 | L25: 0 | M25: 0 | AY25: 0 | AZ25: 0
B26: 23:57:50 | F26: 0 | G26: 0 | K26: 0 | L26: 0 | M26: 0 | AY26: 0 | AZ26: 0
B27: 23:58:00 | F27: 0 | G27: 0 | K27: 0 | L27: 0 | M27: 0 | AY27: 0 | AZ27: 0
B28: 23:58:10 | F28: 0 | G28: 0 | K28: 0 | L28: 0 | M28: 0 | AY28: 0 | AZ28: 0
B29: 23:58:20 | F29: 0 | G29: 0 | K29: 0 | L29: 0 | M29: 0 | AY29: 0 | AZ29: 0
B30: 23:58:30 | F30: 0 | G30: 0 | K30: 0 | L30: 0 | M30: 0 | AY30: 0 | AZ30: 0
B31: 23:58:40 | F31: 0 | G31: 0 | K31: 0 | L31: 0 | M31: 0 | AY31: 0 | AZ31: 0
B32: 23:58:50 | F32: 0 | G32: 0 | K32: 0 | L32: 0 | M32: 0 | AY32: 0 | AZ32: 0
B33: 23:59:00 | F33: 0 | G33: 0 | K33: 0 | L33: 0 | M33: 0 | AY33: 0 | AZ33: 0
B34: 23:59:10 | F34: 0 | G34: 0 | K34: 0 | L34: 0 | M34: 0 | AY34: 0 | AZ34: 0
B35: 23:59:20 | F35: 0 | G35: 0 | K35: 0 | L35: 0 | M35: 0 | AY35: 0 | AZ35: 0
B36: 23:59:30 | F36: 0 | G36: 0 | K36: 0 | L36: 0 | M36: 0 | AY36: 0 | AZ36: 0
B37: 23:59:40 | F37: 0 | G37: 0 | K37: 0 | L37: 0 | M37: 0 | AY37: 0 | AZ37: 0
B38: =IF(B39-TIME(0,0,5)<=0,TIME(23,59,50),IF(B39-TIME(0,0,10)<0,TIME(0,0,0),B39-TIME(0,0,10))) -> 23:59:50 | F38: 0 | G38: 0 | K38: 0 | L38: 0 | M38: 0 | AY38: 0 | AZ38: 0
A39: 1 | B39: 00:00:00 | F39: 0 | G39: 0 | K39: 0 | L39: 0 | M39: 0 | N39: =BB9 -> 0 | AD39: =MIN(MAX(IF(I39 = 0, 0, J39 / I39 ), -1), 1) -> 0 | AE39: =SLOPE( K39:K69, $A39:$A69 ) -> 0 | AF39: =SLOPE( AD39:AD69, $A39:$A69 ) -> 0 | AG39: =IF( $AF$5 = 1, AE39, AF39) -> 0 | AH39: =$D$5 -> 0 | AI39: =-AH39 -> 0 | AJ39: =STDEV( AD39:AD69) -> 0 | AK39: =$D$6 -> 0.05 | AN39: =ABS(K39) -> 0 | AO39: =AVERAGE(AN39:AN278) -> 0 | AQ39: =IF(I39=0,0,MIN(MAX(1 - ABS(M40 - K39) / H39, 0), 1)) -> 0 | AR39: =IF(I39=0,0,IF(MAX(M39:M99) = MIN(M39:M99), 0, IF(MIN(H39:H69)=0,"NaN",MIN(MAX(1 - ABS(M40 - K39) / $AO$39, 0), 1 )))) -> 0 | AS39: =IF(I39=0,0,IF(MAX(M39:M99) = MIN(M39:M99), 0, IF(MIN(H39:H69)=0,"NaN",MIN(MAX(1 - ABS(M40 - K39) / AVERAGE($AO$39,H39), 0), 1 )))) -> 0 | AX39: =IF($AT$5 = 1, AQ39, AR39) -> 0 | AY39: 0 | AZ39: =-AY39 -> 0 | BB39: =AD39 -> 0 | BD39: =STDEV( AG39:AG69) -> 0 | BE39: =STDEV( AD39:AD69) -> 0
A40: 2 | B40: =B39 + TIME(0,0,10) -> 00:00:10 | F40: 0 | G40: 0 | K40: 0 | L40: 0 | M40: 0 | N40: 0 | AD40: 0 | AE40: 0 | AF40: =SLOPE( AD40:AD70, $A40:$A70 ) -> 0 | AG40: =IF( $AF$5 = 1, AE40, AF40) -> 0 | AH40: =$D$5 -> 0 | AI40: =-AH40 -> 0 | AJ40: =STDEV( AD40:AD70) -> 0 | AK40: =$D$6 -> 0.05 | AN40: 0 | AQ40: 0 | AR40: 0 | AS40: 0 | AX40: =IF($AT$5 = 1, AQ40, AR40) -> 0 | AY40: 0 | AZ40: =-AY40 -> 0 | BB40: =ABS(AD40 - AD39) -> 0 | BD40: 0 | BE40: 0
A41: 3 | B41: =B40 + TIME(0,0,10) -> 00:00:20 | F41: 0 | G41: 0 | K41: 0 | L41: 0 | M41: 0 | N41: 0 | AD41: 0 | AE41: 0 | AF41: 0 | AG41: 0 | AH41: 0 | AI41: 0 | AJ41: 0 | AK41: 0.05 | AN41: 0 | AQ41: 0 | AR41: 0 | AS41: 0 | AX41: 0 | AY41: 0 | AZ41: 0 | BB41: 0 | BD41: 0 | BE41: 0
A42: 4 | B42: 00:00:30 | F42: 0 | G42: 0 | K42: 0 | L42: 0 | M42: 0 | N42: 0 | AD42: 0 | AE42: 0 | AF42: 0 | AG42: 0 | AH42: 0 | AI42: 0 | AJ42: 0 | AK42: 0.05 | AN42: 0 | AQ42: 0 | AR42: 0 | AS42: 0 | AX42: 0 | AY42: 0 | AZ42: 0 | BB42: 0 | BD42: 0 | BE42: 0
A43: 5 | B43: 00:00:40 | F43: 0 | G43: 0 | K43: 0 | L43: 0 | M43: 0 | N43: 0 | AD43: 0 | AE43: 0 | AF43: 0 | AG43: 0 | AH43: 0 | AI43: 0 | AJ43: 0 | AK43: 0.05 | AN43: 0 | AQ43: 0 | AR43: 0 | AS43: 0 | AX43: 0 | AY43: 0 | AZ43: 0 | BB43: 0 | BD43: 0 | BE43: 0
A44: 6 | B44: 00:00:50 | F44: 0 | G44: 0 | K44: 0 | L44: 0 | M44: 0 | N44: 0 | AD44: 0 | AE44: 0 | AF44: 0 | AG44: 0 | AH44: 0 | AI44: 0 | AJ44: 0 | AK44: 0.05 | AN44: 0 | AQ44: 0 | AR44: 0 | AS44: 0 | AX44: 0 | AY44: 0 | AZ44: 0 | BB44: 0 | BD44: 0 | BE44: 0
A45: 7 | B45: 00:01:00 | F45: 0 | G45: 0 | K45: 0 | L45: 0 | M45: 0 | N45: 0 | AD45: 0 | AE45: 0 | AF45: 0 | AG45: 0 | AH45: 0 | AI45: 0 | AJ45: 0 | AK45: 0.05 | AN45: 0 | AQ45: 0 | AR45: 0 | AS45: 0 | AX45: 0 | AY45: 0 | AZ45: 0 | BB45: 0 | BD45: 0 | BE45: 0
A46: 8 | B46: 00:01:10 | F46: 0 | G46: 0 | K46: 0 | L46: 0 | M46: 0 | N46: 0 | AD46: 0 | AE46: 0 | AF46: 0 | AG46: 0 | AH46: 0 | AI46: 0 | AJ46: 0 | AK46: 0.05 | AN46: 0 | AQ46: 0 | AR46: 0 | AS46: 0 | AX46: 0 | AY46: 0 | AZ46: 0 | BB46: 0 | BD46: 0 | BE46: 0
A47: 9 | B47: 00:01:20 | F47: 0 | G47: 0 | K47: 0 | L47: 0 | M47: 0 | N47: 0 | AD47: 0 | AE47: 0 | AF47: 0 | AG47: 0 | AH47: 0 | AI47: 0 | AJ47: 0 | AK47: 0.05 | AN47: 0 | AQ47: 0 | AR47: 0 | AS47: 0 | AX47: 0 | AY47: 0 | AZ47: 0 | BB47: 0 | BD47: 0 | BE47: 0
A48: 10 | B48: 00:01:30 | F48: 0 | G48: 0 | K48: 0 | L48: 0 | M48: 0 | N48: 0 | AD48: 0 | AE48: 0 | AF48: 0 | AG48: 0 | AH48: 0 | AI48: 0 | AJ48: 0 | AK48: 0.05 | AN48: 0 | AQ48: 0 | AR48: 0 | AS48: 0 | AX48: 0 | AY48: 0 | AZ48: 0 | BB48: 0 | BD48: 0 | BE48: 0
A49: 11 | B49: 00:01:40 | F49: 0 | G49: 0 | K49: 0 | L49: 0 | M49: 0 | N49: 0 | AD49: 0 | AE49: 0 | AF49: 0 | AG49: 0 | AH49: 0 | AI49: 0 | AJ49: 0 | AK49: 0.05 | AN49: 0 | AQ49: 0 | AR49: 0 | AS49: 0 | AX49: 0 | AY49: 0 | AZ49: 0 | BB49: 0 | BD49: 0 | BE49: 0
A50: 12 | B50: 00:01:50 | F50: 0 | G50: 0 | K50: 0 | L50: 0 | M50: 0 | N50: 0 | AD50: 0 | AE50: 0 | AF50: 0 | AG50: 0 | AH50: 0 | AI50: 0 | AJ50: 0 | AK50: 0.05 | AN50: 0 | AQ50: 0 | AR50: 0 | AS50: 0 | AX50: 0 | AY50: 0 | AZ50: 0 | BB50: 0 | BD50: 0 | BE50: 0
A51: 13 | B51: 00:02:00 | F51: 0 | G51: 0 | K51: 0 | L51: 0 | M51: 0 | N51: 0 | AD51: 0 | AE51: 0 | AF51: 0 | AG51: 0 | AH51: 0 | AI51: 0 | AJ51: 0 | AK51: 0.05 | AN51: 0 | AQ51: 0 | AR51: 0 | AS51: 0 | AX51: 0 | AY51: 0 | AZ51: 0 | BB51: 0 | BD51: 0 | BE51: 0
A52: 14 | B52: 00:02:10 | F52: 0 | G52: 0 | K52: 0 | L52: 0 | M52: 0 | N52: 0 | AD52: 0 | AE52: 0 | AF52: 0 | AG52: 0 | AH52: 0 | AI52: 0 | AJ52: 0 | AK52: 0.05 | AN52: 0 | AQ52: 0 | AR52: 0 | AS52: 0 | AX52: 0 | AY52: 0 | AZ52: 0 | BB52: 0 | BD52: 0 | BE52: 0
A53: 15 | B53: 00:02:20 | F53: 0 | G53: 0 | K53: 0 | L53: 0 | M53: 0 | N53: 0 | AD53: 0 | AE53: 0 | AF53: 0 | AG53: 0 | AH53: 0 | AI53: 0 | AJ53: 0 | AK53: 0.05 | AN53: 0 | AQ53: 0 | AR53: 0 | AS53: 0 | AX53: 0 | AY53: 0 | AZ53: 0 | BB53: 0 | BD53: 0 | BE53: 0
A54: 16 | B54: 00:02:30 | F54: 0 | G54: 0 | K54: 0 | L54: 0 | M54: 0 | N54: 0 | AD54: 0 | AE54: 0 | AF54: 0 | AG54: 0 | AH54: 0 | AI54: 0 | AJ54: 0 | AK54: 0.05 | AN54: 0 | AQ54: 0 | AR54: 0 | AS54: 0 | AX54: 0 | AY54: 0 | AZ54: 0 | BB54: 0 | BD54: 0 | BE54: 0
A55: 17 | B55: 00:02:40 | F55: 0 | G55: 0 | K55: 0 | L55: 0 | M55: 0 | N55: 0 | AD55: 0 | AE55: 0 | AF55: 0 | AG55: 0 | AH55: 0 | AI55: 0 | AJ55: 0 | AK55: 0.05 | AN55: 0 | AQ55: 0 | AR55: 0 | AS55: 0 | AX55: 0 | AY55: 0 | AZ55: 0 | BB55: 0 | BD55: 0 | BE55: 0
A56: 18 | B56: 00:02:50 | F56: 0 | G56: 0 | K56: 0 | L56: 0 | M56: 0 | N56: 0 | AD56: 0 | AE56: 0 | AF56: 0 | AG56: 0 | AH56: 0 | AI56: 0 | AJ56: 0 | AK56: 0.05 | AN56: 0 | AQ56: 0 | AR56: 0 | AS56: 0 | AX56: 0 | AY56: 0 | AZ56: 0 | BB56: 0 | BD56: 0 | BE56: 0
A57: 19 | B57: 00:03:00 | F57: 0 | G57: 0 | K57: 0 | L57: 0 | M57: 0 | N57: 0 | AD57: 0 | AE57: 0 | AF57: 0 | AG57: 0 | AH57: 0 | AI57: 0 | AJ57: 0 | AK57: 0.05 | AN57: 0 | AQ57: 0 | AR57: 0 | AS57: 0 | AX57: 0 | AY57: 0 | AZ57: 0 | BB57: 0 | BD57: 0 | BE57: 0
A58: 20 | B58: 00:03:10 | F58: 0 | G58: 0 | K58: 0 | L58: 0 | M58: 0 | N58: 0 | AD58: 0 | AE58: 0 | AF58: 0 | AG58: 0 | AH58: 0 | AI58: 0 | AJ58: 0 | AK58: 0.05 | AN58: 0 | AQ58: 0 | AR58: 0 | AS58: 0 | AX58: 0 | AY58: 0 | AZ58: 0 | BB58: 0 | BD58: 0 | BE58: 0
A59: 21 | B59: 00:03:20 | F59: 0 | G59: 0 | K59: 0 | L59: 0 | M59: 0 | N59: 0 | AD59: 0 | AE59: 0 | AF59: 0 | AG59: 0 | AH59: 0 | AI59: 0 | AJ59: 0 | AK59: 0.05 | AN59: 0 | AQ59: 0 | AR59: 0 | AS59: 0 | AX59: 0 | AY59: 0 | AZ59: 0 | BB59: 0 | BD59: 0 | BE59: 0
A60: 22 | B60: 00:03:30 | F60: 0 | G60: 0 | K60: 0 | L60: 0 | M60: 0 | N60: 0 | AD60: 0 | AE60: 0 | AF60: 0 | AG60: 0 | AH60: 0 | AI60: 0 | AJ60: 0 | AK60: 0.05 | AN60: 0 | AQ60: 0 | AR60: 0 | AS60: 0 | AX60: 0 | AY60: 0 | AZ60: 0 | BB60: 0 | BD60: 0 | BE60: 0
A61: 23 | B61: 00:03:40 | F61: 0 | G61: 0 | K61: 0 | L61: 0 | M61: 0 | N61: 0 | AD61: 0 | AE61: 0 | AF61: 0 | AG61: 0 | AH61: 0 | AI61: 0 | AJ61: 0 | AK61: 0.05 | AN61: 0 | AQ61: 0 | AR61: 0 | AS61: 0 | AX61: 0 | AY61: 0 | AZ61: 0 | BB61: 0 | BD61: 0 | BE61: 0
A62: 24 | B62: 00:03:50 | F62: 0 | G62: 0 | K62: 0 | L62: 0 | M62: 0 | N62: 0 | AD62: 0 | AE62: 0 | AF62: 0 | AG62: 0 | AH62: 0 | AI62: 0 | AJ62: 0 | AK62: 0.05 | AN62: 0 | AQ62: 0 | AR62: 0 | AS62: 0 | AX62: 0 | AY62: 0 | AZ62: 0 | BB62: 0 | BD62: 0 | BE62: 0
A63: 25 | B63: 00:04:00 | F63: 0 | G63: 0 | K63: 0 | L63: 0 | M63: 0 | N63: 0 | AD63: 0 | AE63: 0 | AF63: 0 | AG63: 0 | AH63: 0 | AI63: 0 | AJ63: 0 | AK63: 0.05 | AN63: 0 | AQ63: 0 | AR63: 0 | AS63: 0 | AX63: 0 | AY63: 0 | AZ63: 0 | BB63: 0 | BD63: 0 | BE63: 0
A64: 26 | B64: 00:04:10 | F64: 0 | G64: 0 | K64: 0 | L64: 0 | M64: 0 | N64: 0 | AD64: 0 | AE64: 0 | AF64: 0 | AG64: 0 | AH64: 0 | AI64: 0 | AJ64: 0 | AK64: 0.05 | AN64: 0 | AQ64: 0 | AR64: 0 | AS64: 0 | AX64: 0 | AY64: 0 | AZ64: 0 | BB64: 0 | BD64: 0 | BE64: 0
A65: 27 | B65: 00:04:20 | F65: 0 | G65: 0 | K65: 0 | L65: 0 | M65: 0 | N65: 0 | AD65: 0 | AE65: 0 | AF65: 0 | AG65: 0 | AH65: 0 | AI65: 0 | AJ65: 0 | AK65: 0.05 | AN65: 0 | AQ65: 0 | AR65: 0 | AS65: 0 | AX65: 0 | AY65: 0 | AZ65: 0 | BB65: 0 | BD65: 0 | BE65: 0
A66: 28 | B66: 00:04:30 | F66: 0 | G66: 0 | K66: 0 | L66: 0 | M66: 0 | N66: 0 | AD66: 0 | AE66: 0 | AF66: 0 | AG66: 0 | AH66: 0 | AI66: 0 | AJ66: 0 | AK66: 0.05 | AN66: 0 | AQ66: 0 | AR66: 0 | AS66: 0 | AX66: 0 | AY66: 0 | AZ66: 0 | BB66: 0 | BD66: 0 | BE66: 0
A67: 29 | B67: 00:04:40 | F67: 0 | G67: 0 | K67: 0 | L67: 0 | M67: 0 | N67: 0 | AD67: 0 | AE67: 0 | AF67: 0 | AG67: 0 | AH67: 0 | AI67: 0 | AJ67: 0 | AK67: 0.05 | AN67: 0 | AQ67: 0 | AR67: 0 | AS67: 0 | AX67: 0 | AY67: 0 | AZ67: 0 | BB67: 0 | BD67: 0 | BE67: 0
A68: 30 | B68: 00:04:50 | F68: 0 | G68: 0 | K68: 0 | L68: 0 | M68: 0 | N68: 0 | AD68: 0 | AE68: 0 | AF68: 0 | AG68: 0 | AH68: 0 | AI68: 0 | AJ68: 0 | AK68: 0.05 | AN68: 0 | AQ68: 0 | AR68: 0 | AS68: 0 | AX68: 0 | AY68: 0 | AZ68: 0 | BB68: 0 | BD68: 0 | BE68: 0
A69: 31 | B69: 00:05:00 | F69: 0 | G69: 0 | K69: 0 | L69: 0 | M69: 0 | N69: 0 | AD69: 0 | AE69: 0 | AF69: 0 | AG69: 0 | AH69: 0 | AI69: 0 | AJ69: 0 | AK69: 0.05 | AN69: 0 | AQ69: 0 | AR69: 0 | AS69: 0 | AX69: 0 | AY69: 0 | AZ69: 0 | BB69: 0 | BD69: 0 | BE69: 0
A70: 32 | B70: 00:05:10 | F70: 0 | G70: 0 | K70: 0 | L70: 0 | M70: 0 | N70: 0 | AD70: 0 | AE70: 0 | AF70: 0 | AG70: 0 | AH70: 0 | AI70: 0 | AJ70: 0 | AK70: 0.05 | AN70: 0 | AQ70: 0 | AR70: 0 | AS70: 0 | AX70: 0 | AY70: 0 | AZ70: 0 | BB70: 0 | BD70: 0 | BE70: 0
A71: 33 | B71: 00:05:20 | F71: 0 | G71: 0 | K71: 0 | L71: 0 | M71: 0 | N71: 0 | AD71: 0 | AE71: 0 | AF71: 0 | AG71: 0 | AH71: 0 | AI71: 0 | AJ71: 0 | AK71: 0.05 | AN71: 0 | AQ71: 0 | AR71: 0 | AS71: 0 | AX71: 0 | AY71: 0 | AZ71: 0 | BB71: 0 | BD71: =STDEV( AG71:AG101) -> 0 | BE71: =STDEV( AD71:AD101) -> 0
A72: 34 | B72: 00:05:30 | F72: 0 | G72: 0 | K72: 0 | L72: 0 | M72: 0 | N72: 0 | AD72: 0 | AE72: 0 | AF72: 0 | AG72: 0 | AH72: 0 | AI72: 0 | AJ72: 0 | AK72: 0.05 | AN72: 0 | AQ72: 0 | AR72: 0 | AS72: 0 | AX72: 0 | AY72: 0 | AZ72: 0 | BB72: =ABS(AD72 - AD71) -> 0 | BD72: 0 | BE72: 0
A73: 35 | B73: 00:05:40 | F73: =E73/6 -> 0 | G73: 0 | K73: =IF(I73 = 0, 0, H73 * J73 / I73) -> 0 | L73: =D73 + K73 -> 0 | M73: =C73 - G73 -> 0 | N73: 0 | AD73: 0 | AE73: 0 | AF73: 0 | AG73: 0 | AH73: 0 | AI73: 0 | AJ73: 0 | AK73: 0.05 | AN73: 0 | AQ73: 0 | AR73: 0 | AS73: 0 | AX73: 0 | AY73: =H73 -> 0 | AZ73: 0 | BB73: 0 | BD73: 0 | BE73: 0
A74: 36 | B74: 00:05:50 | F74: 0 | G74: =IF($J$5=TRUE,D74,IF( ABS(D74 -G73) < F74, D74,G73 + SIGN( D74 - G73 ) * F74 )) -> 0 | K74: 0 | L74: 0 | M74: 0 | N74: 0 | AD74: 0 | AE74: 0 | AF74: 0 | AG74: 0 | AH74: 0 | AI74: 0 | AJ74: 0 | AK74: 0.05 | AN74: 0 | AQ74: 0 | AR74: 0 | AS74: 0 | AX74: 0 | AY74: 0 | AZ74: 0 | BB74: 0 | BD74: 0 | BE74: 0
A75: 37 | B75: 00:06:00 | F75: 0 | G75: 0 | K75: 0 | L75: 0 | M75: 0 | N75: 0 | AD75: 0 | AE75: 0 | AF75: 0 | AG75: 0 | AH75: 0 | AI75: 0 | AJ75: 0 | AK75: 0.05 | AN75: 0 | AQ75: 0 | AR75: 0 | AS75: 0 | AX75: 0 | AY75: 0 | AZ75: 0 | BB75: 0 | BD75: 0 | BE75: 0
A76: 38 | B76: 00:06:10 | F76: 0 | G76: 0 | K76: 0 | L76: 0 | M76: 0 | N76: 0 | AD76: 0 | AE76: 0 | AF76: 0 | AG76: 0 | AH76: 0 | AI76: 0 | AJ76: 0 | AK76: 0.05 | AN76: 0 | AQ76: 0 | AR76: 0 | AS76: 0 | AX76: 0 | AY76: 0 | AZ76: 0 | BB76: 0 | BD76: 0 | BE76: 0
A77: 39 | B77: 00:06:20 | F77: 0 | G77: 0 | K77: 0 | L77: 0 | M77: 0 | N77: 0 | AD77: 0 | AE77: 0 | AF77: 0 | AG77: 0 | AH77: 0 | AI77: 0 | AJ77: 0 | AK77: 0.05 | AN77: 0 | AQ77: 0 | AR77: 0 | AS77: 0 | AX77: 0 | AY77: 0 | AZ77: 0 | BB77: 0 | BD77: 0 | BE77: 0
A78: 40 | B78: 00:06:30 | F78: 0 | G78: 0 | K78: 0 | L78: 0 | M78: 0 | N78: 0 | AD78: 0 | AE78: 0 | AF78: 0 | AG78: 0 | AH78: 0 | AI78: 0 | AJ78: 0 | AK78: 0.05 | AN78: 0 | AQ78: 0 | AR78: 0 | AS78: 0 | AX78: 0 | AY78: 0 | AZ78: 0 | BB78: 0 | BD78: 0 | BE78: 0
A79: 41 | B79: 00:06:40 | F79: 0 | G79: 0 | K79: 0 | L79: 0 | M79: 0 | N79: 0 | AD79: 0 | AE79: 0 | AF79: 0 | AG79: 0 | AH79: 0 | AI79: 0 | AJ79: 0 | AK79: 0.05 | AN79: 0 | AQ79: 0 | AR79: 0 | AS79: 0 | AX79: 0 | AY79: 0 | AZ79: 0 | BB79: 0 | BD79: 0 | BE79: 0
A80: 42 | B80: 00:06:50 | F80: 0 | G80: 0 | K80: 0 | L80: 0 | M80: 0 | N80: 0 | AD80: 0 | AE80: 0 | AF80: 0 | AG80: 0 | AH80: 0 | AI80: 0 | AJ80: 0 | AK80: 0.05 | AN80: 0 | AQ80: 0 | AR80: 0 | AS80: 0 | AX80: 0 | AY80: 0 | AZ80: 0 | BB80: 0 | BD80: 0 | BE80: 0
A81: 43 | B81: 00:07:00 | F81: 0 | G81: 0 | K81: 0 | L81: 0 | M81: 0 | N81: 0 | AD81: 0 | AE81: 0 | AF81: 0 | AG81: 0 | AH81: 0 | AI81: 0 | AJ81: 0 | AK81: 0.05 | AN81: 0 | AQ81: 0 | AR81: 0 | AS81: 0 | AX81: 0 | AY81: 0 | AZ81: 0 | BB81: 0 | BD81: 0 | BE81: 0
A82: 44 | B82: 00:07:10 | F82: 0 | G82: 0 | K82: 0 | L82: 0 | M82: 0 | N82: 0 | AD82: 0 | AE82: 0 | AF82: 0 | AG82: 0 | AH82: 0 | AI82: 0 | AJ82: 0 | AK82: 0.05 | AN82: 0 | AQ82: 0 | AR82: 0 | AS82: 0 | AX82: 0 | AY82: 0 | AZ82: 0 | BB82: 0 | BD82: 0 | BE82: 0
A83: 45 | B83: 00:07:20 | F83: 0 | G83: 0 | K83: 0 | L83: 0 | M83: 0 | N83: 0 | AD83: 0 | AE83: 0 | AF83: 0 | AG83: 0 | AH83: 0 | AI83: 0 | AJ83: 0 | AK83: 0.05 | AN83: 0 | AQ83: 0 | AR83: 0 | AS83: 0 | AX83: 0 | AY83: 0 | AZ83: 0 | BB83: 0 | BD83: 0 | BE83: 0
A84: 46 | B84: 00:07:30 | F84: 0 | G84: 0 | K84: 0 | L84: 0 | M84: 0 | N84: 0 | AD84: 0 | AE84: 0 | AF84: 0 | AG84: 0 | AH84: 0 | AI84: 0 | AJ84: 0 | AK84: 0.05 | AN84: 0 | AQ84: 0 | AR84: 0 | AS84: 0 | AX84: 0 | AY84: 0 | AZ84: 0 | BB84: 0 | BD84: 0 | BE84: 0
A85: 47 | B85: 00:07:40 | F85: 0 | G85: 0 | K85: 0 | L85: 0 | M85: 0 | N85: 0 | AD85: 0 | AE85: 0 | AF85: 0 | AG85: 0 | AH85: 0 | AI85: 0 | AJ85: 0 | AK85: 0.05 | AN85: 0 | AQ85: 0 | AR85: 0 | AS85: 0 | AX85: 0 | AY85: 0 | AZ85: 0 | BB85: 0 | BD85: 0 | BE85: 0
A86: 48 | B86: 00:07:50 | F86: 0 | G86: 0 | K86: 0 | L86: 0 | M86: 0 | N86: 0 | AD86: 0 | AE86: 0 | AF86: 0 | AG86: 0 | AH86: 0 | AI86: 0 | AJ86: 0 | AK86: 0.05 | AN86: 0 | AQ86: 0 | AR86: 0 | AS86: 0 | AX86: 0 | AY86: 0 | AZ86: 0 | BB86: 0 | BD86: 0 | BE86: 0
A87: 49 | B87: 00:08:00 | F87: 0 | G87: 0 | K87: 0 | L87: 0 | M87: 0 | N87: 0 | AD87: 0 | AE87: 0 | AF87: 0 | AG87: 0 | AH87: 0 | AI87: 0 | AJ87: 0 | AK87: 0.05 | AN87: 0 | AQ87: 0 | AR87: 0 | AS87: 0 | AX87: 0 | AY87: 0 | AZ87: 0 | BB87: 0 | BD87: 0 | BE87: 0
A88: 50 | B88: 00:08:10 | F88: 0 | G88: 0 | K88: 0 | L88: 0 | M88: 0 | N88: 0 | AD88: 0 | AE88: 0 | AF88: 0 | AG88: 0 | AH88: 0 | AI88: 0 | AJ88: 0 | AK88: 0.05 | AN88: 0 | AQ88: 0 | AR88: 0 | AS88: 0 | AX88: 0 | AY88: 0 | AZ88: 0 | BB88: 0 | BD88: 0 | BE88: 0
A89: 51 | B89: 00:08:20 | F89: 0 | G89: 0 | K89: 0 | L89: 0 | M89: 0 | N89: 0 | AD89: 0 | AE89: 0 | AF89: 0 | AG89: 0 | AH89: 0 | AI89: 0 | AJ89: 0 | AK89: 0.05 | AN89: 0 | AQ89: 0 | AR89: 0 | AS89: 0 | AX89: 0 | AY89: 0 | AZ89: 0 | BB89: 0 | BD89: 0 | BE89: 0
A90: 52 | B90: 00:08:30 | F90: 0 | G90: 0 | K90: 0 | L90: 0 | M90: 0 | N90: 0 | AD90: 0 | AE90: 0 | AF90: 0 | AG90: 0 | AH90: 0 | AI90: 0 | AJ90: 0 | AK90: 0.05 | AN90: 0 | AQ90: 0 | AR90: 0 | AS90: 0 | AX90: 0 | AY90: 0 | AZ90: 0 | BB90: 0 | BD90: 0 | BE90: 0
A91: 53 | B91: 00:08:40 | F91: 0 | G91: 0 | K91: 0 | L91: 0 | M91: 0 | N91: 0 | AD91: 0 | AE91: 0 | AF91: 0 | AG91: 0 | AH91: 0 | AI91: 0 | AJ91: 0 | AK91: 0.05 | AN91: 0 | AQ91: 0 | AR91: 0 | AS91: 0 | AX91: 0 | AY91: 0 | AZ91: 0 | BB91: 0 | BD91: 0 | BE91: 0
A92: 54 | B92: 00:08:50 | F92: 0 | G92: 0 | K92: 0 | L92: 0 | M92: 0 | N92: 0 | AD92: 0 | AE92: 0 | AF92: 0 | AG92: 0 | AH92: 0 | AI92: 0 | AJ92: 0 | AK92: 0.05 | AN92: 0 | AQ92: 0 | AR92: 0 | AS92: 0 | AX92: 0 | AY92: 0 | AZ92: 0 | BB92: 0 | BD92: 0 | BE92: 0
A93: 55 | B93: 00:09:00 | F93: 0 | G93: 0 | K93: 0 | L93: 0 | M93: 0 | N93: 0 | AD93: 0 | AE93: 0 | AF93: 0 | AG93: 0 | AH93: 0 | AI93: 0 | AJ93: 0 | AK93: 0.05 | AN93: 0 | AQ93: 0 | AR93: 0 | AS93: 0 | AX93: 0 | AY93: 0 | AZ93: 0 | BB93: 0 | BD93: 0 | BE93: 0
A94: 56 | B94: 00:09:10 | F94: 0 | G94: 0 | K94: 0 | L94: 0 | M94: 0 | N94: 0 | AD94: 0 | AE94: 0 | AF94: 0 | AG94: 0 | AH94: 0 | AI94: 0 | AJ94: 0 | AK94: 0.05 | AN94: 0 | AQ94: 0 | AR94: 0 | AS94: 0 | AX94: 0 | AY94: 0 | AZ94: 0 | BB94: 0 | BD94: 0 | BE94: 0
A95: 57 | B95: 00:09:20 | F95: 0 | G95: 0 | K95: 0 | L95: 0 | M95: 0 | N95: 0 | AD95: 0 | AE95: 0 | AF95: 0 | AG95: 0 | AH95: 0 | AI95: 0 | AJ95: 0 | AK95: 0.05 | AN95: 0 | AQ95: 0 | AR95: 0 | AS95: 0 | AX95: 0 | AY95: 0 | AZ95: 0 | BB95: 0 | BD95: 0 | BE95: 0
A96: 58 | B96: 00:09:30 | F96: 0 | G96: 0 | K96: 0 | L96: 0 | M96: 0 | N96: 0 | AD96: 0 | AE96: 0 | AF96: 0 | AG96: 0 | AH96: 0 | AI96: 0 | AJ96: 0 | AK96: 0.05 | AN96: 0 | AQ96: 0 | AR96: 0 | AS96: 0 | AX96: 0 | AY96: 0 | AZ96: 0 | BB96: 0 | BD96: 0 | BE96: 0
A97: 59 | B97: 00:09:40 | F97: 0 | G97: 0 | K97: 0 | L97: 0 | M97: 0 | N97: 0 | AD97: 0 | AE97: 0 | AF97: 0 | AG97: 0 | AH97: 0 | AI97: 0 | AJ97: 0 | AK97: 0.05 | AN97: 0 | AQ97: 0 | AR97: 0 | AS97: 0 | AX97: 0 | AY97: 0 | AZ97: 0 | BB97: 0 | BD97: 0 | BE97: 0
A98: 60 | B98: 00:09:50 | F98: 0 | G98: 0 | K98: 0 | L98: 0 | M98: 0 | N98: 0 | AD98: 0 | AE98: 0 | AF98: 0 | AG98: 0 | AH98: 0 | AI98: 0 | AJ98: 0 | AK98: 0.05 | AN98: 0 | AQ98: 0 | AR98: 0 | AS98: 0 | AX98: 0 | AY98: 0 | AZ98: 0 | BB98: 0 | BD98: 0 | BE98: 0
A99: 61 | B99: 00:10:00 | F99: 0 | G99: 0 | K99: 0 | L99: 0 | M99: 0 | N99: 0 | AD99: 0 | AE99: 0 | AF99: 0 | AG99: 0 | AH99: 0 | AI99: 0 | AJ99: 0 | AK99: 0.05 | AN99: 0 | AQ99: 0 | AR99: 0 | AS99: 0 | AX99: 0 | AY99: 0 | AZ99: 0 | BB99: 0 | BD99: 0 | BE99: 0
A100: 62 | B100: 00:10:10 | F100: 0 | G100: 0 | K100: 0 | L100: 0 | M100: 0 | N100: 0 | AD100: 0 | AE100: 0 | AF100: 0 | AG100: 0 | AH100: 0 | AI100: 0 | AJ100: 0 | AK100: 0.05 | AN100: 0 | AQ100: 0 | AR100: 0 | AS100: 0 | AX100: 0 | AY100: 0 | AZ100: 0 | BB100: 0 | BD100: 0 | BE100: 0
A101: 63 | B101: 00:10:20 | F101: 0 | G101: 0 | K101: 0 | L101: 0 | M101: 0 | N101: 0 | AD101: 0 | AE101: 0 | AF101: 0 | AG101: 0 | AH101: 0 | AI101: 0 | AJ101: 0 | AK101: 0.05 | AN101: 0 | AQ101: 0 | AR101: 0 | AS101: 0 | AX101: 0 | AY101: 0 | AZ101: 0 | BB101: 0 | BD101: 0 | BE101: 0
A102: 64 | B102: 00:10:30 | F102: 0 | G102: 0 | K102: 0 | L102: 0 | M102: 0 | N102: 0 | AD102: 0 | AE102: 0 | AF102: 0 | AG102: 0 | AH102: 0 | AI102: 0 | AJ102: 0 | AK102: 0.05 | AN102: 0 | AQ102: 0 | AR102: 0 | AS102: 0 | AX102: 0 | AY102: 0 | AZ102: 0 | BB102: 0 | BD102: 0 | BE102: 0
A103: 65 | B103: 00:10:40 | F103: 0 | G103: 0 | K103: 0 | L103: 0 | M103: 0 | N103: =BB73 -> 0 | AD103: =MIN(MAX(IF(I103 = 0, 0, J103 / I103 ), -1), 1) -> 0 | AE103: =SLOPE( K103:K133, $A103:$A133 ) -> 0 | AF103: 0 | AG103: 0 | AH103: 0 | AI103: 0 | AJ103: 0 | AK103: 0.05 | AN103: =ABS(K103) -> 0 | AQ103: =IF(I103=0,0,MIN(MAX(1 - ABS(M104 - K103) / H103, 0), 1)) -> 0 | AR103: =IF(I103=0,0,IF(MAX(M103:M163) = MIN(M103:M163), 0, IF(MIN(H103:H133)=0,"NaN",MIN(MAX(1 - ABS(M104 - K103) / $AO$39, 0), 1 )))) -> 0 | AS103: =IF(I103=0,0,IF(MAX(M103:M163) = MIN(M103:M163), 0, IF(MIN(H103:H133)=0,"NaN",MIN(MAX(1 - ABS(M104 - K103) / AVERAGE($AO$39,H103), 0), 1 )))) -> 0 | AX103: 0 | AY103: 0 | AZ103: 0 | BB103: 0 | BD103: =STDEV( AG103:AG133) -> 0 | BE103: =STDEV( AD103:AD133) -> 0
A104: 66 | B104: 00:10:50 | F104: 0 | G104: 0 | K104: 0 | L104: 0 | M104: 0 | N104: 0 | AD104: 0 | AE104: 0 | AF104: =SLOPE( AD104:AD134, $A104:$A134 ) -> 0 | AG104: =IF( $AF$5 = 1, AE104, AF104) -> 0 | AH104: =$D$5 -> 0 | AI104: =-AH104 -> 0 | AJ104: =STDEV( AD104:AD134) -> 0 | AK104: =$D$6 -> 0.05 | AN104: 0 | AQ104: 0 | AR104: 0 | AS104: 0 | AX104: =IF($AT$5 = 1, AQ104, AR104) -> 0 | AY104: 0 | AZ104: =-AY104 -> 0 | BB104: =ABS(AD104 - AD103) -> 0 | BD104: 0 | BE104: 0
A105: 67 | B105: =B104 + TIME(0,0,10) -> 00:11:00 | F105: 0 | G105: 0 | K105: 0 | L105: 0 | M105: 0 | N105: 0 | AD105: 0 | AE105: 0 | AF105: 0 | AG105: 0 | AH105: 0 | AI105: 0 | AJ105: 0 | AK105: 0.05 | AN105: 0 | AQ105: 0 | AR105: 0 | AS105: 0 | AX105: 0 | AY105: 0 | AZ105: 0 | BB105: 0 | BD105: 0 | BE105: 0
A106: 68 | B106: 00:11:10 | F106: 0 | G106: 0 | K106: 0 | L106: 0 | M106: 0 | N106: 0 | AD106: 0 | AE106: 0 | AF106: 0 | AG106: 0 | AH106: 0 | AI106: 0 | AJ106: 0 | AK106: 0.05 | AN106: 0 | AQ106: 0 | AR106: 0 | AS106: 0 | AX106: 0 | AY106: 0 | AZ106: 0 | BB106: 0 | BD106: 0 | BE106: 0
A107: 69 | B107: 00:11:20 | F107: 0 | G107: 0 | K107: 0 | L107: 0 | M107: 0 | N107: 0 | AD107: 0 | AE107: 0 | AF107: 0 | AG107: 0 | AH107: 0 | AI107: 0 | AJ107: 0 | AK107: 0.05 | AN107: 0 | AQ107: 0 | AR107: 0 | AS107: 0 | AX107: 0 | AY107: 0 | AZ107: 0 | BB107: 0 | BD107: 0 | BE107: 0
A108: 70 | B108: 00:11:30 | F108: 0 | G108: 0 | K108: 0 | L108: 0 | M108: 0 | N108: 0 | AD108: 0 | AE108: 0 | AF108: 0 | AG108: 0 | AH108: 0 | AI108: 0 | AJ108: 0 | AK108: 0.05 | AN108: 0 | AQ108: 0 | AR108: 0 | AS108: 0 | AX108: 0 | AY108: 0 | AZ108: 0 | BB108: 0 | BD108: 0 | BE108: 0
A109: 71 | B109: 00:11:40 | F109: 0 | G109: 0 | K109: 0 | L109: 0 | M109: 0 | N109: 0 | AD109: 0 | AE109: 0 | AF109: 0 | AG109: 0 | AH109: 0 | AI109: 0 | AJ109: 0 | AK109: 0.05 | AN109: 0 | AQ109: 0 | AR109: 0 | AS109: 0 | AX109: 0 | AY109: 0 | AZ109: 0 | BB109: 0 | BD109: 0 | BE109: 0
A110: 72 | B110: 00:11:50 | F110: 0 | G110: 0 | K110: 0 | L110: 0 | M110: 0 | N110: 0 | AD110: 0 | AE110: 0 | AF110: 0 | AG110: 0 | AH110: 0 | AI110: 0 | AJ110: 0 | AK110: 0.05 | AN110: 0 | AQ110: 0 | AR110: 0 | AS110: 0 | AX110: 0 | AY110: 0 | AZ110: 0 | BB110: 0 | BD110: 0 | BE110: 0
A111: 73 | B111: 00:12:00 | F111: 0 | G111: 0 | K111: 0 | L111: 0 | M111: 0 | N111: 0 | AD111: 0 | AE111: 0 | AF111: 0 | AG111: 0 | AH111: 0 | AI111: 0 | AJ111: 0 | AK111: 0.05 | AN111: 0 | AQ111: 0 | AR111: 0 | AS111: 0 | AX111: 0 | AY111: 0 | AZ111: 0 | BB111: 0 | BD111: 0 | BE111: 0
A112: 74 | B112: 00:12:10 | F112: 0 | G112: 0 | K112: 0 | L112: 0 | M112: 0 | N112: 0 | AD112: 0 | AE112: 0 | AF112: 0 | AG112: 0 | AH112: 0 | AI112: 0 | AJ112: 0 | AK112: 0.05 | AN112: 0 | AQ112: 0 | AR112: 0 | AS112: 0 | AX112: 0 | AY112: 0 | AZ112: 0 | BB112: 0 | BD112: 0 | BE112: 0
A113: 75 | B113: 00:12:20 | F113: 0 | G113: 0 | K113: 0 | L113: 0 | M113: 0 | N113: 0 | AD113: 0 | AE113: 0 | AF113: 0 | AG113: 0 | AH113: 0 | AI113: 0 | AJ113: 0 | AK113: 0.05 | AN113: 0 | AQ113: 0 | AR113: 0 | AS113: 0 | AX113: 0 | AY113: 0 | AZ113: 0 | BB113: 0 | BD113: 0 | BE113: 0
A114: 76 | B114: 00:12:30 | F114: 0 | G114: 0 | K114: 0 | L114: 0 | M114: 0 | N114: 0 | AD114: 0 | AE114: 0 | AF114: 0 | AG114: 0 | AH114: 0 | AI114: 0 | AJ114: 0 | AK114: 0.05 | AN114: 0 | AQ114: 0 | AR114: 0 | AS114: 0 | AX114: 0 | AY114: 0 | AZ114: 0 | BB114: 0 | BD114: 0 | BE114: 0
A115: 77 | B115: 00:12:40 | F115: 0 | G115: 0 | K115: 0 | L115: 0 | M115: 0 | N115: 0 | AD115: 0 | AE115: 0 | AF115: 0 | AG115: 0 | AH115: 0 | AI115: 0 | AJ115: 0 | AK115: 0.05 | AN115: 0 | AQ115: 0 | AR115: 0 | AS115: 0 | AX115: 0 | AY115: 0 | AZ115: 0 | BB115: 0 | BD115: 0 | BE115: 0
A116: 78 | B116: 00:12:50 | F116: 0 | G116: 0 | K116: 0 | L116: 0 | M116: 0 | N116: 0 | AD116: 0 | AE116: 0 | AF116: 0 | AG116: 0 | AH116: 0 | AI116: 0 | AJ116: 0 | AK116: 0.05 | AN116: 0 | AQ116: 0 | AR116: 0 | AS116: 0 | AX116: 0 | AY116: 0 | AZ116: 0 | BB116: 0 | BD116: 0 | BE116: 0
A117: 79 | B117: 00:13:00 | F117: 0 | G117: 0 | K117: 0 | L117: 0 | M117: 0 | N117: 0 | AD117: 0 | AE117: 0 | AF117: 0 | AG117: 0 | AH117: 0 | AI117: 0 | AJ117: 0 | AK117: 0.05 | AN117: 0 | AQ117: 0 | AR117: 0 | AS117: 0 | AX117: 0 | AY117: 0 | AZ117: 0 | BB117: 0 | BD117: 0 | BE117: 0
A118: 80 | B118: 00:13:10 | F118: 0 | G118: 0 | K118: 0 | L118: 0 | M118: 0 | N118: 0 | AD118: 0 | AE118: 0 | AF118: 0 | AG118: 0 | AH118: 0 | AI118: 0 | AJ118: 0 | AK118: 0.05 | AN118: 0 | AQ118: 0 | AR118: 0 | AS118: 0 | AX118: 0 | AY118: 0 | AZ118: 0 | BB118: 0 | BD118: 0 | BE118: 0
A119: 81 | B119: 00:13:20 | F119: 0 | G119: 0 | K119: 0 | L119: 0 | M119: 0 | N119: 0 | AD119: 0 | AE119: 0 | AF119: 0 | AG119: 0 | AH119: 0 | AI119: 0 | AJ119: 0 | AK119: 0.05 | AN119: 0 | AQ119: 0 | AR119: 0 | AS119: 0 | AX119: 0 | AY119: 0 | AZ119: 0 | BB119: 0 | BD119: 0 | BE119: 0
A120: 82 | B120: 00:13:30 | F120: 0 | G120: 0 | K120: 0 | L120: 0 | M120: 0 | N120: 0 | AD120: 0 | AE120: 0 | AF120: 0 | AG120: 0 | AH120: 0 | AI120: 0 | AJ120: 0 | AK120: 0.05 | AN120: 0 | AQ120: 0 | AR120: 0 | AS120: 0 | AX120: 0 | AY120: 0 | AZ120: 0 | BB120: 0 | BD120: 0 | BE120: 0
A121: 83 | B121: 00:13:40 | F121: 0 | G121: 0 | K121: 0 | L121: 0 | M121: 0 | N121: 0 | AD121: 0 | AE121: 0 | AF121: 0 | AG121: 0 | AH121: 0 | AI121: 0 | AJ121: 0 | AK121: 0.05 | AN121: 0 | AQ121: 0 | AR121: 0 | AS121: 0 | AX121: 0 | AY121: 0 | AZ121: 0 | BB121: 0 | BD121: 0 | BE121: 0
A122: 84 | B122: 00:13:50 | F122: 0 | G122: 0 | K122: 0 | L122: 0 | M122: 0 | N122: 0 | AD122: 0 | AE122: 0 | AF122: 0 | AG122: 0 | AH122: 0 | AI122: 0 | AJ122: 0 | AK122: 0.05 | AN122: 0 | AQ122: 0 | AR122: 0 | AS122: 0 | AX122: 0 | AY122: 0 | AZ122: 0 | BB122: 0 | BD122: 0 | BE122: 0
A123: 85 | B123: 00:14:00 | F123: 0 | G123: 0 | K123: 0 | L123: 0 | M123: 0 | N123: 0 | AD123: 0 | AE123: 0 | AF123: 0 | AG123: 0 | AH123: 0 | AI123: 0 | AJ123: 0 | AK123: 0.05 | AN123: 0 | AQ123: 0 | AR123: 0 | AS123: 0 | AX123: 0 | AY123: 0 | AZ123: 0 | BB123: 0 | BD123: 0 | BE123: 0
A124: 86 | B124: 00:14:10 | F124: 0 | G124: 0 | K124: 0 | L124: 0 | M124: 0 | N124: 0 | AD124: 0 | AE124: 0 | AF124: 0 | AG124: 0 | AH124: 0 | AI124: 0 | AJ124: 0 | AK124: 0.05 | AN124: 0 | AQ124: 0 | AR124: 0 | AS124: 0 | AX124: 0 | AY124: 0 | AZ124: 0 | BB124: 0 | BD124: 0 | BE124: 0
A125: 87 | B125: 00:14:20 | F125: 0 | G125: 0 | K125: 0 | L125: 0 | M125: 0 | N125: 0 | AD125: 0 | AE125: 0 | AF125: 0 | AG125: 0 | AH125: 0 | AI125: 0 | AJ125: 0 | AK125: 0.05 | AN125: 0 | AQ125: 0 | AR125: 0 | AS125: 0 | AX125: 0 | AY125: 0 | AZ125: 0 | BB125: 0 | BD125: 0 | BE125: 0
A126: 88 | B126: 00:14:30 | F126: 0 | G126: 0 | K126: 0 | L126: 0 | M126: 0 | N126: 0 | AD126: 0 | AE126: 0 | AF126: 0 | AG126: 0 | AH126: 0 | AI126: 0 | AJ126: 0 | AK126: 0.05 | AN126: 0 | AQ126: 0 | AR126: 0 | AS126: 0 | AX126: 0 | AY126: 0 | AZ126: 0 | BB126: 0 | BD126: 0 | BE126: 0
A127: 89 | B127: 00:14:40 | F127: 0 | G127: 0 | K127: 0 | L127: 0 | M127: 0 | N127: 0 | AD127: 0 | AE127: 0 | AF127: 0 | AG127: 0 | AH127: 0 | AI127: 0 | AJ127: 0 | AK127: 0.05 | AN127: 0 | AQ127: 0 | AR127: 0 | AS127: 0 | AX127: 0 | AY127: 0 | AZ127: 0 | BB127: 0 | BD127: 0 | BE127: 0
A128: 90 | B128: 00:14:50 | F128: 0 | G128: 0 | K128: 0 | L128: 0 | M128: 0 | N128: 0 | AD128: 0 | AE128: 0 | AF128: 0 | AG128: 0 | AH128: 0 | AI128: 0 | AJ128: 0 | AK128: 0.05 | AN128: 0 | AQ128: 0 | AR128: 0 | AS128: 0 | AX128: 0 | AY128: 0 | AZ128: 0 | BB128: 0 | BD128: 0 | BE128: 0
A129: 91 | B129: 00:15:00 | F129: 0 | G129: 0 | K129: 0 | L129: 0 | M129: 0 | N129: 0 | AD129: 0 | AE129: 0 | AF129: 0 | AG129: 0 | AH129: 0 | AI129: 0 | AJ129: 0 | AK129: 0.05 | AN129: 0 | AQ129: 0 | AR129: 0 | AS129: 0 | AX129: 0 | AY129: 0 | AZ129: 0 | BB129: 0 | BD129: 0 | BE129: 0
A130: 92 | B130: 00:15:10 | F130: 0 | G130: 0 | K130: 0 | L130: 0 | M130: 0 | N130: 0 | AD130: 0 | AE130: 0 | AF130: 0 | AG130: 0 | AH130: 0 | AI130: 0 | AJ130: 0 | AK130: 0.05 | AN130: 0 | AQ130: 0 | AR130: 0 | AS130: 0 | AX130: 0 | AY130: 0 | AZ130: 0 | BB130: 0 | BD130: 0 | BE130: 0
A131: 93 | B131: 00:15:20 | F131: 0 | G131: 0 | K131: 0 | L131: 0 | M131: 0 | N131: 0 | AD131: 0 | AE131: 0 | AF131: 0 | AG131: 0 | AH131: 0 | AI131: 0 | AJ131: 0 | AK131: 0.05 | AN131: 0 | AQ131: 0 | AR131: 0 | AS131: 0 | AX131: 0 | AY131: 0 | AZ131: 0 | BB131: 0 | BD131: 0 | BE131: 0
A132: 94 | B132: 00:15:30 | F132: 0 | G132: 0 | K132: 0 | L132: 0 | M132: 0 | N132: 0 | AD132: 0 | AE132: 0 | AF132: 0 | AG132: 0 | AH132: 0 | AI132: 0 | AJ132: 0 | AK132: 0.05 | AN132: 0 | AQ132: 0 | AR132: 0 | AS132: 0 | AX132: 0 | AY132: 0 | AZ132: 0 | BB132: 0 | BD132: 0 | BE132: 0
A133: 95 | B133: 00:15:40 | F133: 0 | G133: 0 | K133: 0 | L133: 0 | M133: 0 | N133: 0 | AD133: 0 | AE133: 0 | AF133: 0 | AG133: 0 | AH133: 0 | AI133: 0 | AJ133: 0 | AK133: 0.05 | AN133: 0 | AQ133: 0 | AR133: 0 | AS133: 0 | AX133: 0 | AY133: 0 | AZ133: 0 | BB133: 0 | BD133: 0 | BE133: 0
A134: 96 | B134: 00:15:50 | F134: 0 | G134: 0 | K134: 0 | L134: 0 | M134: 0 | N134: 0 | AD134: 0 | AE134: 0 | AF134: 0 | AG134: 0 | AH134: 0 | AI134: 0 | AJ134: 0 | AK134: 0.05 | AN134: 0 | AQ134: 0 | AR134: 0 | AS134: 0 | AX134: 0 | AY134: 0 | AZ134: 0 | BB134: 0 | BD134: 0 | BE134: 0
A135: 97 | B135: 00:16:00 | F135: 0 | G135: 0 | K135: 0 | L135: 0 | M135: 0 | N135: 0 | AD135: 0 | AE135: 0 | AF135: 0 | AG135: 0 | AH135: 0 | AI135: 0 | AJ135: 0 | AK135: 0.05 | AN135: 0 | AQ135: 0 | AR135: 0 | AS135: 0 | AX135: 0 | AY135: 0 | AZ135: 0 | BB135: 0 | BD135: =STDEV( AG135:AG165) -> 0 | BE135: =STDEV( AD135:AD165) -> 0
A136: 98 | B136: 00:16:10 | F136: 0 | G136: 0 | K136: 0 | L136: 0 | M136: 0 | N136: 0 | AD136: 0 | AE136: 0 | AF136: 0 | AG136: 0 | AH136: 0 | AI136: 0 | AJ136: 0 | AK136: 0.05 | AN136: 0 | AQ136: 0 | AR136: 0 | AS136: 0 | AX136: 0 | AY136: 0 | AZ136: 0 | BB136: =ABS(AD136 - AD135) -> 0 | BD136: 0 | BE136: 0
A137: 99 | B137: 00:16:20 | F137: =E137/6 -> 0 | G137: 0 | K137: =IF(I137 = 0, 0, H137 * J137 / I137) -> 0 | L137: =D137 + K137 -> 0 | M137: =C137 - G137 -> 0 | N137: 0 | AD137: 0 | AE137: 0 | AF137: 0 | AG137: 0 | AH137: 0 | AI137: 0 | AJ137: 0 | AK137: 0.05 | AN137: 0 | AQ137: 0 | AR137: 0 | AS137: 0 | AX137: 0 | AY137: =H137 -> 0 | AZ137: 0 | BB137: 0 | BD137: 0 | BE137: 0
A138: 100 | B138: 00:16:30 | F138: 0 | G138: =IF($J$5=TRUE,D138,IF( ABS(D138 -G137) < F138, D138,G137 + SIGN( D138 - G137 ) * F138 )) -> 0 | K138: 0 | L138: 0 | M138: 0 | N138: 0 | AD138: 0 | AE138: 0 | AF138: 0 | AG138: 0 | AH138: 0 | AI138: 0 | AJ138: 0 | AK138: 0.05 | AN138: 0 | AQ138: 0 | AR138: 0 | AS138: 0 | AX138: 0 | AY138: 0 | AZ138: 0 | BB138: 0 | BD138: 0 | BE138: 0
A139: 101 | B139: 00:16:40 | F139: 0 | G139: 0 | K139: 0 | L139: 0 | M139: 0 | N139: 0 | AD139: 0 | AE139: 0 | AF139: 0 | AG139: 0 | AH139: 0 | AI139: 0 | AJ139: 0 | AK139: 0.05 | AN139: 0 | AQ139: 0 | AR139: 0 | AS139: 0 | AX139: 0 | AY139: 0 | AZ139: 0 | BB139: 0 | BD139: 0 | BE139: 0
A140: 102 | B140: 00:16:50 | F140: 0 | G140: 0 | K140: 0 | L140: 0 | M140: 0 | N140: 0 | AD140: 0 | AE140: 0 | AF140: 0 | AG140: 0 | AH140: 0 | AI140: 0 | AJ140: 0 | AK140: 0.05 | AN140: 0 | AQ140: 0 | AR140: 0 | AS140: 0 | AX140: 0 | AY140: 0 | AZ140: 0 | BB140: 0 | BD140: 0 | BE140: 0
A141: 103 | B141: 00:17:00 | F141: 0 | G141: 0 | K141: 0 | L141: 0 | M141: 0 | N141: 0 | AD141: 0 | AE141: 0 | AF141: 0 | AG141: 0 | AH141: 0 | AI141: 0 | AJ141: 0 | AK141: 0.05 | AN141: 0 | AQ141: 0 | AR141: 0 | AS141: 0 | AX141: 0 | AY141: 0 | AZ141: 0 | BB141: 0 | BD141: 0 | BE141: 0
A142: 104 | B142: 00:17:10 | F142: 0 | G142: 0 | K142: 0 | L142: 0 | M142: 0 | N142: 0 | AD142: 0 | AE142: 0 | AF142: 0 | AG142: 0 | AH142: 0 | AI142: 0 | AJ142: 0 | AK142: 0.05 | AN142: 0 | AQ142: 0 | AR142: 0 | AS142: 0 | AX142: 0 | AY142: 0 | AZ142: 0 | BB142: 0 | BD142: 0 | BE142: 0
A143: 105 | B143: 00:17:20 | F143: 0 | G143: 0 | K143: 0 | L143: 0 | M143: 0 | N143: 0 | AD143: 0 | AE143: 0 | AF143: 0 | AG143: 0 | AH143: 0 | AI143: 0 | AJ143: 0 | AK143: 0.05 | AN143: 0 | AQ143: 0 | AR143: 0 | AS143: 0 | AX143: 0 | AY143: 0 | AZ143: 0 | BB143: 0 | BD143: 0 | BE143: 0
A144: 106 | B144: 00:17:30 | F144: 0 | G144: 0 | K144: 0 | L144: 0 | M144: 0 | N144: 0 | AD144: 0 | AE144: 0 | AF144: 0 | AG144: 0 | AH144: 0 | AI144: 0 | AJ144: 0 | AK144: 0.05 | AN144: 0 | AQ144: 0 | AR144: 0 | AS144: 0 | AX144: 0 | AY144: 0 | AZ144: 0 | BB144: 0 | BD144: 0 | BE144: 0
A145: 107 | B145: 00:17:40 | F145: 0 | G145: 0 | K145: 0 | L145: 0 | M145: 0 | N145: 0 | AD145: 0 | AE145: 0 | AF145: 0 | AG145: 0 | AH145: 0 | AI145: 0 | AJ145: 0 | AK145: 0.05 | AN145: 0 | AQ145: 0 | AR145: 0 | AS145: 0 | AX145: 0 | AY145: 0 | AZ145: 0 | BB145: 0 | BD145: 0 | BE145: 0
A146: 108 | B146: 00:17:50 | F146: 0 | G146: 0 | K146: 0 | L146: 0 | M146: 0 | N146: 0 | AD146: 0 | AE146: 0 | AF146: 0 | AG146: 0 | AH146: 0 | AI146: 0 | AJ146: 0 | AK146: 0.05 | AN146: 0 | AQ146: 0 | AR146: 0 | AS146: 0 | AX146: 0 | AY146: 0 | AZ146: 0 | BB146: 0 | BD146: 0 | BE146: 0
A147: 109 | B147: 00:18:00 | F147: 0 | G147: 0 | K147: 0 | L147: 0 | M147: 0 | N147: 0 | AD147: 0 | AE147: 0 | AF147: 0 | AG147: 0 | AH147: 0 | AI147: 0 | AJ147: 0 | AK147: 0.05 | AN147: 0 | AQ147: 0 | AR147: 0 | AS147: 0 | AX147: 0 | AY147: 0 | AZ147: 0 | BB147: 0 | BD147: 0 | BE147: 0
A148: 110 | B148: 00:18:10 | F148: 0 | G148: 0 | K148: 0 | L148: 0 | M148: 0 | N148: 0 | AD148: 0 | AE148: 0 | AF148: 0 | AG148: 0 | AH148: 0 | AI148: 0 | AJ148: 0 | AK148: 0.05 | AN148: 0 | AQ148: 0 | AR148: 0 | AS148: 0 | AX148: 0 | AY148: 0 | AZ148: 0 | BB148: 0 | BD148: 0 | BE148: 0
A149: 111 | B149: 00:18:20 | F149: 0 | G149: 0 | K149: 0 | L149: 0 | M149: 0 | N149: 0 | AD149: 0 | AE149: 0 | AF149: 0 | AG149: 0 | AH149: 0 | AI149: 0 | AJ149: 0 | AK149: 0.05 | AN149: 0 | AQ149: 0 | AR149: 0 | AS149: 0 | AX149: 0 | AY149: 0 | AZ149: 0 | BB149: 0 | BD149: 0 | BE149: 0
A150: 112 | B150: 00:18:30 | F150: 0 | G150: 0 | K150: 0 | L150: 0 | M150: 0 | N150: 0 | AD150: 0 | AE150: 0 | AF150: 0 | AG150: 0 | AH150: 0 | AI150: 0 | AJ150: 0 | AK150: 0.05 | AN150: 0 | AQ150: 0 | AR150: 0 | AS150: 0 | AX150: 0 | AY150: 0 | AZ150: 0 | BB150: 0 | BD150: 0 | BE150: 0
A151: 113 | B151: 00:18:40 | F151: 0 | G151: 0 | K151: 0 | L151: 0 | M151: 0 | N151: 0 | AD151: 0 | AE151: 0 | AF151: 0 | AG151: 0 | AH151: 0 | AI151: 0 | AJ151: 0 | AK151: 0.05 | AN151: 0 | AQ151: 0 | AR151: 0 | AS151: 0 | AX151: 0 | AY151: 0 | AZ151: 0 | BB151: 0 | BD151: 0 | BE151: 0
A152: 114 | B152: 00:18:50 | F152: 0 | G152: 0 | K152: 0 | L152: 0 | M152: 0 | N152: 0 | AD152: 0 | AE152: 0 | AF152: 0 | AG152: 0 | AH152: 0 | AI152: 0 | AJ152: 0 | AK152: 0.05 | AN152: 0 | AQ152: 0 | AR152: 0 | AS152: 0 | AX152: 0 | AY152: 0 | AZ152: 0 | BB152: 0 | BD152: 0 | BE152: 0
A153: 115 | B153: 00:19:00 | F153: 0 | G153: 0 | K153: 0 | L153: 0 | M153: 0 | N153: 0 | AD153: 0 | AE153: 0 | AF153: 0 | AG153: 0 | AH153: 0 | AI153: 0 | AJ153: 0 | AK153: 0.05 | AN153: 0 | AQ153: 0 | AR153: 0 | AS153: 0 | AX153: 0 | AY153: 0 | AZ153: 0 | BB153: 0 | BD153: 0 | BE153: 0
A154: 116 | B154: 00:19:10 | F154: 0 | G154: 0 | K154: 0 | L154: 0 | M154: 0 | N154: 0 | AD154: 0 | AE154: 0 | AF154: 0 | AG154: 0 | AH154: 0 | AI154: 0 | AJ154: 0 | AK154: 0.05 | AN154: 0 | AQ154: 0 | AR154: 0 | AS154: 0 | AX154: 0 | AY154: 0 | AZ154: 0 | BB154: 0 | BD154: 0 | BE154: 0
A155: 117 | B155: 00:19:20 | F155: 0 | G155: 0 | K155: 0 | L155: 0 | M155: 0 | N155: 0 | AD155: 0 | AE155: 0 | AF155: 0 | AG155: 0 | AH155: 0 | AI155: 0 | AJ155: 0 | AK155: 0.05 | AN155: 0 | AQ155: 0 | AR155: 0 | AS155: 0 | AX155: 0 | AY155: 0 | AZ155: 0 | BB155: 0 | BD155: 0 | BE155: 0
A156: 118 | B156: 00:19:30 | F156: 0 | G156: 0 | K156: 0 | L156: 0 | M156: 0 | N156: 0 | AD156: 0 | AE156: 0 | AF156: 0 | AG156: 0 | AH156: 0 | AI156: 0 | AJ156: 0 | AK156: 0.05 | AN156: 0 | AQ156: 0 | AR156: 0 | AS156: 0 | AX156: 0 | AY156: 0 | AZ156: 0 | BB156: 0 | BD156: 0 | BE156: 0
A157: 119 | B157: 00:19:40 | F157: 0 | G157: 0 | K157: 0 | L157: 0 | M157: 0 | N157: 0 | AD157: 0 | AE157: 0 | AF157: 0 | AG157: 0 | AH157: 0 | AI157: 0 | AJ157: 0 | AK157: 0.05 | AN157: 0 | AQ157: 0 | AR157: 0 | AS157: 0 | AX157: 0 | AY157: 0 | AZ157: 0 | BB157: 0 | BD157: 0 | BE157: 0
A158: 120 | B158: 00:19:50 | F158: 0 | G158: 0 | K158: 0 | L158: 0 | M158: 0 | N158: 0 | AD158: 0 | AE158: 0 | AF158: 0 | AG158: 0 | AH158: 0 | AI158: 0 | AJ158: 0 | AK158: 0.05 | AN158: 0 | AQ158: 0 | AR158: 0 | AS158: 0 | AX158: 0 | AY158: 0 | AZ158: 0 | BB158: 0 | BD158: 0 | BE158: 0
A159: 121 | B159: 00:20:00 | F159: 0 | G159: 0 | K159: 0 | L159: 0 | M159: 0 | N159: 0 | AD159: 0 | AE159: 0 | AF159: 0 | AG159: 0 | AH159: 0 | AI159: 0 | AJ159: 0 | AK159: 0.05 | AN159: 0 | AQ159: 0 | AR159: 0 | AS159: 0 | AX159: 0 | AY159: 0 | AZ159: 0 | BB159: 0 | BD159: 0 | BE159: 0
A160: 122 | B160: 00:20:10 | F160: 0 | G160: 0 | K160: 0 | L160: 0 | M160: 0 | N160: 0 | AD160: 0 | AE160: 0 | AF160: 0 | AG160: 0 | AH160: 0 | AI160: 0 | AJ160: 0 | AK160: 0.05 | AN160: 0 | AQ160: 0 | AR160: 0 | AS160: 0 | AX160: 0 | AY160: 0 | AZ160: 0 | BB160: 0 | BD160: 0 | BE160: 0
A161: 123 | B161: 00:20:20 | F161: 0 | G161: 0 | K161: 0 | L161: 0 | M161: 0 | N161: 0 | AD161: 0 | AE161: 0 | AF161: 0 | AG161: 0 | AH161: 0 | AI161: 0 | AJ161: 0 | AK161: 0.05 | AN161: 0 | AQ161: 0 | AR161: 0 | AS161: 0 | AX161: 0 | AY161: 0 | AZ161: 0 | BB161: 0 | BD161: 0 | BE161: 0
A162: 124 | B162: 00:20:30 | F162: 0 | G162: 0 | K162: 0 | L162: 0 | M162: 0 | N162: 0 | AD162: 0 | AE162: 0 | AF162: 0 | AG162: 0 | AH162: 0 | AI162: 0 | AJ162: 0 | AK162: 0.05 | AN162: 0 | AQ162: 0 | AR162: 0 | AS162: 0 | AX162: 0 | AY162: 0 | AZ162: 0 | BB162: 0 | BD162: 0 | BE162: 0
A163: 125 | B163: 00:20:40 | F163: 0 | G163: 0 | K163: 0 | L163: 0 | M163: 0 | N163: 0 | AD163: 0 | AE163: 0 | AF163: 0 | AG163: 0 | AH163: 0 | AI163: 0 | AJ163: 0 | AK163: 0.05 | AN163: 0 | AQ163: 0 | AR163: 0 | AS163: 0 | AX163: 0 | AY163: 0 | AZ163: 0 | BB163: 0 | BD163: 0 | BE163: 0
A164: 126 | B164: 00:20:50 | F164: 0 | G164: 0 | K164: 0 | L164: 0 | M164: 0 | N164: 0 | AD164: 0 | AE164: 0 | AF164: 0 | AG164: 0 | AH164: 0 | AI164: 0 | AJ164: 0 | AK164: 0.05 | AN164: 0 | AQ164: 0 | AR164: 0 | AS164: 0 | AX164: 0 | AY164: 0 | AZ164: 0 | BB164: 0 | BD164: 0 | BE164: 0
A165: 127 | B165: 00:21:00 | F165: 0 | G165: 0 | K165: 0 | L165: 0 | M165: 0 | N165: 0 | AD165: 0 | AE165: 0 | AF165: 0 | AG165: 0 | AH165: 0 | AI165: 0 | AJ165: 0 | AK165: 0.05 | AN165: 0 | AQ165: 0 | AR165: 0 | AS165: 0 | AX165: 0 | AY165: 0 | AZ165: 0 | BB165: 0 | BD165: 0 | BE165: 0
A166: 128 | B166: 00:21:10 | F166: 0 | G166: 0 | K166: 0 | L166: 0 | M166: 0 | N166: 0 | AD166: 0 | AE166: 0 | AF166: 0 | AG166: 0 | AH166: 0 | AI166: 0 | AJ166: 0 | AK166: 0.05 | AN166: 0 | AQ166: 0 | AR166: 0 | AS166: 0 | AX166: 0 | AY166: 0 | AZ166: 0 | BB166: 0 | BD166: 0 | BE166: 0
A167: 129 | B167: 00:21:20 | F167: 0 | G167: 0 | K167: 0 | L167: 0 | M167: 0 | N167: =BB137 -> 0 | AD167: =MIN(MAX(IF(I167 = 0, 0, J167 / I167 ), -1), 1) -> 0 | AE167: =SLOPE( K167:K197, $A167:$A197 ) -> 0 | AF167: 0 | AG167: 0 | AH167: 0 | AI167: 0 | AJ167: 0 | AK167: 0.05 | AN167: =ABS(K167) -> 0 | AQ167: =IF(I167=0,0,MIN(MAX(1 - ABS(M168 - K167) / H167, 0), 1)) -> 0 | AR167: =IF(I167=0,0,IF(MAX(M167:M227) = MIN(M167:M227), 0, IF(MIN(H167:H197)=0,"NaN",MIN(MAX(1 - ABS(M168 - K167) / $AO$39, 0), 1 )))) -> 0 | AS167: =IF(I167=0,0,IF(MAX(M167:M227) = MIN(M167:M227), 0, IF(MIN(H167:H197)=0,"NaN",MIN(MAX(1 - ABS(M168 - K167) / AVERAGE($AO$39,H167), 0), 1 )))) -> 0 | AX167: 0 | AY167: 0 | AZ167: 0 | BB167: 0 | BD167: =STDEV( AG167:AG197) -> 0 | BE167: =STDEV( AD167:AD197) -> 0
A168: 130 | B168: 00:21:30 | F168: 0 | G168: 0 | K168: 0 | L168: 0 | M168: 0 | N168: 0 | AD168: 0 | AE168: 0 | AF168: =SLOPE( AD168:AD198, $A168:$A198 ) -> 0 | AG168: =IF( $AF$5 = 1, AE168, AF168) -> 0 | AH168: =$D$5 -> 0 | AI168: =-AH168 -> 0 | AJ168: =STDEV( AD168:AD198) -> 0 | AK168: =$D$6 -> 0.05 | AN168: 0 | AQ168: 0 | AR168: 0 | AS168: 0 | AX168: =IF($AT$5 = 1, AQ168, AR168) -> 0 | AY168: 0 | AZ168: =-AY168 -> 0 | BB168: =ABS(AD168 - AD167) -> 0 | BD168: 0 | BE168: 0
A169: 131 | B169: =B168 + TIME(0,0,10) -> 00:21:40 | F169: 0 | G169: 0 | K169: 0 | L169: 0 | M169: 0 | N169: 0 | AD169: 0 | AE169: 0 | AF169: 0 | AG169: 0 | AH169: 0 | AI169: 0 | AJ169: 0 | AK169: 0.05 | AN169: 0 | AQ169: 0 | AR169: 0 | AS169: 0 | AX169: 0 | AY169: 0 | AZ169: 0 | BB169: 0 | BD169: 0 | BE169: 0
A170: 132 | B170: 00:21:50 | F170: 0 | G170: 0 | K170: 0 | L170: 0 | M170: 0 | N170: 0 | AD170: 0 | AE170: 0 | AF170: 0 | AG170: 0 | AH170: 0 | AI170: 0 | AJ170: 0 | AK170: 0.05 | AN170: 0 | AQ170: 0 | AR170: 0 | AS170: 0 | AX170: 0 | AY170: 0 | AZ170: 0 | BB170: 0 | BD170: 0 | BE170: 0
A171: 133 | B171: 00:22:00 | F171: 0 | G171: 0 | K171: 0 | L171: 0 | M171: 0 | N171: 0 | AD171: 0 | AE171: 0 | AF171: 0 | AG171: 0 | AH171: 0 | AI171: 0 | AJ171: 0 | AK171: 0.05 | AN171: 0 | AQ171: 0 | AR171: 0 | AS171: 0 | AX171: 0 | AY171: 0 | AZ171: 0 | BB171: 0 | BD171: 0 | BE171: 0
A172: 134 | B172: 00:22:10 | F172: 0 | G172: 0 | K172: 0 | L172: 0 | M172: 0 | N172: 0 | AD172: 0 | AE172: 0 | AF172: 0 | AG172: 0 | AH172: 0 | AI172: 0 | AJ172: 0 | AK172: 0.05 | AN172: 0 | AQ172: 0 | AR172: 0 | AS172: 0 | AX172: 0 | AY172: 0 | AZ172: 0 | BB172: 0 | BD172: 0 | BE172: 0
A173: 135 | B173: 00:22:20 | F173: 0 | G173: 0 | K173: 0 | L173: 0 | M173: 0 | N173: 0 | AD173: 0 | AE173: 0 | AF173: 0 | AG173: 0 | AH173: 0 | AI173: 0 | AJ173: 0 | AK173: 0.05 | AN173: 0 | AQ173: 0 | AR173: 0 | AS173: 0 | AX173: 0 | AY173: 0 | AZ173: 0 | BB173: 0 | BD173: 0 | BE173: 0
A174: 136 | B174: 00:22:30 | F174: 0 | G174: 0 | K174: 0 | L174: 0 | M174: 0 | N174: 0 | AD174: 0 | AE174: 0 | AF174: 0 | AG174: 0 | AH174: 0 | AI174: 0 | AJ174: 0 | AK174: 0.05 | AN174: 0 | AQ174: 0 | AR174: 0 | AS174: 0 | AX174: 0 | AY174: 0 | AZ174: 0 | BB174: 0 | BD174: 0 | BE174: 0
A175: 137 | B175: 00:22:40 | F175: 0 | G175: 0 | K175: 0 | L175: 0 | M175: 0 | N175: 0 | AD175: 0 | AE175: 0 | AF175: 0 | AG175: 0 | AH175: 0 | AI175: 0 | AJ175: 0 | AK175: 0.05 | AN175: 0 | AQ175: 0 | AR175: 0 | AS175: 0 | AX175: 0 | AY175: 0 | AZ175: 0 | BB175: 0 | BD175: 0 | BE175: 0
A176: 138 | B176: 00:22:50 | F176: 0 | G176: 0 | K176: 0 | L176: 0 | M176: 0 | N176: 0 | AD176: 0 | AE176: 0 | AF176: 0 | AG176: 0 | AH176: 0 | AI176: 0 | AJ176: 0 | AK176: 0.05 | AN176: 0 | AQ176: 0 | AR176: 0 | AS176: 0 | AX176: 0 | AY176: 0 | AZ176: 0 | BB176: 0 | BD176: 0 | BE176: 0
A177: 139 | B177: 00:23:00 | F177: 0 | G177: 0 | K177: 0 | L177: 0 | M177: 0 | N177: 0 | AD177: 0 | AE177: 0 | AF177: 0 | AG177: 0 | AH177: 0 | AI177: 0 | AJ177: 0 | AK177: 0.05 | AN177: 0 | AQ177: 0 | AR177: 0 | AS177: 0 | AX177: 0 | AY177: 0 | AZ177: 0 | BB177: 0 | BD177: 0 | BE177: 0
A178: 140 | B178: 00:23:10 | F178: 0 | G178: 0 | K178: 0 | L178: 0 | M178: 0 | N178: 0 | AD178: 0 | AE178: 0 | AF178: 0 | AG178: 0 | AH178: 0 | AI178: 0 | AJ178: 0 | AK178: 0.05 | AN178: 0 | AQ178: 0 | AR178: 0 | AS178: 0 | AX178: 0 | AY178: 0 | AZ178: 0 | BB178: 0 | BD178: 0 | BE178: 0
A179: 141 | B179: 00:23:20 | F179: 0 | G179: 0 | K179: 0 | L179: 0 | M179: 0 | N179: 0 | AD179: 0 | AE179: 0 | AF179: 0 | AG179: 0 | AH179: 0 | AI179: 0 | AJ179: 0 | AK179: 0.05 | AN179: 0 | AQ179: 0 | AR179: 0 | AS179: 0 | AX179: 0 | AY179: 0 | AZ179: 0 | BB179: 0 | BD179: 0 | BE179: 0
A180: 142 | B180: 00:23:30 | F180: 0 | G180: 0 | K180: 0 | L180: 0 | M180: 0 | N180: 0 | AD180: 0 | AE180: 0 | AF180: 0 | AG180: 0 | AH180: 0 | AI180: 0 | AJ180: 0 | AK180: 0.05 | AN180: 0 | AQ180: 0 | AR180: 0 | AS180: 0 | AX180: 0 | AY180: 0 | AZ180: 0 | BB180: 0 | BD180: 0 | BE180: 0
A181: 143 | B181: 00:23:40 | F181: 0 | G181: 0 | K181: 0 | L181: 0 | M181: 0 | N181: 0 | AD181: 0 | AE181: 0 | AF181: 0 | AG181: 0 | AH181: 0 | AI181: 0 | AJ181: 0 | AK181: 0.05 | AN181: 0 | AQ181: 0 | AR181: 0 | AS181: 0 | AX181: 0 | AY181: 0 | AZ181: 0 | BB181: 0 | BD181: 0 | BE181: 0
A182: 144 | B182: 00:23:50 | F182: 0 | G182: 0 | K182: 0 | L182: 0 | M182: 0 | N182: 0 | AD182: 0 | AE182: 0 | AF182: 0 | AG182: 0 | AH182: 0 | AI182: 0 | AJ182: 0 | AK182: 0.05 | AN182: 0 | AQ182: 0 | AR182: 0 | AS182: 0 | AX182: 0 | AY182: 0 | AZ182: 0 | BB182: 0 | BD182: 0 | BE182: 0
A183: 145 | B183: 00:24:00 | F183: 0 | G183: 0 | K183: 0 | L183: 0 | M183: 0 | N183: 0 | AD183: 0 | AE183: 0 | AF183: 0 | AG183: 0 | AH183: 0 | AI183: 0 | AJ183: 0 | AK183: 0.05 | AN183: 0 | AQ183: 0 | AR183: 0 | AS183: 0 | AX183: 0 | AY183: 0 | AZ183: 0 | BB183: 0 | BD183: 0 | BE183: 0
A184: 146 | B184: 00:24:10 | F184: 0 | G184: 0 | K184: 0 | L184: 0 | M184: 0 | N184: 0 | AD184: 0 | AE184: 0 | AF184: 0 | AG184: 0 | AH184: 0 | AI184: 0 | AJ184: 0 | AK184: 0.05 | AN184: 0 | AQ184: 0 | AR184: 0 | AS184: 0 | AX184: 0 | AY184: 0 | AZ184: 0 | BB184: 0 | BD184: 0 | BE184: 0
A185: 147 | B185: 00:24:20 | F185: 0 | G185: 0 | K185: 0 | L185: 0 | M185: 0 | N185: 0 | AD185: 0 | AE185: 0 | AF185: 0 | AG185: 0 | AH185: 0 | AI185: 0 | AJ185: 0 | AK185: 0.05 | AN185: 0 | AQ185: 0 | AR185: 0 | AS185: 0 | AX185: 0 | AY185: 0 | AZ185: 0 | BB185: 0 | BD185: 0 | BE185: 0
A186: 148 | B186: 00:24:30 | F186: 0 | G186: 0 | K186: 0 | L186: 0 | M186: 0 | N186: 0 | AD186: 0 | AE186: 0 | AF186: 0 | AG186: 0 | AH186: 0 | AI186: 0 | AJ186: 0 | AK186: 0.05 | AN186: 0 | AQ186: 0 | AR186: 0 | AS186: 0 | AX186: 0 | AY186: 0 | AZ186: 0 | BB186: 0 | BD186: 0 | BE186: 0
A187: 149 | B187: 00:24:40 | F187: 0 | G187: 0 | K187: 0 | L187: 0 | M187: 0 | N187: 0 | AD187: 0 | AE187: 0 | AF187: 0 | AG187: 0 | AH187: 0 | AI187: 0 | AJ187: 0 | AK187: 0.05 | AN187: 0 | AQ187: 0 | AR187: 0 | AS187: 0 | AX187: 0 | AY187: 0 | AZ187: 0 | BB187: 0 | BD187: 0 | BE187: 0
A188: 150 | B188: 00:24:50 | F188: 0 | G188: 0 | K188: 0 | L188: 0 | M188: 0 | N188: 0 | AD188: 0 | AE188: 0 | AF188: 0 | AG188: 0 | AH188: 0 | AI188: 0 | AJ188: 0 | AK188: 0.05 | AN188: 0 | AQ188: 0 | AR188: 0 | AS188: 0 | AX188: 0 | AY188: 0 | AZ188: 0 | BB188: 0 | BD188: 0 | BE188: 0
A189: 151 | B189: 00:25:00 | F189: 0 | G189: 0 | K189: 0 | L189: 0 | M189: 0 | N189: 0 | AD189: 0 | AE189: 0 | AF189: 0 | AG189: 0 | AH189: 0 | AI189: 0 | AJ189: 0 | AK189: 0.05 | AN189: 0 | AQ189: 0 | AR189: 0 | AS189: 0 | AX189: 0 | AY189: 0 | AZ189: 0 | BB189: 0 | BD189: 0 | BE189: 0
A190: 152 | B190: 00:25:10 | F190: 0 | G190: 0 | K190: 0 | L190: 0 | M190: 0 | N190: 0 | AD190: 0 | AE190: 0 | AF190: 0 | AG190: 0 | AH190: 0 | AI190: 0 | AJ190: 0 | AK190: 0.05 | AN190: 0 | AQ190: 0 | AR190: 0 | AS190: 0 | AX190: 0 | AY190: 0 | AZ190: 0 | BB190: 0 | BD190: 0 | BE190: 0
A191: 153 | B191: 00:25:20 | F191: 0 | G191: 0 | K191: 0 | L191: 0 | M191: 0 | N191: 0 | AD191: 0 | AE191: 0 | AF191: 0 | AG191: 0 | AH191: 0 | AI191: 0 | AJ191: 0 | AK191: 0.05 | AN191: 0 | AQ191: 0 | AR191: 0 | AS191: 0 | AX191: 0 | AY191: 0 | AZ191: 0 | BB191: 0 | BD191: 0 | BE191: 0
A192: 154 | B192: 00:25:30 | F192: 0 | G192: 0 | K192: 0 | L192: 0 | M192: 0 | N192: 0 | AD192: 0 | AE192: 0 | AF192: 0 | AG192: 0 | AH192: 0 | AI192: 0 | AJ192: 0 | AK192: 0.05 | AN192: 0 | AQ192: 0 | AR192: 0 | AS192: 0 | AX192: 0 | AY192: 0 | AZ192: 0 | BB192: 0 | BD192: 0 | BE192: 0
A193: 155 | B193: 00:25:40 | F193: 0 | G193: 0 | K193: 0 | L193: 0 | M193: 0 | N193: 0 | AD193: 0 | AE193: 0 | AF193: 0 | AG193: 0 | AH193: 0 | AI193: 0 | AJ193: 0 | AK193: 0.05 | AN193: 0 | AQ193: 0 | AR193: 0 | AS193: 0 | AX193: 0 | AY193: 0 | AZ193: 0 | BB193: 0 | BD193: 0 | BE193: 0
A194: 156 | B194: 00:25:50 | F194: 0 | G194: 0 | K194: 0 | L194: 0 | M194: 0 | N194: 0 | AD194: 0 | AE194: 0 | AF194: 0 | AG194: 0 | AH194: 0 | AI194: 0 | AJ194: 0 | AK194: 0.05 | AN194: 0 | AQ194: 0 | AR194: 0 | AS194: 0 | AX194: 0 | AY194: 0 | AZ194: 0 | BB194: 0 | BD194: 0 | BE194: 0
A195: 157 | B195: 00:26:00 | F195: 0 | G195: 0 | K195: 0 | L195: 0 | M195: 0 | N195: 0 | AD195: 0 | AE195: 0 | AF195: 0 | AG195: 0 | AH195: 0 | AI195: 0 | AJ195: 0 | AK195: 0.05 | AN195: 0 | AQ195: 0 | AR195: 0 | AS195: 0 | AX195: 0 | AY195: 0 | AZ195: 0 | BB195: 0 | BD195: 0 | BE195: 0
A196: 158 | B196: 00:26:10 | F196: 0 | G196: 0 | K196: 0 | L196: 0 | M196: 0 | N196: 0 | AD196: 0 | AE196: 0 | AF196: 0 | AG196: 0 | AH196: 0 | AI196: 0 | AJ196: 0 | AK196: 0.05 | AN196: 0 | AQ196: 0 | AR196: 0 | AS196: 0 | AX196: 0 | AY196: 0 | AZ196: 0 | BB196: 0 | BD196: 0 | BE196: 0
A197: 159 | B197: 00:26:20 | F197: 0 | G197: 0 | K197: 0 | L197: 0 | M197: 0 | N197: 0 | AD197: 0 | AE197: 0 | AF197: 0 | AG197: 0 | AH197: 0 | AI197: 0 | AJ197: 0 | AK197: 0.05 | AN197: 0 | AQ197: 0 | AR197: 0 | AS197: 0 | AX197: 0 | AY197: 0 | AZ197: 0 | BB197: 0 | BD197: 0 | BE197: 0
A198: 160 | B198: 00:26:30 | F198: 0 | G198: 0 | K198: 0 | L198: 0 | M198: 0 | N198: 0 | AD198: 0 | AE198: 0 | AF198: 0 | AG198: 0 | AH198: 0 | AI198: 0 | AJ198: 0 | AK198: 0.05 | AN198: 0 | AQ198: 0 | AR198: 0 | AS198: 0 | AX198: 0 | AY198: 0 | AZ198: 0 | BB198: 0 | BD198: 0 | BE198: 0
A199: 161 | B199: 00:26:40 | F199: 0 | G199: 0 | K199: 0 | L199: 0 | M199: 0 | N199: 0 | AD199: 0 | AE199: 0 | AF199: 0 | AG199: 0 | AH199: 0 | AI199: 0 | AJ199: 0 | AK199: 0.05 | AN199: 0 | AQ199: 0 | AR199: 0 | AS199: 0 | AX199: 0 | AY199: 0 | AZ199: 0 | BB199: 0 | BD199: =STDEV( AG199:AG229) -> 0 | BE199: =STDEV( AD199:AD229) -> 0
A200: 162 | B200: 00:26:50 | F200: 0 | G200: 0 | K200: 0 | L200: 0 | M200: 0 | N200: 0 | AD200: 0 | AE200: 0 | AF200: 0 | AG200: 0 | AH200: 0 | AI200: 0 | AJ200: 0 | AK200: 0.05 | AN200: 0 | AQ200: 0 | AR200: 0 | AS200: 0 | AX200: 0 | AY200: 0 | AZ200: 0 | BB200: =ABS(AD200 - AD199) -> 0 | BD200: 0 | BE200: 0
... 139 more rows

Sheet Score Template (hidden)
C2: Blue highlight denotes input data from PI/SCADA/Markets DB | H2: Correlation | J2: Delay | L2: Precision | N2: Composite | Q2: Slope Check | BK2: A | BL2: 1 | BM2: =BL2 / SUM($BL$2:$BL$4) -> 0.3333333333
H3: =AV7 -> 0.9764748945 | J3: =AZ7 -> 0.729305136 | L3: =BJ7 -> 0.5676141888 | N3: =BL7 -> 0.7577980731 | Q3: 0.05 | BF3: New Method | BK3: B | BL3: 1 | BM3: =BL3 / SUM($BL$2:$BL$4) -> 0.3333333333
BK4: C | BL4: 1 | BM4: =BL4 / SUM($BL$2:$BL$4) -> 0.3333333333
R5: ="+" & TEXT(R7*10 / 60, "0.00" ) & "m" -> +0.17m | S5: ="+" & TEXT(S7*10 / 60, "0.00" ) & "m" -> +0.33m | T5: +0.50m | U5: +0.67m | V5: +0.83m | W5: +1.00m | X5: +1.17m | Y5: +1.33m | Z5: +1.50m | AA5: +1.67m | AB5: +1.83m | AC5: +2.00m | AD5: +2.17m | AE5: +2.33m | AF5: +2.50m | AG5: +2.67m | AH5: +2.83m | AI5: +3.00m | AJ5: +3.17m | AK5: +3.33m | AL5: +3.50m | AM5: +3.67m | AN5: +3.83m | AO5: +4.00m | AP5: +4.17m | AQ5: +4.33m | AR5: +4.50m | AS5: +4.67m | AT5: +4.83m | BC5: Original | BF5: Hourly | BH5: Current Method
Q6: No Time Shift | R6: ="+" & (R7 * 10) & "s" -> +10s | S6: ="+" & (S7 * 10) & "s" -> +20s | T6: +30s | U6: +40s | V6: +50s | W6: +60s | X6: +70s | Y6: +80s | Z6: +90s | AA6: +100s | AB6: +110s | AC6: +120s | AD6: +130s | AE6: +140s | AF6: +150s | AG6: +160s | AH6: +170s | AI6: +180s | AJ6: +190s | AK6: +200s | AL6: +210s | AM6: +220s | AN6: +230s | AO6: +240s | AP6: +250s | AQ6: +260s | AR6: +270s | AS6: +280s | AT6: +290s | AV6: Correlation | AZ6: Delay | BC6: Precision | BF6: Average of Reg Signal | BH6: Precision | BJ6: Precision | BL6: Combined SCORE
Q7: 0 | R7: =Q7+1 -> 1 | S7: =R7+1 -> 2 | T7: 3 | U7: 4 | V7: 5 | W7: 6 | X7: 7 | Y7: 8 | Z7: 9 | AA7: 10 | AB7: 11 | AC7: 12 | AD7: 13 | AE7: 14 | AF7: 15 | AG7: 16 | AH7: 17 | AI7: 18 | AJ7: 19 | AK7: 20 | AL7: 21 | AM7: 22 | AN7: 23 | AO7: 24 | AP7: 25 | AQ7: 26 | AR7: 27 | AS7: 28 | AT7: 29 | AV7: =AVERAGE(AV39:AV369) -> 0.9764748945 | AZ7: =AVERAGE(AZ39:AZ369) -> 0.729305136 | BC7: =AVERAGE(BC9:BC368) -> 0.7125507432 | BF7: =AVERAGE(BE9:BE368) -> 3.12203986 | BH7: =AVERAGE(BH9:BH368) -> 0.5676141888 | BJ7: =AVERAGE(BJ9:BJ368) -> 0.5676141888 | BL7: =($BL$2*AV7+$BL$3*AZ7+BJ7*$BL$4)/SUM($BL$2:$BL$4) -> 0.7577980731
A8: Interval | B8: TIME | C8: AGC MW | D8: Raw ECOBP | E8: Energy RR at AGC MW (MW/min) | F8: RR MW/10sec | G8: Ramped EcoBP | H8: Unit AREG | I8: Fleet TREG | J8: Fleet Regulation Control Signal | K8: Raw Unit REG | L8: Ramped Reg | M8: Raw EcoBP + Raw Reg | N8: Ramped EcoBP + Ramped Reg | O8: Unit Resp.
A9: 1 | B9: 00:00:00 | C9: 99.57284301 | D9: 100 | E9: 3 | F9: =E9/6 -> 0.5 | G9: =D9 -> 100 | H9: 5 | I9: 20 | J9: 0 | K9: =H9 * J9 / I9 -> 0 | L9: =K9 -> 0 | M9: =D9 + K9 -> 100 | N9: =G9 + L9 -> 100 | O9: =C9 - G9 -> -0.4271569902 | BB9: =ABS(O9 - L9) / H9 -> 0.08543139804 | BC9: =MIN( MAX(1 - BB9, 0), 1 ) -> 0.914568602 | BE9: =ABS(L9) -> 0 | BF9: =ABS(O9 - L9 ) / $BF$7 -> 0.1368198388 | BH9: =MIN( MAX(1 - BF9, 0), 1 ) -> 0.8631801612 | BJ9: =BH9 -> 0.8631801612
A10: 2 | B10: =B9 + TIME(0,0,10) -> 00:00:10 | C10: 100.1641698 | D10: 110 | E10: 3 | F10: 0.5 | G10: =IF( ABS(D10 - G9) < F10, D10, G9 + SIGN( D10 - G9 ) * F10 ) -> 100.5 | H10: 5 | I10: 20 | J10: 0.9255951979 | K10: =H10 * J10 / I10 -> 0.2313987995 | L10: =K10 -> 0.2313987995 | M10: =D10 + K10 -> 110.2313988 | N10: =G10 + L10 -> 100.7313988 | O10: =C10 - G10 -> -0.3358302021 | BB10: =ABS(O10 - L10) / H10 -> 0.1134458003 | BC10: =MIN( MAX(1 - BB10, 0), 1 ) -> 0.8865541997 | BE10: =ABS(L10) -> 0.2313987995 | BF10: 0.1816853811 | BH10: =MIN( MAX(1 - BF10, 0), 1 ) -> 0.8183146189 | BJ10: 0.8183146189
A11: 3 | B11: =B10 + TIME(0,0,10) -> 00:00:20 | C11: 99.8927669 | D11: 110 | E11: 3 | F11: 0.5 | G11: =IF( ABS(D11 - G10) < F11, D11, G10 + SIGN( D11 - G10 ) * F11 ) -> 101 | H11: 5 | I11: 20 | J11: 1.849206878 | K11: 0.4623017196 | L11: 0.4623017196 | M11: 110.4623017 | N11: 101.4623017 | O11: -1.107233104 | BB11: 0.3139069648 | BC11: 0.6860930352 | BE11: 0.4623017196 | BF11: 0.5027273497 | BH11: 0.4972726503 | BJ11: =BH11 -> 0.4972726503
A12: 4 | B12: 00:00:30 | C12: 99.92482118 | D12: 110 | E12: 3 | F12: 0.5 | G12: 101.5 | H12: 5 | I12: 20 | J12: 2.768855775 | K12: 0.6922139437 | L12: 0.6922139437 | M12: 110.6922139 | N12: 102.1922139 | O12: -1.575178816 | BB12: 0.4534785519 | BC12: 0.5465214481 | BE12: 0.6922139437 | BF12: 0.7262536231 | BH12: 0.2737463769 | BJ12: =BH12 -> 0.2737463769
A13: 5 | B13: 00:00:40 | C13: 100.3970942 | D13: 110 | E13: 3 | F13: 0.5 | G13: 102 | H13: 5 | I13: 20 | J13: 3.682571112 | K13: 0.920642778 | L13: 0.920642778 | M13: 110.9206428 | N13: 102.9206428 | O13: -1.60290576 | BB13: 0.5047097076 | BC13: 0.4952902924 | BE13: 0.920642778 | BF13: 0.8083011915 | BH13: 0.1916988085 | BJ13: 0.1916988085
A14: 6 | B14: 00:00:50 | C14: 99.80688538 | D14: 110 | E14: 3 | F14: 0.5 | G14: 102.5 | H14: 5 | I14: 20 | J14: 4.588394831 | K14: 1.147098708 | L14: 1.147098708 | M14: 111.1470987 | N14: 103.6470987 | O14: -2.693114624 | BB14: 0.7680426664 | BC14: 0.2319573336 | BE14: 1.147098708 | BF14: 1.230033409 | BH14: 0 | BJ14: 0
A15: 7 | B15: 00:01:00 | C15: 99.97565795 | D15: 110 | E15: 3 | F15: 0.5 | G15: 103 | H15: 5 | I15: 20 | J15: 5.484385784 | K15: 1.371096446 | L15: 1.371096446 | M15: 111.3710964 | N15: 104.3710964 | O15: -3.024342048 | BB15: 0.8790876987 | BC15: 0.1209123013 | BE15: 1.371096446 | BF15: 1.407873919 | BH15: 0 | BJ15: 0
A16: 8 | B16: 00:01:10 | C16: 99.70594341 | D16: 110 | E16: 3 | F16: 0.5 | G16: 103.5 | H16: 5 | I16: 20 | J16: 6.368623895 | K16: 1.592155974 | L16: 1.592155974 | M16: 111.592156 | N16: 105.092156 | O16: -3.794056594 | BB16: 1.077242514 | BC16: 0 | BE16: 1.592155974 | BF16: 1.72522223 | BH16: 0 | BJ16: 0
A17: 9 | B17: 00:01:20 | C17: 100.8386062 | D17: 110 | E17: 3 | F17: 0.5 | G17: 104 | H17: 5 | I17: 20 | J17: 7.239214272 | K17: 1.809803568 | L17: 1.809803568 | M17: 111.8098036 | N17: 105.8098036 | O17: -3.161393809 | BB17: 0.9942394754 | BC17: 0.005760524589 | BE17: 1.809803568 | BF17: 1.592291451 | BH17: 0 | BJ17: 0
A18: 10 | B18: 00:01:30 | C18: 101.5878843 | D18: 110 | E18: 3 | F18: 0.5 | G18: 104.5 | H18: 5 | I18: 20 | J18: 8.094291271 | K18: 2.023572818 | L18: 2.023572818 | M18: 112.0235728 | N18: 106.5235728 | O18: -2.912115694 | BB18: 0.9871377024 | BC18: 0.01286229756 | BE18: 2.023572818 | BF18: 1.58091784 | BH18: 0 | BJ18: 0
A19: 11 | B19: 00:01:40 | C19: 101.9002011 | D19: 110 | E19: 3 | F19: 0.5 | G19: 105 | H19: 5 | I19: 20 | J19: 8.932022494 | K19: 2.233005624 | L19: 2.233005624 | M19: 112.2330056 | N19: 107.2330056 | O19: -3.099798875 | BB19: 1.0665609 | BC19: 0 | BE19: 2.233005624 | BF19: 1.708115443 | BH19: 0 | BJ19: 0
A20: 12 | B20: 00:01:50 | C20: 102.3077968 | D20: 110 | E20: 3 | F20: 0.5 | G20: 105.5 | H20: 5 | I20: 20 | J20: 9.750612712 | K20: 2.437653178 | L20: 2.437653178 | M20: 112.4376532 | N20: 107.9376532 | O20: -3.192203186 | BB20: 1.125971273 | BC20: 0 | BE20: 2.437653178 | BF20: 1.803262168 | BH20: 0 | BJ20: 0
A21: 13 | B21: 00:02:00 | C21: 103.7491038 | D21: 110 | E21: 3 | F21: 0.5 | G21: 106 | H21: 5 | I21: 20 | J21: 10.54830772 | K21: 2.637076929 | L21: 2.637076929 | M21: 112.6370769 | N21: 108.6370769 | O21: -2.250896242 | BB21: 0.9775946341 | BC21: 0.02240536589 | BE21: 2.637076929 | BF21: 1.565634454 | BH21: 0 | BJ21: 0
A22: 14 | B22: 00:02:10 | C22: 104.4905859 | D22: 110 | E22: 3 | F22: 0.5 | G22: 106.5 | H22: 5 | I22: 20 | J22: 11.32339807 | K22: 2.830849518 | L22: 2.830849518 | M22: 112.8308495 | N22: 109.3308495 | O22: -2.009414112 | BB22: 0.968052726 | BC22: 0.03194727403 | BE22: 2.830849518 | BF22: 1.550352926 | BH22: 0 | BJ22: 0
A23: 15 | B23: 00:02:20 | C23: 104.2484898 | D23: 110 | E23: 3 | F23: 0.5 | G23: 107 | H23: 5 | I23: 20 | J23: 12.07422279 | K23: 3.018555698 | L23: 3.018555698 | M23: 113.0185557 | N23: 110.0185557 | O23: -2.751510163 | BB23: 1.154013172 | BC23: 0 | BE23: 3.018555698 | BF23: 1.848171747 | BH23: 0 | BJ23: 0
A24: 16 | B24: 00:02:30 | C24: 105.340402 | D24: 110 | E24: 3 | F24: 0.5 | G24: 107.5 | H24: 5 | I24: 20 | J24: 12.79917288 | K24: 3.199793221 | L24: 3.199793221 | M24: 113.1997932 | N24: 110.6997932 | O24: -2.159598023 | BB24: 1.071878249 | BC24: 0 | BE24: 3.199793221 | BF24: 1.716631269 | BH24: 0 | BJ24: 0
A25: 17 | B25: 00:02:40 | C25: 105.9536084 | D25: 110 | E25: 3 | F25: 0.5 | G25: 108 | H25: 5 | I25: 20 | J25: 13.49669481 | K25: 3.374173702 | L25: 3.374173702 | M25: 113.3741737 | N25: 111.3741737 | O25: -2.046391637 | BB25: 1.084113068 | BC25: 0 | BE25: 3.374173702 | BF25: 1.736225539 | BH25: 0 | BJ25: 0
A26: 18 | B26: 00:02:50 | C26: 106.5056004 | D26: 110 | E26: 3 | F26: 0.5 | G26: 108.5 | H26: 5 | I26: 20 | J26: 14.16529379 | K26: 3.541323449 | L26: 3.541323449 | M26: 113.5413234 | N26: 112.0413234 | O26: -1.994399615 | BB26: 1.107144613 | BC26: 0 | BE26: 3.541323449 | BF26: 1.773110951 | BH26: 0 | BJ26: 0
A27: 19 | B27: 00:03:00 | C27: 107.0987063 | D27: 110 | E27: 3 | F27: 0.5 | G27: 109 | H27: 5 | I27: 20 | J27: 14.80353706 | K27: 3.700884266 | L27: 3.700884266 | M27: 113.7008843 | N27: 112.7008843 | O27: -1.901293676 | BB27: 1.120435588 | BC27: 0 | BE27: 3.700884266 | BF27: 1.794396675 | BH27: 0 | BJ27: 0
A28: 20 | B28: 00:03:10 | C28: 108.0199932 | D28: 110 | E28: 3 | F28: 0.5 | G28: 109.5 | H28: 5 | I28: 20 | J28: 15.41005688 | K28: 3.852514221 | L28: 3.852514221 | M28: 113.8525142 | N28: 113.3525142 | O28: -1.480006802 | BB28: 1.066504205 | BC28: 0 | BE28: 3.852514221 | BF28: 1.708024645 | BH28: 0 | BJ28: 0
A29: 21 | B29: 00:03:20 | C29: 108.3515516 | D29: 110 | E29: 3 | F29: 0.5 | G29: 110 | H29: 5 | I29: 20 | J29: 15.9835535 | K29: 3.995888375 | L29: 3.995888375 | M29: 113.9958884 | N29: 113.9958884 | O29: -1.648448426 | BB29: 1.12886736 | BC29: 0 | BE29: 3.995888375 | BF29: 1.807900301 | BH29: 0 | BJ29: 0
A30: 22 | B30: 00:03:30 | C30: 109.6375224 | D30: 110 | E30: 3 | F30: 0.5 | G30: 110 | H30: 5 | I30: 20 | J30: 16.52279793 | K30: 4.130699484 | L30: 4.130699484 | M30: 114.1306995 | N30: 114.1306995 | O30: -0.3624775614 | BB30: 0.898635409 | BC30: 0.101364591 | BE30: 4.130699484 | BF30: 1.43917991 | BH30: 0 | BJ30: 0
A31: 23 | B31: 00:03:40 | C31: 110.0718478 | D31: 110 | E31: 3 | F31: 0.5 | G31: 110 | H31: 5 | I31: 20 | J31: 17.0266346 | K31: 4.256658651 | L31: 4.256658651 | M31: 114.2566587 | N31: 114.2566587 | O31: 0.07184775811 | BB31: 0.8369621785 | BC31: 0.1630378215 | BE31: 4.256658651 | BF31: 1.340409182 | BH31: 0 | BJ31: 0
A32: 24 | B32: 00:03:50 | C32: 110.4163208 | D32: 110 | E32: 3 | F32: 0.5 | G32: 110 | H32: 5 | I32: 20 | J32: 17.4939838 | K32: 4.373495951 | L32: 4.373495951 | M32: 114.373496 | N32: 114.373496 | O32: 0.4163208426 | BB32: 0.7914350216 | BC32: 0.2085649784 | BE32: 4.373495951 | BF32: 1.267496664 | BH32: 0 | BJ32: 0
A33: 25 | B33: 00:04:00 | C33: 111.7590968 | D33: 110 | E33: 3 | F33: 0.5 | G33: 110 | H33: 5 | I33: 20 | J33: 17.92384402 | K33: 4.480961005 | L33: 4.480961005 | M33: 114.480961 | N33: 114.480961 | O33: 1.759096838 | BB33: 0.5443728334 | BC33: 0.4556271666 | BE33: 4.480961005 | BF33: 0.8718223628 | BH33: 0.1281776372 | BJ33: 0.1281776372
A34: 26 | B34: 00:04:10 | C34: 112.1238687 | D34: 110 | E34: 3 | F34: 0.5 | G34: 110 | H34: 5 | I34: 20 | J34: 18.31529408 | K34: 4.57882352 | L34: 4.57882352 | M34: 114.5788235 | N34: 114.5788235 | O34: 2.123868716 | BB34: 0.4909909609 | BC34: 0.5090090391 | BE34: 4.57882352 | BF34: 0.7863303849 | BH34: 0.2136696151 | BJ34: 0.2136696151
A35: 27 | B35: 00:04:20 | C35: 112.7390193 | D35: 110 | E35: 3 | F35: 0.5 | G35: 110 | H35: 5 | I35: 20 | J35: 18.66749512 | K35: 4.66687378 | L35: 4.66687378 | M35: 114.6668738 | N35: 114.6668738 | O35: 2.739019314 | BB35: 0.3855708933 | BC35: 0.6144291067 | BE35: 4.66687378 | BF35: 0.6174983514 | BH35: 0.3825016486 | BJ35: 0.3825016486
A36: 28 | B36: 00:04:30 | C36: 113.7594286 | D36: 110 | E36: 3 | F36: 0.5 | G36: 110 | H36: 5 | I36: 20 | J36: 18.97969239 | K36: 4.744923097 | L36: 4.744923097 | M36: 114.7449231 | N36: 114.7449231 | O36: 3.759428635 | BB36: 0.1970988923 | BC36: 0.8029011077 | BE36: 4.744923097 | BF36: 0.3156572324 | BH36: 0.6843427676 | BJ36: 0.6843427676
A37: 29 | B37: 00:04:40 | C37: 113.8749254 | D37: 110 | E37: 3 | F37: 0.5 | G37: 110 | H37: 5 | I37: 20 | J37: 19.25121685 | K37: 4.812804213 | L37: 4.812804213 | M37: 114.8128042 | N37: 114.8128042 | O37: 3.874925364 | BB37: 0.1875757698 | BC37: 0.8124242302 | BE37: 4.812804213 | BF37: 0.3004057895 | BH37: 0.6995942105 | BJ37: 0.6995942105
A38: 30 | B38: 00:04:50 | C38: 113.4405987 | D38: 110 | E38: 3 | F38: 0.5 | G38: 110 | H38: 5 | I38: 20 | J38: 19.48148664 | K38: 4.870371661 | L38: 4.870371661 | M38: 114.8703717 | N38: 114.8703717 | O38: 3.440598742 | BB38: 0.2859545838 | BC38: 0.7140454162 | BE38: 4.870371661 | BF38: 0.4579611354 | BH38: 0.5420388646 | BJ38: 0.5420388646
A39: 31 | B39: 00:05:00 | C39: 113.4786768 | D39: 110 | E39: 3 | F39: 0.5 | G39: 110 | H39: 5 | I39: 20 | J39: 19.67000831 | K39: 4.917502077 | L39: 4.917502077 | M39: 114.9175021 | N39: 114.9175021 | O39: 3.478676759 | Q39: =IF(AND(ABS(SLOPE($L9:$L39,$A9:$A39)) > $Q$3, ABS(SLOPE(OFFSET($O9:$O39, Q$7, 0),$A9:$A39)) > $Q$3), (MAX(0,(CORREL( $L9:$L39, OFFSET($O9:$O39, Q$7, 0) )))), (1-ABS(SLOPE($L9:$L39, $A9:$A39)-SLOPE(OFFSET($O9:$O39, Q$7, 0),$A9:$A39))) ) -> 0.6282740054 | R39: =IF(AND(ABS(SLOPE($L9:$L39,$A9:$A39)) > $Q$3, ABS(SLOPE(OFFSET($O9:$O39, R$7, 0),$A9:$A39)) > $Q$3), (MAX(0,(CORREL( $L9:$L39, OFFSET($O9:$O39, R$7, 0) )))), (1-ABS(SLOPE($L9:$L39, $A9:$A39)-SLOPE(OFFSET($O9:$O39, R$7, 0),$A9:$A39))) ) -> 0.711259886 | S39: 0.7885256138 | T39: 0.8430480475 | U39: 0.88454343 | V39: 0.921803304 | W39: 0.9410689815 | X39: 0.9542212378 | Y39: 0.9589693599 | Z39: 0.9656011666 | AA39: 0.9715121081 | AB39: 0.9742978321 | AC39: 0.9750521547 | AD39: 0.9759989732 | AE39: 0.9771010892 | AF39: 0.9715026827 | AG39: 0.962313894 | AH39: 0.9492957098 | AI39: 0.9304277252 | AJ39: 0.9037277407 | AK39: 0.861780356 | AL39: 0.8080010953 | AM39: 0.7470740563 | AN39: 0.6402971111 | AO39: 0.8722839295 | AP39: 0.8530631399 | AQ39: 0.8328981043 | AR39: 0.8142221031 | AS39: 0.8003545886 | AT39: 0.7840781487 | AV39: =MAX(Q39:AT39) -> 0.9771010892 | AW39: =MATCH(AV39, Q39:AT39, 0)-1 -> 14 | AX39: =OFFSET($Q$6, 0, AW39) -> +140s | AY39: =MAX(AW39-1,0) * 10 -> 130 | AZ39: =ABS( 5*60 - AY39 ) / (5*60) -> 0.5666666667 | BB39: 0.2877650637 | BC39: 0.7122349363 | BE39: 4.917502077 | BF39: 0.4608606498 | BH39: 0.5391393502 | BJ39: 0.5391393502 | BL39: =($BL$2*AV39+$BL$3*AZ39+BJ39*$BL$4)/SUM($BL$2:$BL$4) -> 0.6943023687
A40: 32 | B40: 00:05:10 | C40: 114.2946941 | D40: 110 | E40: 3 | F40: 0.5 | G40: 110 | H40: 5 | I40: 20 | J40: 19.81637785 | K40: 4.954094462 | L40: 4.954094462 | M40: 114.9540945 | N40: 114.9540945 | O40: 4.294694122 | Q40: =IF(AND(ABS(SLOPE($L10:$L40,$A10:$A40)) > $Q$3, ABS(SLOPE(OFFSET($O10:$O40, Q$7, 0),$A10:$A40)) > $Q$3), (MAX(0,(CORREL( $L10:$L40, OFFSET($O10:$O40, Q$7, 0) )))), (1-ABS(SLOPE($L10:$L40, $A10:$A40)-SLOPE(OFFSET($O10:$O40, Q$7, 0),$A10:$A40))) ) -> 0.7013153563 | R40: 0.779904987 | S40: 0.8357469742 | T40: 0.8785208809 | U40: 0.9170167329 | V40: 0.9372334918 | W40: 0.9513078622 | X40: 0.9565673483 | Y40: 0.9639144051 | Z40: 0.9703448444 | AA40: 0.9735142888 | AB40: 0.9746537721 | AC40: 0.97659269 | AD40: 0.9784656993 | AE40: 0.9734997568 | AF40: 0.9651653777 | AG40: 0.9529638297 | AH40: 0.9349340186 | AI40: 0.9091372667 | AJ40: 0.8683371647 | AK40: 0.8157729257 | AL40: 0.7558113508 | AM40: 0.6505038761 | AN40: 0.8789749373 | AO40: 0.8597541477 | AP40: 0.8395891122 | AQ40: 0.820913111 | AR40: 0.8070455964 | AS40: 0.7907691566 | AT40: 0 | AV40: 0.9784656993 | AW40: 13 | AX40: +130s | AY40: 120 | AZ40: =ABS( 5*60 - AY40 ) / (5*60) -> 0.6 | BB40: 0.131880068 | BC40: 0.868119932 | BE40: 4.954094462 | BF40: 0.2112081746 | BH40: 0.7887918254 | BJ40: 0.7887918254 | BL40: 0.7890858415
A41: 33 | B41: 00:05:20 | C41: 114.6602451 | D41: 110 | E41: 3 | F41: 0.5 | G41: 110 | H41: 5 | I41: 20 | J41: 19.9202816 | K41: 4.9800704 | L41: 4.9800704 | M41: 114.9800704 | N41: 114.9800704 | O41: 4.66024509 | Q41: =IF(AND(ABS(SLOPE($L11:$L41,$A11:$A41)) > $Q$3, ABS(SLOPE(OFFSET($O11:$O41, Q$7, 0),$A11:$A41)) > $Q$3), (MAX(0,(CORREL( $L11:$L41, OFFSET($O11:$O41, Q$7, 0) )))), (1-ABS(SLOPE($L11:$L41, $A11:$A41)-SLOPE(OFFSET($O11:$O41, Q$7, 0),$A11:$A41))) ) -> 0.7703761073 | R41: 0.8276327361 | S41: 0.8717801399 | T41: 0.9116044983 | U41: 0.9328458975 | V41: 0.9479150862 | W41: 0.9537268933 | X41: 0.9618464892 | Y41: 0.968837762 | Z41: 0.9724218552 | AA41: 0.9739780557 | AB41: 0.9769906061 | AC41: 0.9796977707 | AD41: 0.9754178249 | AE41: 0.9680105813 | AF41: 0.9566962425 | AG41: 0.9395784197 | AH41: 0.9147660415 | AI41: 0.8752183017 | AJ41: 0.8239827139 | AK41: 0.7650814562 | AL41: 0.6613913431 | AM41: 0.8860135559 | AN41: 0.8667927663 | AO41: 0.8466277308 | AP41: 0.8279517296 | AQ41: 0.814084215 | AR41: 0.7978077751 | AS41: 0 | AT41: 0 | AV41: 0.9796977707 | AW41: 12 | AX41: +120s | AY41: 110 | AZ41: 0.6333333333 | BB41: 0.06396506189 | BC41: 0.9360349381 | BE41: 4.9800704 | BF41: =ABS(O41 - L41 ) / $BF$7 -> 0.1024411359 | BH41: 0.8975588641 | BJ41: 0.8975588641 | BL41: 0.8368633227
A42: 34 | B42: 00:05:30 | C42: 114.2390397 | D42: 110 | E42: 3 | F42: 0.5 | G42: 110 | H42: 5 | I42: 20 | J42: 19.9814969 | K42: 4.995374225 | L42: 4.995374225 | M42: 114.9953742 | N42: 114.9953742 | O42: 4.239039668 | Q42: =IF(AND(ABS(SLOPE($L12:$L42,$A12:$A42)) > $Q$3, ABS(SLOPE(OFFSET($O12:$O42, Q$7, 0),$A12:$A42)) > $Q$3), (MAX(0,(CORREL( $L12:$L42, OFFSET($O12:$O42, Q$7, 0) )))), (1-ABS(SLOPE($L12:$L42, $A12:$A42)-SLOPE(OFFSET($O12:$O42, Q$7, 0),$A12:$A42))) ) -> 0.8185380951 | R42: 0.864170197 | S42: 0.9054314751 | T42: 0.9277839461 | U42: 0.9439335199 | V42: 0.9503459134 | W42: 0.959305561 | X42: 0.9669063528 | Y42: 0.9709415612 | Z42: 0.972951735 | AA42: 0.9771342013 | AB42: 0.9807502193 | AC42: 0.9772196341 | AD42: 0.970825646 | AE42: 0.9604821834 | AF42: 0.9443639834 | AG42: 0.920632452 | AH42: 0.8824621831 | AI42: 0.8326907338 | AJ42: 0.7749632705 | AK42: 0.6730677267 | AL42: 0.8933847017 | AM42: 0.8741639121 | AN42: 0.8539988765 | AO42: 0.8353228753 | AP42: 0.8214553608 | AQ42: 0.8051789209 | AR42: 0 | AS42: 0 | AT42: 0 | AV42: 0.9807502193 | AW42: 11 | AX42: +110s | AY42: 100 | AZ42: 0.6666666667 | BB42: 0.1512669114 | BC42: 0.8487330886 | BE42: 4.995374225 | BF42: 0.2422565345 | BH42: 0.7577434655 | BJ42: 0.7577434655 | BL42: 0.8017201171
A43: 35 | B43: 00:05:40 | C43: 114.2238616 | D43: 110 | E43: 3 | F43: 0.5 | G43: 110 | H43: 5 | I43: 20 | J43: 19.99989256 | K43: 4.999973141 | L43: 4.999973141 | M43: 114.9999731 | N43: 114.9999731 | O43: 4.223861633 | Q43: =IF(AND(ABS(SLOPE($L13:$L43,$A13:$A43)) > $Q$3, ABS(SLOPE(OFFSET($O13:$O43, Q$7, 0),$A13:$A43)) > $Q$3), (MAX(0,(CORREL( $L13:$L43, OFFSET($O13:$O43, Q$7, 0) )))), (1-ABS(SLOPE($L13:$L43, $A13:$A43)-SLOPE(OFFSET($O13:$O43, Q$7, 0),$A13:$A43))) ) -> 0.8554976971 | R43: 0.898323419 | S43: 0.9218889834 | T43: 0.9392201434 | U43: 0.9462902986 | V43: 0.9561699733 | W43: 0.9644379188 | X43: 0.9689674675 | Y43: 0.9714758469 | Z43: 0.976942575 | AA43: 0.9815561454 | AB43: 0.9788503831 | AC43: 0.9735722667 | AD43: 0.9642995126 | AE43: 0.9492856795 | AF43: 0.9267505041 | AG43: 0.8901077496 | AH43: 0.8419632127 | AI43: 0.785546414 | AJ43: 0.6856595723 | AK43: 0.9010725786 | AL43: 0.881851789 | AM43: 0.8616867534 | AN43: 0.8430107522 | AO43: 0.8291432377 | AP43: 0.8128667978 | AQ43: 0 | AR43: 0 | AS43: 0 | AT43: 0 | AV43: 0.9815561454 | AW43: 10 | AX43: +100s | AY43: 90 | AZ43: 0.7 | BB43: 0.1552223015 | BC43: 0.8447776985 | BE43: 4.999973141 | BF43: 0.2485911591 | BH43: 0.7514088409 | BJ43: 0.7514088409 | BL43: 0.8109883288
A44: 36 | B44: 00:05:50 | C44: 114.6915114 | D44: 110 | E44: 3 | F44: 0.5 | G44: 110 | H44: 5 | I44: 20 | J44: 19.97542917 | K44: 4.993857294 | L44: 4.993857294 | M44: 114.9938573 | N44: 114.9938573 | O44: 4.691511409 | Q44: =IF(AND(ABS(SLOPE($L14:$L44,$A14:$A44)) > $Q$3, ABS(SLOPE(OFFSET($O14:$O44, Q$7, 0),$A14:$A44)) > $Q$3), (MAX(0,(CORREL( $L14:$L44, OFFSET($O14:$O44, Q$7, 0) )))), (1-ABS(SLOPE($L14:$L44, $A14:$A44)-SLOPE(OFFSET($O14:$O44, Q$7, 0),$A14:$A44))) ) -> 0.8900525973 | R44: 0.9149523105 | S44: 0.9335854279 | T44: 0.9413814804 | U44: 0.9522764892 | V44: 0.9612802171 | W44: 0.9663556563 | X44: 0.9694150944 | Y44: 0.9763027652 | Z44: 0.9820198941 | AA44: 0.9802294585 | AB44: 0.9761903606 | AC44: 0.9681083191 | AD44: 0.9543250133 | AE44: 0.9331256068 | AF44: 0.898191813 | AG44: 0.851871431 | AH44: 0.796931912 | AI44: 0.699314997 | AJ44: 0.9090607118 | AK44: 0.8898399221 | AL44: 0.8696748866 | AM44: 0.8509988854 | AN44: 0.8371313709 | AO44: 0.820854931 | AP44: 0 | AQ44: 0 | AR44: 0 | AS44: 0 | AT44: 0 | AV44: 0.9820198941 | AW44: 9 | AX44: +90s | AY44: 80 | AZ44: 0.7333333333 | BB44: 0.06046917702 | BC44: 0.939530823 | BE44: 4.993857294 | BF44: 0.09684241672 | BH44: 0.9031575833 | BJ44: 0.9031575833 | BL44: 0.8728369369
A45: 37 | B45: 00:06:00 | C45: 114.6546774 | D45: 110 | E45: 3 | F45: 0.5 | G45: 110 | H45: 5 | I45: 20 | J45: 19.90815916 | K45: 4.977039789 | L45: 4.977039789 | M45: 114.9770398 | N45: 114.9770398 | O45: 4.654677437 | Q45: =IF(AND(ABS(SLOPE($L15:$L45,$A15:$A45)) > $Q$3, ABS(SLOPE(OFFSET($O15:$O45, Q$7, 0),$A15:$A45)) > $Q$3), (MAX(0,(CORREL( $L15:$L45, OFFSET($O15:$O45, Q$7, 0) )))), (1-ABS(SLOPE($L15:$L45, $A15:$A45)-SLOPE(OFFSET($O15:$O45, Q$7, 0),$A15:$A45))) ) -> 0.90669532 | R45: 0.9267744663 | S45: 0.935378155 | T45: 0.9474028339 | U45: 0.9572245959 | V45: 0.9629078243 | W45: 0.9665819305 | X45: 0.9750551109 | Y45: 0.9820034071 | Z45: 0.9812377006 | AA45: 0.978586593 | AB45: 0.9718407166 | AC45: 0.9594412142 | AD45: 0.9397473607 | AE45: 0.9067440038 | AF45: 0.8624891036 | AG45: 0.8092317988 | AH45: 0.7142068974 | AI45: 0.9173319829 | AJ45: 0.8981111933 | AK45: 0.8779461578 | AL45: 0.8592701566 | AM45: 0.845402642 | AN45: 0.8291262022 | AO45: 0 | AP45: 0 | AQ45: 0 | AR45: 0 | AS45: 0 | AT45: 0 | AV45: 0.9820034071 | AW45: 8 | AX45: +80s | AY45: 70 | AZ45: 0.7666666667 | BB45: 0.06447247028 | BC45: 0.9355275297 | BE45: 4.977039789 | BF45: 0.103253759 | BH45: 0.896746241 | BJ45: 0.896746241 | BL45: 0.8818054382
A46: 38 | B46: 00:06:10 | C46: 114.5223132 | D46: 110 | E46: 3 | F46: 0.5 | G46: 110 | H46: 5 | I46: 20 | J46: 19.79822666 | K46: 4.949556665 | L46: 4.949556665 | M46: 114.9495567 | N46: 114.9495567 | O46: 4.522313194 | Q46: =IF(AND(ABS(SLOPE($L16:$L46,$A16:$A46)) > $Q$3, ABS(SLOPE(OFFSET($O16:$O46, Q$7, 0),$A16:$A46)) > $Q$3), (MAX(0,(CORREL( $L16:$L46, OFFSET($O16:$O46, Q$7, 0) )))), (1-ABS(SLOPE($L16:$L46, $A16:$A46)-SLOPE(OFFSET($O16:$O46, Q$7, 0),$A16:$A46))) ) -> 0.9184388449 | R46: 0.9279489342 | S46: 0.9412414353 | T46: 0.9519805008 | U46: 0.9583463917 | V46: 0.9627123222 | W46: 0.9729707279 | X46: 0.9813050175 | Y46: 0.9816974392 | Z46: 0.9806161271 | AA46: 0.9753843358 | AB46: 0.9645566475 | AC46: 0.946577193 | AD46: 0.9157774238 | AE46: 0.8738864551 | AF46: 0.8225663503 | AG46: 0.7305353275 | AH46: 0.925868667 | AI46: 0.9066478774 | AJ46: 0.8864828419 | AK46: 0.8678068407 | AL46: 0.8539393261 | AM46: 0.8376628863 | AN46: 0 | AO46: 0 | AP46: 0 | AQ46: 0 | AR46: 0 | AS46: 0 | AT46: 0 | AV46: 0.9816974392 | AW46: 8 | AX46: +80s | AY46: 70 | AZ46: 0.7666666667 | BB46: 0.08544869425 | BC46: 0.9145513058 | BE46: 4.949556665 | BF46: 0.1368475389 | BH46: 0.8631524611 | BJ46: 0.8631524611 | BL46: 0.8705055223
A47: 39 | B47: 00:06:20 | C47: 114.9758537 | D47: 110 | E47: 3 | F47: 0.5 | G47: 110 | H47: 5 | I47: 20 | J47: 19.64586728 | K47: 4.911466819 | L47: 4.911466819 | M47: 114.9114668 | N47: 114.9114668 | O47: 4.975853718 | Q47: =IF(AND(ABS(SLOPE($L17:$L47,$A17:$A47)) > $Q$3, ABS(SLOPE(OFFSET($O17:$O47, Q$7, 0),$A17:$A47)) > $Q$3), (MAX(0,(CORREL( $L17:$L47, OFFSET($O17:$O47, Q$7, 0) )))), (1-ABS(SLOPE($L17:$L47, $A17:$A47)-SLOPE(OFFSET($O17:$O47, Q$7, 0),$A17:$A47))) ) -> 0.9186306716 | R47: 0.9333591701 | S47: 0.945136211 | T47: 0.9522760298 | U47: 0.9574281482 | V47: 0.9697161862 | W47: 0.979625887 | X47: 0.9813406165 | Y47: 0.9820530879 | Z47: 0.9785551838 | AA47: 0.9695323395 | AB47: 0.9535269957 | AC47: 0.92527154 | AD47: 0.8861179715 | AE47: 0.8370563815 | AF47: 0.7485272427 | AG47: 0.9346524703 | AH47: 0.9154316807 | AI47: 0.8952666452 | AJ47: 0.876590644 | AK47: 0.8627231294 | AL47: 0.8464466896 | AM47: 0 | AN47: 0 | AO47: 0 | AP47: 0 | AQ47: 0 | AR47: 0 | AS47: 0 | AT47: 0 | AV47: 0.9820530879 | AW47: 8 | AX47: +80s | AY47: 70 | AZ47: 0.7666666667 | BB47: 0.01287737981 | BC47: 0.9871226202 | BE47: 4.911466819 | BF47: 0.02062334305 | BH47: 0.979376657 | BJ47: 0.979376657 | BL47: 0.9093654705
A48: 40 | B48: 00:06:30 | C48: 114.9885616 | D48: 110 | E48: 3 | F48: 0.5 | G48: 110 | H48: 5 | I48: 20 | J48: 19.4514075 | K48: 4.862851875 | L48: 4.862851875 | M48: 114.8628519 | N48: 114.8628519 | O48: 4.988561576 | Q48: =IF(AND(ABS(SLOPE($L18:$L48,$A18:$A48)) > $Q$3, ABS(SLOPE(OFFSET($O18:$O48, Q$7, 0),$A18:$A48)) > $Q$3), (MAX(0,(CORREL( $L18:$L48, OFFSET($O18:$O48, Q$7, 0) )))), (1-ABS(SLOPE($L18:$L48, $A18:$A48)-SLOPE(OFFSET($O18:$O48, Q$7, 0),$A18:$A48))) ) -> 0.923134519 | R48: 0.9360972397 | S48: 0.9441230758 | T48: 0.9501777545 | U48: 0.9647970617 | V48: 0.9765158622 | W48: 0.9797569247 | X48: 0.9825418772 | Y48: 0.9810522484 | Z48: 0.9741262888 | AA48: 0.9604218089 | AB48: 0.9351409028 | AC48: 0.8991980691 | AD48: 0.852805523 | AE48: 0.7684296732 | AF48: 0.9436645693 | AG48: 0.9244437797 | AH48: 0.9042787442 | AI48: 0.885602743 | AJ48: 0.8717352284 | AK48: 0.8554587886 | AL48: 0 | AM48: 0 | AN48: 0 | AO48: 0 | AP48: 0 | AQ48: 0 | AR48: 0 | AS48: 0 | AT48: 0 | AV48: 0.9825418772 | AW48: 7 | AX48: +70s | AY48: 60 | AZ48: 0.8 | BB48: 0.02514194025 | BC48: 0.9748580598 | BE48: 4.862851875 | BF48: 0.04026524544 | BH48: 0.9597347546 | BJ48: 0.9597347546 | BL48: 0.9140922106
A49: 41 | B49: 00:06:40 | C49: 115.789199 | D49: 110 | E49: 3 | F49: 0.5 | G49: 110 | H49: 5 | I49: 20 | J49: 19.21526405 | K49: 4.803816013 | L49: 4.803816013 | M49: 114.803816 | N49: 114.803816 | O49: 5.789199041 | Q49: =IF(AND(ABS(SLOPE($L19:$L49,$A19:$A49)) > $Q$3, ABS(SLOPE(OFFSET($O19:$O49, Q$7, 0),$A19:$A49)) > $Q$3), (MAX(0,(CORREL( $L19:$L49, OFFSET($O19:$O49, Q$7, 0) )))), (1-ABS(SLOPE($L19:$L49, $A19:$A49)-SLOPE(OFFSET($O19:$O49, Q$7, 0),$A19:$A49))) ) -> 0.923987996 | R49: 0.9330384279 | S49: 0.9401402843 | T49: 0.9574660597 | U49: 0.9712845113 | V49: 0.9763078593 | W49: 0.9815154589 | X49: 0.9823802388 | Y49: 0.9779213089 | Z49: 0.9669337785 | AA49: 0.9451776448 | AB49: 0.9130535407 | AC49: 0.8698623293 | AD49: 0.7904878917 | AE49: 0.9528856515 | AF49: 0.9336648619 | AG49: 0.9134998264 | AH49: 0.8948238252 | AI49: 0.8809563106 | AJ49: 0.8646798708 | AK49: 0 | AL49: 0 | AM49: 0 | AN49: 0 | AO49: 0 | AP49: 0 | AQ49: 0 | AR49: 0 | AS49: 0 | AT49: 0 | AV49: 0.9823802388 | AW49: 7 | AX49: +70s | AY49: 60 | AZ49: 0.8 | BB49: 0.1970766054 | BC49: 0.8029233946 | BE49: 4.803816013 | BF49: 0.3156215396 | BH49: 0.6843784604 | BJ49: 0.6843784604 | BL49: 0.8222528998
A50: 42 | B50: 00:06:50 | C50: 116.0376637 | D50: 110 | E50: 3 | F50: 0.5 | G50: 110 | H50: 5 | I50: 20 | J50: 18.93794298 | K50: 4.734485746 | L50: 4.734485746 | M50: 114.7344857 | N50: 114.7344857 | O50: 6.037663663 | Q50: =IF(AND(ABS(SLOPE($L20:$L50,$A20:$A50)) > $Q$3, ABS(SLOPE(OFFSET($O20:$O50, Q$7, 0),$A20:$A50)) > $Q$3), (MAX(0,(CORREL( $L20:$L50, OFFSET($O20:$O50, Q$7, 0) )))), (1-ABS(SLOPE($L20:$L50, $A20:$A50)-SLOPE(OFFSET($O20:$O50, Q$7, 0),$A20:$A50))) ) -> 0.9177396649 | R50: 0.926069438 | S50: 0.9465711569 | T50: 0.9628526128 | U50: 0.9699819836 | V50: 0.9780559821 | W50: 0.9817160002 | X50: 0.98019826 | Y50: 0.9724637424 | Z50: 0.9549449507 | AA50: 0.9274310934 | AB50: 0.8881418754 | AC50: 0.8148906339 | AD50: 0.9622959564 | AE50: 0.9430751668 | AF50: 0.9229101313 | AG50: 0.9042341301 | AH50: 0.8903666155 | AI50: 0.8740901757 | AJ50: 0 | AK50: 0 | AL50: 0 | AM50: 0 | AN50: 0 | AO50: 0 | AP50: 0 | AQ50: 0 | AR50: 0 | AS50: 0 | AT50: 0 | AV50: 0.9817160002 | AW50: 6 | AX50: +60s | AY50: 50 | AZ50: 0.8333333333 | BB50: 0.2606355834 | BC50: 0.7393644166 | BE50: 4.734485746 | BF50: 0.4174123252 | BH50: 0.5825876748 | BJ50: 0.5825876748 | BL50: 0.7992123361
A51: 43 | B51: 00:07:00 | C51: 115.91499 | D51: 110 | E51: 3 | F51: 0.5 | G51: 110 | H51: 5 | I51: 20 | J51: 18.62003858 | K51: 4.655009644 | L51: 4.655009644 | M51: 114.6550096 | N51: 114.6550096 | O51: 5.914989981 | Q51: =IF(AND(ABS(SLOPE($L21:$L51,$A21:$A51)) > $Q$3, ABS(SLOPE(OFFSET($O21:$O51, Q$7, 0),$A21:$A51)) > $Q$3), (MAX(0,(CORREL( $L21:$L51, OFFSET($O21:$O51, Q$7, 0) )))), (1-ABS(SLOPE($L21:$L51, $A21:$A51)-SLOPE(OFFSET($O21:$O51, Q$7, 0),$A21:$A51))) ) -> 0.9060365151 | R51: 0.9303024861 | S51: 0.9495019303 | T51: 0.9591487771 | U51: 0.9706545594 | V51: 0.9776750679 | W51: 0.9797110005 | X51: 0.9759268973 | Y51: 0.9635784395 | Z51: 0.9417178228 | AA51: 0.907266166 | AB51: 0.8416445256 | AC51: 0.9718753181 | AD51: 0.9526545285 | AE51: 0.9324894929 | AF51: 0.9138134917 | AG51: 0.8999459772 | AH51: 0.8836695373 | AI51: 0 | AJ51: 0 | AK51: 0 | AL51: 0 | AM51: 0 | AN51: 0 | AO51: 0 | AP51: 0 | AQ51: 0 | AR51: 0 | AS51: 0 | AT51: 0 | AV51: 0.9797110005 | AW51: 6 | AX51: +60s | AY51: 50 | AZ51: 0.8333333333 | BB51: 0.2519960674 | BC51: 0.7480039326 | BE51: 4.655009644 | BF51: 0.4035759931 | BH51: 0.5964240069 | BJ51: 0.5964240069 | BL51: 0.8031561136
A52: 44 | B52: 00:07:10 | C52: 115.0136659 | D52: 110 | E52: 3 | F52: 0.5 | G52: 110 | H52: 5 | I52: 20 | J52: 18.26223209 | K52: 4.565558023 | L52: 4.565558023 | M52: 114.565558 | N52: 114.565558 | O52: 5.013665891 | Q52: =IF(AND(ABS(SLOPE($L22:$L52,$A22:$A52)) > $Q$3, ABS(SLOPE(OFFSET($O22:$O52, Q$7, 0),$A22:$A52)) > $Q$3), (MAX(0,(CORREL( $L22:$L52, OFFSET($O22:$O52, Q$7, 0) )))), (1-ABS(SLOPE($L22:$L52, $A22:$A52)-SLOPE(OFFSET($O22:$O52, Q$7, 0),$A22:$A52))) ) -> 0.9057735588 | R52: 0.9284559776 | S52: 0.9411418157 | T52: 0.9567984053 | U52: 0.9679044089 | V52: 0.9742872407 | W52: 0.9753651271 | X52: 0.9694165142 | Y52: 0.9545946631 | Z52: 0.9262437471 | AA52: 0.8702995406 | AB52: 0.9816032083 | AC52: 0.9623824187 | AD52: 0.9422173831 | AE52: 0.9235413819 | AF52: 0.9096738674 | AG52: 0.8933974275 | AH52: 0 | AI52: 0 | AJ52: 0 | AK52: 0 | AL52: 0 | AM52: 0 | AN52: 0 | AO52: 0 | AP52: 0 | AQ52: 0 | AR52: 0 | AS52: 0 | AT52: 0 | AV52: 0.9816032083 | AW52: 11 | AX52: +110s | AY52: 100 | AZ52: 0.6666666667 | BB52: 0.08962157349 | BC52: 0.9103784265 | BE52: 4.565558023 | BF52: 0.1435304761 | BH52: 0.8564695239 | BJ52: 0.8564695239 | BL52: 0.8349131329
A53: 45 | B53: 00:07:20 | C53: 115.6538301 | D53: 110 | E53: 3 | F53: 0.5 | G53: 110 | H53: 5 | I53: 20 | J53: 17.8652903 | K53: 4.466322575 | L53: 4.466322575 | M53: 114.4663226 | N53: 114.4663226 | O53: 5.653830146 | Q53: =IF(AND(ABS(SLOPE($L23:$L53,$A23:$A53)) > $Q$3, ABS(SLOPE(OFFSET($O23:$O53, Q$7, 0),$A23:$A53)) > $Q$3), (MAX(0,(CORREL( $L23:$L53, OFFSET($O23:$O53, Q$7, 0) )))), (1-ABS(SLOPE($L23:$L53, $A23:$A53)-SLOPE(OFFSET($O23:$O53, Q$7, 0),$A23:$A53))) ) -> 0.7435489343 | R53: 0.7601108372 | S53: 0.7781009441 | T53: 0.7986823889 | U53: 0.8233112692 | V53: 0.8520587034 | W53: 0.8835919728 | X53: 0.9201021901 | Y53: 0.9475856049 | Z53: 0.9782529212 | AA53: 0.9914587805 | AB53: 0.9722379909 | AC53: 0.9520729553 | AD53: 0.9333969541 | AE53: 0.9195294396 | AF53: 0.9032529997 | AG53: 0.8858480558 | AH53: 0.8711072806 | AI53: 0.8575122782 | AJ53: 0.8490550161 | AK53: 0.8383713878 | AL53: 0.8279031909 | AM53: 0.8197258666 | AN53: 0.8097828231 | AO53: 0.7975390762 | AP53: 0.7875514304 | AQ53: 0.7777006827 | AR53: 0.7747824898 | AS53: 0.7789664587 | AT53: 0.7834983341 | AV53: 0.9914587805 | AW53: 10 | AX53: +100s | AY53: 90 | AZ53: 0.7 | BB53: 0.2375015141 | BC53: 0.7624984859 | BE53: 4.466322575 | BF53: 0.3803627193 | BH53: 0.6196372807 | BJ53: 0.6196372807 | BL53: 0.7703653537
A54: 46 | B54: 00:07:30 | C54: 115.3286938 | D54: 110 | E54: 3 | F54: 0.5 | G54: 110 | H54: 5 | I54: 20 | J54: 17.43006383 | K54: 4.357515957 | L54: 4.357515957 | M54: 114.357516 | N54: 114.357516 | O54: 5.3286938 | Q54: =IF(AND(ABS(SLOPE($L24:$L54,$A24:$A54)) > $Q$3, ABS(SLOPE(OFFSET($O24:$O54, Q$7, 0),$A24:$A54)) > $Q$3), (MAX(0,(CORREL( $L24:$L54, OFFSET($O24:$O54, Q$7, 0) )))), (1-ABS(SLOPE($L24:$L54, $A24:$A54)-SLOPE(OFFSET($O24:$O54, Q$7, 0),$A24:$A54))) ) -> 0.7501487031 | R54: 0.7681388101 | S54: 0.7887202548 | T54: 0.8133491351 | U54: 0.8420965693 | V54: 0.8736298387 | W54: 0.910140056 | X54: 0.9376234708 | Y54: 0.9682907871 | Z54: 0.9985790854 | AA54: 0.9822001249 | AB54: 0.9620350894 | AC54: 0.9433590882 | AD54: 0.9294915736 | AE54: 0.9132151338 | AF54: 0.8958101899 | AG54: 0.8810694147 | AH54: 0.8674744122 | AI54: 0.8590171502 | AJ54: 0.8483335218 | AK54: 0.8378653249 | AL54: 0.8296880007 | AM54: 0.8197449571 | AN54: 0.8075012103 | AO54: 0.7975135644 | AP54: 0.7876628168 | AQ54: 0.7847446239 | AR54: 0.7889285928 | AS54: 0.7934604682 | AT54: 0.789881536 | AV54: 0.9985790854 | AW54: 9 | AX54: +90s | AY54: 80 | AZ54: 0.7333333333 | BB54: 0.1942355686 | BC54: 0.8057644314 | BE54: 4.357515957 | BF54: 0.3110715708 | BH54: 0.6889284292 | BJ54: 0.6889284292 | BL54: 0.8069469493
A55: 47 | B55: 00:07:40 | C55: 114.9998714 | D55: 110 | E55: 3 | F55: 0.5 | G55: 110 | H55: 5 | I55: 20 | J55: 16.95748535 | K55: 4.239371338 | L55: 4.239371338 | M55: 114.2393713 | N55: 114.2393713 | O55: 4.99987138 | Q55: =IF(AND(ABS(SLOPE($L25:$L55,$A25:$A55)) > $Q$3, ABS(SLOPE(OFFSET($O25:$O55, Q$7, 0),$A25:$A55)) > $Q$3), (MAX(0,(CORREL( $L25:$L55, OFFSET($O25:$O55, Q$7, 0) )))), (1-ABS(SLOPE($L25:$L55, $A25:$A55)-SLOPE(OFFSET($O25:$O55, Q$7, 0),$A25:$A55))) ) -> 0.7580914626 | R55: 0.7786729074 | S55: 0.8033017877 | T55: 0.8320492218 | U55: 0.8635824912 | V55: 0.9000927086 | W55: 0.9275761234 | X55: 0.9582434397 | Y55: 0.988531738 | Z55: 0.9922474724 | AA55: 0.9720824369 | AB55: 0.9534064357 | AC55: 0.9395389211 | AD55: 0.9232624812 | AE55: 0.9058575373 | AF55: 0.8911167622 | AG55: 0.8775217597 | AH55: 0.8690644976 | AI55: 0.8583808693 | AJ55: 0.8479126724 | AK55: 0.8397353481 | AL55: 0.8297923046 | AM55: 0.8175485578 | AN55: 0.8075609119 | AO55: 0.7977101642 | AP55: 0.7947919713 | AQ55: 0.7989759403 | AR55: 0.8035078156 | AS55: 0.7999288835 | AT55: 0.7995587038 | AV55: 0.9922474724 | AW55: 9 | AX55: +90s | AY55: 80 | AZ55: 0.7333333333 | BB55: 0.1521000083 | BC55: 0.8478999917 | BE55: 4.239371338 | BF55: 0.2435907534 | BH55: 0.7564092466 | BJ55: 0.7564092466 | BL55: 0.8273300174
A56: 48 | B56: 00:07:50 | C56: 114.9279813 | D56: 110 | E56: 3 | F56: 0.5 | G56: 110 | H56: 5 | I56: 20 | J56: 16.44856759 | K56: 4.112141898 | L56: 4.112141898 | M56: 114.1121419 | N56: 114.1121419 | O56: 4.927981347 | Q56: =IF(AND(ABS(SLOPE($L26:$L56,$A26:$A56)) > $Q$3, ABS(SLOPE(OFFSET($O26:$O56, Q$7, 0),$A26:$A56)) > $Q$3), (MAX(0,(CORREL( $L26:$L56, OFFSET($O26:$O56, Q$7, 0) )))), (1-ABS(SLOPE($L26:$L56, $A26:$A56)-SLOPE(OFFSET($O26:$O56, Q$7, 0),$A26:$A56))) ) -> 0.7685618776 | R56: 0.7931907579 | S56: 0.8219381921 | T56: 0.8534714615 | U56: 0.8899816788 | V56: 0.9174650936 | W56: 0.9481324099 | X56: 0.9784207083 | Y56: 0.9976414979 | Z56: 0.9821934666 | AA56: 0.9635174654 | AB56: 0.9496499508 | AC56: 0.933373511 | AD56: 0.915968567 | AE56: 0.9012277919 | AF56: 0.8876327894 | AG56: 0.8791755274 | AH56: 0.868491899 | AI56: 0.8580237021 | AJ56: 0.8498463779 | AK56: 0.8399033343 | AL56: 0.8276595875 | AM56: 0.8176719416 | AN56: 0.8078211939 | AO56: 0.8049030011 | AP56: 0.80908697 | AQ56: 0.8136188454 | AR56: 0.8100399132 | AS56: 0.8096697336 | AT56: 0.8125499308 | AV56: 0.9976414979 | AW56: 8 | AX56: +80s | AY56: 70 | AZ56: 0.7666666667 | BB56: 0.1631678898 | BC56: 0.8368321102 | BE56: 4.112141898 | BF56: 0.2613161541 | BH56: 0.7386838459 | BJ56: 0.7386838459 | BL56: 0.8343306701
A57: 49 | B57: 00:08:00 | C57: 114.6683054 | D57: 110 | E57: 3 | F57: 0.5 | G57: 110 | H57: 5 | I57: 20 | J57: 15.90440114 | K57: 3.976100285 | L57: 3.976100285 | M57: 113.9761003 | N57: 113.9761003 | O57: 4.668305378 | Q57: =IF(AND(ABS(SLOPE($L27:$L57,$A27:$A57)) > $Q$3, ABS(SLOPE(OFFSET($O27:$O57, Q$7, 0),$A27:$A57)) > $Q$3), (MAX(0,(CORREL( $L27:$L57, OFFSET($O27:$O57, Q$7, 0) )))), (1-ABS(SLOPE($L27:$L57, $A27:$A57)-SLOPE(OFFSET($O27:$O57, Q$7, 0),$A27:$A57))) ) -> 0.7830377135 | R57: 0.8117851477 | S57: 0.8433184171 | T57: 0.8798286344 | U57: 0.9073120492 | V57: 0.9379793655 | W57: 0.9682676639 | X57: 0.9874884535 | Y57: 0.992346511 | Z57: 0.9736705098 | AA57: 0.9598029952 | AB57: 0.9435265554 | AC57: 0.9261216115 | AD57: 0.9113808363 | AE57: 0.8977858338 | AF57: 0.8893285718 | AG57: 0.8786449434 | AH57: 0.8681767465 | AI57: 0.8599994223 | AJ57: 0.8500563787 | AK57: 0.8378126319 | AL57: 0.827824986 | AM57: 0.8179742384 | AN57: 0.8150560455 | AO57: 0.8192400144 | AP57: 0.8237718898 | AQ57: 0.8201929576 | AR57: 0.819822778 | AS57: 0.8227029752 | AT57: 0.8261850726 | AV57: 0.992346511 | AW57: 8 | AX57: +80s | AY57: 70 | AZ57: 0.7666666667 | BB57: 0.1384410185 | BC57: 0.8615589815 | BE57: 3.976100285 | BF57: 0.2217156487 | BH57: 0.7782843513 | BJ57: 0.7782843513 | BL57: 0.845765843
A58: 50 | B58: 00:08:10 | C58: 114.3322385 | D58: 110 | E58: 3 | F58: 0.5 | G58: 110 | H58: 5 | I58: 20 | J58: 15.32615212 | K58: 3.831538031 | L58: 3.831538031 | M58: 113.831538 | N58: 113.831538 | O58: 4.332238472 | Q58: =IF(AND(ABS(SLOPE($L28:$L58,$A28:$A58)) > $Q$3, ABS(SLOPE(OFFSET($O28:$O58, Q$7, 0),$A28:$A58)) > $Q$3), (MAX(0,(CORREL( $L28:$L58, OFFSET($O28:$O58, Q$7, 0) )))), (1-ABS(SLOPE($L28:$L58, $A28:$A58)-SLOPE(OFFSET($O28:$O58, Q$7, 0),$A28:$A58))) ) -> 0.8016118462 | R58: 0.8331451156 | S58: 0.8696553329 | T58: 0.8971387477 | U58: 0.927806064 | V58: 0.9580943623 | W58: 0.977315152 | X58: 0.9974801875 | Y58: 0.9838438113 | Z58: 0.9699762967 | AA58: 0.9536998569 | AB58: 0.936294913 | AC58: 0.9215541378 | AD58: 0.9079591353 | AE58: 0.8995018733 | AF58: 0.8888182449 | AG58: 0.878350048 | AH58: 0.8701727238 | AI58: 0.8602296802 | AJ58: 0.8479859334 | AK58: 0.8379982875 | AL58: 0.8281475399 | AM58: 0.825229347 | AN58: 0.8294133159 | AO58: 0.8339451913 | AP58: 0.8303662591 | AQ58: 0.8299960795 | AR58: 0.8328762767 | AS58: 0.8363583741 | AT58: 0.839633996 | AV58: 0.9974801875 | AW58: 7 | AX58: +70s | AY58: 60 | AZ58: 0.8 | BB58: 0.1001400882 | BC58: 0.8998599118 | BE58: 3.831538031 | BF58: 0.1603760565 | BH58: 0.8396239435 | BJ58: 0.8396239435 | BL58: 0.8790347103
A59: 51 | B59: 00:08:20 | C59: 113.8378432 | D59: 110 | E59: 3 | F59: 0.5 | G59: 110 | H59: 5 | I59: 20 | J59: 14.71505971 | K59: 3.678764928 | L59: 3.678764928 | M59: 113.6787649 | N59: 113.6787649 | O59: 3.837843189 | Q59: =IF(AND(ABS(SLOPE($L29:$L59,$A29:$A59)) > $Q$3, ABS(SLOPE(OFFSET($O29:$O59, Q$7, 0),$A29:$A59)) > $Q$3), (MAX(0,(CORREL( $L29:$L59, OFFSET($O29:$O59, Q$7, 0) )))), (1-ABS(SLOPE($L29:$L59, $A29:$A59)-SLOPE(OFFSET($O29:$O59, Q$7, 0),$A29:$A59))) ) -> 0.822973358 | R59: 0.8594835753 | S59: 0.8869669902 | T59: 0.9176343064 | U59: 0.9479226048 | V59: 0.9671433944 | W59: 0.9873084299 | X59: 0.9940155689 | Y59: 0.9801480543 | Z59: 0.9638716145 | AA59: 0.9464666705 | AB59: 0.9317258954 | AC59: 0.9181308929 | AD59: 0.9096736308 | AE59: 0.8989900025 | AF59: 0.8885218056 | AG59: 0.8803444813 | AH59: 0.8704014378 | AI59: 0.858157691 | AJ59: 0.8481700451 | AK59: 0.8383192974 | AL59: 0.8354011045 | AM59: 0.8395850735 | AN59: 0.8441169489 | AO59: 0.8405380167 | AP59: 0.840167837 | AQ59: 0.8430480343 | AR59: 0.8465301317 | AS59: 0.8498057536 | AT59: 0.8493645613 | AV59: 0.9940155689 | AW59: 7 | AX59: +70s | AY59: 60 | AZ59: 0.8 | BB59: 0.03181565206 | BC59: 0.9681843479 | BE59: 3.678764928 | BF59: 0.05095330856 | BH59: 0.9490466914 | BJ59: 0.9490466914 | BL59: 0.9143540868
A60: 52 | B60: 00:08:30 | C60: 113.5491822 | D60: 110 | E60: 3 | F60: 0.5 | G60: 110 | H60: 5 | I60: 20 | J60: 14.07243345 | K60: 3.518108364 | L60: 3.518108364 | M60: 113.5181084 | N60: 113.5181084 | O60: 3.549182198 | Q60: =IF(AND(ABS(SLOPE($L30:$L60,$A30:$A60)) > $Q$3, ABS(SLOPE(OFFSET($O30:$O60, Q$7, 0),$A30:$A60)) > $Q$3), (MAX(0,(CORREL( $L30:$L60, OFFSET($O30:$O60, Q$7, 0) )))), (1-ABS(SLOPE($L30:$L60, $A30:$A60)-SLOPE(OFFSET($O30:$O60, Q$7, 0),$A30:$A60))) ) -> 0.8493351594 | R60: 0.8768185742 | S60: 0.9074858905 | T60: 0.9377741889 | U60: 0.9569949785 | V60: 0.977160014 | W60: 0.9958360152 | X60: 0.9902964702 | Y60: 0.9740200304 | Z60: 0.9566150864 | AA60: 0.9418743113 | AB60: 0.9282793088 | AC60: 0.9198220468 | AD60: 0.9091384184 | AE60: 0.8986702215 | AF60: 0.8904928973 | AG60: 0.8805498537 | AH60: 0.8683061069 | AI60: 0.858318461 | AJ60: 0.8484677133 | AK60: 0.8455495205 | AL60: 0.8497334894 | AM60: 0.8542653648 | AN60: 0.8506864326 | AO60: 0.850316253 | AP60: 0.8531964502 | AQ60: 0.8566785476 | AR60: 0.8599541695 | AS60: 0.8595129772 | AT60: 0.860563042 | AV60: 0.9958360152 | AW60: 6 | AX60: +60s | AY60: 50 | AZ60: 0.8333333333 | BB60: 0.006214766858 | BC60: 0.9937852331 | BE60: 3.518108364 | BF60: 0.009953054954 | BH60: 0.990046945 | BJ60: 0.990046945 | BL60: 0.9397387645
A61: 53 | B61: 00:08:40 | C61: 114.01642 | D61: 110 | E61: 3 | F61: 0.5 | G61: 110 | H61: 5 | I61: 20 | J61: 13.39965047 | K61: 3.349912618 | L61: 3.349912618 | M61: 113.3499126 | N61: 113.3499126 | O61: 4.016419999 | Q61: =IF(AND(ABS(SLOPE($L31:$L61,$A31:$A61)) > $Q$3, ABS(SLOPE(OFFSET($O31:$O61, Q$7, 0),$A31:$A61)) > $Q$3), (MAX(0,(CORREL( $L31:$L61, OFFSET($O31:$O61, Q$7, 0) )))), (1-ABS(SLOPE($L31:$L61, $A31:$A61)-SLOPE(OFFSET($O31:$O61, Q$7, 0),$A31:$A61))) ) -> 0.8667152477 | R61: 0.897382564 | S61: 0.9276708623 | T61: 0.9468916519 | U61: 0.9670566874 | V61: 0.9857326886 | W61: 0.9996002032 | X61: 0.9841233569 | Y61: 0.966718413 | Z61: 0.9519776379 | AA61: 0.9383826354 | AB61: 0.9299253733 | AC61: 0.919241745 | AD61: 0.9087735481 | AE61: 0.9005962238 | AF61: 0.8906531803 | AG61: 0.8784094335 | AH61: 0.8684217876 | AI61: 0.8585710399 | AJ61: 0.855652847 | AK61: 0.859836816 | AL61: 0.8643686913 | AM61: 0.8607897592 | AN61: 0.8604195795 | AO61: 0.8632997768 | AP61: 0.8667818741 | AQ61: 0.870057496 | AR61: 0.8696163037 | AS61: 0.8706663685 | AT61: 0.868816807 | AV61: 0.9996002032 | AW61: 6 | AX61: +60s | AY61: 50 | AZ61: 0.8333333333 | BB61: 0.1333014762 | BC61: 0.8666985238 | BE61: 3.349912618 | BF61: 0.213484584 | BH61: 0.786515416 | BJ61: 0.786515416 | BL61: 0.8731496508
A62: 54 | B62: 00:08:50 | C62: 113.3186611 | D62: 110 | E62: 3 | F62: 0.5 | G62: 110 | H62: 5 | I62: 20 | J62: 12.69815252 | K62: 3.17453813 | L62: 3.17453813 | M62: 113.1745381 | N62: 113.1745381 | O62: 3.318661119 | Q62: =IF(AND(ABS(SLOPE($L32:$L62,$A32:$A62)) > $Q$3, ABS(SLOPE(OFFSET($O32:$O62, Q$7, 0),$A32:$A62)) > $Q$3), (MAX(0,(CORREL( $L32:$L62, OFFSET($O32:$O62, Q$7, 0) )))), (1-ABS(SLOPE($L32:$L62, $A32:$A62)-SLOPE(OFFSET($O32:$O62, Q$7, 0),$A32:$A62))) ) -> 0.8873459778 | R62: 0.9176342761 | S62: 0.9368550658 | T62: 0.9570201013 | U62: 0.9756961025 | V62: 0.989563617 | W62: 0.9941599431 | X62: 0.9767549992 | Y62: 0.962014224 | Z62: 0.9484192216 | AA62: 0.9399619595 | AB62: 0.9292783311 | AC62: 0.9188101343 | AD62: 0.91063281 | AE62: 0.9006897664 | AF62: 0.8884460196 | AG62: 0.8784583738 | AH62: 0.8686076261 | AI62: 0.8656894332 | AJ62: 0.8698734021 | AK62: 0.8744052775 | AL62: 0.8708263453 | AM62: 0.8704561657 | AN62: 0.8733363629 | AO62: 0.8768184603 | AP62: 0.8800940822 | AQ62: 0.8796528899 | AR62: 0.8807029547 | AS62: 0.8788533932 | AT62: 0.8733914709 | AV62: 0.9941599431 | AW62: 6 | AX62: +60s | AY62: 50 | AZ62: 0.8333333333 | BB62: 0.02882459764 | BC62: 0.9711754024 | BE62: 3.17453813 | BF62: 0.04616308398 | BH62: 0.953836916 | BJ62: 0.953836916 | BL62: 0.9271100642
A63: 55 | B63: 00:09:00 | C63: 113.2303417 | D63: 110 | E63: 3 | F63: 0.5 | G63: 110 | H63: 5 | I63: 20 | J63: 11.96944288 | K63: 2.992360721 | L63: 2.992360721 | M63: 112.9923607 | N63: 112.9923607 | O63: 3.230341686 | Q63: =IF(AND(ABS(SLOPE($L33:$L63,$A33:$A63)) > $Q$3, ABS(SLOPE(OFFSET($O33:$O63, Q$7, 0),$A33:$A63)) > $Q$3), (MAX(0,(CORREL( $L33:$L63, OFFSET($O33:$O63, Q$7, 0) )))), (1-ABS(SLOPE($L33:$L63, $A33:$A63)-SLOPE(OFFSET($O33:$O63, Q$7, 0),$A33:$A63))) ) -> 0.9076859384 | R63: 0.926906728 | S63: 0.9470717636 | T63: 0.9657477648 | U63: 0.9796152793 | V63: 0.9958917192 | W63: 0.8946022056 | X63: 0.9078192928 | Y63: 0.9166656332 | Z63: 0.907136936 | AA63: 0.8855022434 | AB63: 0.8553675217 | AC63: 0.8293906668 | AD63: 0.8085059097 | AE63: 0.7897326688 | AF63: 0.7783679746 | AG63: 0.7671818776 | AH63: 0.7687291197 | AI63: 0.7615512553 | AJ63: 0.7591558841 | AK63: 0.7537912127 | AL63: 0.777420804 | AM63: 0.7801444742 | AN63: 0.7723625105 | AO63: 0.774522677 | AP63: 0.790131157 | AQ63: 0.7893088108 | AR63: 0.7820572986 | AS63: 0.7806732749 | AT63: 0.7853547256 | AV63: 0.9958917192 | AW63: 5 | AX63: +50s | AY63: 40 | AZ63: 0.8666666667 | BB63: 0.04759619318 | BC63: 0.9524038068 | BE63: 2.992360721 | BF63: 0.07622611389 | BH63: 0.9237738861 | BJ63: 0.9237738861 | BL63: 0.928777424
A64: 56 | B64: 00:09:10 | C64: 113.8154768 | D64: 110 | E64: 3 | F64: 0.5 | G64: 110 | H64: 5 | I64: 20 | J64: 11.21508315 | K64: 2.803770789 | L64: 2.803770789 | M64: 112.8037708 | N64: 112.8037708 | O64: 3.81547679 | Q64: =IF(AND(ABS(SLOPE($L34:$L64,$A34:$A64)) > $Q$3, ABS(SLOPE(OFFSET($O34:$O64, Q$7, 0),$A34:$A64)) > $Q$3), (MAX(0,(CORREL( $L34:$L64, OFFSET($O34:$O64, Q$7, 0) )))), (1-ABS(SLOPE($L34:$L64, $A34:$A64)-SLOPE(OFFSET($O34:$O64, Q$7, 0),$A34:$A64))) ) -> 0.9170679577 | R64: 0.9372329933 | S64: 0.9559089945 | T64: 0.969776509 | U64: 0.9860529489 | V64: 0.8747016913 | W64: 0.9028301875 | X64: 0.9196400531 | Y64: 0.9165565981 | Z64: 0.9044651132 | AA64: 0.8841373791 | AB64: 0.8646297084 | AC64: 0.8493497068 | AD64: 0.8358547538 | AE64: 0.8270600162 | AF64: 0.8181598912 | AG64: 0.8195122611 | AH64: 0.8130055915 | AI64: 0.8107975122 | AJ64: 0.8061834839 | AK64: 0.8269939539 | AL64: 0.8294333627 | AM64: 0.8224148152 | AN64: 0.8243380625 | AO64: 0.8381117119 | AP64: 0.8374124792 | AQ64: 0.8311391318 | AR64: 0.8300242138 | AS64: 0.8341967277 | AT64: 0.8173552299 | AV64: 0.9860529489 | AW64: 4 | AX64: +40s | AY64: 30 | AZ64: 0.9 | BB64: 0.2023412002 | BC64: 0.7976587998 | BE64: 2.803770789 | BF64: 0.3240528777 | BH64: 0.6759471223 | BJ64: 0.6759471223 | BL64: 0.8540000237
A65: 57 | B65: 00:09:20 | C65: 113.4073635 | D65: 110 | E65: 3 | F65: 0.5 | G65: 110 | H65: 5 | I65: 20 | J65: 10.4366899 | K65: 2.609172476 | L65: 2.609172476 | M65: 112.6091725 | N65: 112.6091725 | O65: 3.407363461 | Q65: =IF(AND(ABS(SLOPE($L35:$L65,$A35:$A65)) > $Q$3, ABS(SLOPE(OFFSET($O35:$O65, Q$7, 0),$A35:$A65)) > $Q$3), (MAX(0,(CORREL( $L35:$L65, OFFSET($O35:$O65, Q$7, 0) )))), (1-ABS(SLOPE($L35:$L65, $A35:$A65)-SLOPE(OFFSET($O35:$O65, Q$7, 0),$A35:$A65))) ) -> 0.9275248745 | R65: 0.9462008757 | S65: 0.9600683902 | T65: 0.9763448301 | U65: 0.8536690509 | V65: 0.893637031 | W65: 0.9167595896 | X65: 0.9188809945 | Y65: 0.9145392963 | Z65: 0.9022208772 | AA65: 0.8880315308 | AB65: 0.8773499089 | AC65: 0.8681803547 | AD65: 0.8615043754 | AE65: 0.8544950604 | AF65: 0.8556828396 | AG65: 0.8497536691 | AH65: 0.8477089874 | AI65: 0.8437255441 | AJ65: 0.8621478141 | AK65: 0.8643444568 | AL65: 0.8579805646 | AM65: 0.8597021075 | AN65: 0.8719200783 | AO65: 0.8713239383 | AP65: 0.8658738035 | AQ65: 0.864981858 | AR65: 0.8687208458 | AS65: 0.8538622189 | AT65: 0.8472714068 | AV65: 0.9763448301 | AW65: 3 | AX65: +30s | AY65: 20 | AZ65: 0.9333333333 | BB65: 0.159638197 | BC65: 0.840361803 | BE65: 2.609172476 | BF65: 0.255663291 | BH65: 0.744336709 | BJ65: 0.744336709 | BL65: 0.8846716241
A66: 58 | B66: 00:09:30 | C66: 113.0829561 | D66: 110 | E66: 3 | F66: 0.5 | G66: 110 | H66: 5 | I66: 20 | J66: 9.635931202 | K66: 2.4089828 | L66: 2.4089828 | M66: 112.4089828 | N66: 112.4089828 | O66: 3.082956147 | Q66: =IF(AND(ABS(SLOPE($L36:$L66,$A36:$A66)) > $Q$3, ABS(SLOPE(OFFSET($O36:$O66, Q$7, 0),$A36:$A66)) > $Q$3), (MAX(0,(CORREL( $L36:$L66, OFFSET($O36:$O66, Q$7, 0) )))), (1-ABS(SLOPE($L36:$L66, $A36:$A66)-SLOPE(OFFSET($O36:$O66, Q$7, 0),$A36:$A66))) ) -> 0.9366442125 | R66: 0.9505117271 | S66: 0.966788167 | T66: 0.8332330906 | U66: 0.8827279809 | V66: 0.9109233104 | W66: 0.9172915949 | X66: 0.9193017807 | Y66: 0.9135777008 | Z66: 0.903789933 | AA66: 0.8969080188 | AB66: 0.8913092701 | AC66: 0.8863907137 | AD66: 0.8809537413 | AE66: 0.882002458 | AF66: 0.8765679058 | AG66: 0.8746645654 | AH66: 0.8712117485 | AI66: 0.8876117208 | AJ66: 0.8896015619 | AK66: 0.8837970136 | AL66: 0.8853471267 | AM66: 0.8962469418 | AN66: 0.8957373434 | AO66: 0.8909808766 | AP66: 0.8902745969 | AQ66: 0.8936449809 | AR66: 0.8804637647 | AS66: 0.8746788606 | AT66: 0.8871398508 | AV66: 0.966788167 | AW66: 2 | AX66: +20s | AY66: 10 | AZ66: 0.9666666667 | BB66: 0.1347946692 | BC66: 0.8652053308 | BE66: 2.4089828 | BF66: 0.2158759582 | BH66: 0.7841240418 | BJ66: 0.7841240418 | BL66: 0.9058596252
A67: 59 | B67: 00:09:40 | C67: 112.8124518 | D67: 110 | E67: 3 | F67: 0.5 | G67: 110 | H67: 5 | I67: 20 | J67: 8.814523042 | K67: 2.203630761 | L67: 2.203630761 | M67: 112.2036308 | N67: 112.2036308 | O67: 2.812451782 | Q67: =IF(AND(ABS(SLOPE($L37:$L67,$A37:$A67)) > $Q$3, ABS(SLOPE(OFFSET($O37:$O67, Q$7, 0),$A37:$A67)) > $Q$3), (MAX(0,(CORREL( $L37:$L67, OFFSET($O37:$O67, Q$7, 0) )))), (1-ABS(SLOPE($L37:$L67, $A37:$A67)-SLOPE(OFFSET($O37:$O67, Q$7, 0),$A37:$A67))) ) -> 0.9411269992 | R67: 0.9574034391 | S67: 0.8140939043 | T67: 0.8713740131 | U67: 0.9037099387 | V67: 0.9135894517 | W67: 0.9208707506 | X67: 0.9206392677 | Y67: 0.9145331837 | Z67: 0.9108254507 | AA67: 0.9082074084 | AB67: 0.9047614659 | AC67: 0.9006447125 | AD67: 0.9015751907 | AE67: 0.8965656157 | AF67: 0.894784626 | AG67: 0.8917815514 | AH67: 0.9064590726 | AI67: 0.9082719624 | AJ67: 0.9029471177 | AK67: 0.9043508039 | AL67: 0.9141273609 | AM67: 0.9136909734 | AN67: 0.9095230681 | AO67: 0.9089728497 | AP67: 0.9120282932 | AQ67: 0.900274682 | AR67: 0.8951742447 | AS67: 0.9064188734 | AT67: 0.904469903 | AV67: 0.9574034391 | AW67: 1 | AX67: +10s | AY67: 0 | AZ67: 1 | BB67: 0.1217642042 | BC67: 0.8782357958 | BE67: 2.203630761 | BF67: 0.1950074465 | BH67: 0.8049925535 | BJ67: 0.8049925535 | BL67: 0.9207986642
A68: 60 | B68: 00:09:50 | C68: 112.2278478 | D68: 110 | E68: 3 | F68: 0.5 | G68: 110 | H68: 5 | I68: 20 | J68: 7.974225676 | K68: 1.993556419 | L68: 1.993556419 | M68: 111.9935564 | N68: 111.9935564 | O68: 2.227847836 | Q68: =IF(AND(ABS(SLOPE($L38:$L68,$A38:$A68)) > $Q$3, ABS(SLOPE(OFFSET($O38:$O68, Q$7, 0),$A38:$A68)) > $Q$3), (MAX(0,(CORREL( $L38:$L68, OFFSET($O38:$O68, Q$7, 0) )))), (1-ABS(SLOPE($L38:$L68, $A38:$A68)-SLOPE(OFFSET($O38:$O68, Q$7, 0),$A38:$A68))) ) -> 0.9482107576 | R68: 0.796459449 | S68: 0.8602012401 | T68: 0.8959704069 | U68: 0.9087934404 | V68: 0.9205074289 | W68: 0.9249092112 | X68: 0.9219197014 | Y68: 0.9208960863 | Z68: 0.9207969761 | AA68: 0.918599451 | AB68: 0.9156038032 | AC68: 0.9164328466 | AD68: 0.9117909028 | AE68: 0.9101163743 | AF68: 0.9074981444 | AG68: 0.9206959457 | AH68: 0.9223562619 | AI68: 0.9174457861 | AJ68: 0.9187233945 | AK68: 0.9275346097 | AL68: 0.9271607728 | AM68: 0.9234969357 | AN68: 0.923079358 | AO68: 0.9258635622 | AP68: 0.9153356215 | AQ68: 0.9108218535 | AR68: 0.9210199216 | AS68: 0.9192301901 | AT68: 0.9239502621 | AV68: 0.9482107576 | AW68: 0 | AX68: No Time Shift | AY68: 0 | AZ68: 1 | BB68: 0.0468582834 | BC68: 0.9531417166 | BE68: 1.993556419 | BF68: 0.07504433882 | BH68: 0.9249556612 | BJ68: 0.9249556612 | BL68: 0.9577221396
A69: 61 | B69: 00:10:00 | C69: 112.3947451 | D69: 110 | E69: 3 | F69: 0.5 | G69: 110 | H69: 5 | I69: 20 | J69: 7.116839828 | K69: 1.779209957 | L69: 1.779209957 | M69: 111.77921 | N69: 111.77921 | O69: 2.394745056 | Q69: =IF(AND(ABS(SLOPE($L39:$L69,$A39:$A69)) > $Q$3, ABS(SLOPE(OFFSET($O39:$O69, Q$7, 0),$A39:$A69)) > $Q$3), (MAX(0,(CORREL( $L39:$L69, OFFSET($O39:$O69, Q$7, 0) )))), (1-ABS(SLOPE($L39:$L69, $A39:$A69)-SLOPE(OFFSET($O39:$O69, Q$7, 0),$A39:$A69))) ) -> 0.7803134251 | R69: 0.8494985179 | S69: 0.8881573072 | T69: 0.9034815201 | U69: 0.9189721748 | V69: 0.927331946 | W69: 0.9270126996 | X69: 0.9282867588 | Y69: 0.9303427732 | Z69: 0.9292162154 | AA69: 0.9271836789 | AB69: 0.9279248401 | AC69: 0.9236035862 | AD69: 0.9220223646 | AE69: 0.9197368591 | AF69: 0.9316511775 | AG69: 0.9331787557 | AH69: 0.9286293118 | AI69: 0.9297973588 | AJ69: 0.9377709861 | AK69: 0.9374511595 | AL69: 0.9342234355 | AM69: 0.93391989 | AN69: 0.9364683404 | AO69: 0.9270029874 | AP69: 0.9229971298 | AQ69: 0.932286281 | AR69: 0.9306351619 | AS69: 0.9348675473 | AT69: 0.9382978775 | AV69: 0.9382978775 | AW69: 29 | AX69: +290s | AY69: 280 | AZ69: 0.06666666667 | BB69: 0.1231070198 | BC69: 0.8768929802 | BE69: 1.779209957 | BF69: 0.1971579886 | BH69: 0.8028420114 | BJ69: 0.8028420114 | BL69: 0.6026021852
A70: 62 | B70: 00:10:10 | C70: 112.7248808 | D70: 110 | E70: 3 | F70: 0.5 | G70: 110 | H70: 5 | I70: 20 | J70: 6.244202847 | K70: 1.561050712 | L70: 1.561050712 | M70: 111.5610507 | N70: 111.5610507 | O70: 2.72488083 | Q70: =IF(AND(ABS(SLOPE($L40:$L70,$A40:$A70)) > $Q$3, ABS(SLOPE(OFFSET($O40:$O70, Q$7, 0),$A40:$A70)) > $Q$3), (MAX(0,(CORREL( $L40:$L70, OFFSET($O40:$O70, Q$7, 0) )))), (1-ABS(SLOPE($L40:$L70, $A40:$A70)-SLOPE(OFFSET($O40:$O70, Q$7, 0),$A40:$A70))) ) -> 0.839379657 | R70: 0.8805045261 | S70: 0.8979813063 | T70: 0.9167298271 | U70: 0.9285116914 | V70: 0.9305070777 | W70: 0.9337712659 | X70: 0.937693086 | Y70: 0.9374958527 | Z70: 0.9363000609 | AA70: 0.9369643192 | AB70: 0.9329252944 | AC70: 0.9314265106 | AD70: 0.9294316448 | AE70: 0.9402217486 | AF70: 0.9416327672 | AG70: 0.9374007432 | AH70: 0.9384726746 | AI70: 0.9457124538 | AJ70: 0.9454397554 | AK70: 0.9425932127 | AL70: 0.9423887999 | AM70: 0.9447303942 | AN70: 0.9361953763 | AO70: 0.9326336989 | AP70: 0.941125876 | AQ70: 0.9395965305 | AR70: 0.9434020391 | AS70: 0.946461459 | AT70: 0.9437281258 | AV70: 0.946461459 | AW70: 28 | AX70: +280s | AY70: 270 | AZ70: 0.1 | BB70: 0.2327660237 | BC70: 0.7672339763 | BE70: 1.561050712 | BF70: 0.3727787507 | BH70: 0.6272212493 | BJ70: 0.6272212493 | BL70: 0.5578942361
A71: 63 | B71: 00:10:20 | C71: 111.9936437 | D71: 110 | E71: 3 | F71: 0.5 | G71: 110 | H71: 5 | I71: 20 | J71: 5.358184763 | K71: 1.339546191 | L71: 1.339546191 | M71: 111.3395462 | N71: 111.3395462 | O71: 1.993643664 | Q71: =IF(AND(ABS(SLOPE($L41:$L71,$A41:$A71)) > $Q$3, ABS(SLOPE(OFFSET($O41:$O71, Q$7, 0),$A41:$A71)) > $Q$3), (MAX(0,(CORREL( $L41:$L71, OFFSET($O41:$O71, Q$7, 0) )))), (1-ABS(SLOPE($L41:$L71, $A41:$A71)-SLOPE(OFFSET($O41:$O71, Q$7, 0),$A41:$A71))) ) -> 0.8731252834 | R71: 0.8924766453 | S71: 0.9140681471 | T71: 0.9288423043 | U71: 0.932866145 | V71: 0.9378732308 | W71: 0.9434284166 | X71: 0.9440463642 | Y71: 0.9435853166 | Z71: 0.9441816264 | AA71: 0.9403931832 | AB71: 0.9389678351 | AC71: 0.9372293771 | AD71: 0.9470253464 | AE71: 0.9483330706 | AF71: 0.9443826375 | AG71: 0.9453694613 | AH71: 0.9519601554 | AI71: 0.9517289957 | AJ71: 0.9492189132 | AK71: 0.9491015963 | AL71: 0.9512599992 | AM71: 0.9435473707 | AN71: 0.9403779465 | AO71: 0.9481647264 | AP71: 0.9467433376 | AQ71: 0.9501715833 | AR71: 0.9529033897 | AS71: 0.9505946488 | AT71: 0.9471112713 | AV71: 0.9529033897 | AW71: 27 | AX71: +270s | AY71: 260 | AZ71: 0.1333333333 | BB71: 0.1308194947 | BC71: 0.8691805053 | BE71: 1.339546191 | BF71: 0.2095096485 | BH71: 0.7904903515 | BJ71: 0.7904903515 | BL71: 0.6255756915
A72: 64 | B72: 00:10:30 | C72: 112.299759 | D72: 110 | E72: 3 | F72: 0.5 | G72: 110 | H72: 5 | I72: 20 | J72: 4.46068428 | K72: 1.11517107 | L72: 1.11517107 | M72: 111.1151711 | N72: 111.1151711 | O72: 2.299759013 | Q72: =IF(AND(ABS(SLOPE($L42:$L72,$A42:$A72)) > $Q$3, ABS(SLOPE(OFFSET($O42:$O72, Q$7, 0),$A42:$A72)) > $Q$3), (MAX(0,(CORREL( $L42:$L72, OFFSET($O42:$O72, Q$7, 0) )))), (1-ABS(SLOPE($L42:$L72, $A42:$A72)-SLOPE(OFFSET($O42:$O72, Q$7, 0),$A42:$A72))) ) -> 0.8870678742 | R72: 0.9111669414 | S72: 0.9285850712 | T72: 0.9344047922 | U72: 0.9409540242 | V72: 0.9479539292 | W72: 0.9492941845 | X72: 0.9494847751 | Y72: 0.950020494 | Z72: 0.9464564409 | AA72: 0.9450970394 | AB72: 0.943586922 | AC72: 0.9524957677 | AD72: 0.9537111446 | AE72: 0.9500126879 | AF72: 0.9509234775 | AG72: 0.95693484 | AH72: 0.9567406422 | AI72: 0.9545303253 | AJ72: 0.9544902901 | AK72: 0.9564850115 | AL72: 0.9495060168 | AM72: 0.9466862106 | AN72: 0.9538430285 | AO72: 0.9525181876 | AP72: 0.9556099513 | AQ72: 0.9580497033 | AR72: 0.9561187397 | AS72: 0.9529837185 | AT72: 0.9487144096 | AV72: 0.9580497033 | AW72: 26 | AX72: +260s | AY72: 250 | AZ72: 0.1666666667 | BB72: 0.2369175886 | BC72: 0.7630824114 | BE72: 1.11517107 | BF72: 0.3794275525 | BH72: 0.6205724475 | BJ72: 0.6205724475 | BL72: 0.5817629392
A73: 65 | B73: 00:10:40 | C73: 112.2235865 | D73: 110 | E73: 3 | F73: =E73/6 -> 0.5 | G73: 110 | H73: 5 | I73: 20 | J73: 3.553624711 | K73: 0.8884061776 | L73: 0.8884061776 | M73: 110.8884062 | N73: 110.8884062 | O73: 2.223586503 | Q73: =IF(AND(ABS(SLOPE($L43:$L73,$A43:$A73)) > $Q$3, ABS(SLOPE(OFFSET($O43:$O73, Q$7, 0),$A43:$A73)) > $Q$3), (MAX(0,(CORREL( $L43:$L73, OFFSET($O43:$O73, Q$7, 0) )))), (1-ABS(SLOPE($L43:$L73, $A43:$A73)-SLOPE(OFFSET($O43:$O73, Q$7, 0),$A43:$A73))) ) -> 0.9081390678 | R73: 0.9279160886 | S73: 0.9353408921 | T73: 0.9432676966 | U73: 0.9515577358 | V73: 0.9535440322 | W73: 0.9543179373 | X73: 0.9547991566 | Y73: 0.9514376812 | Z73: 0.9501379633 | AA73: 0.9488329902 | AB73: 0.956943395 | AC73: 0.9580755203 | AD73: 0.9546044025 | AE73: 0.9554466892 | AF73: 0.9609365425 | AG73: 0.9607755281 | AH73: 0.9588346323 | AI73: 0.9588638055 | AJ73: 0.9607110423 | AK73: 0.954392159 | AL73: 0.9518866941 | AM73: 0.9584761328 | AN73: 0.9572383561 | AO73: 0.9600274105 | AP73: 0.9622045368 | AQ73: 0.9606127052 | AR73: 0.9577910447 | AS73: 0.9537665568 | AT73: 0.9478755971 | AV73: 0.9622045368 | AW73: 25 | AX73: +250s | AY73: 240 | AZ73: 0.2 | BB73: 0.267036065 | BC73: 0.732963935 | BE73: 0.8884061776 | BF73: 0.4276628054 | BH73: 0.5723371946 | BJ73: 0.5723371946 | BL73: 0.5781805771
A74: 66 | B74: 00:10:50 | C74: 112.1410309 | D74: 110 | E74: 3 | F74: 0.5 | G74: 110 | H74: 5 | I74: 20 | J74: 2.63894985 | K74: =H74 * J74 / I74 -> 0.6597374626 | L74: =K74 -> 0.6597374626 | M74: =D74 + K74 -> 110.6597375 | N74: =G74 + L74 -> 110.6597375 | O74: =C74 - G74 -> 2.14103086 | Q74: =IF(AND(ABS(SLOPE($L44:$L74,$A44:$A74)) > $Q$3, ABS(SLOPE(OFFSET($O44:$O74, Q$7, 0),$A44:$A74)) > $Q$3), (MAX(0,(CORREL( $L44:$L74, OFFSET($O44:$O74, Q$7, 0) )))), (1-ABS(SLOPE($L44:$L74, $A44:$A74)-SLOPE(OFFSET($O44:$O74, Q$7, 0),$A44:$A74))) ) -> 0.9269556627 | R74: 0.9358276536 | S74: 0.9449959197 | T74: 0.9544482891 | U74: 0.9570174587 | V74: 0.958318035 | W74: 0.9587498345 | X74: 0.9555726584 | Y74: 0.9543273575 | Z74: 0.9532082131 | AA74: 0.9605941918 | AB74: 0.9616506729 | AC74: 0.9583862657 | AD74: 0.9591663435 | AE74: 0.9641829573 | AF74: 0.9640519826 | AG74: 0.9623552274 | AH74: 0.9624469125 | AI74: 0.9641602023 | AJ74: 0.9584400904 | AK74: 0.9562195638 | AL74: 0.962293902 | AM74: 0.9611352543 | AN74: 0.96364977 | AO74: 0.965588804 | AP74: 0.9643039562 | AQ74: 0.9617664693 | AR74: 0.9579646978 | AS74: 0.952558873 | AT74: 0.9537128032 | AV74: 0.965588804 | AW74: 24 | AX74: +240s | AY74: 230 | AZ74: 0.2333333333 | BB74: =ABS(O74 - L74) / H74 -> 0.2962586796 | BC74: =MIN( MAX(1 - BB74, 0), 1 ) -> 0.7037413204 | BE74: =ABS(L74) -> 0.6597374626 | BF74: =ABS(O74 - L74 ) / $BF$7 -> 0.4744633203 | BH74: =MIN( MAX(1 - BF74, 0), 1 ) -> 0.5255366797 | BJ74: 0.5255366797 | BL74: 0.5748196057
A75: 67 | B75: =B74 + TIME(0,0,10) -> 00:11:00 | C75: 111.8821067 | D75: 110 | E75: 3 | F75: 0.5 | G75: =IF( ABS(D75 - G74) < F75, D75, G74 + SIGN( D75 - G74 ) * F75 ) -> 110 | H75: 5 | I75: 20 | J75: 1.718619815 | K75: 0.4296549537 | L75: 0.4296549537 | M75: 110.429655 | N75: 110.429655 | O75: 1.882106657 | Q75: =IF(AND(ABS(SLOPE($L45:$L75,$A45:$A75)) > $Q$3, ABS(SLOPE(OFFSET($O45:$O75, Q$7, 0),$A45:$A75)) > $Q$3), (MAX(0,(CORREL( $L45:$L75, OFFSET($O45:$O75, Q$7, 0) )))), (1-ABS(SLOPE($L45:$L75, $A45:$A75)-SLOPE(OFFSET($O45:$O75, Q$7, 0),$A45:$A75))) ) -> 0.9359743789 | R75: 0.9462706335 | S75: 0.9567788174 | T75: 0.9598781342 | U75: 0.9616580631 | V75: 0.9620447074 | W75: 0.9590364238 | X75: 0.9578410882 | Y75: 0.9568915772 | Z75: 0.9636153068 | AA75: 0.9646025457 | AB75: 0.9615274741 | AC75: 0.962250636 | AD75: 0.9668345674 | AE75: 0.9667309985 | AF75: 0.9652571783 | AG75: 0.9654057788 | AH75: 0.9669965081 | AI75: 0.9618236535 | AJ75: 0.9598633921 | AK75: 0.9654665796 | AL75: 0.964380381 | AM75: 0.9666440115 | AN75: 0.9683655434 | AO75: 0.9673607462 | AP75: 0.9650829286 | AQ75: 0.9614852432 | AR75: 0.9565230603 | AS75: 0.9575665065 | AT75: 0.9612720254 | AV75: 0.9683655434 | AW75: 23 | AX75: +230s | AY75: 220 | AZ75: 0.2666666667 | BB75: 0.2904903406 | BC75: 0.7095096594 | BE75: 0.4296549537 | BF75: 0.4652252273 | BH75: 0.5347747727 | BJ75: 0.5347747727 | BL75: 0.5899356609
A76: 68 | B76: 00:11:10 | C76: 111.4421703 | D76: 110 | E76: 3 | F76: 0.5 | G76: 110 | H76: 5 | I76: 20 | J76: 0.7946068383 | K76: 0.1986517096 | L76: 0.1986517096 | M76: 110.1986517 | N76: 110.1986517 | O76: 1.442170322 | Q76: =IF(AND(ABS(SLOPE($L46:$L76,$A46:$A76)) > $Q$3, ABS(SLOPE(OFFSET($O46:$O76, Q$7, 0),$A46:$A76)) > $Q$3), (MAX(0,(CORREL( $L46:$L76, OFFSET($O46:$O76, Q$7, 0) )))), (1-ABS(SLOPE($L46:$L76, $A46:$A76)-SLOPE(OFFSET($O46:$O76, Q$7, 0),$A46:$A76))) ) -> 0.9471889986 | R76: 0.958663588 | S76: 0.9622487369 | T76: 0.9644682215 | U76: 0.964813312 | V76: 0.9619608664 | W76: 0.9608117153 | X76: 0.9600181744 | Y76: 0.9661321932 | Z76: 0.9670556074 | AA76: 0.9641551576 | AB76: 0.9648258803 | AC76: 0.9690114044 | AD76: 0.9689330207 | AE76: 0.9676642393 | AF76: 0.9678650466 | AG76: 0.9693428463 | AH76: 0.9646737314 | AI76: 0.9629529061 | AJ76: 0.9681221027 | AK76: 0.9671026987 | AL76: 0.9691354231 | AM76: 0.9706568375 | AN76: 0.9699093845 | AO76: 0.9678705403 | AP76: 0.9644611563 | AQ76: 0.9599075415 | AR76: 0.9608492897 | AS76: 0.9642669202 | AT76: 0.9699004048 | AV76: 0.9706568375 | AW76: 22 | AX76: +220s | AY76: 210 | AZ76: 0.3 | BB76: 0.2487037226 | BC76: 0.7512962774 | BE76: 0.1986517096 | BF76: 0.3983032468 | BH76: 0.6016967532 | BJ76: =BH76 -> 0.6016967532 | BL76: 0.6241178636
A77: 69 | B77: 00:11:20 | C77: 110.9888088 | D77: 110 | E77: 3 | F77: 0.5 | G77: 110 | H77: 5 | I77: 20 | J77: -0.1311089521 | K77: -0.03277723803 | L77: -0.03277723803 | M77: 109.9672228 | N77: 109.9672228 | O77: 0.9888087663 | Q77: =IF(AND(ABS(SLOPE($L47:$L77,$A47:$A77)) > $Q$3, ABS(SLOPE(OFFSET($O47:$O77, Q$7, 0),$A47:$A77)) > $Q$3), (MAX(0,(CORREL( $L47:$L77, OFFSET($O47:$O77, Q$7, 0) )))), (1-ABS(SLOPE($L47:$L77, $A47:$A77)-SLOPE(OFFSET($O47:$O77, Q$7, 0),$A47:$A77))) ) -> 0.960188924 | R77: 0.9642224355 | S77: 0.9668478073 | T77: 0.9671544011 | U77: 0.9644466813 | V77: 0.9633404904 | W77: 0.9626913312 | X77: 0.9682402579 | Y77: 0.969104454 | Z77: 0.9663661075 | AA77: 0.9669881958 | AB77: 0.970804425 | AC77: 0.970749344 | AD77: 0.9696704181 | AE77: 0.9699194476 | AF77: 0.9712925037 | AG77: 0.967090178 | AH77: 0.9655911126 | AI77: 0.9703578928 | AJ77: 0.9694004746 | AK77: 0.9712192548 | AL77: 0.9725553063 | AM77: 0.9720459496 | AN77: 0.9702285097 | AO77: 0.9669939917 | AP77: 0.9628191494 | AQ77: 0.9636666595 | AR77: 0.9668173491 | AS77: 0.9720606419 | AT77: 0.9778031056 | AV77: 0.9778031056 | AW77: 29 | AX77: +290s | AY77: 280 | AZ77: 0.06666666667 | BB77: 0.2043172009 | BC77: 0.7956827991 | BE77: 0.03277723803 | BF77: 0.3272174765 | BH77: 0.6727825235 | BJ77: 0.6727825235 | BL77: 0.5724174319
A78: 70 | B78: 00:11:30 | C78: 110.6424739 | D78: 110 | E78: 3 | F78: 0.5 | G78: 110 | H78: 5 | I78: 20 | J78: -1.056543781 | K78: -0.2641359452 | L78: -0.2641359452 | M78: 109.7358641 | N78: 109.7358641 | O78: 0.642473933 | Q78: =IF(AND(ABS(SLOPE($L48:$L78,$A48:$A78)) > $Q$3, ABS(SLOPE(OFFSET($O48:$O78, Q$7, 0),$A48:$A78)) > $Q$3), (MAX(0,(CORREL( $L48:$L78, OFFSET($O48:$O78, Q$7, 0) )))), (1-ABS(SLOPE($L48:$L78, $A48:$A78)-SLOPE(OFFSET($O48:$O78, Q$7, 0),$A48:$A78))) ) -> 0.965870825 | R78: 0.9688734589 | S78: 0.9691441623 | T78: 0.9665716745 | U78: 0.9655056847 | V78: 0.9649910342 | W78: 0.9700129216 | X78: 0.9708218319 | Y78: 0.9682348972 | Z78: 0.9688115977 | AA78: 0.9722833627 | AB78: 0.9722499813 | AC78: 0.9713479727 | AD78: 0.9716418358 | AE78: 0.9729171342 | AF78: 0.9691500902 | AG78: 0.9678577189 | AH78: 0.9722490214 | AI78: 0.9713494832 | AJ78: 0.972968781 | AK78: 0.9741320464 | AL78: 0.9738443952 | AM78: 0.9722333807 | AN78: 0.9691622503 | AO78: 0.9653407635 | AP78: 0.9661003966 | AQ78: 0.9690020173 | AR78: 0.9738811172 | AS78: 0.9791429072 | AT78: 0.9817589826 | AV78: 0.9817589826 | AW78: 29 | AX78: +290s | AY78: 280 | AZ78: 0.06666666667 | BB78: 0.1813219756 | BC78: 0.8186780244 | BE78: 0.2641359452 | BF78: 0.2903902317 | BH78: 0.7096097683 | BJ78: 0.7096097683 | BL78: 0.5860118059
A79: 71 | B79: 00:11:40 | C79: 110.3626607 | D79: 110 | E79: 3 | F79: 0.5 | G79: 110 | H79: 5 | I79: 20 | J79: -1.979714474 | K79: -0.4949286184 | L79: -0.4949286184 | M79: 109.5050714 | N79: 109.5050714 | O79: 0.3626607331 | Q79: =IF(AND(ABS(SLOPE($L49:$L79,$A49:$A79)) > $Q$3, ABS(SLOPE(OFFSET($O49:$O79, Q$7, 0),$A49:$A79)) > $Q$3), (MAX(0,(CORREL( $L49:$L79, OFFSET($O49:$O79, Q$7, 0) )))), (1-ABS(SLOPE($L49:$L79, $A49:$A79)-SLOPE(OFFSET($O49:$O79, Q$7, 0),$A49:$A79))) ) -> 0.9706049611 | R79: 0.9708420035 | S79: 0.968396613 | T79: 0.9673684577 | U79: 0.9669798753 | V79: 0.971507282 | W79: 0.9722642737 | X79: 0.9698195927 | Y79: 0.9703536846 | Z79: 0.973502233 | AA79: 0.9734891809 | AB79: 0.9727530262 | AC79: 0.97308883 | AD79: 0.9742723509 | AE79: 0.9709136332 | AF79: 0.9698150715 | AG79: 0.9738539528 | AH79: 0.9730087786 | AI79: 0.9744409654 | AJ79: 0.9754422015 | AK79: 0.9753622475 | AL79: 0.9739448453 | AM79: 0.9710272679 | AN79: 0.9675373853 | AO79: 0.9682145835 | AP79: 0.9708824314 | AQ79: 0.9754195961 | AR79: 0.9802302903 | AS79: 0.9826175677 | AT79: 0.9823474085 | AV79: 0.9826175677 | AW79: 28 | AX79: +280s | AY79: 270 | AZ79: 0.1 | BB79: 0.1715178703 | BC79: 0.8284821297 | BE79: 0.4949286184 | BF79: 0.2746887901 | BH79: 0.7253112099 | BJ79: 0.7253112099 | BL79: 0.6026429259
A80: 72 | B80: 00:11:50 | C80: 110.3464364 | D80: 110 | E80: 3 | F80: 0.5 | G80: 110 | H80: 5 | I80: 20 | J80: -2.898642709 | K80: -0.7246606774 | L80: -0.7246606774 | M80: 109.2753393 | N80: 109.2753393 | O80: 0.3464364449 | Q80: =IF(AND(ABS(SLOPE($L50:$L80,$A50:$A80)) > $Q$3, ABS(SLOPE(OFFSET($O50:$O80, Q$7, 0),$A50:$A80)) > $Q$3), (MAX(0,(CORREL( $L50:$L80, OFFSET($O50:$O80, Q$7, 0) )))), (1-ABS(SLOPE($L50:$L80, $A50:$A80)-SLOPE(OFFSET($O50:$O80, Q$7, 0),$A50:$A80))) ) -> 0.9722946844 | R80: 0.9699694089 | S80: 0.968977055 | T80: 0.9687073066 | U80: 0.9727681527 | V80: 0.9734761146 | W80: 0.9711658281 | X80: 0.9716596955 | Y80: 0.9745032484 | Z80: 0.9745093516 | AA80: 0.9739295678 | AB80: 0.9743048351 | AC80: 0.9754017088 | AD80: 0.9724282044 | AE80: 0.9715124068 | AF80: 0.9752186429 | AG80: 0.9744248156 | AH80: 0.975680499 | AI80: 0.9765289275 | AJ80: 0.9766446676 | AK80: 0.9754098919 | AL80: 0.9726374263 | AM80: 0.969460493 | AN80: 0.9700599225 | AO80: 0.9725071175 | AP80: 0.9767214409 | AQ80: 0.9811064066 | AR80: 0.9832777604 | AS80: 0.9831009242 | AT80: 0.9777317388 | AV80: 0.9832777604 | AW80: 27 | AX80: +270s | AY80: 260 | AZ80: 0.1333333333 | BB80: 0.2142194244 | BC80: 0.7857805756 | BE80: 0.7246606774 | BF80: 0.3430760562 | BH80: 0.6569239438 | BJ80: 0.6569239438 | BL80: 0.5911783459
A81: 73 | B81: 00:12:00 | C81: 110.8927808 | D81: 110 | E81: 3 | F81: 0.5 | G81: 110 | H81: 5 | I81: 20 | J81: -3.811359258 | K81: -0.9528398144 | L81: -0.9528398144 | M81: 109.0471602 | N81: 109.0471602 | O81: 0.89278076 | Q81: =IF(AND(ABS(SLOPE($L51:$L81,$A51:$A81)) > $Q$3, ABS(SLOPE(OFFSET($O51:$O81, Q$7, 0),$A51:$A81)) > $Q$3), (MAX(0,(CORREL( $L51:$L81, OFFSET($O51:$O81, Q$7, 0) )))), (1-ABS(SLOPE($L51:$L81, $A51:$A81)-SLOPE(OFFSET($O51:$O81, Q$7, 0),$A51:$A81))) ) -> 0.9713281498 | R81: 0.9703698504 | S81: 0.9702127279 | T81: 0.9738309807 | U81: 0.9744923934 | V81: 0.972309752 | W81: 0.9727654419 | X81: 0.9753196414 | Y81: 0.9753438924 | Z81: 0.9749123408 | AA81: 0.9753249471 | AB81: 0.9763395781 | AC81: 0.9737314472 | AD81: 0.9729889335 | AE81: 0.9763795027 | AF81: 0.9756344316 | AG81: 0.9767227166 | AH81: 0.9774262526 | AI81: 0.9777273875 | AJ81: 0.9766658086 | AK81: 0.9740312048 | AL81: 0.9711512059 | AM81: 0.9716768722 | AN81: 0.973914678 | AO81: 0.9778225543 | AP81: 0.9818035693 | AQ81: 0.9837700521 | AR81: 0.9836816586 | AS81: 0.9787812265 | AT81: 0.9788432222 | AV81: 0.9837700521 | AW81: 26 | AX81: +260s | AY81: 250 | AZ81: 0.1666666667 | BB81: 0.3691241149 | BC81: 0.6308758851 | BE81: 0.9528398144 | BF81: 0.5911585558 | BH81: 0.4088414442 | BJ81: 0.4088414442 | BL81: 0.5197593877
A82: 74 | B82: 00:12:10 | C82: 110.738161 | D82: 110 | E82: 3 | F82: 0.5 | G82: 110 | H82: 5 | I82: 20 | J82: -4.715908199 | K82: -1.17897705 | L82: -1.17897705 | M82: 108.821023 | N82: 108.821023 | O82: 0.7381610238 | Q82: =IF(AND(ABS(SLOPE($L52:$L82,$A52:$A82)) > $Q$3, ABS(SLOPE(OFFSET($O52:$O82, Q$7, 0),$A52:$A82)) > $Q$3), (MAX(0,(CORREL( $L52:$L82, OFFSET($O52:$O82, Q$7, 0) )))), (1-ABS(SLOPE($L52:$L82, $A52:$A82)-SLOPE(OFFSET($O52:$O82, Q$7, 0),$A52:$A82))) ) -> 0.9715775776 | R82: 0.9715277535 | S82: 0.974723981 | T82: 0.9753409733 | U82: 0.9732801848 | V82: 0.9736994535 | W82: 0.9759777233 | X82: 0.9760192576 | Y82: 0.9757289539 | Z82: 0.976177076 | AA82: 0.9771132445 | AB82: 0.9748534611 | AC82: 0.9742760959 | AD82: 0.9773655684 | AE82: 0.9766670302 | AF82: 0.9775957304 | AG82: 0.9781611662 | AH82: 0.9786388577 | AI82: 0.9777423835 | AJ82: 0.9752394196 | AK82: 0.9726426116 | AL82: 0.9730979521 | AM82: 0.9751360347 | AN82: 0.9787515331 | AO82: 0.9823472864 | AP82: 0.9841183831 | AQ82: 0.9841142445 | AR82: 0.9796609129 | AS82: 0.9798703162 | AT82: 0.9798392749 | AV82: 0.9841183831 | AW82: 25 | AX82: +250s | AY82: 240 | AZ82: 0.2 | BB82: 0.3834276147 | BC82: 0.6165723853 | BE82: 1.17897705 | BF82: 0.6140658543 | BH82: 0.3859341457 | BJ82: 0.3859341457 | BL82: 0.5233508429
A83: 75 | B83: 00:12:20 | C83: 110.0134646 | D83: 110 | E83: 3 | F83: 0.5 | G83: 110 | H83: 5 | I83: 20 | J83: -5.610351118 | K83: -1.402587779 | L83: -1.402587779 | M83: 108.5974122 | N83: 108.5974122 | O83: 0.01346460771 | Q83: =IF(AND(ABS(SLOPE($L53:$L83,$A53:$A83)) > $Q$3, ABS(SLOPE(OFFSET($O53:$O83, Q$7, 0),$A53:$A83)) > $Q$3), (MAX(0,(CORREL( $L53:$L83, OFFSET($O53:$O83, Q$7, 0) )))), (1-ABS(SLOPE($L53:$L83, $A53:$A83)-SLOPE(OFFSET($O53:$O83, Q$7, 0),$A53:$A83))) ) -> 0.9726778954 | R83: 0.9754697138 | S83: 0.9760441085 | T83: 0.974100214 | U83: 0.9744845659 | V83: 0.9764984027 | W83: 0.9765564796 | X83: 0.9764014405 | Y83: 0.9768835154 | Z83: 0.9777444582 | AA83: 0.9758184392 | AB83: 0.9753992534 | AC83: 0.9782001069 | AD83: 0.9775461981 | AE83: 0.9783220063 | AF83: 0.9787551602 | AG83: 0.9794018351 | AH83: 0.9786635342 | AI83: 0.976286884 | AJ83: 0.9739614967 | AK83: 0.9743494556 | AL83: 0.976196093 | AM83: 0.9795312608 | AN83: 0.982757758 | AO83: 0.9843415918 | AP83: 0.9844181201 | AQ83: 0.9803933457 | AR83: 0.9807438549 | AS83: 0.9807738722 | AT83: 0.9781545657 | AV83: 0.9844181201 | AW83: 25 | AX83: +250s | AY83: 240 | AZ83: 0.2 | BB83: 0.2832104774 | BC83: 0.7167895226 | BE83: 1.402587779 | BF83: 0.4535664024 | BH83: 0.5464335976 | BJ83: 0.5464335976 | BL83: 0.5769505726
A84: 76 | B84: 00:12:30 | C84: 109.5277897 | D84: 110 | E84: 3 | F84: 0.5 | G84: 110 | H84: 5 | I84: 20 | J84: -6.492771254 | K84: -1.623192814 | L84: -1.623192814 | M84: 108.3768072 | N84: 108.3768072 | O84: -0.4722102592 | Q84: =IF(AND(ABS(SLOPE($L54:$L84,$A54:$A84)) > $Q$3, ABS(SLOPE(OFFSET($O54:$O84, Q$7, 0),$A54:$A84)) > $Q$3), (MAX(0,(CORREL( $L54:$L84, OFFSET($O54:$O84, Q$7, 0) )))), (1-ABS(SLOPE($L54:$L84, $A54:$A84)-SLOPE(OFFSET($O54:$O84, Q$7, 0),$A54:$A84))) ) -> 0.9760862628 | R84: 0.9766196138 | S84: 0.9747883872 | T84: 0.9751391049 | U84: 0.9768983154 | V84: 0.9769723023 | W84: 0.9769474209 | X84: 0.9774621129 | Y84: 0.9782505899 | Z84: 0.9766458936 | AA84: 0.9763789398 | AB84: 0.9789018157 | AC84: 0.9782909135 | AD84: 0.97891954 | AE84: 0.9792253773 | AF84: 0.9800345686 | AG84: 0.9794485267 | AH84: 0.9771936523 | AI84: 0.9751296463 | AJ84: 0.9754527355 | AK84: 0.9771149874 | AL84: 0.9801800968 | AM84: 0.9830509892 | AN84: 0.9844544886 | AO84: 0.9846086207 | AP84: 0.9809965889 | AQ84: 0.9814828235 | AR84: 0.9815715837 | AS84: 0.9790839581 | AT84: 0.9784349165 | AV84: 0.9846086207 | AW84: 24 | AX84: +240s | AY84: 230 | AZ84: 0.2333333333 | BB84: 0.2301965109 | BC84: 0.7698034891 | BE84: 1.623192814 | BF84: 0.3686636322 | BH84: 0.6313363678 | BJ84: 0.6313363678 | BL84: 0.6164261073
A85: 77 | B85: 00:12:40 | C85: 110.0035948 | D85: 110 | E85: 3 | F85: 0.5 | G85: 110 | H85: 5 | I85: 20 | J85: -7.361277615 | K85: -1.840319404 | L85: -1.840319404 | M85: 108.1596806 | N85: 108.1596806 | O85: 0.00359478895 | Q85: =IF(AND(ABS(SLOPE($L55:$L85,$A55:$A85)) > $Q$3, ABS(SLOPE(OFFSET($O55:$O85, Q$7, 0),$A55:$A85)) > $Q$3), (MAX(0,(CORREL( $L55:$L85, OFFSET($O55:$O85, Q$7, 0) )))), (1-ABS(SLOPE($L55:$L85, $A55:$A85)-SLOPE(OFFSET($O55:$O85, Q$7, 0),$A55:$A85))) ) -> 0.9770817426 | R85: 0.9753596089 | S85: 0.9756777786 | T85: 0.9771906718 | U85: 0.9772800318 | V85: 0.9773809764 | W85: 0.9779271497 | X85: 0.9786454979 | Y85: 0.9773515795 | Z85: 0.9772318143 | AA85: 0.9794857254 | AB85: 0.9789164568 | AC85: 0.979402742 | AD85: 0.9795854727 | AE85: 0.9805516906 | AF85: 0.9801128942 | AG85: 0.977975958 | AH85: 0.9761648289 | AI85: 0.9764251773 | AJ85: 0.9779090232 | AK85: 0.9807127711 | AL85: 0.9832396231 | AM85: 0.9844686575 | AN85: 0.9846977945 | AO85: 0.9814851098 | AP85: 0.9821025034 | AQ85: 0.9822480419 | AR85: 0.9798879523 | AS85: 0.9792683546 | AT85: 0.9789394362 | AV85: 0.9846977945 | AW85: 23 | AX85: +230s | AY85: 220 | AZ85: 0.2666666667 | BB85: 0.3687828385 | BC85: 0.6312171615 | BE85: 1.840319404 | BF85: 0.5906119959 | BH85: 0.4093880041 | BJ85: 0.4093880041 | BL85: 0.5535841551
A86: 78 | B86: 00:12:50 | C86: 110.0988463 | D86: 110 | E86: 3 | F86: 0.5 | G86: 110 | H86: 5 | I86: 20 | J86: -8.21400902 | K86: -2.053502255 | L86: -2.053502255 | M86: 107.9464977 | N86: 107.9464977 | O86: 0.09884626077 | Q86: =IF(AND(ABS(SLOPE($L56:$L86,$A56:$A86)) > $Q$3, ABS(SLOPE(OFFSET($O56:$O86, Q$7, 0),$A56:$A86)) > $Q$3), (MAX(0,(CORREL( $L56:$L86, OFFSET($O56:$O86, Q$7, 0) )))), (1-ABS(SLOPE($L56:$L86, $A56:$A86)-SLOPE(OFFSET($O56:$O86, Q$7, 0),$A56:$A86))) ) -> 0.9758258203 | R86: 0.9761123519 | S86: 0.9773858951 | T86: 0.9774901767 | U86: 0.9777133088 | V86: 0.9782900059 | W86: 0.9789401828 | X86: 0.9779481959 | Y86: 0.9779713848 | Z86: 0.9799638844 | AA86: 0.9794351001 | AB86: 0.9797831054 | AC86: 0.9798462637 | AD86: 0.9809648915 | AE86: 0.9806691333 | AF86: 0.9786469277 | AG86: 0.9770815462 | AH86: 0.9772809397 | AI86: 0.9785913908 | AJ86: 0.981141061 | AK86: 0.9833335663 | AL86: 0.9843930564 | AM86: 0.984695014 | AN86: 0.9818704498 | AO86: 0.9826151632 | AP86: 0.9828158293 | AQ86: 0.9805798113 | AR86: 0.9799888645 | AS86: 0.9797031801 | AT86: 0.9801235037 | AV86: 0.984695014 | AW86: 22 | AX86: +220s | AY86: 210 | AZ86: 0.3 | BB86: 0.4304697032 | BC86: 0.5695302968 | BE86: 2.053502255 | BF86: 0.68940456 | BH86: 0.31059544 | BJ86: 0.31059544 | BL86: 0.5317634847
A87: 79 | B87: 00:13:00 | C87: 109.8146567 | D87: 110 | E87: 3 | F87: 0.5 | G87: 110 | H87: 5 | I87: 20 | J87: -9.049138098 | K87: -2.262284524 | L87: -2.262284524 | M87: 107.7377155 | N87: 107.7377155 | O87: -0.1853433248 | Q87: =IF(AND(ABS(SLOPE($L57:$L87,$A57:$A87)) > $Q$3, ABS(SLOPE(OFFSET($O57:$O87, Q$7, 0),$A57:$A87)) > $Q$3), (MAX(0,(CORREL( $L57:$L87, OFFSET($O57:$O87, Q$7, 0) )))), (1-ABS(SLOPE($L57:$L87, $A57:$A87)-SLOPE(OFFSET($O57:$O87, Q$7, 0),$A57:$A87))) ) -> 0.9764521586 | R87: 0.9774921025 | S87: 0.9776109314 | T87: 0.9779532401 | U87: 0.9785596638 | V87: 0.9791432826 | W87: 0.9784459198 | X87: 0.9786085604 | Y87: 0.9803458775 | Z87: 0.9798566319 | AA87: 0.9800697131 | AB87: 0.9800162213 | AC87: 0.9812834308 | AD87: 0.9811272341 | AE87: 0.979217124 | AF87: 0.9778916077 | AG87: 0.9780315217 | AH87: 0.9791727106 | AI87: 0.9814743048 | AJ87: 0.9833404611 | AK87: 0.9842344668 | AL87: 0.984607436 | AM87: 0.9821617323 | AN87: 0.983030584 | AO87: 0.9832850104 | AP87: 0.9811702189 | AQ87: 0.9806072723 | AR87: 0.9803637878 | AS87: 0.9808647101 | AT87: 0.9798697148 | AV87: 0.984607436 | AW87: 21 | AX87: +210s | AY87: 200 | AZ87: 0.3333333333 | BB87: 0.4153882399 | BC87: 0.5846117601 | BE87: 2.262284524 | BF87: 0.6652513399 | BH87: 0.3347486601 | BJ87: 0.3347486601 | BL87: 0.5508964765
A88: 80 | B88: 00:13:10 | C88: 109.1362428 | D88: 110 | E88: 3 | F88: 0.5 | G88: 110 | H88: 5 | I88: 20 | J88: -9.864875196 | K88: -2.466218799 | L88: -2.466218799 | M88: 107.5337812 | N88: 107.5337812 | O88: -0.863757217 | Q88: =IF(AND(ABS(SLOPE($L58:$L88,$A58:$A88)) > $Q$3, ABS(SLOPE(OFFSET($O58:$O88, Q$7, 0),$A58:$A88)) > $Q$3), (MAX(0,(CORREL( $L58:$L88, OFFSET($O58:$O88, Q$7, 0) )))), (1-ABS(SLOPE($L58:$L88, $A58:$A88)-SLOPE(OFFSET($O58:$O88, Q$7, 0),$A58:$A88))) ) -> 0.9775154682 | R88: 0.9776485405 | S88: 0.9781075892 | T88: 0.9787430887 | U88: 0.9792614463 | V88: 0.9788528113 | W88: 0.9791520723 | X88: 0.9806392202 | Y88: 0.9801887547 | Z88: 0.9802696208 | AA88: 0.9801018406 | AB88: 0.9815145245 | AC88: 0.9814950819 | AD88: 0.9796949599 | AE88: 0.9786045709 | AF88: 0.9786861959 | AG88: 0.9796614488 | AH88: 0.98171979 | AI88: 0.9832660381 | AJ88: 0.9839978298 | AK88: 0.9844403448 | AL88: 0.9823660475 | AM88: 0.9833564572 | AN88: 0.9836635365 | AO88: 0.9816676963 | AP88: 0.9811322306 | AQ88: 0.9809301134 | AR88: 0.9815099644 | AS88: 0.9805850603 | AT88: 0.9765053523 | AV88: 0.9844403448 | AW88: 20 | AX88: +200s | AY88: 190 | AZ88: 0.3666666667 | BB88: 0.3204923164 | BC88: 0.6795076836 | BE88: 2.466218799 | BF88: 0.5132739023 | BH88: 0.4867260977 | BJ88: 0.4867260977 | BL88: 0.6126110364
A89: 81 | B89: 00:13:20 | C89: 109.3724645 | D89: 110 | E89: 3 | F89: 0.5 | G89: 110 | H89: 5 | I89: 20 | J89: -10.65947222 | K89: -2.664868055 | L89: -2.664868055 | M89: 107.3351319 | N89: 107.3351319 | O89: -0.627535518 | Q89: =IF(AND(ABS(SLOPE($L59:$L89,$A59:$A89)) > $Q$3, ABS(SLOPE(OFFSET($O59:$O89, Q$7, 0),$A59:$A89)) > $Q$3), (MAX(0,(CORREL( $L59:$L89, OFFSET($O59:$O89, Q$7, 0) )))), (1-ABS(SLOPE($L59:$L89, $A59:$A89)-SLOPE(OFFSET($O59:$O89, Q$7, 0),$A59:$A89))) ) -> 0.9776075696 | R89: 0.9781814547 | S89: 0.9788455145 | T89: 0.9792996131 | U89: 0.9791751213 | V89: 0.9796087938 | W89: 0.9808496546 | X89: 0.9804373849 | Y89: 0.9803881439 | Z89: 0.9801079164 | AA89: 0.9816636357 | AB89: 0.9817787617 | AC89: 0.9800870123 | AD89: 0.9792280776 | AE89: 0.9792523391 | AF89: 0.9800642319 | AG89: 0.9818830462 | AH89: 0.9831143788 | AI89: 0.9836864922 | AJ89: 0.9841974056 | AK89: 0.9824887405 | AL89: 0.9835986852 | AM89: 0.9839575509 | AN89: 0.9820789189 | AO89: 0.9815705373 | AP89: 0.981409142 | AQ89: 0.9820666131 | AR89: 0.9812107532 | AS89: 0.9772965843 | AT89: 0.9701317241 | AV89: 0.9841974056 | AW89: 19 | AX89: +190s | AY89: 180 | AZ89: 0.4 | BB89: 0.4074665074 | BC89: 0.5925334926 | BE89: 2.664868055 | BF89: 0.6525645503 | BH89: 0.3474354497 | BJ89: 0.3474354497 | BL89: 0.5772109518
A90: 82 | B90: 00:13:30 | C90: 109.089763 | D90: 110 | E90: 3 | F90: 0.5 | G90: 110 | H90: 5 | I90: 20 | J90: -11.43122637 | K90: -2.857806594 | L90: -2.857806594 | M90: 107.1421934 | N90: 107.1421934 | O90: -0.9102370302 | Q90: =IF(AND(ABS(SLOPE($L60:$L90,$A60:$A90)) > $Q$3, ABS(SLOPE(OFFSET($O60:$O90, Q$7, 0),$A60:$A90)) > $Q$3), (MAX(0,(CORREL( $L60:$L90, OFFSET($O60:$O90, Q$7, 0) )))), (1-ABS(SLOPE($L60:$L90, $A60:$A90)-SLOPE(OFFSET($O60:$O90, Q$7, 0),$A60:$A90))) ) -> 0.9781784219 | R90: 0.9788706526 | S90: 0.9792612166 | T90: 0.9794175187 | U90: 0.9799839802 | V90: 0.9809813689 | W90: 0.9806068756 | X90: 0.9804290691 | Y90: 0.9800377454 | Z90: 0.9817346883 | AA90: 0.9819827832 | AB90: 0.980398257 | AC90: 0.9797681072 | AD90: 0.9797356815 | AE90: 0.9803860822 | AF90: 0.9819680596 | AG90: 0.9828881035 | AH90: 0.9833023819 | AI90: 0.9838808453 | AJ90: 0.9825336232 | AK90: 0.9837616035 | AL90: 0.9841716156 | AM90: 0.9824089523 | AN90: 0.9819273742 | AO90: 0.9818062319 | AP90: 0.9825403544 | AQ90: 0.9817527891 | AR90: 0.9780025066 | AS90: 0.9710914819 | AT90: 0.9491084103 | AV90: 0.9841716156 | AW90: 21 | AX90: +210s | AY90: 200 | AZ90: 0.3333333333 | BB90: 0.3895139127 | BC90: 0.6104860873 | BE90: 2.857806594 | BF90: 0.6238131642 | BH90: 0.3761868358 | BJ90: 0.3761868358 | BL90: 0.5645639282
A91: 83 | B91: 00:13:40 | C91: 108.4838857 | D91: 110 | E91: 3 | F91: 0.5 | G91: 110 | H91: 5 | I91: 20 | J91: -12.17848382 | K91: -3.044620955 | L91: -3.044620955 | M91: 106.955379 | N91: 106.955379 | O91: -1.516114298 | Q91: =IF(AND(ABS(SLOPE($L61:$L91,$A61:$A91)) > $Q$3, ABS(SLOPE(OFFSET($O61:$O91, Q$7, 0),$A61:$A91)) > $Q$3), (MAX(0,(CORREL( $L61:$L91, OFFSET($O61:$O91, Q$7, 0) )))), (1-ABS(SLOPE($L61:$L91, $A61:$A91)-SLOPE(OFFSET($O61:$O91, Q$7, 0),$A61:$A91))) ) -> 0.9788208401 | R91: 0.9791483275 | S91: 0.9795832555 | T91: 0.9802814432 | U91: 0.981037153 | V91: 0.9807001746 | W91: 0.9803948035 | X91: 0.9798932664 | Y91: 0.981730219 | Z91: 0.982110243 | AA91: 0.9806322376 | AB91: 0.9802291642 | AC91: 0.980140489 | AD91: 0.9806305879 | AE91: 0.981977426 | AF91: 0.9825885013 | AG91: 0.9828461247 | AH91: 0.9834915753 | AI91: 0.9825031238 | AJ91: 0.9838481398 | AK91: 0.9843088741 | AL91: 0.9826614238 | AM91: 0.9822064801 | AN91: 0.9821252909 | AO91: 0.9829354204 | AP91: 0.9822156854 | AQ91: 0.9786283175 | AR91: 0.9719697069 | AS91: 0.9506911827 | AT91: 0.8869561599 | AV91: 0.9843088741 | AW91: 20 | AX91: +200s | AY91: 190 | AZ91: 0.3666666667 | BB91: 0.3057013314 | BC91: 0.6942986686 | BE91: 3.044620955 | BF91: 0.489585888 | BH91: 0.510414112 | BJ91: 0.510414112 | BL91: 0.6204632176
A92: 84 | B92: 00:13:50 | C92: 108.670588 | D92: 110 | E92: 3 | F92: 0.5 | G92: 110 | H92: 5 | I92: 20 | J92: -12.89964321 | K92: -3.224910803 | L92: -3.224910803 | M92: 106.7750892 | N92: 106.7750892 | O92: -1.329411987 | Q92: =IF(AND(ABS(SLOPE($L62:$L92,$A62:$A92)) > $Q$3, ABS(SLOPE(OFFSET($O62:$O92, Q$7, 0),$A62:$A92)) > $Q$3), (MAX(0,(CORREL( $L62:$L92, OFFSET($O62:$O92, Q$7, 0) )))), (1-ABS(SLOPE($L62:$L92, $A62:$A92)-SLOPE(OFFSET($O62:$O92, Q$7, 0),$A62:$A92))) ) -> 0.9789617441 | R92: 0.9796742767 | S92: 0.9805036704 | T92: 0.9810185016 | U92: 0.9807189305 | V92: 0.9802864705 | W92: 0.9796751489 | X92: 0.9816514755 | Y92: 0.9821629317 | Z92: 0.980791181 | AA92: 0.9806144089 | AB92: 0.9804696905 | AC92: 0.9808000192 | AD92: 0.9819124504 | AE92: 0.9822156069 | AF92: 0.9823171117 | AG92: 0.983029263 | AH92: 0.9823983841 | AI92: 0.9838599186 | AJ92: 0.9843711605 | AK92: 0.982838639 | AL92: 0.9824102697 | AM92: 0.9823688981 | AN92: 0.9832547035 | AO92: 0.9826026126 | AP92: 0.9791778527 | AQ92: 0.9727712646 | AR92: 0.9521963985 | AS92: 0.8894666369 | AT92: 0.8093714308 | AV92: 0.9843711605 | AW92: 19 | AX92: +190s | AY92: 180 | AZ92: 0.4 | BB92: 0.3790997631 | BC92: 0.6209002369 | BE92: 3.224910803 | BF92: 0.6071347263 | BH92: 0.3928652737 | BJ92: 0.3928652737 | BL92: 0.5924121447
A93: 85 | B93: 00:14:00 | C93: 108.8107225 | D93: 110 | E93: 3 | F93: 0.5 | G93: 110 | H93: 5 | I93: 20 | J93: -13.59315913 | K93: -3.398289782 | L93: -3.398289782 | M93: 106.6017102 | N93: 106.6017102 | O93: -1.189277522 | Q93: =IF(AND(ABS(SLOPE($L63:$L93,$A63:$A93)) > $Q$3, ABS(SLOPE(OFFSET($O63:$O93, Q$7, 0),$A63:$A93)) > $Q$3), (MAX(0,(CORREL( $L63:$L93, OFFSET($O63:$O93, Q$7, 0) )))), (1-ABS(SLOPE($L63:$L93, $A63:$A93)-SLOPE(OFFSET($O63:$O93, Q$7, 0),$A63:$A93))) ) -> 0.9796912835 | R93: 0.9806518974 | S93: 0.9809256697 | T93: 0.9806635505 | U93: 0.9801039598 | V93: 0.9793828357 | W93: 0.9814984685 | X93: 0.9821413953 | Y93: 0.9808760654 | Z93: 0.9809257406 | AA93: 0.9807249571 | AB93: 0.980895397 | AC93: 0.9817731997 | AD93: 0.9817682339 | AE93: 0.9817135209 | AF93: 0.9824923583 | AG93: 0.9822193091 | AH93: 0.9837973201 | AI93: 0.9843590605 | AJ93: 0.982941651 | AK93: 0.9825399041 | AL93: 0.9825383765 | AM93: 0.9834998352 | AN93: 0.9829154774 | AO93: 0.9796536797 | AP93: 0.9734997463 | AQ93: 0.9536305062 | AR93: 0.8919113377 | AS93: 0.812870033 | AT93: 0.662941835 | AV93: 0.9843590605 | AW93: 18 | AX93: +180s | AY93: 170 | AZ93: 0.4333333333 | BB93: 0.441802452 | BC93: 0.558197548 | BE93: 3.398289782 | BF93: 0.7075541503 | BH93: 0.2924458497 | BJ93: 0.2924458497 | BL93: 0.5700460812
A94: 86 | B94: 00:14:10 | C94: 108.3193949 | D94: 110 | E94: 3 | F94: 0.5 | G94: 110 | H94: 5 | I94: 20 | J94: -14.25754539 | K94: -3.564386348 | L94: -3.564386348 | M94: 106.4356137 | N94: 106.4356137 | O94: -1.680605077 | Q94: =IF(AND(ABS(SLOPE($L64:$L94,$A64:$A94)) > $Q$3, ABS(SLOPE(OFFSET($O64:$O94, Q$7, 0),$A64:$A94)) > $Q$3), (MAX(0,(CORREL( $L64:$L94, OFFSET($O64:$O94, Q$7, 0) )))), (1-ABS(SLOPE($L64:$L94, $A64:$A94)-SLOPE(OFFSET($O64:$O94, Q$7, 0),$A64:$A94))) ) -> 0.9807261353 | R94: 0.9807576855 | S94: 0.9805332156 | T94: 0.9798459343 | U94: 0.9790145421 | V94: 0.9812699803 | W94: 0.9820449518 | X94: 0.9808866434 | Y94: 0.9811638354 | Z94: 0.9809067363 | AA94: 0.9809165166 | AB94: 0.981558512 | AC94: 0.981243964 | AD94: 0.981032297 | AE94: 0.9818780771 | AF94: 0.9819645745 | AG94: 0.9836594938 | AH94: 0.9842719292 | AI94: 0.9829702853 | AJ94: 0.9825953174 | AK94: 0.9826338229 | AL94: 0.9836712203 | AM94: 0.983154961 | AN94: 0.9800571464 | AO94: 0.9741575338 | AP94: 0.9549987775 | AQ94: 0.8942996927 | AR94: 0.8163233044 | AS94: 0.6679048423 | AT94: 0.4698731917 | AV94: 0.9842719292 | AW94: 17 | AX94: +170s | AY94: 160 | AZ94: 0.4666666667 | BB94: 0.3767562541 | BC94: 0.6232437459 | BE94: 3.564386348 | BF94: 0.6033815567 | BH94: 0.3966184433 | BJ94: 0.3966184433 | BL94: 0.6158523464
A95: 87 | B95: 00:14:20 | C95: 107.9471528 | D95: 110 | E95: 3 | F95: 0.5 | G95: 110 | H95: 5 | I95: 20 | J95: -14.89137824 | K95: -3.722844561 | L95: -3.722844561 | M95: 106.2771554 | N95: 106.2771554 | O95: -2.052847165 | Q95: =IF(AND(ABS(SLOPE($L65:$L95,$A65:$A95)) > $Q$3, ABS(SLOPE(OFFSET($O65:$O95, Q$7, 0),$A65:$A95)) > $Q$3), (MAX(0,(CORREL( $L65:$L95, OFFSET($O65:$O95, Q$7, 0) )))), (1-ABS(SLOPE($L65:$L95, $A65:$A95)-SLOPE(OFFSET($O65:$O95, Q$7, 0),$A65:$A95))) ) -> 0.9805123194 | R95: 0.9803258524 | S95: 0.9795097935 | T95: 0.9785672131 | U95: 0.9809635304 | V95: 0.9818716656 | W95: 0.9808214238 | X95: 0.9813281426 | Y95: 0.981014245 | Z95: 0.9808619305 | AA95: 0.9812659635 | AB95: 0.9806390935 | AC95: 0.9802690875 | AD95: 0.9811823426 | AE95: 0.9816315901 | AF95: 0.9834443303 | AG95: 0.984107866 | AH95: 0.982923122 | AI95: 0.9825752014 | AJ95: 0.9826540943 | AK95: 0.9837680281 | AL95: 0.9833205154 | AM95: 0.9803883877 | AN95: 0.9747458231 | AO95: 0.9563053763 | AP95: 0.8966401794 | AQ95: 0.8197442488 | AR95: 0.6728604854 | AS95: 0.4761227924 | AT95: 0.8173941843 | AV95: 0.984107866 | AW95: 16 | AX95: +160s | AY95: 150 | AZ95: 0.5 | BB95: 0.333999479 | BC95: 0.666000521 | BE95: 3.722844561 | BF95: 0.5349058533 | BH95: 0.4650941467 | BJ95: 0.4650941467 | BL95: 0.6497340042
A96: 88 | B96: 00:14:30 | C96: 108.2944537 | D96: 110 | E96: 3 | F96: 0.5 | G96: 110 | H96: 5 | I96: 20 | J96: -15.4932994 | K96: -3.873324851 | L96: -3.873324851 | M96: 106.1266751 | N96: 106.1266751 | O96: -1.705546299 | Q96: =IF(AND(ABS(SLOPE($L66:$L96,$A66:$A96)) > $Q$3, ABS(SLOPE(OFFSET($O66:$O96, Q$7, 0),$A66:$A96)) > $Q$3), (MAX(0,(CORREL( $L66:$L96, OFFSET($O66:$O96, Q$7, 0) )))), (1-ABS(SLOPE($L66:$L96, $A66:$A96)-SLOPE(OFFSET($O66:$O96, Q$7, 0),$A66:$A96))) ) -> 0.9800380608 | R96: 0.979091593 | S96: 0.9780364348 | T96: 0.9805752966 | U96: 0.9816182773 | V96: 0.9806776087 | W96: 0.9814168368 | X96: 0.9810454176 | Y96: 0.9807288857 | Z96: 0.9808917903 | AA96: 0.9799485348 | AB96: 0.9794181338 | AC96: 0.9803996801 | AD96: 0.9812164195 | AE96: 0.9831483887 | AF96: 0.9838636449 | AG96: 0.9827974343 | AH96: 0.9824769447 | AI96: 0.9825967508 | AJ96: 0.9837881406 | AK96: 0.9834103153 | AL96: 0.9806462889 | AM96: 0.9752646048 | AN96: 0.9575533893 | AO96: 0.8989404252 | AP96: 0.8231452764 | AQ96: 0.677828065 | AR96: 0.4824169635 | AS96: 0.8191015505 | AT96: 0.7931924756 | AV96: 0.9838636449 | AW96: 15 | AX96: +150s | AY96: 140 | AZ96: 0.5333333333 | BB96: 0.4335557103 | BC96: 0.5664442897 | BE96: 3.873324851 | BF96: 0.6943468531 | BH96: 0.3056531469 | BJ96: 0.3056531469 | BL96: 0.6076167084
A97: 89 | B97: 00:14:40 | C97: 107.5810076 | D97: 110 | E97: 3 | F97: 0.5 | G97: 110 | H97: 5 | I97: 20 | J97: -16.06201898 | K97: -4.015504744 | L97: -4.015504744 | M97: 105.9844953 | N97: 105.9844953 | O97: -2.41899243 | Q97: =IF(AND(ABS(SLOPE($L67:$L97,$A67:$A97)) > $Q$3, ABS(SLOPE(OFFSET($O67:$O97, Q$7, 0),$A67:$A97)) > $Q$3), (MAX(0,(CORREL( $L67:$L97, OFFSET($O67:$O97, Q$7, 0) )))), (1-ABS(SLOPE($L67:$L97, $A67:$A97)-SLOPE(OFFSET($O67:$O97, Q$7, 0),$A67:$A97))) ) -> 0.9785859147 | R97: 0.977416297 | S97: 0.9800999872 | T97: 0.9812800854 | U97: 0.9804509823 | V97: 0.9814267238 | W97: 0.9809968079 | X97: 0.9805132137 | Y97: 0.9804307614 | Z97: 0.9791656668 | AA97: 0.9784721104 | AB97: 0.9795230613 | AC97: 0.9807136499 | AD97: 0.9827667741 | AE97: 0.9835345966 | AF97: 0.9825890787 | AG97: 0.9822965259 | AH97: 0.9824579505 | AI97: 0.9837280529 | AJ97: 0.9834211641 | AK97: 0.980828404 | AL97: 0.9757126015 | AM97: 0.9587448151 | AN97: 0.9012072773 | AO97: 0.8265383592 | AP97: 0.6828269834 | AQ97: 0.4887816639 | AR97: 0.8212713216 | AS97: 0.7953622467 | AT97: 0.7732728657 | AV97: 0.9837280529 | AW97: 18 | AX97: +180s | AY97: 170 | AZ97: 0.4333333333 | BB97: 0.3193024628 | BC97: 0.6806975372 | BE97: 4.015504744 | BF97: 0.5113683316 | BH97: 0.4886316684 | BJ97: 0.4886316684 | BL97: 0.6352310182
A98: 90 | B98: 00:14:50 | C98: 107.2768371 | D98: 110 | E98: 3 | F98: 0.5 | G98: 110 | H98: 5 | I98: 20 | J98: -16.59631822 | K98: -4.149079555 | L98: -4.149079555 | M98: 105.8509204 | N98: 105.8509204 | O98: -2.723162857 | Q98: =IF(AND(ABS(SLOPE($L68:$L98,$A68:$A98)) > $Q$3, ABS(SLOPE(OFFSET($O68:$O98, Q$7, 0),$A68:$A98)) > $Q$3), (MAX(0,(CORREL( $L68:$L98, OFFSET($O68:$O98, Q$7, 0) )))), (1-ABS(SLOPE($L68:$L98, $A68:$A98)-SLOPE(OFFSET($O68:$O98, Q$7, 0),$A68:$A98))) ) -> 0.9766991976 | R98: 0.9795306563 | S98: 0.9808507714 | T98: 0.9801357458 | U98: 0.9813530926 | V98: 0.9808634366 | W98: 0.9802091659 | X98: 0.9798759952 | Y98: 0.9782821273 | Z98: 0.9774219046 | AA98: 0.9785436892 | AB98: 0.9801162055 | AC98: 0.9822929606 | AD98: 0.983114434 | AE98: 0.9822923304 | AF98: 0.9820283506 | AG98: 0.9822322906 | AH98: 0.9835827195 | AI98: 0.9833483456 | AJ98: 0.9809308204 | AK98: 0.9760871537 | AL98: 0.959880511 | AM98: 0.9034468399 | AN98: 0.829935166 | AO98: 0.6878770243 | AP98: 0.4952439271 | AQ98: 0.8238988478 | AR98: 0.7979897729 | AS98: 0.775900392 | AT98: 0.751271707 | AV98: 0.9835827195 | AW98: 17 | AX98: +170s | AY98: 160 | AZ98: 0.4666666667 | BB98: 0.2851833395 | BC98: 0.7148166605 | BE98: 4.149079555 | BF98: 0.4567259746 | BH98: 0.5432740254 | BJ98: 0.5432740254 | BL98: 0.6645078039
A99: 91 | B99: 00:15:00 | C99: 107.2023969 | D99: 110 | E99: 3 | F99: 0.5 | G99: 110 | H99: 5 | I99: 20 | J99: -17.09505214 | K99: -4.273763036 | L99: -4.273763036 | M99: 105.726237 | N99: 105.726237 | O99: -2.79760307 | Q99: =IF(AND(ABS(SLOPE($L69:$L99,$A69:$A99)) > $Q$3, ABS(SLOPE(OFFSET($O69:$O99, Q$7, 0),$A69:$A99)) > $Q$3), (MAX(0,(CORREL( $L69:$L99, OFFSET($O69:$O99, Q$7, 0) )))), (1-ABS(SLOPE($L69:$L99, $A69:$A99)-SLOPE(OFFSET($O69:$O99, Q$7, 0),$A69:$A99))) ) -> 0.9788584506 | R99: 0.9803221591 | S99: 0.9797242856 | T99: 0.9811895042 | U99: 0.9806385756 | V99: 0.9798091831 | W99: 0.9792187074 | X99: 0.9772875332 | Y99: 0.9762563232 | Z99: 0.9774507101 | AA99: 0.9794150919 | AB99: 0.9817185451 | AC99: 0.9825950115 | AD99: 0.9818996527 | AE99: 0.9816650237 | AF99: 0.9819125827 | AG99: 0.9833453367 | AH99: 0.9831854124 | AI99: 0.9809479632 | AJ99: 0.9763840482 | AK99: 0.9609600887 | AL99: 0.9056644756 | AM99: 0.8333471778 | AN99: 0.6929986383 | AO99: 0.5018323074 | AP99: 0.8269784985 | AQ99: 0.8010694236 | AR99: 0.7789800426 | AS99: 0.7543513576 | AT99: 0 | AV99: 0.9833453367 | AW99: 16 | AX99: +160s | AY99: 150 | AZ99: 0.5 | BB99: 0.2952319931 | BC99: 0.7047680069 | BE99: 4.273763036 | BF99: 0.4728190645 | BH99: 0.5271809355 | BJ99: 0.5271809355 | BL99: 0.6701754241
A100: 92 | B100: 00:15:10 | C100: 107.2717151 | D100: 110 | E100: 3 | F100: 0.5 | G100: 110 | H100: 5 | I100: 20 | J100: -17.55715198 | K100: -4.389287996 | L100: -4.389287996 | M100: 105.610712 | N100: 105.610712 | O100: -2.728284897 | Q100: =IF(AND(ABS(SLOPE($L70:$L100,$A70:$A100)) > $Q$3, ABS(SLOPE(OFFSET($O70:$O100, Q$7, 0),$A70:$A100)) > $Q$3), (MAX(0,(CORREL( $L70:$L100, OFFSET($O70:$O100, Q$7, 0) )))), (1-ABS(SLOPE($L70:$L100, $A70:$A100)-SLOPE(OFFSET($O70:$O100, Q$7, 0),$A70:$A100))) ) -> 0.9796838902 | R100: 0.9792068606 | S100: 0.9809275025 | T100: 0.9803134526 | U100: 0.9793035836 | V100: 0.9784478757 | W100: 0.9761691129 | X100: 0.9749617084 | Y100: 0.9762308366 | Z100: 0.9785990557 | AA100: 0.981032919 | AB100: 0.9819660015 | AC100: 0.9814013862 | AD100: 0.9811970409 | AE100: 0.9814895488 | AF100: 0.983007046 | AG100: 0.9829238964 | AH100: 0.9808723235 | AI100: 0.9765972743 | AJ100: 0.9619817501 | AK100: 0.9078647664 | AL100: 0.8367857827 | AM100: 0.6982132413 | AN100: 0.5085773721 | AO100: 0.830503674 | AP100: 0.8045945991 | AQ100: 0.7825052182 | AR100: 0.7578765332 | AS100: 0 | AT100: 0 | AV100: 0.983007046 | AW100: 15 | AX100: +150s | AY100: 140 | AZ100: 0.5333333333 | BB100: 0.3322006198 | BC100: 0.6677993802 | BE100: 4.389287996 | BF100: 0.5320249496 | BH100: 0.4679750504 | BJ100: 0.4679750504 | BL100: 0.6614384766
A101: 93 | B101: 00:15:20 | C101: 107.5806024 | D101: 110 | E101: 3 | F101: 0.5 | G101: 110 | H101: 5 | I101: 20 | J101: -17.98162747 | K101: -4.495406869 | L101: -4.495406869 | M101: 105.5045931 | N101: 105.5045931 | O101: -2.419397574 | Q101: =IF(AND(ABS(SLOPE($L71:$L101,$A71:$A101)) > $Q$3, ABS(SLOPE(OFFSET($O71:$O101, Q$7, 0),$A71:$A101)) > $Q$3), (MAX(0,(CORREL( $L71:$L101, OFFSET($O71:$O101, Q$7, 0) )))), (1-ABS(SLOPE($L71:$L101, $A71:$A101)-SLOPE(OFFSET($O71:$O101, Q$7, 0),$A71:$A101))) ) -> 0.9785711873 | R101: 0.9805562267 | S101: 0.9798768569 | T101: 0.9786801494 | U101: 0.9775497957 | V101: 0.9749112259 | W101: 0.9735214384 | X101: 0.974867856 | Y101: 0.9776541368 | Z101: 0.9802228337 | AA101: 0.9812144651 | AB101: 0.9807853342 | AC101: 0.9806123781 | AD101: 0.9809514152 | AE101: 0.9825565366 | AF101: 0.9825529203 | AG101: 0.9806940906 | AH101: 0.9767186899 | AI101: 0.9629420475 | AJ101: 0.9100514229 | AK101: 0.840262348 | AL101: 0.7035435323 | AM101: 0.5155122571 | AN101: 0.8344668201 | AO101: 0.8085577452 | AP101: 0.7864683643 | AQ101: 0.7618396793 | AR101: 0 | AS101: 0 | AT101: 0 | AV101: 0.9825565366 | AW101: 14 | AX101: +140s | AY101: 130 | AZ101: 0.5666666667 | BB101: 0.415201859 | BC101: 0.584798141 | BE101: 4.495406869 | BF101: 0.6649528476 | BH101: 0.3350471524 | BJ101: 0.3350471524 | BL101: 0.6280901186
A102: 94 | B102: 00:15:30 | C102: 107.2267315 | D102: 110 | E102: 3 | F102: 0.5 | G102: 110 | H102: 5 | I102: 20 | J102: -18.36756898 | K102: -4.591892245 | L102: -4.591892245 | M102: 105.4081078 | N102: 105.4081078 | O102: -2.773268517 | Q102: =IF(AND(ABS(SLOPE($L72:$L102,$A72:$A102)) > $Q$3, ABS(SLOPE(OFFSET($O72:$O102, Q$7, 0),$A72:$A102)) > $Q$3), (MAX(0,(CORREL( $L72:$L102, OFFSET($O72:$O102, Q$7, 0) )))), (1-ABS(SLOPE($L72:$L102, $A72:$A102)-SLOPE(OFFSET($O72:$O102, Q$7, 0),$A72:$A102))) ) -> 0.9800618947 | R102: 0.9793146153 | S102: 0.9779235793 | T102: 0.9765075006 | U102: 0.9734947363 | V102: 0.9719152788 | W102: 0.9733419905 | X102: 0.9765630803 | Y102: 0.9792718285 | Z102: 0.9803242881 | AA102: 0.9800362156 | AB102: 0.9798959484 | AC102: 0.9802833754 | AD102: 0.9819795188 | AE102: 0.9820586805 | AF102: 0.9804006614 | AG102: 0.9767375702 | AH102: 0.9638355466 | AI102: 0.9122271288 | AJ102: 0.8437882626 | AK102: 0.7090138381 | AL102: 0.5226733064 | AM102: 0.8388594438 | AN102: 0.8129503689 | AO102: 0.790860988 | AP102: 0.766232303 | AQ102: 0 | AR102: 0 | AS102: 0 | AT102: 0 | AV102: 0.9820586805 | AW102: 14 | AX102: +140s | AY102: 130 | AZ102: 0.5666666667 | BB102: 0.3637247456 | BC102: 0.6362752544 | BE102: 4.591892245 | BF102: 0.5825113739 | BH102: 0.4174886261 | BJ102: 0.4174886261 | BL102: 0.6554046578
A103: 95 | B103: 00:15:40 | C103: 106.8314195 | D103: 110 | E103: 3 | F103: 0.5 | G103: 110 | H103: 5 | I103: 20 | J103: -18.71414944 | K103: -4.678537361 | L103: -4.678537361 | M103: 105.3214626 | N103: 105.3214626 | O103: -3.168580534 | Q103: =IF(AND(ABS(SLOPE($L73:$L103,$A73:$A103)) > $Q$3, ABS(SLOPE(OFFSET($O73:$O103, Q$7, 0),$A73:$A103)) > $Q$3), (MAX(0,(CORREL( $L73:$L103, OFFSET($O73:$O103, Q$7, 0) )))), (1-ABS(SLOPE($L73:$L103, $A73:$A103)-SLOPE(OFFSET($O73:$O103, Q$7, 0),$A73:$A103))) ) -> 0.9786088979 | R103: 0.9770147661 | S103: 0.9752999957 | T103: 0.9718961946 | U103: 0.9701185366 | V103: 0.9716290626 | W103: 0.9753045656 | X103: 0.9781594788 | Y103: 0.9792754369 | Z103: 0.9791349427 | AA103: 0.9790288841 | AB103: 0.9794668793 | AC103: 0.9812580259 | AD103: 0.9814237621 | AE103: 0.979975985 | AF103: 0.9766400023 | AG103: 0.964654359 | AH103: 0.9143932981 | AI103: 0.8473749386 | AJ103: 0.7146504894 | AK103: 0.5301008171 | AL103: 0.843672132 | AM103: 0.8177630571 | AN103: 0.7956736762 | AO103: 0.7710449912 | AP103: 0 | AQ103: 0 | AR103: 0 | AS103: 0 | AT103: 0 | AV103: =MAX(Q103:AT103) -> 0.9814237621 | AW103: =MATCH(AV103, Q103:AT103, 0)-1 -> 13 | AX103: +130s | AY103: 120 | AZ103: 0.6 | BB103: 0.3019913653 | BC103: 0.6980086347 | BE103: 4.678537361 | BF103: 0.4836443141 | BH103: 0.5163556859 | BJ103: 0.5163556859 | BL103: =($BL$2*AV103+$BL$3*AZ103+BJ103*$BL$4)/SUM($BL$2:$BL$4) -> 0.699259816
A104: 96 | B104: 00:15:50 | C104: 106.5426408 | D104: 110 | E104: 3 | F104: 0.5 | G104: 110 | H104: 5 | I104: 20 | J104: -19.02062615 | K104: -4.755156538 | L104: -4.755156538 | M104: 105.2448435 | N104: 105.2448435 | O104: -3.457359199 | Q104: =IF(AND(ABS(SLOPE($L74:$L104,$A74:$A104)) > $Q$3, ABS(SLOPE(OFFSET($O74:$O104, Q$7, 0),$A74:$A104)) > $Q$3), (MAX(0,(CORREL( $L74:$L104, OFFSET($O74:$O104, Q$7, 0) )))), (1-ABS(SLOPE($L74:$L104, $A74:$A104)-SLOPE(OFFSET($O74:$O104, Q$7, 0),$A74:$A104))) ) -> 0.9759298398 | R104: 0.9739012511 | S104: 0.9700867635 | T104: 0.9681009522 | U104: 0.9696994008 | V104: 0.9738521886 | W104: 0.9768604019 | X104: 0.9780429747 | Y104: 0.9780576636 | Z104: 0.977987586 | AA104: 0.9784786908 | AB104: 0.9803694868 | AC104: 0.9806262257 | AD104: 0.9793996897 | AE104: 0.9764080717 | AF104: 0.965387501 | AG104: 0.9165497123 | AH104: 0.8510337542 | AI104: 0.720482234 | AJ104: 0.5378399191 | AK104: 0.8488945712 | AL104: 0.8229854963 | AM104: 0.8008961153 | AN104: 0.7762674303 | AO104: 0 | AP104: 0 | AQ104: 0 | AR104: 0 | AS104: 0 | AT104: 0 | AV104: 0.9806262257 | AW104: 12 | AX104: =OFFSET($Q$6, 0, AW104) -> +120s | AY104: =MAX(AW104-1,0) * 10 -> 110 | AZ104: =ABS( 5*60 - AY104 ) / (5*60) -> 0.6333333333 | BB104: 0.2595594678 | BC104: 0.7404405322 | BE104: 4.755156538 | BF104: 0.4156889077 | BH104: 0.5843110923 | BJ104: 0.5843110923 | BL104: 0.7327568838
A105: 97 | B105: 00:16:00 | C105: 106.3331825 | D105: 110 | E105: 3 | F105: 0.5 | G105: 110 | H105: 5 | I105: 20 | J105: -19.28634234 | K105: -4.821585585 | L105: -4.821585585 | M105: 105.1784144 | N105: 105.1784144 | O105: -3.666817466 | Q105: =IF(AND(ABS(SLOPE($L75:$L105,$A75:$A105)) > $Q$3, ABS(SLOPE(OFFSET($O75:$O105, Q$7, 0),$A75:$A105)) > $Q$3), (MAX(0,(CORREL( $L75:$L105, OFFSET($O75:$O105, Q$7, 0) )))), (1-ABS(SLOPE($L75:$L105, $A75:$A105)-SLOPE(OFFSET($O75:$O105, Q$7, 0),$A75:$A105))) ) -> 0.972278862 | R105: 0.968030796 | S105: 0.9658252364 | T105: 0.9675163931 | U105: 0.9721731113 | V105: 0.975342936 | W105: 0.9765957535 | X105: 0.9767744859 | Y105: 0.9767424546 | Z105: 0.9772896297 | AA105: 0.9792854872 | AB105: 0.9796383882 | AC105: 0.9786459098 | AD105: 0.9760187654 | AE105: 0.9660200112 | AF105: 0.9186939893 | AG105: 0.8547759085 | AH105: 0.7265406882 | AI105: 0.5459416237 | AJ105: 0.8545155698 | AK105: 0.8286064949 | AL105: 0.806517114 | AM105: 0.781888429 | AN105: 0 | AO105: 0 | AP105: 0 | AQ105: 0 | AR105: 0 | AS105: 0 | AT105: 0 | AV105: 0.9796383882 | AW105: 11 | AX105: +110s | AY105: 100 | AZ105: 0.6666666667 | BB105: 0.2309536238 | BC105: 0.7690463762 | BE105: 4.821585585 | BF105: 0.3698761614 | BH105: 0.6301238386 | BJ105: 0.6301238386 | BL105: 0.7588096312
A106: 98 | B106: 00:16:10 | C106: 105.9277466 | D106: 110 | E106: 3 | F106: 0.5 | G106: 110 | H106: 5 | I106: 20 | J106: -19.51072858 | K106: -4.877682146 | L106: -4.877682146 | M106: 105.1223179 | N106: 105.1223179 | O106: -4.072253425 | Q106: =IF(AND(ABS(SLOPE($L76:$L106,$A76:$A106)) > $Q$3, ABS(SLOPE(OFFSET($O76:$O106, Q$7, 0),$A76:$A106)) > $Q$3), (MAX(0,(CORREL( $L76:$L106, OFFSET($O76:$O106, Q$7, 0) )))), (1-ABS(SLOPE($L76:$L106, $A76:$A106)-SLOPE(OFFSET($O76:$O106, Q$7, 0),$A76:$A106))) ) -> 0.9656839387 | R106: 0.9632451217 | S106: 0.9650345593 | T106: 0.970226254 | U106: 0.9735673679 | V106: 0.9748946572 | W106: 0.9752477621 | X106: 0.975256185 | Y106: 0.9758628798 | Z106: 0.9779701009 | AA106: 0.9784251776 | AB106: 0.9776817016 | AC106: 0.9754424829 | AD106: 0.9665317321 | AE106: 0.920820813 | AF106: 0.8586121435 | AG106: 0.7328608238 | AH106: 0.5544640808 | AI106: 0.8605230824 | AJ106: 0.8346140075 | AK106: 0.8125246266 | AL106: 0.7878959416 | AM106: 0 | AN106: 0 | AO106: 0 | AP106: 0 | AQ106: 0 | AR106: 0 | AS106: 0 | AT106: 0 | AV106: 0.9784251776 | AW106: 10 | AX106: +100s | AY106: 90 | AZ106: 0.7 | BB106: 0.1610857441 | BC106: 0.8389142559 | BE106: 4.877682146 | BF106: 0.2579815623 | BH106: 0.7420184377 | BJ106: 0.7420184377 | BL106: 0.8068145384
A107: 99 | B107: 00:16:20 | C107: 105.8423601 | D107: 110 | E107: 3 | F107: 0.5 | G107: 110 | H107: 5 | I107: 20 | J107: -19.69330403 | K107: -4.923326009 | L107: -4.923326009 | M107: 105.076674 | N107: 105.076674 | O107: -4.157639932 | Q107: =IF(AND(ABS(SLOPE($L77:$L107,$A77:$A107)) > $Q$3, ABS(SLOPE(OFFSET($O77:$O107, Q$7, 0),$A77:$A107)) > $Q$3), (MAX(0,(CORREL( $L77:$L107, OFFSET($O77:$O107, Q$7, 0) )))), (1-ABS(SLOPE($L77:$L107, $A77:$A107)-SLOPE(OFFSET($O77:$O107, Q$7, 0),$A77:$A107))) ) -> 0.9603027392 | R107: 0.962196954 | S107: 0.9679598506 | T107: 0.9714835335 | U107: 0.9728902227 | V107: 0.9734297617 | W107: 0.9734814509 | X107: 0.9741516904 | Y107: 0.9763776211 | Z107: 0.9769418939 | AA107: 0.976464881 | AB107: 0.9746409952 | AC107: 0.9668956156 | AD107: 0.9229208135 | AE107: 0.8625522604 | AF107: 0.7394814754 | AG107: 0.5634740939 | AH107: 0.866904235 | AI107: 0.8409951601 | AJ107: 0.8189057792 | AK107: 0.7942770942 | AL107: 0 | AM107: 0 | AN107: 0 | AO107: 0 | AP107: 0 | AQ107: 0 | AR107: 0 | AS107: 0 | AT107: 0 | AV107: 0.9769418939 | AW107: 9 | AX107: +90s | AY107: 80 | AZ107: 0.7333333333 | BB107: 0.1531372153 | BC107: 0.8468627847 | BE107: 4.923326009 | BF107: 0.2452518581 | BH107: 0.7547481419 | BJ107: 0.7547481419 | BL107: 0.8216744564
A108: 100 | B108: 00:16:30 | C108: 105.907152 | D108: 110 | E108: 3 | F108: 0.5 | G108: 110 | H108: 5 | I108: 20 | J108: -19.83367744 | K108: -4.95841936 | L108: -4.95841936 | M108: 105.0415806 | N108: 105.0415806 | O108: -4.092847985 | Q108: =IF(AND(ABS(SLOPE($L78:$L108,$A78:$A108)) > $Q$3, ABS(SLOPE(OFFSET($O78:$O108, Q$7, 0),$A78:$A108)) > $Q$3), (MAX(0,(CORREL( $L78:$L108, OFFSET($O78:$O108, Q$7, 0) )))), (1-ABS(SLOPE($L78:$L108, $A78:$A108)-SLOPE(OFFSET($O78:$O108, Q$7, 0),$A78:$A108))) ) -> 0.9589316296 | R108: 0.9653081044 | S108: 0.9690275321 | T108: 0.9705193789 | U108: 0.9712594771 | V108: 0.9713577269 | W108: 0.9720962188 | X108: 0.9744494405 | Y108: 0.9751311283 | Z108: 0.9749410406 | AA108: 0.9735646189 | AB108: 0.9670753421 | AC108: 0.9249789355 | AD108: 0.8666043163 | AE108: 0.7464458365 | AF108: 0.573048946 | AG108: 0.8736453531 | AH108: 0.8477362782 | AI108: 0.8256468972 | AJ108: 0.8010182122 | AK108: 0 | AL108: 0 | AM108: 0 | AN108: 0 | AO108: 0 | AP108: 0 | AQ108: 0 | AR108: 0 | AS108: 0 | AT108: 0 | AV108: 0.9751311283 | AW108: 8 | AX108: +80s | AY108: 70 | AZ108: 0.7666666667 | BB108: 0.1731142749 | BC108: 0.8268857251 | BE108: 4.95841936 | BF108: 0.2772454592 | BH108: 0.7227545408 | BJ108: 0.7227545408 | BL108: 0.8215174452
A109: 101 | B109: 00:16:40 | C109: 106.2931405 | D109: 110 | E109: 3 | F109: 0.5 | G109: 110 | H109: 5 | I109: 20 | J109: -19.93154798 | K109: -4.982886995 | L109: -4.982886995 | M109: 105.017113 | N109: 105.017113 | O109: -3.70685947 | Q109: =IF(AND(ABS(SLOPE($L79:$L109,$A79:$A109)) > $Q$3, ABS(SLOPE(OFFSET($O79:$O109, Q$7, 0),$A79:$A109)) > $Q$3), (MAX(0,(CORREL( $L79:$L109, OFFSET($O79:$O109, Q$7, 0) )))), (1-ABS(SLOPE($L79:$L109, $A79:$A109)-SLOPE(OFFSET($O79:$O109, Q$7, 0),$A79:$A109))) ) -> 0.9621865572 | R109: 0.9661171682 | S109: 0.9677009213 | T109: 0.968658185 | U109: 0.9688068693 | V109: 0.9696191401 | W109: 0.972109709 | X109: 0.9729184699 | Y109: 0.9730393851 | Z109: 0.972148254 | AA109: 0.9670219393 | AB109: 0.9269720397 | AC109: 0.8707733196 | AD109: 0.7538018756 | AE109: 0.5832785936 | AF109: 0.8807319906 | AG109: 0.8548229157 | AH109: 0.8327335347 | AI109: 0.8081048498 | AJ109: 0 | AK109: 0 | AL109: 0 | AM109: 0 | AN109: 0 | AO109: 0 | AP109: 0 | AQ109: 0 | AR109: 0 | AS109: 0 | AT109: 0 | AV109: 0.9730393851 | AW109: 8 | AX109: +80s | AY109: 70 | AZ109: 0.7666666667 | BB109: 0.255205505 | BC109: 0.744794495 | BE109: 4.982886995 | BF109: 0.4087159621 | BH109: 0.5912840379 | BJ109: 0.5912840379 | BL109: 0.7769966966
A110: 102 | B110: 00:16:50 | C110: 105.3524121 | D110: 110 | E110: 3 | F110: 0.5 | G110: 110 | H110: 5 | I110: 20 | J110: -19.98670593 | K110: -4.996676482 | L110: -4.996676482 | M110: 105.0033235 | N110: 105.0033235 | O110: -4.647587884 | Q110: =IF(AND(ABS(SLOPE($L80:$L110,$A80:$A110)) > $Q$3, ABS(SLOPE(OFFSET($O80:$O110, Q$7, 0),$A80:$A110)) > $Q$3), (MAX(0,(CORREL( $L80:$L110, OFFSET($O80:$O110, Q$7, 0) )))), (1-ABS(SLOPE($L80:$L110, $A80:$A110)-SLOPE(OFFSET($O80:$O110, Q$7, 0),$A80:$A110))) ) -> 0.9626455445 | R110: 0.9643291469 | S110: 0.9655231929 | T110: 0.9657268901 | U110: 0.9666194559 | V110: 0.9692592043 | W110: 0.9702064413 | X110: 0.9706668339 | Y110: 0.9703057542 | Z110: 0.9666689138 | AA110: 0.9288653419 | AB110: 0.8750591251 | AC110: 0.7616025399 | AD110: 0.5942682771 | AE110: 0.8881489611 | AF110: 0.8622398862 | AG110: 0.8401505053 | AH110: 0.8155218203 | AI110: 0 | AJ110: 0 | AK110: 0 | AL110: 0 | AM110: 0 | AN110: 0 | AO110: 0 | AP110: 0 | AQ110: 0 | AR110: 0 | AS110: 0 | AT110: 0 | AV110: 0.9706668339 | AW110: 7 | AX110: +70s | AY110: 60 | AZ110: 0.8 | BB110: 0.06981771973 | BC110: 0.9301822803 | BE110: 4.996676482 | BF110: 0.1118142671 | BH110: 0.8881857329 | BJ110: 0.8881857329 | BL110: 0.8862841889
A111: 103 | B111: 00:17:00 | C111: 105.0384005 | D111: 110 | E111: 3 | F111: 0.5 | G111: 110 | H111: 5 | I111: 20 | J111: -19.99903308 | K111: -4.99975827 | L111: -4.99975827 | M111: 105.0002417 | N111: 105.0002417 | O111: -4.961599477 | Q111: =IF(AND(ABS(SLOPE($L81:$L111,$A81:$A111)) > $Q$3, ABS(SLOPE(OFFSET($O81:$O111, Q$7, 0),$A81:$A111)) > $Q$3), (MAX(0,(CORREL( $L81:$L111, OFFSET($O81:$O111, Q$7, 0) )))), (1-ABS(SLOPE($L81:$L111, $A81:$A111)-SLOPE(OFFSET($O81:$O111, Q$7, 0),$A81:$A111))) ) -> 0.9602647657 | R111: 0.9617188998 | S111: 0.9619830518 | T111: 0.9629636364 | U111: 0.9657665538 | V111: 0.9668658052 | W111: 0.9676995489 | X111: 0.9679218074 | Y111: 0.9659251438 | Z111: 0.9306070593 | AA111: 0.8794530467 | AB111: 0.7699054989 | AC111: 0.6061415637 | AD111: 0.8958803704 | AE111: 0.8699712955 | AF111: 0.8478819146 | AG111: 0.8232532296 | AH111: 0 | AI111: 0 | AJ111: 0 | AK111: 0 | AL111: 0 | AM111: 0 | AN111: 0 | AO111: 0 | AP111: 0 | AQ111: 0 | AR111: 0 | AS111: 0 | AT111: 0 | AV111: 0.9679218074 | AW111: 7 | AX111: +70s | AY111: 60 | AZ111: 0.8 | BB111: 0.007631758686 | BC111: 0.9923682413 | BE111: 4.99975827 | BF111: 0.0122223915 | BH111: 0.9877776085 | BJ111: 0.9877776085 | BL111: 0.918566472
A112: 104 | B112: 00:17:10 | C112: 105.7528012 | D112: 110 | E112: 3 | F112: 0.5 | G112: 110 | H112: 5 | I112: 20 | J112: -19.96850302 | K112: -4.992125755 | L112: -4.992125755 | M112: 105.0078742 | N112: 105.0078742 | O112: -4.247198808 | Q112: =IF(AND(ABS(SLOPE($L82:$L112,$A82:$A112)) > $Q$3, ABS(SLOPE(OFFSET($O82:$O112, Q$7, 0),$A82:$A112)) > $Q$3), (MAX(0,(CORREL( $L82:$L112, OFFSET($O82:$O112, Q$7, 0) )))), (1-ABS(SLOPE($L82:$L112, $A82:$A112)-SLOPE(OFFSET($O82:$O112, Q$7, 0),$A82:$A112))) ) -> 0.957063809 | R112: 0.9573949268 | S112: 0.9584727415 | T112: 0.9614554593 | U112: 0.9627229012 | V112: 0.9639705664 | W112: 0.9648400386 | X112: 0.9646643335 | Y112: 0.9321202474 | Z112: 0.8839323735 | AA112: 0.7787719627 | AB112: 0.6190437502 | AC112: 0.9039096504 | AD112: 0.8780005755 | AE112: 0.8559111945 | AF112: 0.8312825096 | AG112: 0 | AH112: 0 | AI112: 0 | AJ112: 0 | AK112: 0 | AL112: 0 | AM112: 0 | AN112: 0 | AO112: 0 | AP112: 0 | AQ112: 0 | AR112: 0 | AS112: 0 | AT112: 0 | AV112: 0.9648400386 | AW112: 6 | AX112: +60s | AY112: 50 | AZ112: 0.8333333333 | BB112: 0.1489853894 | BC112: 0.8510146106 | BE112: 4.992125755 | BF112: 0.2386026382 | BH112: 0.7613973618 | BJ112: 0.7613973618 | BL112: 0.8531902446
A113: 105 | B113: 00:17:20 | C113: 105.5183324 | D113: 110 | E113: 3 | F113: 0.5 | G113: 110 | H113: 5 | I113: 20 | J113: -19.89518117 | K113: -4.973795293 | L113: -4.973795293 | M113: 105.0262047 | N113: 105.0262047 | O113: -4.481667599 | Q113: =IF(AND(ABS(SLOPE($L83:$L113,$A83:$A113)) > $Q$3, ABS(SLOPE(OFFSET($O83:$O113, Q$7, 0),$A83:$A113)) > $Q$3), (MAX(0,(CORREL( $L83:$L113, OFFSET($O83:$O113, Q$7, 0) )))), (1-ABS(SLOPE($L83:$L113, $A83:$A113)-SLOPE(OFFSET($O83:$O113, Q$7, 0),$A83:$A113))) ) -> 0.9517172727 | R113: 0.952903376 | S113: 0.9560857867 | T113: 0.9575408844 | U113: 0.9592514297 | V113: 0.9608452769 | W113: 0.9627091023 | X113: 0.9332901544 | Y113: 0.8884514198 | Z113: 0.7882637119 | AA113: 0.6331453506 | AB113: 0.9122195944 | AC113: 0.8863105196 | AD113: 0.8642211386 | AE113: 0.8395924536 | AF113: 0 | AG113: 0 | AH113: 0 | AI113: 0 | AJ113: 0 | AK113: 0 | AL113: 0 | AM113: 0 | AN113: 0 | AO113: 0 | AP113: 0 | AQ113: 0 | AR113: 0 | AS113: 0 | AT113: 0 | AV113: 0.9627091023 | AW113: 6 | AX113: +60s | AY113: 50 | AZ113: 0.8333333333 | BB113: 0.09842553881 | BC113: 0.9015744612 | BE113: 4.973795293 | BF113: 0.1576301765 | BH113: 0.8423698235 | BJ113: 0.8423698235 | BL113: 0.8794707531
A114: 106 | B114: 00:17:30 | C114: 104.8955664 | D114: 110 | E114: 3 | F114: 0.5 | G114: 110 | H114: 5 | I114: 20 | J114: -19.77922466 | K114: -4.944806165 | L114: -4.944806165 | M114: 105.0551938 | N114: 105.0551938 | O114: -5.104433649 | Q114: =IF(AND(ABS(SLOPE($L84:$L114,$A84:$A114)) > $Q$3, ABS(SLOPE(OFFSET($O84:$O114, Q$7, 0),$A84:$A114)) > $Q$3), (MAX(0,(CORREL( $L84:$L114, OFFSET($O84:$O114, Q$7, 0) )))), (1-ABS(SLOPE($L84:$L114, $A84:$A114)-SLOPE(OFFSET($O84:$O114, Q$7, 0),$A84:$A114))) ) -> 0.945919023 | R114: 0.9493250721 | S114: 0.9509914291 | T114: 0.953224423 | U114: 0.955636643 | V114: 0.9598065384 | W114: 0.9339442926 | X114: 0.892926742 | Y114: 0.7984367248 | Z114: 0.6486449451 | AA114: 0.9207923948 | AB114: 0.8948833199 | AC114: 0.872793939 | AD114: 0.848165254 | AE114: 0 | AF114: 0 | AG114: 0 | AH114: 0 | AI114: 0 | AJ114: 0 | AK114: 0 | AL114: 0 | AM114: 0 | AN114: 0 | AO114: 0 | AP114: 0 | AQ114: 0 | AR114: 0 | AS114: 0 | AT114: 0 | AV114: 0.9598065384 | AW114: 5 | AX114: +50s | AY114: 40 | AZ114: 0.8666666667 | BB114: 0.03192549678 | BC114: 0.9680745032 | BE114: 4.944806165 | BF114: 0.05112922675 | BH114: 0.9488707732 | BJ114: 0.9488707732 | BL114: 0.9251146594
A115: 107 | B115: 00:17:40 | C115: 104.4177354 | D115: 110 | E115: 3 | F115: 0.5 | G115: 110 | H115: 5 | I115: 20 | J115: -19.62088198 | K115: -4.905220494 | L115: -4.905220494 | M115: 105.0947795 | N115: 105.0947795 | O115: -5.582264638 | Q115: =IF(AND(ABS(SLOPE($L85:$L115,$A85:$A115)) > $Q$3, ABS(SLOPE(OFFSET($O85:$O115, Q$7, 0),$A85:$A115)) > $Q$3), (MAX(0,(CORREL( $L85:$L115, OFFSET($O85:$O115, Q$7, 0) )))), (1-ABS(SLOPE($L85:$L115, $A85:$A115)-SLOPE(OFFSET($O85:$O115, Q$7, 0),$A85:$A115))) ) -> 0.9407047909 | R115: 0.9426112579 | S115: 0.9454398117 | T115: 0.9487859409 | U115: 0.9555899265 | V115: 0.933820452 | W115: 0.8972123739 | X115: 0.8093283559 | Y115: 0.665769694 | Z115: 0.9296096801 | AA115: 0.9037006053 | AB115: 0.8816112243 | AC115: 0.8569825393 | AD115: 0 | AE115: 0 | AF115: 0 | AG115: 0 | AH115: 0 | AI115: 0 | AJ115: 0 | AK115: 0 | AL115: 0 | AM115: 0 | AN115: 0 | AO115: 0 | AP115: 0 | AQ115: 0 | AR115: 0 | AS115: 0 | AT115: 0 | AV115: 0.9555899265 | AW115: 4 | AX115: +40s | AY115: 30 | AZ115: 0.9 | BB115: 0.1354088287 | BC115: 0.8645911713 | BE115: 4.905220494 | BF115: 0.216859545 | BH115: 0.783140455 | BJ115: 0.783140455 | BL115: 0.8795767939
A116: 108 | B116: 00:17:50 | C116: 104.8000752 | D116: 110 | E116: 3 | F116: 0.5 | G116: 110 | H116: 5 | I116: 20 | J116: -19.42049245 | K116: -4.855123111 | L116: -4.855123111 | M116: 105.1448769 | N116: 105.1448769 | O116: -5.199924825 | Q116: =IF(AND(ABS(SLOPE($L86:$L116,$A86:$A116)) > $Q$3, ABS(SLOPE(OFFSET($O86:$O116, Q$7, 0),$A86:$A116)) > $Q$3), (MAX(0,(CORREL( $L86:$L116, OFFSET($O86:$O116, Q$7, 0) )))), (1-ABS(SLOPE($L86:$L116, $A86:$A116)-SLOPE(OFFSET($O86:$O116, Q$7, 0),$A86:$A116))) ) -> 0.9317341362 | R116: 0.9352487752 | S116: 0.9396721241 | T116: 0.949517687 | U116: 0.9325143916 | V116: 0.9010576804 | W116: 0.8209322586 | X116: 0.6847697469 | Y116: 0.9386525554 | Z116: 0.9127434805 | AA116: 0.8906540996 | AB116: 0.8660254146 | AC116: 0 | AD116: 0 | AE116: 0 | AF116: 0 | AG116: 0 | AH116: 0 | AI116: 0 | AJ116: 0 | AK116: 0 | AL116: 0 | AM116: 0 | AN116: 0 | AO116: 0 | AP116: 0 | AQ116: 0 | AR116: 0 | AS116: 0 | AT116: 0 | AV116: 0.949517687 | AW116: 3 | AX116: +30s | AY116: 20 | AZ116: 0.9333333333 | BB116: 0.06896034274 | BC116: 0.9310396573 | BE116: 4.855123111 | BF116: 0.1104411632 | BH116: 0.8895588368 | BJ116: 0.8895588368 | BL116: 0.9241366191
A117: 109 | B117: 00:18:00 | C117: 104.7381335 | D117: 90 | E117: 3 | F117: 0.5 | G117: 109.5 | H117: 5 | I117: 20 | J117: -19.17848549 | K117: -4.794621373 | L117: -4.794621373 | M117: 85.20537863 | N117: 104.7053786 | O117: -4.761866525 | Q117: =IF(AND(ABS(SLOPE($L87:$L117,$A87:$A117)) > $Q$3, ABS(SLOPE(OFFSET($O87:$O117, Q$7, 0),$A87:$A117)) > $Q$3), (MAX(0,(CORREL( $L87:$L117, OFFSET($O87:$O117, Q$7, 0) )))), (1-ABS(SLOPE($L87:$L117, $A87:$A117)-SLOPE(OFFSET($O87:$O117, Q$7, 0),$A87:$A117))) ) -> 0.9216964246 | R117: 0.9273762929 | S117: 0.9407741988 | T117: 0.9293927228 | U117: 0.9040344569 | V117: 0.8331498537 | W117: 0.7058983422 | X117: 0.9479016421 | Y117: 0.9219925672 | Z117: 0.8999031862 | AA117: 0.8752745013 | AB117: 0 | AC117: 0 | AD117: 0 | AE117: 0 | AF117: 0 | AG117: 0 | AH117: 0 | AI117: 0 | AJ117: 0 | AK117: 0 | AL117: 0 | AM117: 0 | AN117: 0 | AO117: 0 | AP117: 0 | AQ117: 0 | AR117: 0 | AS117: 0 | AT117: 0 | AV117: 0.9479016421 | AW117: 7 | AX117: +70s | AY117: 60 | AZ117: 0.8 | BB117: 0.006550969662 | BC117: 0.9934490303 | BE117: 4.794621373 | BF117: 0.01049148947 | BH117: 0.9895085105 | BJ117: 0.9895085105 | BL117: 0.9124700509
A118: 110 | B118: 00:18:10 | C118: 104.3651564 | D118: 90 | E118: 3 | F118: 0.5 | G118: 109 | H118: 5 | I118: 20 | J118: -18.89537973 | K118: -4.723844933 | L118: -4.723844933 | M118: 85.27615507 | N118: 104.2761551 | O118: -4.634843634 | Q118: =IF(AND(ABS(SLOPE($L88:$L118,$A88:$A118)) > $Q$3, ABS(SLOPE(OFFSET($O88:$O118, Q$7, 0),$A88:$A118)) > $Q$3), (MAX(0,(CORREL( $L88:$L118, OFFSET($O88:$O118, Q$7, 0) )))), (1-ABS(SLOPE($L88:$L118, $A88:$A118)-SLOPE(OFFSET($O88:$O118, Q$7, 0),$A88:$A118))) ) -> 0.9105111984 | R118: 0.9281063724 | S118: 0.9234455546 | T118: 0.9054089619 | U118: 0.8456966057 | V118: 0.7293599376 | W118: 0.9573371196 | X118: 0.9314280447 | Y118: 0.9093386638 | Z118: 0.8847099788 | AA118: 0.02708157314 | AB118: 0 | AC118: 0 | AD118: 0 | AE118: 0 | AF118: 0 | AG118: 0 | AH118: 0 | AI118: 0 | AJ118: 0 | AK118: 0 | AL118: 0 | AM118: 0 | AN118: 0 | AO118: 0 | AP118: 0 | AQ118: 0 | AR118: 0 | AS118: 0 | AT118: 0 | AV118: 0.9573371196 | AW118: 6 | AX118: +60s | AY118: 50 | AZ118: 0.8333333333 | BB118: 0.01780025985 | BC118: 0.9821997402 | BE118: 4.723844933 | BF118: 0.02850741927 | BH118: 0.9714925807 | BJ118: 0.9714925807 | BL118: 0.9207210112
A119: 111 | B119: 00:18:20 | C119: 104.4322222 | D119: 90 | E119: 3 | F119: 0.5 | G119: 108.5 | H119: 5 | I119: 20 | J119: -18.57178185 | K119: -4.642945462 | L119: -4.642945462 | M119: 85.35705454 | N119: 103.8570545 | O119: -4.067777798 | Q119: =IF(AND(ABS(SLOPE($L89:$L119,$A89:$A119)) > $Q$3, ABS(SLOPE(OFFSET($O89:$O119, Q$7, 0),$A89:$A119)) > $Q$3), (MAX(0,(CORREL( $L89:$L119, OFFSET($O89:$O119, Q$7, 0) )))), (1-ABS(SLOPE($L89:$L119, $A89:$A119)-SLOPE(OFFSET($O89:$O119, Q$7, 0),$A89:$A119))) ) -> 0.9095526472 | R119: 0.9130350892 | S119: 0.9039151621 | T119: 0.8579210778 | U119: 0.7551887861 | V119: 0.9669387681 | W119: 0.9410296932 | X119: 0.9189403123 | Y119: 0.8943116273 | Z119: 0.08310050278 | AA119: 0 | AB119: 0 | AC119: 0 | AD119: 0 | AE119: 0 | AF119: 0 | AG119: 0 | AH119: 0 | AI119: 0 | AJ119: 0 | AK119: 0 | AL119: 0 | AM119: 0 | AN119: 0 | AO119: 0 | AP119: 0 | AQ119: 0 | AR119: 0 | AS119: 0 | AT119: 0 | AV119: 0.9669387681 | AW119: 5 | AX119: +50s | AY119: 40 | AZ119: 0.8666666667 | BB119: 0.1150335328 | BC119: 0.8849664672 | BE119: 4.642945462 | BF119: 0.1842281617 | BH119: 0.8157718383 | BJ119: 0.8157718383 | BL119: 0.8831257577
A120: 112 | B120: 00:18:30 | C120: 104.9969297 | D120: 90 | E120: 3 | F120: 0.5 | G120: 108 | H120: 5 | I120: 20 | J120: -18.2083853 | K120: -4.552096325 | L120: -4.552096325 | M120: 85.44790368 | N120: 103.4479037 | O120: -3.003070337 | Q120: =IF(AND(ABS(SLOPE($L90:$L120,$A90:$A120)) > $Q$3, ABS(SLOPE(OFFSET($O90:$O120, Q$7, 0),$A90:$A120)) > $Q$3), (MAX(0,(CORREL( $L90:$L120, OFFSET($O90:$O120, Q$7, 0) )))), (1-ABS(SLOPE($L90:$L120, $A90:$A120)-SLOPE(OFFSET($O90:$O120, Q$7, 0),$A90:$A120))) ) -> 0.895469711 | R120: 0.8973543749 | S120: 0.8684579176 | T120: 0.7829798936 | U120: 0.9766860117 | V120: 0.9507769368 | W120: 0.9286875558 | X120: 0.9040588708 | Y120: 0.151502901 | Z120: 0.03893367366 | AA120: 0 | AB120: 0 | AC120: 0 | AD120: 0 | AE120: 0 | AF120: 0 | AG120: 0 | AH120: 0 | AI120: 0 | AJ120: 0 | AK120: 0 | AL120: 0 | AM120: 0 | AN120: 0 | AO120: 0 | AP120: 0 | AQ120: 0 | AR120: 0 | AS120: 0 | AT120: 0 | AV120: 0.9766860117 | AW120: 4 | AX120: +40s | AY120: 30 | AZ120: 0.9 | BB120: 0.3098051976 | BC120: 0.6901948024 | BE120: 4.552096325 | BF120: 0.4961582997 | BH120: 0.5038417003 | BJ120: 0.5038417003 | BL120: 0.7935092373
A121: 113 | B121: 00:18:40 | C121: 104.650678 | D121: 90 | E121: 3 | F121: 0.5 | G121: 107.5 | H121: 5 | I121: 20 | J121: -17.80596883 | K121: -4.451492208 | L121: -4.451492208 | M121: 85.54850779 | N121: 103.0485078 | O121: -2.849322012 | Q121: =IF(AND(ABS(SLOPE($L91:$L121,$A91:$A121)) > $Q$3, ABS(SLOPE(OFFSET($O91:$O121, Q$7, 0),$A91:$A121)) > $Q$3), (MAX(0,(CORREL( $L91:$L121, OFFSET($O91:$O121, Q$7, 0) )))), (1-ABS(SLOPE($L91:$L121, $A91:$A121)-SLOPE(OFFSET($O91:$O121, Q$7, 0),$A91:$A121))) ) -> 0.9382208726 | R121: 0.9601091869 | S121: 0.9870666956 | T121: 0.9865579622 | U121: 0.9606488873 | V121: 0.9385595064 | W121: 0.9139308214 | X121: 0.8916290666 | Y121: 0.8686866873 | Z121: 0.847734229 | AA121: 0.8256404568 | AB121: 0.8023135964 | AC121: 0.7798309061 | AD121: 0.7646225964 | AE121: 0.7520408338 | AF121: 0.7378274532 | AG121: 0.7256009266 | AH121: 0.7193706794 | AI121: 0.7132333918 | AJ121: 0.7032294078 | AK121: 0.7002591959 | AL121: 0.7022056638 | AM121: 0.6997812731 | AN121: 0.7016116828 | AO121: 0.7086913507 | AP121: 0.7194697424 | AQ121: 0.7290995157 | AR121: 0.7416519782 | AS121: 0.753549627 | AT121: 0.7626414234 | AV121: 0.9870666956 | AW121: 2 | AX121: +20s | AY121: 10 | AZ121: 0.9666666667 | BB121: 0.3204340391 | BC121: 0.6795659609 | BE121: 4.451492208 | BF121: 0.5131805702 | BH121: 0.4868194298 | BJ121: 0.4868194298 | BL121: 0.8135175973
A122: 114 | B122: 00:18:50 | C122: 105.2228281 | D122: 90 | E122: 3 | F122: 0.5 | G122: 107 | H122: 5 | I122: 20 | J122: -17.36539481 | K122: -4.341348702 | L122: -4.341348702 | M122: 85.6586513 | N122: 102.6586513 | O122: -1.777171922 | Q122: =IF(AND(ABS(SLOPE($L92:$L122,$A92:$A122)) > $Q$3, ABS(SLOPE(OFFSET($O92:$O122, Q$7, 0),$A92:$A122)) > $Q$3), (MAX(0,(CORREL( $L92:$L122, OFFSET($O92:$O122, Q$7, 0) )))), (1-ABS(SLOPE($L92:$L122, $A92:$A122)-SLOPE(OFFSET($O92:$O122, Q$7, 0),$A92:$A122))) ) -> 0.9501336845 | R122: 0.9770911933 | S122: 0.9965334645 | T122: 0.9706243897 | U122: 0.9485350087 | V122: 0.9239063237 | W122: 0.9016045689 | X122: 0.8786621896 | Y122: 0.8577097313 | Z122: 0.8356159591 | AA122: 0.8122890988 | AB122: 0.7898064084 | AC122: 0.7745980987 | AD122: 0.7620163361 | AE122: 0.7478029555 | AF122: 0.7355764289 | AG122: 0.7293461817 | AH122: 0.7232088942 | AI122: 0.7132049101 | AJ122: 0.7102346982 | AK122: 0.7121811661 | AL122: 0.7097567755 | AM122: 0.7115871851 | AN122: 0.718666853 | AO122: 0.7294452447 | AP122: 0.7390750181 | AQ122: 0.7516274805 | AR122: 0.7635251293 | AS122: 0.7726169258 | AT122: 0.7779522881 | AV122: 0.9965334645 | AW122: 2 | AX122: +20s | AY122: 10 | AZ122: 0.9666666667 | BB122: 0.5128353561 | BC122: 0.4871646439 | BE122: 4.341348702 | BF122: 0.8213145558 | BH122: 0.1786854442 | BJ122: 0.1786854442 | BL122: 0.7139618585
A123: 115 | B123: 00:19:00 | C123: 105.3443819 | D123: 90 | E123: 3 | F123: 0.5 | G123: 106.5 | H123: 5 | I123: 20 | J123: -16.88760737 | K123: -4.221901842 | L123: -4.221901842 | M123: 85.77809816 | N123: 102.2780982 | O123: -1.155618073 | Q123: =IF(AND(ABS(SLOPE($L93:$L123,$A93:$A123)) > $Q$3, ABS(SLOPE(OFFSET($O93:$O123, Q$7, 0),$A93:$A123)) > $Q$3), (MAX(0,(CORREL( $L93:$L123, OFFSET($O93:$O123, Q$7, 0) )))), (1-ABS(SLOPE($L93:$L123, $A93:$A123)-SLOPE(OFFSET($O93:$O123, Q$7, 0),$A93:$A123))) ) -> 0.9670335163 | R123: 0.9934088585 | S123: 0.9806820666 | T123: 0.9585926857 | U123: 0.9339640007 | V123: 0.9116622459 | W123: 0.8887198666 | X123: 0.8677674083 | Y123: 0.8456736361 | Z123: 0.8223467757 | AA123: 0.7998640854 | AB123: 0.7846557757 | AC123: 0.7720740131 | AD123: 0.7578606325 | AE123: 0.7456341059 | AF123: 0.7394038587 | AG123: 0.7332665712 | AH123: 0.7232625871 | AI123: 0.7202923752 | AJ123: 0.7222388431 | AK123: 0.7198144524 | AL123: 0.7216448621 | AM123: 0.72872453 | AN123: 0.7395029217 | AO123: 0.749132695 | AP123: 0.7616851575 | AQ123: 0.7735828063 | AR123: 0.7826746027 | AS123: 0.7880099651 | AT123: 0.7967369742 | AV123: 0.9934088585 | AW123: 1 | AX123: +10s | AY123: 0 | AZ123: 1 | BB123: 0.6132567537 | BC123: 0.3867432463 | BE123: 4.221901842 | BF123: 0.9821411342 | BH123: 0.01785886579 | BJ123: 0.01785886579 | BL123: 0.6704225748
A124: 116 | B124: 00:19:10 | C124: 104.6102399 | D124: 90 | E124: 3 | F124: 0.5 | G124: 106 | H124: 5 | I124: 20 | J124: -16.37363038 | K124: -4.093407596 | L124: -4.093407596 | M124: 85.9065924 | N124: 101.9065924 | O124: -1.389760106 | Q124: =IF(AND(ABS(SLOPE($L94:$L124,$A94:$A124)) > $Q$3, ABS(SLOPE(OFFSET($O94:$O124, Q$7, 0),$A94:$A124)) > $Q$3), (MAX(0,(CORREL( $L94:$L124, OFFSET($O94:$O124, Q$7, 0) )))), (1-ABS(SLOPE($L94:$L124, $A94:$A124)-SLOPE(OFFSET($O94:$O124, Q$7, 0),$A94:$A124))) ) -> 0.9832905601 | R124: 0.990800365 | S124: 0.9687109841 | T124: 0.9440822991 | U124: 0.9217805442 | V124: 0.898838165 | W124: 0.8778857067 | X124: 0.8557919345 | Y124: 0.8324650741 | Z124: 0.8099823838 | AA124: 0.7947740741 | AB124: 0.7821923114 | AC124: 0.7679789308 | AD124: 0.7557524042 | AE124: 0.7495221571 | AF124: 0.7433848695 | AG124: 0.7333808855 | AH124: 0.7304106736 | AI124: 0.7323571414 | AJ124: 0.7299327508 | AK124: 0.7317631605 | AL124: 0.7388428283 | AM124: 0.74962122 | AN124: 0.7592509934 | AO124: 0.7718034559 | AP124: 0.7837011047 | AQ124: 0.7927929011 | AR124: 0.7981282634 | AS124: 0.8068552725 | AT124: 0.8083242033 | AV124: 0.990800365 | AW124: 1 | AX124: +10s | AY124: 0 | AZ124: 1 | BB124: 0.540729498 | BC124: 0.459270502 | BE124: 4.093407596 | BF124: 0.8659874991 | BH124: 0.1340125009 | BJ124: 0.1340125009 | BL124: 0.7082709553
A125: 117 | B125: 00:19:20 | C125: 104.5438676 | D125: 90 | E125: 3 | F125: 0.5 | G125: 105.5 | H125: 5 | I125: 20 | J125: -15.8245653 | K125: -3.956141325 | L125: -3.956141325 | M125: 86.04385868 | N125: 101.5438587 | O125: -0.9561324161 | Q125: =IF(AND(ABS(SLOPE($L95:$L125,$A95:$A125)) > $Q$3, ABS(SLOPE(OFFSET($O95:$O125, Q$7, 0),$A95:$A125)) > $Q$3), (MAX(0,(CORREL( $L95:$L125, OFFSET($O95:$O125, Q$7, 0) )))), (1-ABS(SLOPE($L95:$L125, $A95:$A125)-SLOPE(OFFSET($O95:$O125, Q$7, 0),$A95:$A125))) ) -> 0.9990423984 | R125: 0.9788682207 | S125: 0.9542395357 | T125: 0.9319377808 | U125: 0.9089954016 | V125: 0.8880429433 | W125: 0.8659491711 | X125: 0.8426223107 | Y125: 0.8201396204 | Z125: 0.8049313107 | AA125: 0.792349548 | AB125: 0.7781361674 | AC125: 0.7659096408 | AD125: 0.7596793937 | AE125: 0.7535421061 | AF125: 0.7435381221 | AG125: 0.7405679102 | AH125: 0.7425143781 | AI125: 0.7400899874 | AJ125: 0.7419203971 | AK125: 0.749000065 | AL125: 0.7597784566 | AM125: 0.76940823 | AN125: 0.7819606925 | AO125: 0.7938583413 | AP125: 0.8029501377 | AQ125: 0.8082855 | AR125: 0.8170125091 | AS125: 0.8184814399 | AT125: 0.81998164 | AV125: 0.9990423984 | AW125: 0 | AX125: No Time Shift | AY125: 0 | AZ125: 1 | BB125: 0.6000017817 | BC125: 0.3999982183 | BE125: 3.956141325 | BF125: 0.9609130708 | BH125: 0.03908692919 | BJ125: 0.03908692919 | BL125: 0.6793764425
A126: 118 | B126: 00:19:30 | C126: 103.8577013 | D126: 90 | E126: 3 | F126: 0.5 | G126: 105 | H126: 5 | I126: 20 | J126: -15.24158874 | K126: -3.810397184 | L126: -3.810397184 | M126: 86.18960282 | N126: 101.1896028 | O126: -1.142298745 | Q126: =IF(AND(ABS(SLOPE($L96:$L126,$A96:$A126)) > $Q$3, ABS(SLOPE(OFFSET($O96:$O126, Q$7, 0),$A96:$A126)) > $Q$3), (MAX(0,(CORREL( $L96:$L126, OFFSET($O96:$O126, Q$7, 0) )))), (1-ABS(SLOPE($L96:$L126, $A96:$A126)-SLOPE(OFFSET($O96:$O126, Q$7, 0),$A96:$A126))) ) -> 0.9890426289 | R126: 0.9644139439 | S126: 0.9421121891 | T126: 0.9191698098 | U126: 0.8982173515 | V126: 0.8761235793 | W126: 0.8527967189 | X126: 0.8303140286 | Y126: 0.8151057189 | Z126: 0.8025239563 | AA126: 0.7883105757 | AB126: 0.7760840491 | AC126: 0.7698538019 | AD126: 0.7637165144 | AE126: 0.7537125303 | AF126: 0.7507423184 | AG126: 0.7526887863 | AH126: 0.7502643956 | AI126: 0.7520948053 | AJ126: 0.7591744732 | AK126: 0.7699528649 | AL126: 0.7795826382 | AM126: 0.7921351007 | AN126: 0.8040327495 | AO126: 0.813124546 | AP126: 0.8184599083 | AQ126: 0.8271869174 | AR126: 0.8286558482 | AS126: 0.8301560482 | AT126: 0.8340944919 | AV126: 0.9890426289 | AW126: 0 | AX126: No Time Shift | AY126: 0 | AZ126: 1 | BB126: 0.5336196878 | BC126: 0.4663803122 | BE126: 3.810397184 | BF126: 0.8546010169 | BH126: 0.1453989831 | BJ126: 0.1453989831 | BL126: 0.7114805373
A127: 119 | B127: 00:19:40 | C127: 103.4677818 | D127: 90 | E127: 3 | F127: 0.5 | G127: 104.5 | H127: 5 | I127: 20 | J127: -14.62594999 | K127: -3.656487498 | L127: -3.656487498 | M127: 86.3435125 | N127: 100.8435125 | O127: -1.032218169 | Q127: =IF(AND(ABS(SLOPE($L97:$L127,$A97:$A127)) > $Q$3, ABS(SLOPE(OFFSET($O97:$O127, Q$7, 0),$A97:$A127)) > $Q$3), (MAX(0,(CORREL( $L97:$L127, OFFSET($O97:$O127, Q$7, 0) )))), (1-ABS(SLOPE($L97:$L127, $A97:$A127)-SLOPE(OFFSET($O97:$O127, Q$7, 0),$A97:$A127))) ) -> 0.9745837204 | R127: 0.9522819656 | S127: 0.9293395863 | T127: 0.908387128 | U127: 0.8862933558 | V127: 0.8629664954 | W127: 0.8404838051 | X127: 0.8252754954 | Y127: 0.8126937328 | Z127: 0.7984803522 | AA127: 0.7862538256 | AB127: 0.7800235784 | AC127: 0.7738862909 | AD127: 0.7638823068 | AE127: 0.7609120949 | AF127: 0.7628585628 | AG127: 0.7604341721 | AH127: 0.7622645818 | AI127: 0.7693442497 | AJ127: 0.7801226414 | AK127: 0.7897524147 | AL127: 0.8023048772 | AM127: 0.814202526 | AN127: 0.8232943225 | AO127: 0.8286296848 | AP127: 0.8373566939 | AQ127: 0.8388256247 | AR127: 0.8403258247 | AS127: 0.8442642684 | AT127: 0.8413652043 | AV127: 0.9745837204 | AW127: 0 | AX127: No Time Shift | AY127: 0 | AZ127: 1 | BB127: 0.5248538658 | BC127: 0.4751461342 | BE127: 3.656487498 | BF127: 0.8405624038 | BH127: 0.1594375962 | BJ127: 0.1594375962 | BL127: 0.7113404389
A128: 120 | B128: 00:19:50 | C128: 103.3889605 | D128: 90 | E128: 3 | F128: 0.5 | G128: 104 | H128: 5 | I128: 20 | J128: -13.97896836 | K128: -3.49474209 | L128: -3.49474209 | M128: 86.50525791 | N128: 100.5052579 | O128: -0.6110395409 | Q128: =IF(AND(ABS(SLOPE($L98:$L128,$A98:$A128)) > $Q$3, ABS(SLOPE(OFFSET($O98:$O128, Q$7, 0),$A98:$A128)) > $Q$3), (MAX(0,(CORREL( $L98:$L128, OFFSET($O98:$O128, Q$7, 0) )))), (1-ABS(SLOPE($L98:$L128, $A98:$A128)-SLOPE(OFFSET($O98:$O128, Q$7, 0),$A98:$A128))) ) -> 0.9624253169 | R128: 0.9394829376 | S128: 0.9185304793 | T128: 0.8964367071 | U128: 0.8731098467 | V128: 0.8506271564 | W128: 0.8354188467 | X128: 0.8228370841 | Y128: 0.8086237035 | Z128: 0.7963971769 | AA128: 0.7901669297 | AB128: 0.7840296422 | AC128: 0.7740256581 | AD128: 0.7710554462 | AE128: 0.7730019141 | AF128: 0.7705775234 | AG128: 0.7724079331 | AH128: 0.779487601 | AI128: 0.7902659927 | AJ128: 0.799895766 | AK128: 0.8124482285 | AL128: 0.8243458773 | AM128: 0.8334376737 | AN128: 0.8387730361 | AO128: 0.8475000452 | AP128: 0.848968976 | AQ128: 0.850469176 | AR128: 0.8544076197 | AS128: 0.8515085556 | AT128: 0.8539485589 | AV128: 0.9624253169 | AW128: 0 | AX128: No Time Shift | AY128: 0 | AZ128: 1 | BB128: 0.5767405099 | BC128: 0.4232594901 | BE128: 3.49474209 | BF128: 0.9236597478 | BH128: 0.07634025221 | BJ128: 0.07634025221 | BL128: 0.679588523
A129: 121 | B129: 00:20:00 | C129: 103.4398557 | D129: 90 | E129: 3 | F129: 0.5 | G129: 103.5 | H129: 5 | I129: 20 | J129: -13.3020303 | K129: -3.325507575 | L129: -3.325507575 | M129: 86.67449243 | N129: 100.1744924 | O129: -0.06014431789 | Q129: =IF(AND(ABS(SLOPE($L99:$L129,$A99:$A129)) > $Q$3, ABS(SLOPE(OFFSET($O99:$O129, Q$7, 0),$A99:$A129)) > $Q$3), (MAX(0,(CORREL( $L99:$L129, OFFSET($O99:$O129, Q$7, 0) )))), (1-ABS(SLOPE($L99:$L129, $A99:$A129)-SLOPE(OFFSET($O99:$O129, Q$7, 0),$A99:$A129))) ) -> 0.9495781269 | R129: 0.9286256685 | S129: 0.9065318963 | T129: 0.883205036 | U129: 0.8607223456 | V129: 0.8455140359 | W129: 0.8329322733 | X129: 0.8187188927 | Y129: 0.8064923661 | Z129: 0.8002621189 | AA129: 0.7941248314 | AB129: 0.7841208473 | AC129: 0.7811506354 | AD129: 0.7830971033 | AE129: 0.7806727127 | AF129: 0.7825031223 | AG129: 0.7895827902 | AH129: 0.8003611819 | AI129: 0.8099909553 | AJ129: 0.8225434177 | AK129: 0.8344410665 | AL129: 0.843532863 | AM129: 0.8488682253 | AN129: 0.8575952344 | AO129: 0.8590641652 | AP129: 0.8605643652 | AQ129: 0.864502809 | AR129: 0.8616037448 | AS129: 0.8640437482 | AT129: 0.8742299647 | AV129: 0.9495781269 | AW129: 0 | AX129: No Time Shift | AY129: 0 | AZ129: 1 | BB129: 0.6530726514 | BC129: 0.3469273486 | BE129: 3.325507575 | BF129: 1.045906972 | BH129: 0 | BJ129: 0 | BL129: 0.6498593756
A130: 122 | B130: 00:20:10 | C130: 102.8677929 | D130: 90 | E130: 3 | F130: 0.5 | G130: 103 | H130: 5 | I130: 20 | J130: -12.59658646 | K130: -3.149146616 | L130: -3.149146616 | M130: 86.85085338 | N130: 99.85085338 | O130: -0.1322071206 | Q130: =IF(AND(ABS(SLOPE($L100:$L130,$A100:$A130)) > $Q$3, ABS(SLOPE(OFFSET($O100:$O130, Q$7, 0),$A100:$A130)) > $Q$3), (MAX(0,(CORREL( $L100:$L130, OFFSET($O100:$O130, Q$7, 0) )))), (1-ABS(SLOPE($L100:$L130, $A100:$A130)-SLOPE(OFFSET($O100:$O130, Q$7, 0),$A100:$A130))) ) -> 0.9386510621 | R130: 0.9165572899 | S130: 0.8932304295 | T130: 0.8707477392 | U130: 0.8555394295 | V130: 0.8429576669 | W130: 0.8287442863 | X130: 0.8165177597 | Y130: 0.8102875125 | Z130: 0.8041502249 | AA130: 0.7941462409 | AB130: 0.791176029 | AC130: 0.7931224969 | AD130: 0.7906981062 | AE130: 0.7925285159 | AF130: 0.7996081838 | AG130: 0.8103865755 | AH130: 0.8200163488 | AI130: 0.8325688113 | AJ130: 0.8444664601 | AK130: 0.8535582565 | AL130: 0.8588936189 | AM130: 0.867620628 | AN130: 0.8690895588 | AO130: 0.8705897588 | AP130: 0.8745282025 | AQ130: 0.8716291384 | AR130: 0.8740691417 | AS130: 0.8842553583 | AT130: 0.8957972158 | AV130: 0.9386510621 | AW130: 0 | AX130: No Time Shift | AY130: 0 | AZ130: 1 | BB130: 0.6033878991 | BC130: 0.3966121009 | BE130: 3.149146616 | BF130: 0.9663359954 | BH130: 0.03366400462 | BJ130: 0.03366400462 | BL130: 0.6574383556
A131: 123 | B131: 00:20:20 | C131: 102.6602438 | D131: 90 | E131: 3 | F131: 0.5 | G131: 102.5 | H131: 5 | I131: 20 | J131: -11.86414859 | K131: -2.966037148 | L131: -2.966037148 | M131: 87.03396285 | N131: 99.53396285 | O131: 0.1602437879 | Q131: =IF(AND(ABS(SLOPE($L101:$L131,$A101:$A131)) > $Q$3, ABS(SLOPE(OFFSET($O101:$O131, Q$7, 0),$A101:$A131)) > $Q$3), (MAX(0,(CORREL( $L101:$L131, OFFSET($O101:$O131, Q$7, 0) )))), (1-ABS(SLOPE($L101:$L131, $A101:$A131)-SLOPE(OFFSET($O101:$O131, Q$7, 0),$A101:$A131))) ) -> 0.9290919393 | R131: 0.9355925357 | S131: 0.9312161887 | T131: 0.9044107727 | U131: 0.8716571302 | V131: 0.8475247363 | W131: 0.8273451133 | X131: 0.79101586 | Y131: 0.7548402997 | Z131: 0.7223510211 | AA131: 0.6993235744 | AB131: 0.6770851032 | AC131: 0.652700711 | AD131: 0.6280140344 | AE131: 0.6183805238 | AF131: 0.6323405435 | AG131: 0.655264634 | AH131: 0.6675189516 | AI131: 0.7036992864 | AJ131: 0.7489054447 | AK131: 0.7706205353 | AL131: 0.7886869871 | AM131: 0.7913413659 | AN131: 0.7684839239 | AO131: 0.7577843557 | AP131: 0.7644182315 | AQ131: 0.7676976907 | AR131: 0.7338732354 | AS131: 0.6728331479 | AT131: 0.5753318706 | AV131: 0.9355925357 | AW131: 1 | AX131: +10s | AY131: 0 | AZ131: 1 | BB131: 0.6252561872 | BC131: 0.3747438128 | BE131: 2.966037148 | BF131: 1.001358431 | BH131: 0 | BJ131: 0 | BL131: 0.6451975119
A132: 124 | B132: 00:20:30 | C132: 102.2272031 | D132: 90 | E132: 3 | F132: 0.5 | G132: 102 | H132: 5 | I132: 20 | J132: -11.10628628 | K132: -2.776571569 | L132: -2.776571569 | M132: 87.22342843 | N132: 99.22342843 | O132: 0.2272031326 | Q132: =IF(AND(ABS(SLOPE($L102:$L132,$A102:$A132)) > $Q$3, ABS(SLOPE(OFFSET($O102:$O132, Q$7, 0),$A102:$A132)) > $Q$3), (MAX(0,(CORREL( $L102:$L132, OFFSET($O102:$O132, Q$7, 0) )))), (1-ABS(SLOPE($L102:$L132, $A102:$A132)-SLOPE(OFFSET($O102:$O132, Q$7, 0),$A102:$A132))) ) -> 0.9328447986 | R132: 0.938080322 | S132: 0.9204963382 | T132: 0.8960077388 | U132: 0.8783746257 | V132: 0.8629025139 | W132: 0.8322322279 | X132: 0.8015061228 | Y132: 0.7745709723 | Z132: 0.7544368772 | AA132: 0.734456653 | AB132: 0.7129831287 | AC132: 0.6907425121 | AD132: 0.6816794401 | AE132: 0.6941723123 | AF132: 0.714855892 | AG132: 0.7259706558 | AH132: 0.7592649266 | AI132: 0.8006907604 | AJ132: 0.8203461431 | AK132: 0.8369944007 | AL132: 0.839380661 | AM132: 0.8190134466 | AN132: 0.8093512285 | AO132: 0.8150388977 | AP132: 0.8179564234 | AQ132: 0.786603151 | AR132: 0.7295082017 | AS132: 0.6378054152 | AT132: 0.5432464842 | AV132: 0.938080322 | AW132: 1 | AX132: +10s | AY132: 0 | AZ132: 1 | BB132: 0.6007549403 | BC132: 0.3992450597 | BE132: 2.776571569 | BF132: 0.9621192671 | BH132: 0.0378807329 | BJ132: 0.0378807329 | BL132: 0.658653685
A133: 125 | B133: 00:20:40 | C133: 102.1415361 | D133: 90 | E133: 3 | F133: 0.5 | G133: 101.5 | H133: 5 | I133: 20 | J133: -10.32462358 | K133: -2.581155896 | L133: -2.581155896 | M133: 87.4188441 | N133: 98.9188441 | O133: 0.6415360724 | Q133: =IF(AND(ABS(SLOPE($L103:$L133,$A103:$A133)) > $Q$3, ABS(SLOPE(OFFSET($O103:$O133, Q$7, 0),$A103:$A133)) > $Q$3), (MAX(0,(CORREL( $L103:$L133, OFFSET($O103:$O133, Q$7, 0) )))), (1-ABS(SLOPE($L103:$L133, $A103:$A133)-SLOPE(OFFSET($O103:$O133, Q$7, 0),$A103:$A133))) ) -> 0.9385511274 | R133: 0.9284993409 | S133: 0.9108088758 | T133: 0.8985127612 | U133: 0.8869208848 | V133: 0.8609802647 | W133: 0.8348151515 | X133: 0.8125049439 | Y133: 0.7948131045 | Z133: 0.7767620821 | AA133: 0.7577521732 | AB133: 0.7376044382 | AC133: 0.7290503719 | AD133: 0.740292507 | AE133: 0.7590573917 | AF133: 0.7691930697 | AG133: 0.7999799029 | AH133: 0.8381331548 | AI133: 0.856021215 | AJ133: 0.8714357798 | AK133: 0.8735929128 | AL133: 0.8553440863 | AM133: 0.8465706817 | AN133: 0.8514645072 | AO133: 0.8540743737 | AP133: 0.8248834494 | AQ133: 0.7712786138 | AR133: 0.6847475713 | AS133: 0.5944960606 | AT133: 0.5037932484 | AV133: 0.9385511274 | AW133: 0 | AX133: No Time Shift | AY133: 0 | AZ133: 1 | BB133: 0.6445383937 | BC133: 0.3554616063 | BE133: 2.581155896 | BF133: 1.032239213 | BH133: 0 | BJ133: 0 | BL133: 0.6461837091
A134: 126 | B134: 00:20:50 | C134: 101.0881583 | D134: 90 | E134: 3 | F134: 0.5 | G134: 101 | H134: 5 | I134: 20 | J134: -9.520835593 | K134: -2.380208898 | L134: -2.380208898 | M134: 87.6197911 | N134: 98.6197911 | O134: 0.08815826783 | Q134: =IF(AND(ABS(SLOPE($L104:$L134,$A104:$A134)) > $Q$3, ABS(SLOPE(OFFSET($O104:$O134, Q$7, 0),$A104:$A134)) > $Q$3), (MAX(0,(CORREL( $L104:$L134, OFFSET($O104:$O134, Q$7, 0) )))), (1-ABS(SLOPE($L104:$L134, $A104:$A134)-SLOPE(OFFSET($O104:$O134, Q$7, 0),$A104:$A134))) ) -> 0.9317218493 | R134: 0.9196650209 | S134: 0.9117859765 | T134: 0.903415032 | U134: 0.8814428657 | V134: 0.8591088084 | W134: 0.84066821 | X134: 0.8250409924 | Y134: 0.8086355073 | Z134: 0.7917124553 | AA134: 0.7733519005 | AB134: 0.7652456145 | AC134: 0.7754225718 | AD134: 0.7925479641 | AE134: 0.8018450179 | AF134: 0.8304667899 | AG134: 0.865801597 | AH134: 0.8821773421 | AI134: 0.896525709 | AJ134: 0.8984873573 | AK134: 0.8820397895 | AL134: 0.8740261512 | AM134: 0.8782519586 | AN134: 0.8806003686 | AO134: 0.853286022 | AP134: 0.8027333635 | AQ134: 0.7207506119 | AR134: 0.6343525647 | AS134: 0.5472557432 | AT134: 0.4009502668 | AV134: 0.9317218493 | AW134: 0 | AX134: No Time Shift | AY134: 0 | AZ134: 1 | BB134: 0.4936734332 | BC134: 0.5063265668 | BE134: 2.380208898 | BF134: 0.7906264101 | BH134: 0.2093735899 | BJ134: 0.2093735899 | BL134: 0.7136984797
A135: 127 | B135: 00:21:00 | C135: 100.679049 | D135: 90 | E135: 3 | F135: 0.5 | G135: 100.5 | H135: 5 | I135: 20 | J135: -8.696644793 | K135: -2.174161198 | L135: -2.174161198 | M135: 87.8258388 | N135: 98.3258388 | O135: 0.1790489767 | Q135: =IF(AND(ABS(SLOPE($L105:$L135,$A105:$A135)) > $Q$3, ABS(SLOPE(OFFSET($O105:$O135, Q$7, 0),$A105:$A135)) > $Q$3), (MAX(0,(CORREL( $L105:$L135, OFFSET($O105:$O135, Q$7, 0) )))), (1-ABS(SLOPE($L105:$L135, $A105:$A135)-SLOPE(OFFSET($O105:$O135, Q$7, 0),$A105:$A135))) ) -> 0.9247692547 | R135: 0.9205869456 | S135: 0.9149181407 | T135: 0.8963039932 | U135: 0.8772144609 | V135: 0.8620408795 | W135: 0.8481710506 | X135: 0.833175978 | Y135: 0.8180320227 | Z135: 0.8012046236 | AA135: 0.7934911207 | AB135: 0.8027561913 | AC135: 0.8184744277 | AD135: 0.8270503756 | AE135: 0.8537990854 | AF135: 0.8867003152 | AG135: 0.9017766314 | AH135: 0.9152019718 | AI135: 0.9169960363 | AJ135: 0.902088626 | AK135: 0.8947272767 | AL135: 0.8983865212 | AM135: 0.9005114703 | AN135: 0.8748267925 | AO135: 0.8269398384 | AP135: 0.748945869 | AQ135: 0.6659690385 | AR135: 0.5820891313 | AS135: 0.439470423 | AT135: 0.3398983599 | AV135: 0.9247692547 | AW135: 0 | AX135: No Time Shift | AY135: 0 | AZ135: 1 | BB135: 0.470642035 | BC135: 0.529357965 | BE135: 2.174161198 | BF135: 0.7537412335 | BH135: 0.2462587665 | BJ135: 0.2462587665 | BL135: 0.723676007
A136: 128 | B136: 00:21:10 | C136: 100.9146592 | D136: 90 | E136: 3 | F136: 0.5 | G136: 100 | H136: 5 | I136: 20 | J136: -7.853817393 | K136: -1.963454348 | L136: -1.963454348 | M136: 88.03654565 | N136: 98.03654565 | O136: 0.9146591811 | Q136: =IF(AND(ABS(SLOPE($L106:$L136,$A106:$A136)) > $Q$3, ABS(SLOPE(OFFSET($O106:$O136, Q$7, 0),$A106:$A136)) > $Q$3), (MAX(0,(CORREL( $L106:$L136, OFFSET($O106:$O136, Q$7, 0) )))), (1-ABS(SLOPE($L106:$L136, $A106:$A136)-SLOPE(OFFSET($O106:$O136, Q$7, 0),$A106:$A136))) ) -> 0.9264170127 | R136: 0.9230420337 | S136: 0.9072987005 | T136: 0.8909848854 | U136: 0.8785991886 | V136: 0.8662389886 | W136: 0.852462238 | X136: 0.8388484862 | Y136: 0.8233463569 | Z136: 0.8159783241 | AA136: 0.8244564532 | AB136: 0.8389578565 | AC136: 0.8469093201 | AD136: 0.8720281246 | AE136: 0.9028149355 | AF136: 0.916766594 | AG136: 0.9293883072 | AH136: 0.9310375901 | AI136: 0.9174580124 | AJ136: 0.910660859 | AK136: 0.9138348352 | AL136: 0.9157671958 | AM136: 0.8915048414 | AN136: 0.845954694 | AO136: 0.7714684442 | AP136: 0.6915283194 | AQ136: 0.6105140146 | AR136: 0.4712606886 | AS136: 0.3740661874 | AT136: 0.2766306467 | AV136: 0.9310375901 | AW136: 17 | AX136: +170s | AY136: 160 | AZ136: 0.4666666667 | BB136: 0.5756227059 | BC136: 0.4243772941 | BE136: 1.963454348 | BF136: 0.9218695657 | BH136: 0.07813043433 | BJ136: 0.07813043433 | BL136: 0.491944897
A137: 129 | B137: 00:21:20 | C137: 100.8240628 | D137: 90 | E137: 3 | F137: =E137/6 -> 0.5 | G137: 99.5 | H137: 5 | I137: 20 | J137: -6.994159543 | K137: -1.748539886 | L137: -1.748539886 | M137: 88.25146011 | N137: 97.75146011 | O137: 1.324062785 | Q137: =IF(AND(ABS(SLOPE($L107:$L137,$A107:$A137)) > $Q$3, ABS(SLOPE(OFFSET($O107:$O137, Q$7, 0),$A107:$A137)) > $Q$3), (MAX(0,(CORREL( $L107:$L137, OFFSET($O107:$O137, Q$7, 0) )))), (1-ABS(SLOPE($L107:$L137, $A107:$A137)-SLOPE(OFFSET($O107:$O137, Q$7, 0),$A107:$A137))) ) -> 0.9288294492 | R137: 0.9155669077 | S137: 0.9016530981 | T137: 0.8916728316 | U137: 0.8806223658 | V137: 0.8679074587 | W137: 0.8556226738 | X137: 0.8412762574 | Y137: 0.8342137335 | Z137: 0.8420065298 | AA137: 0.8554464423 | AB137: 0.8628524953 | AC137: 0.8865422147 | AD137: 0.9154774156 | AE137: 0.9284472925 | AF137: 0.9403640914 | AG137: 0.9418871728 | AH137: 0.9294630551 | AI137: 0.9231581653 | AJ137: 0.9259121472 | AK137: 0.9276769678 | AL137: 0.9046646772 | AM137: 0.8611755702 | AN137: 0.7897908815 | AO137: 0.7125555345 | AP137: 0.6341007139 | AQ137: 0.4979094617 | AR137: 0.4028767331 | AS137: 0.3062377943 | AT137: 0.9380443416 | AV137: 0.9418871728 | AW137: 16 | AX137: +160s | AY137: 150 | AZ137: 0.5 | BB137: 0.6145205341 | BC137: 0.3854794659 | BE137: 1.748539886 | BF137: 0.9841651 | BH137: 0.01583489999 | BJ137: 0.01583489999 | BL137: 0.4859073576
A138: 130 | B138: 00:21:30 | C138: 99.78351128 | D138: 90 | E138: 3 | F138: 0.5 | G138: 99 | H138: 5 | I138: 20 | J138: -6.119513459 | K138: =H138 * J138 / I138 -> -1.529878365 | L138: =K138 -> -1.529878365 | M138: =D138 + K138 -> 88.47012164 | N138: =G138 + L138 -> 97.47012164 | O138: =C138 - G138 -> 0.783511275 | Q138: =IF(AND(ABS(SLOPE($L108:$L138,$A108:$A138)) > $Q$3, ABS(SLOPE(OFFSET($O108:$O138, Q$7, 0),$A108:$A138)) > $Q$3), (MAX(0,(CORREL( $L108:$L138, OFFSET($O108:$O138, Q$7, 0) )))), (1-ABS(SLOPE($L108:$L138, $A108:$A138)-SLOPE(OFFSET($O108:$O138, Q$7, 0),$A108:$A138))) ) -> 0.9218722753 | R138: 0.9100554489 | S138: 0.9021731237 | T138: 0.8922703237 | U138: 0.8804894482 | V138: 0.8693702043 | W138: 0.8560408738 | X138: 0.8492503319 | Y138: 0.8564406821 | Z138: 0.868946178 | AA138: 0.8758716357 | AB138: 0.8982980132 | AC138: 0.9255980286 | AD138: 0.9377031414 | AE138: 0.9489965602 | AF138: 0.9504086194 | AG138: 0.9389995348 | AH138: 0.9331280472 | AI138: 0.9355147586 | AJ138: 0.9371324356 | AK138: 0.9152274126 | AL138: 0.8735692013 | AM138: 0.8049454052 | AN138: 0.7301320389 | AO138: 0.6539742161 | AP138: 0.5205713801 | AQ138: 0.4275061621 | AR138: 0.3316510083 | AS138: 0.9293286336 | AT138: 0.9209919084 | AV138: 0.9504086194 | AW138: 15 | AX138: +150s | AY138: 140 | AZ138: 0.5333333333 | BB138: =ABS(O138 - L138) / H138 -> 0.462677928 | BC138: =MIN( MAX(1 - BB138, 0), 1 ) -> 0.537322072 | BE138: =ABS(L138) -> 1.529878365 | BF138: =ABS(O138 - L138 ) / $BF$7 -> 0.7409865805 | BH138: =MIN( MAX(1 - BF138, 0), 1 ) -> 0.2590134195 | BJ138: 0.2590134195 | BL138: 0.5809184574
A139: 131 | B139: =B138 + TIME(0,0,10) -> 00:21:40 | C139: 99.52844062 | D139: 90 | E139: 3 | F139: 0.5 | G139: =IF( ABS(D139 - G138) < F139, D139, G138 + SIGN( D139 - G138 ) * F139 ) -> 98.5 | H139: 5 | I139: 20 | J139: -5.231753477 | K139: -1.307938369 | L139: -1.307938369 | M139: 88.69206163 | N139: 97.19206163 | O139: 1.028440621 | Q139: =IF(AND(ABS(SLOPE($L109:$L139,$A109:$A139)) > $Q$3, ABS(SLOPE(OFFSET($O109:$O139, Q$7, 0),$A109:$A139)) > $Q$3), (MAX(0,(CORREL( $L109:$L139, OFFSET($O109:$O139, Q$7, 0) )))), (1-ABS(SLOPE($L109:$L139, $A109:$A139)-SLOPE(OFFSET($O109:$O139, Q$7, 0),$A109:$A139))) ) -> 0.9167706495 | R139: 0.9107369377 | S139: 0.9018494984 | T139: 0.890897699 | U139: 0.8808104072 | V139: 0.8683842409 | W139: 0.861837576 | X139: 0.8684934744 | Y139: 0.880169026 | Z139: 0.8866672604 | AA139: 0.9079675083 | AB139: 0.9338111993 | AC139: 0.9451478441 | AD139: 0.955885422 | AE139: 0.9571989257 | AF139: 0.9466897979 | AG139: 0.9412033079 | AH139: 0.9432656605 | AI139: 0.9447529026 | AJ139: 0.9238365309 | AK139: 0.8838170571 | AL139: 0.8176686347 | AM139: 0.7450374649 | AN139: 0.670953036 | AO139: 0.5400971214 | AP139: 0.4488282366 | AQ139: 0.353731662 | AR139: 0.9208652809 | AS139: 0.9125285557 | AT139: 0.904481388 | AV139: 0.9571989257 | AW139: 14 | AX139: +140s | AY139: 130 | AZ139: 0.5666666667 | BB139: 0.4672757981 | BC139: 0.5327242019 | BE139: 1.307938369 | BF139: 0.7483501479 | BH139: 0.2516498521 | BJ139: 0.2516498521 | BL139: 0.5918384815
A140: 132 | B140: 00:21:50 | C140: 99.5974326 | D140: 90 | E140: 3 | F140: 0.5 | G140: 98 | H140: 5 | I140: 20 | J140: -4.332782034 | K140: -1.083195509 | L140: -1.083195509 | M140: 88.91680449 | N140: 96.91680449 | O140: 1.5974326 | Q140: =IF(AND(ABS(SLOPE($L110:$L140,$A110:$A140)) > $Q$3, ABS(SLOPE(OFFSET($O110:$O140, Q$7, 0),$A110:$A140)) > $Q$3), (MAX(0,(CORREL( $L110:$L140, OFFSET($O110:$O140, Q$7, 0) )))), (1-ABS(SLOPE($L110:$L140, $A110:$A140)-SLOPE(OFFSET($O110:$O140, Q$7, 0),$A110:$A140))) ) -> 0.9178179745 | R140: 0.9098370701 | S140: 0.8996276045 | T140: 0.8904622652 | U140: 0.8788450532 | V140: 0.8725186553 | W140: 0.8786962506 | X140: 0.8896282829 | Y140: 0.8957435025 | Z140: 0.9160317604 | AA140: 0.9405677095 | AB140: 0.9512156081 | AC140: 0.9614535544 | AD140: 0.9626788073 | AE140: 0.9529746877 | AF140: 0.9478331446 | AG140: 0.9496063481 | AH140: 0.9509769371 | AI140: 0.9309502817 | AJ140: 0.8924086213 | AK140: 0.828495756 | AL140: 0.757843575 | AM140: 0.6856423723 | AN140: 0.5571226197 | AO140: 0.4675008342 | AP140: 0.3731322301 | AQ140: 0.9126724202 | AR140: 0.9043356951 | AS140: 0.8962885273 | AT140: 0.8830689945 | AV140: 0.9626788073 | AW140: 13 | AX140: +130s | AY140: 120 | AZ140: 0.6 | BB140: 0.5361256217 | BC140: 0.4638743783 | BE140: 1.083195509 | BF140: 0.8586143128 | BH140: 0.1413856872 | BJ140: =BH140 -> 0.1413856872 | BL140: 0.5680214982
A141: 133 | B141: 00:22:00 | C141: 99.29157872 | D141: 90 | E141: 3 | F141: 0.5 | G141: 97.5 | H141: 5 | I141: 20 | J141: -3.424525594 | K141: -0.8561313986 | L141: -0.8561313986 | M141: 89.1438686 | N141: 96.6438686 | O141: 1.791578716 | Q141: =IF(AND(ABS(SLOPE($L111:$L141,$A111:$A141)) > $Q$3, ABS(SLOPE(OFFSET($O111:$O141, Q$7, 0),$A111:$A141)) > $Q$3), (MAX(0,(CORREL( $L111:$L141, OFFSET($O111:$O141, Q$7, 0) )))), (1-ABS(SLOPE($L111:$L141, $A111:$A141)-SLOPE(OFFSET($O111:$O141, Q$7, 0),$A111:$A141))) ) -> 0.916580834 | R141: 0.9070415309 | S141: 0.8987068995 | T141: 0.8878202188 | U141: 0.8816941839 | V141: 0.8874401613 | W141: 0.8977006371 | X141: 0.9034696911 | Y141: 0.922841428 | Z141: 0.946193775 | AA141: 0.9562193501 | AB141: 0.9660046975 | AC141: 0.9671502744 | AD141: 0.9581722717 | AE141: 0.9533423212 | AF141: 0.9548554971 | AG141: 0.9561208814 | AH141: 0.9369010116 | AI141: 0.8997018359 | AJ141: 0.8378223797 | AK141: 0.7689766885 | AL141: 0.6984968366 | AM141: 0.572130287 | AN141: 0.4840261524 | AO141: 0.3903533976 | AP141: 0.9047676086 | AQ141: 0.8964308835 | AR141: 0.8883837157 | AS141: 0.8751641828 | AT141: 0.8633314775 | AV141: 0.9671502744 | AW141: 12 | AX141: +120s | AY141: 110 | AZ141: 0.6333333333 | BB141: 0.529542023 | BC141: 0.470457977 | BE141: 0.8561313986 | BF141: 0.8480705673 | BH141: 0.1519294327 | BJ141: 0.1519294327 | BL141: 0.5841376801
A142: 134 | B142: 00:22:10 | C142: 98.74291113 | D142: 90 | E142: 3 | F142: 0.5 | G142: 97 | H142: 5 | I142: 20 | J142: -2.508930518 | K142: -0.6272326296 | L142: -0.6272326296 | M142: 89.37276737 | N142: 96.37276737 | O142: 1.742911134 | Q142: =IF(AND(ABS(SLOPE($L112:$L142,$A112:$A142)) > $Q$3, ABS(SLOPE(OFFSET($O112:$O142, Q$7, 0),$A112:$A142)) > $Q$3), (MAX(0,(CORREL( $L112:$L142, OFFSET($O112:$O142, Q$7, 0) )))), (1-ABS(SLOPE($L112:$L142, $A112:$A142)-SLOPE(OFFSET($O112:$O142, Q$7, 0),$A112:$A142))) ) -> 0.9134090221 | R142: 0.9058288787 | S142: 0.8956070282 | T142: 0.8896645079 | U142: 0.8950179415 | V142: 0.9046671638 | W142: 0.9101209572 | X142: 0.9286564696 | Y142: 0.9509295313 | Z142: 0.9603884719 | AA142: 0.969760791 | AB142: 0.9708338731 | AC142: 0.9625159957 | AD142: 0.9579696838 | AE142: 0.9592470992 | AF142: 0.9604168533 | AG142: 0.9419338953 | AH142: 0.9059628813 | AI142: 0.8459457391 | AJ142: 0.7787597118 | AK142: 0.7098631249 | AL142: 0.5854913043 | AM142: 0.4987927636 | AN142: 0.4057843576 | AO142: 0.8971677858 | AP142: 0.8888310606 | AQ142: 0.8807838929 | AR142: 0.86756436 | AS142: 0.8557316547 | AT142: 0.8530991426 | AV142: 0.9708338731 | AW142: 11 | AX142: +110s | AY142: 100 | AZ142: 0.6666666667 | BB142: 0.4740287527 | BC142: 0.5259712473 | BE142: 0.6272326296 | BF142: 0.7591651196 | BH142: 0.2408348804 | BJ142: 0.2408348804 | BL142: 0.6261118067
A143: 135 | B143: 00:22:20 | C143: 98.65049974 | D143: 90 | E143: 3 | F143: 0.5 | G143: 96.5 | H143: 5 | I143: 20 | J143: -1.587958894 | K143: -0.3969897236 | L143: -0.3969897236 | M143: 89.60301028 | N143: 96.10301028 | O143: 2.150499738 | Q143: =IF(AND(ABS(SLOPE($L113:$L143,$A113:$A143)) > $Q$3, ABS(SLOPE(OFFSET($O113:$O143, Q$7, 0),$A113:$A143)) > $Q$3), (MAX(0,(CORREL( $L113:$L143, OFFSET($O113:$O143, Q$7, 0) )))), (1-ABS(SLOPE($L113:$L143, $A113:$A143)-SLOPE(OFFSET($O113:$O143, Q$7, 0),$A113:$A143))) ) -> 0.9120439818 | R143: 0.90243159 | S143: 0.8966582644 | T143: 0.9016520586 | U143: 0.9107408591 | V143: 0.9159054614 | W143: 0.9336726412 | X143: 0.954954553 | Y143: 0.9638938215 | Z143: 0.9728865782 | AA143: 0.9738932162 | AB143: 0.9661799186 | AC143: 0.9618936793 | AD143: 0.9629556952 | AE143: 0.9640378767 | AF143: 0.9462326656 | AG143: 0.9113928035 | AH143: 0.8530925662 | AI143: 0.7874408493 | AJ143: 0.7200094283 | AK143: 0.5974951542 | AL143: 0.5121052502 | AM143: 0.4197314429 | AN143: 0.8898892379 | AO143: 0.8815525127 | AP143: 0.873505345 | AQ143: 0.8602858121 | AR143: 0.8484531067 | AS143: 0.8458205947 | AT143: 0.8442446163 | AV143: 0.9738932162 | AW143: 10 | AX143: +100s | AY143: 90 | AZ143: 0.7 | BB143: 0.5094978923 | BC143: 0.4905021077 | BE143: 0.3969897236 | BF143: 0.8159695507 | BH143: 0.1840304493 | BJ143: 0.1840304493 | BL143: 0.6193078885
A144: 136 | B144: 00:22:30 | C144: 98.1236527 | D144: 90 | E144: 3 | F144: 0.5 | G144: 96 | H144: 5 | I144: 20 | J144: -0.663584331 | K144: -0.1658960827 | L144: -0.1658960827 | M144: 89.83410392 | N144: 95.83410392 | O144: 2.123652698 | Q144: =IF(AND(ABS(SLOPE($L114:$L144,$A114:$A144)) > $Q$3, ABS(SLOPE(OFFSET($O114:$O144, Q$7, 0),$A114:$A144)) > $Q$3), (MAX(0,(CORREL( $L114:$L144, OFFSET($O114:$O144, Q$7, 0) )))), (1-ABS(SLOPE($L114:$L144, $A114:$A144)-SLOPE(OFFSET($O114:$O144, Q$7, 0),$A114:$A144))) ) -> 0.9084683267 | R144: 0.9028519783 | S144: 0.9075139937 | T144: 0.9160854477 | U144: 0.9209829636 | V144: 0.9380394877 | W144: 0.9584050783 | X144: 0.966864485 | Y144: 0.9755061162 | Z144: 0.9764514357 | AA144: 0.9692957047 | AB144: 0.9652495661 | AC144: 0.9661133703 | AD144: 0.9671147982 | AE144: 0.9499370114 | AF144: 0.9161456447 | AG144: 0.8594382613 | AH144: 0.7952135186 | AI144: 0.7291459959 | AJ144: 0.6083705015 | AK144: 0.5242053243 | AL144: 0.4324386692 | AM144: 0.8829475626 | AN144: 0.8746108374 | AO144: 0.8665636697 | AP144: 0.8533441368 | AQ144: 0.8415114314 | AR144: 0.8388789194 | AS144: 0.837302941 | AT144: 0.8332142267 | AV144: 0.9764514357 | AW144: 9 | AX144: +90s | AY144: 80 | AZ144: 0.7333333333 | BB144: 0.4579097562 | BC144: 0.5420902438 | BE144: 0.1658960827 | BF144: 0.7333502723 | BH144: 0.2666497277 | BJ144: 0.2666497277 | BL144: 0.6588114989
A145: 137 | B145: 00:22:40 | C145: 97.86041381 | D145: 90 | E145: 3 | F145: 0.5 | G145: 95.5 | H145: 5 | I145: 20 | J145: 0.2622122699 | K145: 0.06555306747 | L145: 0.06555306747 | M145: 90.06555307 | N145: 95.56555307 | O145: 2.360413811 | Q145: =IF(AND(ABS(SLOPE($L115:$L145,$A115:$A145)) > $Q$3, ABS(SLOPE(OFFSET($O115:$O145, Q$7, 0),$A115:$A145)) > $Q$3), (MAX(0,(CORREL( $L115:$L145, OFFSET($O115:$O145, Q$7, 0) )))), (1-ABS(SLOPE($L115:$L145, $A115:$A145)-SLOPE(OFFSET($O115:$O145, Q$7, 0),$A115:$A145))) ) -> 0.90838373 | R145: 0.9127376681 | S145: 0.9208284448 | T145: 0.9254777004 | U145: 0.9418727682 | V145: 0.9613858364 | W145: 0.9693992807 | X145: 0.9777140476 | Y145: 0.9786024104 | Z145: 0.9719642646 | AA145: 0.9681412235 | AB145: 0.9688214019 | AC145: 0.9697478744 | AD145: 0.9531545445 | AE145: 0.9203409977 | AF145: 0.8651202904 | AG145: 0.8022303777 | AH145: 0.7374397204 | AI145: 0.6183001554 | AJ145: 0.5352870606 | AK145: 0.4441026413 | AL145: 0.8763576356 | AM145: 0.8680209104 | AN145: 0.8599737427 | AO145: 0.8467542098 | AP145: 0.8349215044 | AQ145: 0.8322889924 | AR145: 0.830713014 | AS145: 0.8266242997 | AT145: 0.8283480359 | AV145: 0.9786024104 | AW145: 8 | AX145: +80s | AY145: 70 | AZ145: 0.7666666667 | BB145: 0.4589721487 | BC145: 0.5410278513 | BE145: 0.06555306747 | BF145: 0.735051712 | BH145: 0.264948288 | BJ145: 0.264948288 | BL145: 0.670072455
A146: 138 | B146: 00:22:50 | C146: 97.75623436 | D146: 90 | E146: 3 | F146: 0.5 | G146: 95 | H146: 5 | I146: 20 | J146: 1.187446959 | K146: 0.2968617398 | L146: 0.2968617398 | M146: 90.29686174 | N146: 95.29686174 | O146: 2.756234361 | Q146: =IF(AND(ABS(SLOPE($L116:$L146,$A116:$A146)) > $Q$3, ABS(SLOPE(OFFSET($O116:$O146, Q$7, 0),$A116:$A146)) > $Q$3), (MAX(0,(CORREL( $L116:$L146, OFFSET($O116:$O146, Q$7, 0) )))), (1-ABS(SLOPE($L116:$L146, $A116:$A146)-SLOPE(OFFSET($O116:$O146, Q$7, 0),$A116:$A146))) ) -> 0.9174289389 | R146: 0.9250703703 | S146: 0.9294874578 | T146: 0.945263176 | U146: 0.9639783017 | V146: 0.9715747556 | W146: 0.9795834248 | X146: 0.980418557 | Y146: 0.9742638608 | Z146: 0.9706493881 | AA146: 0.9711583722 | AB146: 0.9720148395 | AC146: 0.9559691654 | AD146: 0.9240728375 | AE146: 0.8702476914 | AF146: 0.8086133526 | AG146: 0.7450246343 | AH146: 0.6274319314 | AI146: 0.5455080241 | AJ146: 0.4548834965 | AK146: 0.8701335789 | AL146: 0.8617968538 | AM146: 0.853749686 | AN146: 0.8405301532 | AO146: 0.8286974478 | AP146: 0.8260649358 | AQ146: 0.8244889574 | AR146: 0.8204002431 | AS146: 0.8221239792 | AT146: 0.8242410781 | AV146: 0.980418557 | AW146: 7 | AX146: +70s | AY146: 60 | AZ146: 0.8 | BB146: 0.4918745243 | BC146: 0.5081254757 | BE146: 0.2968617398 | BF146: 0.7877454268 | BH146: 0.2122545732 | BJ146: 0.2122545732 | BL146: 0.6642243767
A147: 139 | B147: 00:23:00 | C147: 97.59421006 | D147: 90 | E147: 3 | F147: 0.5 | G147: 94.5 | H147: 5 | I147: 20 | J147: 2.110136992 | K147: 0.527534248 | L147: 0.527534248 | M147: 90.52753425 | N147: 95.02753425 | O147: 3.094210062 | Q147: =IF(AND(ABS(SLOPE($L117:$L147,$A117:$A147)) > $Q$3, ABS(SLOPE(OFFSET($O117:$O147, Q$7, 0),$A117:$A147)) > $Q$3), (MAX(0,(CORREL( $L117:$L147, OFFSET($O117:$O147, Q$7, 0) )))), (1-ABS(SLOPE($L117:$L147, $A117:$A147)-SLOPE(OFFSET($O117:$O147, Q$7, 0),$A117:$A147))) ) -> 0.9288913488 | R147: 0.9330900605 | S147: 0.9482825519 | T147: 0.9662465444 | U147: 0.9734508365 | V147: 0.9811712252 | W147: 0.9819563188 | X147: 0.9762558409 | Y147: 0.9728374869 | Z147: 0.9731859085 | AA147: 0.9739766092 | AB147: 0.9584470016 | AC147: 0.9274158305 | AD147: 0.8749079216 | AE147: 0.8144609079 | AF147: 0.752009566 | AG147: 0.6358866412 | AH147: 0.5549974971 | AI147: 0.4649130337 | AJ147: 0.8642887306 | AK147: 0.8559520054 | AL147: 0.8479048377 | AM147: 0.8346853048 | AN147: 0.8228525994 | AO147: 0.8202200874 | AP147: 0.818644109 | AQ147: 0.8145553947 | AR147: 0.8162791308 | AS147: 0.8183962297 | AT147: 0.8214254014 | AV147: 0.9819563188 | AW147: 6 | AX147: +60s | AY147: 50 | AZ147: 0.8333333333 | BB147: 0.5133351627 | BC147: 0.4866648373 | BE147: 0.527534248 | BF147: 0.8221150047 | BH147: 0.1778849953 | BJ147: 0.1778849953 | BL147: 0.6643915492
A148: 140 | B148: 00:23:10 | C148: 96.69667226 | D148: 90 | E148: 3 | F148: 0.5 | G148: 94 | H148: 5 | I148: 20 | J148: 3.028305077 | K148: 0.7570762692 | L148: 0.7570762692 | M148: 90.75707627 | N148: 94.75707627 | O148: 2.696672264 | Q148: =IF(AND(ABS(SLOPE($L118:$L148,$A118:$A148)) > $Q$3, ABS(SLOPE(OFFSET($O118:$O148, Q$7, 0),$A118:$A148)) > $Q$3), (MAX(0,(CORREL( $L118:$L148, OFFSET($O118:$O148, Q$7, 0) )))), (1-ABS(SLOPE($L118:$L148, $A118:$A148)-SLOPE(OFFSET($O118:$O148, Q$7, 0),$A118:$A148))) ) -> 0.9363480786 | R148: 0.9509883741 | S148: 0.9682414362 | T148: 0.9750748798 | U148: 0.9825222946 | V148: 0.9832600892 | W148: 0.9779887499 | X148: 0.9747558282 | Y148: 0.9749528009 | Z148: 0.9756813715 | AA148: 0.9606406838 | AB148: 0.9304299034 | AC148: 0.8791718568 | AD148: 0.8198533916 | AE148: 0.7584837989 | AF148: 0.6437640418 | AG148: 0.5638626367 | AH148: 0.4743008218 | AI148: 0.8588356157 | AJ148: 0.8504988906 | AK148: 0.8424517228 | AL148: 0.8292321899 | AM148: 0.8173994846 | AN148: 0.8147669725 | AO148: 0.8131909942 | AP148: 0.8091022799 | AQ148: 0.810826016 | AR148: 0.8129431149 | AS148: 0.8159722866 | AT148: 0.8210158965 | AV148: 0.9832600892 | AW148: 5 | AX148: +50s | AY148: 40 | AZ148: 0.8666666667 | BB148: 0.387919199 | BC148: 0.612080801 | BE148: 0.7570762692 | BF148: 0.621259203 | BH148: 0.378740797 | BJ148: 0.378740797 | BL148: 0.7428891843
A149: 141 | B149: 00:23:20 | C149: 96.66667963 | D149: 90 | E149: 3 | F149: 0.5 | G149: 93.5 | H149: 5 | I149: 20 | J149: 3.939983612 | K149: 0.9849959031 | L149: 0.9849959031 | M149: 90.9849959 | N149: 94.4849959 | O149: 3.166679627 | Q149: =IF(AND(ABS(SLOPE($L119:$L149,$A119:$A149)) > $Q$3, ABS(SLOPE(OFFSET($O119:$O149, Q$7, 0),$A119:$A149)) > $Q$3), (MAX(0,(CORREL( $L119:$L149, OFFSET($O119:$O149, Q$7, 0) )))), (1-ABS(SLOPE($L119:$L149, $A119:$A149)-SLOPE(OFFSET($O119:$O149, Q$7, 0),$A119:$A149))) ) -> 0.953427046 | R149: 0.9700037137 | S149: 0.9764846134 | T149: 0.9836722051 | U149: 0.9843650532 | V149: 0.979501319 | W149: 0.9764446525 | X149: 0.9764979978 | Y149: 0.9771675605 | Z149: 0.9625924654 | AA149: 0.9331635974 | AB149: 0.8830974899 | AC149: 0.8248570119 | AD149: 0.7645213063 | AE149: 0.6511473206 | AF149: 0.5721931374 | AG149: 0.4831388433 | AH149: 0.8537859203 | AI149: 0.8454491951 | AJ149: 0.8374020274 | AK149: 0.8241824945 | AL149: 0.8123497892 | AM149: 0.8097172771 | AN149: 0.8081412987 | AO149: 0.8040525845 | AP149: 0.8057763206 | AQ149: 0.8078934194 | AR149: 0.8109225911 | AS149: 0.8159662011 | AT149: 0.8226163727 | AV149: 0.9843650532 | AW149: 4 | AX149: +40s | AY149: 30 | AZ149: 0.9 | BB149: 0.4363367448 | BC149: 0.5636632552 | BE149: 0.9849959031 | BF149: 0.6988007272 | BH149: 0.3011992728 | BJ149: 0.3011992728 | BL149: 0.728521442
A150: 142 | B150: 00:23:30 | C150: 96.54581188 | D150: 90 | E150: 3 | F150: 0.5 | G150: 93 | H150: 5 | I150: 20 | J150: 4.843218903 | K150: 1.210804726 | L150: 1.210804726 | M150: 91.21080473 | N150: 94.21080473 | O150: 3.545811877 | Q150: =IF(AND(ABS(SLOPE($L120:$L150,$A120:$A150)) > $Q$3, ABS(SLOPE(OFFSET($O120:$O150, Q$7, 0),$A120:$A150)) > $Q$3), (MAX(0,(CORREL( $L120:$L150, OFFSET($O120:$O150, Q$7, 0) )))), (1-ABS(SLOPE($L120:$L150, $A120:$A150)-SLOPE(OFFSET($O120:$O150, Q$7, 0),$A120:$A150))) ) -> 0.971566238 | R150: 0.9777102986 | S150: 0.9846493501 | T150: 0.98529927 | U150: 0.9808246651 | V150: 0.97793638 | W150: 0.977852809 | X150: 0.9784660427 | Y150: 0.9643365269 | Z150: 0.93565656 | AA150: 0.8867326992 | AB150: 0.8295268347 | AC150: 0.7701839581 | AD150: 0.6581065143 | AE150: 0.5800648005 | AF150: 0.4915050618 | AG150: 0.8491504656 | AH150: 0.8408137404 | AI150: 0.8327665727 | AJ150: 0.8195470398 | AK150: 0.8077143344 | AL150: 0.8050818224 | AM150: 0.803505844 | AN150: 0.7994171297 | AO150: 0.8011408659 | AP150: 0.8032579647 | AQ150: 0.8062871364 | AR150: 0.8113307463 | AS150: 0.817980918 | AT150: 0.8246109226 | AV150: 0.98529927 | AW150: 3 | AX150: +30s | AY150: 20 | AZ150: 0.9333333333 | BB150: 0.4670014302 | BC150: 0.5329985698 | BE150: 1.210804726 | BF150: 0.7479107429 | BH150: 0.2520892571 | BJ150: 0.2520892571 | BL150: 0.7235739535
A151: 143 | B151: 00:23:40 | C151: 96.03876033 | D151: 90 | E151: 3 | F151: 0.5 | G151: 92.5 | H151: 5 | I151: 20 | J151: 5.73607535 | K151: 1.434018837 | L151: 1.434018837 | M151: 91.43401884 | N151: 93.93401884 | O151: 3.538760335 | Q151: =IF(AND(ABS(SLOPE($L121:$L151,$A121:$A151)) > $Q$3, ABS(SLOPE(OFFSET($O121:$O151, Q$7, 0),$A121:$A151)) > $Q$3), (MAX(0,(CORREL( $L121:$L151, OFFSET($O121:$O151, Q$7, 0) )))), (1-ABS(SLOPE($L121:$L151, $A121:$A151)-SLOPE(OFFSET($O121:$O151, Q$7, 0),$A121:$A151))) ) -> 0.9787763373 | R151: 0.9854764973 | S151: 0.9860852163 | T151: 0.9819839264 | U151: 0.9792572851 | V151: 0.9790425457 | W151: 0.9796017434 | X151: 0.9659006959 | Y151: 0.9379414173 | Z151: 0.8901173459 | AA151: 0.8339090657 | AB151: 0.7755239772 | AC151: 0.6647011444 | AD151: 0.5875422979 | AE151: 0.4994661934 | AF151: 0.8449391852 | AG151: 0.83660246 | AH151: 0.8285552923 | AI151: 0.8153357594 | AJ151: 0.803503054 | AK151: 0.800870542 | AL151: 0.7992945636 | AM151: 0.7952058493 | AN151: 0.7969295855 | AO151: 0.7990466843 | AP151: 0.802075856 | AQ151: 0.8071194659 | AR151: 0.8137696376 | AS151: 0.8203996422 | AT151: 0.8263174049 | AV151: 0.9860852163 | AW151: 2 | AX151: +20s | AY151: 10 | AZ151: 0.9666666667 | BB151: 0.4209482995 | BC151: 0.5790517005 | BE151: 1.434018837 | BF151: 0.6741558699 | BH151: 0.3258441301 | BJ151: 0.3258441301 | BL151: 0.7595320044
A152: 144 | B152: 00:23:50 | C152: 95.2501319 | D152: 90 | E152: 3 | F152: 0.5 | G152: 92 | H152: 5 | I152: 20 | J152: 6.616639592 | K152: 1.654159898 | L152: 1.654159898 | M152: 91.6541599 | N152: 93.6541599 | O152: 3.250131903 | Q152: =IF(AND(ABS(SLOPE($L122:$L152,$A122:$A152)) > $Q$3, ABS(SLOPE(OFFSET($O122:$O152, Q$7, 0),$A122:$A152)) > $Q$3), (MAX(0,(CORREL( $L122:$L152, OFFSET($O122:$O152, Q$7, 0) )))), (1-ABS(SLOPE($L122:$L152, $A122:$A152)-SLOPE(OFFSET($O122:$O152, Q$7, 0),$A122:$A152))) ) -> 0.98617195 | R152: 0.9867409392 | S152: 0.9829994903 | T152: 0.9804287558 | U152: 0.9800877519 | V152: 0.9805948674 | W152: 0.9673077445 | X152: 0.9400451944 | Y152: 0.8932848772 | Z152: 0.8380428087 | AA152: 0.7805858396 | AB152: 0.6709822716 | AC152: 0.5946813346 | AD152: 0.507079883 | AE152: 0.8411611037 | AF152: 0.8328243786 | AG152: 0.8247772108 | AH152: 0.8115576779 | AI152: 0.7997249726 | AJ152: 0.7970924605 | AK152: 0.7955164822 | AL152: 0.7914277679 | AM152: 0.793151504 | AN152: 0.7952686028 | AO152: 0.7982977746 | AP152: 0.8033413845 | AQ152: 0.8099915562 | AR152: 0.8166215608 | AS152: 0.8225393235 | AT152: 0.8343935335 | AV152: 0.9867409392 | AW152: 1 | AX152: +10s | AY152: 0 | AZ152: 1 | BB152: 0.3191944011 | BC152: 0.6808055989 | BE152: 1.654159898 | BF152: 0.5111952689 | BH152: 0.4888047311 | BJ152: 0.4888047311 | BL152: 0.8251818901
A153: 145 | B153: 00:24:00 | C153: 95.21313768 | D153: 90 | E153: 3 | F153: 0.5 | G153: 91.5 | H153: 5 | I153: 20 | J153: 7.483024611 | K153: 1.870756153 | L153: 1.870756153 | M153: 91.87075615 | N153: 93.37075615 | O153: 3.71313768 | Q153: =IF(AND(ABS(SLOPE($L123:$L153,$A123:$A153)) > $Q$3, ABS(SLOPE(OFFSET($O123:$O153, Q$7, 0),$A123:$A153)) > $Q$3), (MAX(0,(CORREL( $L123:$L153, OFFSET($O123:$O153, Q$7, 0) )))), (1-ABS(SLOPE($L123:$L153, $A123:$A153)-SLOPE(OFFSET($O123:$O153, Q$7, 0),$A123:$A153))) ) -> 0.9872809258 | R153: 0.9838879228 | S153: 0.9814682488 | T153: 0.9810051368 | U153: 0.9814618228 | V153: 0.9685763752 | W153: 0.9419904037 | X153: 0.896263567 | Y153: 0.841961433 | Z153: 0.7854077621 | AA153: 0.6769941129 | AB153: 0.6015303584 | AC153: 0.5143964307 | AD153: 0.8378243175 | AE153: 0.8294875923 | AF153: 0.8214404246 | AG153: 0.8082208917 | AH153: 0.7963881864 | AI153: 0.7937556743 | AJ153: 0.7921796959 | AK153: 0.7880909817 | AL153: 0.7898147178 | AM153: 0.7919318166 | AN153: 0.7949609883 | AO153: 0.8000045983 | AP153: 0.8066547699 | AQ153: 0.8132847746 | AR153: 0.8192025372 | AS153: 0.8310567473 | AT153: 0.5332101259 | AV153: 0.9872809258 | AW153: 0 | AX153: No Time Shift | AY153: 0 | AZ153: 1 | BB153: 0.3684763054 | BC153: 0.6315236946 | BE153: 1.870756153 | BF153: 0.5901210779 | BH153: 0.4098789221 | BJ153: 0.4098789221 | BL153: 0.7990532826
A154: 146 | B154: 00:24:10 | C154: 94.4109977 | D154: 90 | E154: 3 | F154: 0.5 | G154: 91 | H154: 5 | I154: 20 | J154: 8.333373777 | K154: 2.083343444 | L154: 2.083343444 | M154: 92.08334344 | N154: 93.08334344 | O154: 3.410997699 | Q154: =IF(AND(ABS(SLOPE($L124:$L154,$A124:$A154)) > $Q$3, ABS(SLOPE(OFFSET($O124:$O154, Q$7, 0),$A124:$A154)) > $Q$3), (MAX(0,(CORREL( $L124:$L154, OFFSET($O124:$O154, Q$7, 0) )))), (1-ABS(SLOPE($L124:$L154, $A124:$A154)-SLOPE(OFFSET($O124:$O154, Q$7, 0),$A124:$A154))) ) -> 0.9846626761 | R154: 0.9823900175 | S154: 0.9818082851 | T154: 0.9822159236 | U154: 0.9697219763 | V154: 0.9437958844 | W154: 0.8990774811 | X154: 0.8456936468 | Y154: 0.7900228757 | Z154: 0.682775329 | AA154: 0.6081319276 | AB154: 0.5214601772 | AC154: 0.8349359771 | AD154: 0.826599252 | AE154: 0.8185520842 | AF154: 0.8053325514 | AG154: 0.793499846 | AH154: 0.790867334 | AI154: 0.7892913556 | AJ154: 0.7852026413 | AK154: 0.7869263774 | AL154: 0.7890434763 | AM154: 0.792072648 | AN154: 0.7971162579 | AO154: 0.8037664296 | AP154: 0.8103964342 | AQ154: 0.8163141969 | AR154: 0.828168407 | AS154: 0.5268877025 | AT154: 0.5852608956 | AV154: 0.9846626761 | AW154: 0 | AX154: No Time Shift | AY154: 0 | AZ154: 1 | BB154: 0.2655308509 | BC154: 0.7344691491 | BE154: 2.083343444 | BF154: 0.4252521794 | BH154: 0.5747478206 | BJ154: 0.5747478206 | BL154: 0.8531368322
A155: 147 | B155: 00:24:20 | C155: 94.0620673 | D155: 90 | E155: 3 | F155: 0.5 | G155: 90.5 | H155: 5 | I155: 20 | J155: 9.16586482 | K155: 2.291466205 | L155: 2.291466205 | M155: 92.29146621 | N155: 92.79146621 | O155: 3.562067296 | Q155: =IF(AND(ABS(SLOPE($L125:$L155,$A125:$A155)) > $Q$3, ABS(SLOPE(OFFSET($O125:$O155, Q$7, 0),$A125:$A155)) > $Q$3), (MAX(0,(CORREL( $L125:$L155, OFFSET($O125:$O155, Q$7, 0) )))), (1-ABS(SLOPE($L125:$L155, $A125:$A155)-SLOPE(OFFSET($O125:$O155, Q$7, 0),$A125:$A155))) ) -> 0.9832056707 | R155: 0.9825081999 | S155: 0.9828679269 | T155: 0.9707572025 | U155: 0.9454774548 | V155: 0.9017472367 | W155: 0.8492643476 | X155: 0.7944601631 | Y155: 0.6883600597 | Z155: 0.6145238156 | AA155: 0.5283106282 | AB155: 0.8325022722 | AC155: 0.8241655471 | AD155: 0.8161183793 | AE155: 0.8028988465 | AF155: 0.7910661411 | AG155: 0.7884336291 | AH155: 0.7868576507 | AI155: 0.7827689364 | AJ155: 0.7844926725 | AK155: 0.7866097714 | AL155: 0.7896389431 | AM155: 0.794682553 | AN155: 0.8013327247 | AO155: 0.8079627293 | AP155: 0.813880492 | AQ155: 0.8257347021 | AR155: 0.5206711204 | AS155: 0.5793292254 | AT155: 0.6557114351 | AV155: 0.9832056707 | AW155: 0 | AX155: No Time Shift | AY155: 0 | AZ155: 1 | BB155: 0.2541202182 | BC155: 0.7458797818 | BE155: 2.291466205 | BF155: 0.4069778569 | BH155: 0.5930221431 | BJ155: 0.5930221431 | BL155: 0.8587426046
A156: 148 | B156: 00:24:30 | C156: 94.56012089 | D156: 90 | E156: 3 | F156: 0.5 | G156: 90 | H156: 5 | I156: 20 | J156: 9.978713743 | K156: 2.494678436 | L156: 2.494678436 | M156: 92.49467844 | N156: 92.49467844 | O156: 4.560120886 | Q156: =IF(AND(ABS(SLOPE($L126:$L156,$A126:$A156)) > $Q$3, ABS(SLOPE(OFFSET($O126:$O156, Q$7, 0),$A126:$A156)) > $Q$3), (MAX(0,(CORREL( $L126:$L156, OFFSET($O126:$O156, Q$7, 0) )))), (1-ABS(SLOPE($L126:$L156, $A126:$A156)-SLOPE(OFFSET($O126:$O156, Q$7, 0),$A126:$A156))) ) -> 0.9831137176 | R156: 0.9834264431 | S156: 0.9716924218 | T156: 0.9470484208 | U156: 0.9042906024 | V156: 0.8526953025 | W156: 0.7987452127 | X156: 0.6937787657 | Y156: 0.6207399152 | Z156: 0.5349833784 | AA156: 0.8305284182 | AB156: 0.822191693 | AC156: 0.8141445252 | AD156: 0.8009249924 | AE156: 0.789092287 | AF156: 0.786459775 | AG156: 0.7848837966 | AH156: 0.7807950823 | AI156: 0.7825188184 | AJ156: 0.7846359173 | AK156: 0.787665089 | AL156: 0.7927086989 | AM156: 0.7993588706 | AN156: 0.8059888752 | AO156: 0.8119066379 | AP156: 0.823760848 | AQ156: 0.5145336788 | AR156: 0.5734662929 | AS156: 0.6505241616 | AT156: 0.7059001044 | AV156: 0.9834264431 | AW156: 1 | AX156: +10s | AY156: 0 | AZ156: 1 | BB156: 0.4130884901 | BC156: 0.5869115099 | BE156: 2.494678436 | BF156: 0.6615682514 | BH156: 0.3384317486 | BJ156: 0.3384317486 | BL156: 0.7739527306
A157: 149 | B157: 00:24:40 | C157: 94.2437227 | D157: 90 | E157: 3 | F157: 0.5 | G157: 90 | H157: 5 | I157: 20 | J157: 10.77017864 | K157: 2.69254466 | L157: 2.69254466 | M157: 92.69254466 | N157: 92.69254466 | O157: 4.243722703 | Q157: =IF(AND(ABS(SLOPE($L127:$L157,$A127:$A157)) > $Q$3, ABS(SLOPE(OFFSET($O127:$O157, Q$7, 0),$A127:$A157)) > $Q$3), (MAX(0,(CORREL( $L127:$L157, OFFSET($O127:$O157, Q$7, 0) )))), (1-ABS(SLOPE($L127:$L157, $A127:$A157)-SLOPE(OFFSET($O127:$O157, Q$7, 0),$A127:$A157))) ) -> 0.9838982467 | R157: 0.9725360595 | S157: 0.9485199727 | T157: 0.9067229762 | U157: 0.8560056954 | V157: 0.8029008331 | W157: 0.6990589224 | X157: 0.6268109877 | Y157: 0.5415108809 | Z157: 0.8290186448 | AA157: 0.8206819196 | AB157: 0.8126347519 | AC157: 0.799415219 | AD157: 0.7875825136 | AE157: 0.7849500016 | AF157: 0.7833740232 | AG157: 0.7792853089 | AH157: 0.781009045 | AI157: 0.7831261439 | AJ157: 0.7861553156 | AK157: 0.7911989255 | AL157: 0.7978490972 | AM157: 0.8044791018 | AN157: 0.8103968645 | AO157: 0.8222510746 | AP157: 0.5084498802 | AQ157: 0.5676480952 | AR157: 0.6453650978 | AS157: 0.7012999513 | AT157: 0.7591897367 | AV157: 0.9838982467 | AW157: 0 | AX157: No Time Shift | AY157: 0 | AZ157: 1 | BB157: 0.3102356087 | BC157: 0.6897643913 | BE157: 2.69254466 | BF157: 0.4968476102 | BH157: 0.5031523898 | BJ157: 0.5031523898 | BL157: 0.8290168788
A158: 150 | B158: 00:24:50 | C158: 93.20466427 | D158: 90 | E158: 3 | F158: 0.5 | G158: 90 | H158: 5 | I158: 20 | J158: 11.53856343 | K158: 2.884640857 | L158: 2.884640857 | M158: 92.88464086 | N158: 92.88464086 | O158: 3.204664265 | Q158: =IF(AND(ABS(SLOPE($L128:$L158,$A128:$A158)) > $Q$3, ABS(SLOPE(OFFSET($O128:$O158, Q$7, 0),$A128:$A158)) > $Q$3), (MAX(0,(CORREL( $L128:$L158, OFFSET($O128:$O158, Q$7, 0) )))), (1-ABS(SLOPE($L128:$L158, $A128:$A158)-SLOPE(OFFSET($O128:$O158, Q$7, 0),$A128:$A158))) ) -> 0.9732948597 | R158: 0.9499014946 | S158: 0.9090577659 | T158: 0.8592125714 | U158: 0.8069475573 | V158: 0.7042255976 | W158: 0.6327652926 | X158: 0.5479230986 | Y158: 0.8279761875 | Z158: 0.8196394623 | AA158: 0.8115922946 | AB158: 0.7983727617 | AC158: 0.7865400563 | AD158: 0.7839075443 | AE158: 0.7823315659 | AF158: 0.7782428516 | AG158: 0.7799665877 | AH158: 0.7820836866 | AI158: 0.7851128583 | AJ158: 0.7901564682 | AK158: 0.7968066399 | AL158: 0.8034366445 | AM158: 0.8093544072 | AN158: 0.8212086173 | AO158: 0.5023950218 | AP158: 0.5618512671 | AQ158: 0.6402139772 | AR158: 0.6966971289 | AS158: 0.7552693735 | AT158: 0.858590129 | AV158: 0.9732948597 | AW158: 0 | AX158: No Time Shift | AY158: 0 | AZ158: 1 | BB158: 0.06400468169 | BC158: 0.9359953183 | BE158: 2.884640857 | BF158: 0.1025045877 | BH158: 0.8974954123 | BJ158: 0.8974954123 | BL158: 0.9569300907
A159: 151 | B159: 00:25:00 | C159: 92.81373325 | D159: 90 | E159: 3 | F159: 0.5 | G159: 90 | H159: 5 | I159: 20 | J159: 12.28222149 | K159: 3.070555372 | L159: 3.070555372 | M159: 93.07055537 | N159: 93.07055537 | O159: 2.813733252 | Q159: =IF(AND(ABS(SLOPE($L129:$L159,$A129:$A159)) > $Q$3, ABS(SLOPE(OFFSET($O129:$O159, Q$7, 0),$A129:$A159)) > $Q$3), (MAX(0,(CORREL( $L129:$L159, OFFSET($O129:$O159, Q$7, 0) )))), (1-ABS(SLOPE($L129:$L159, $A129:$A159)-SLOPE(OFFSET($O129:$O159, Q$7, 0),$A129:$A159))) ) -> 0.9512008032 | R159: 0.9113066943 | S159: 0.8623312005 | T159: 0.8109040618 | U159: 0.7093019402 | V159: 0.638629126 | W159: 0.5542480646 | X159: 0.8274032802 | Y159: 0.819066555 | Z159: 0.8110193873 | AA159: 0.7977998544 | AB159: 0.7859671491 | AC159: 0.783334637 | AD159: 0.7817586586 | AE159: 0.7776699444 | AF159: 0.7793936805 | AG159: 0.7815107793 | AH159: 0.784539951 | AI159: 0.789583561 | AJ159: 0.7962337326 | AK159: 0.8028637373 | AL159: 0.8087814999 | AM159: 0.82063571 | AN159: 0.4963448109 | AO159: 0.5560527237 | AP159: 0.6350505876 | AQ159: 0.6920738424 | AR159: 0.7513192405 | AS159: 0.8560028289 | AT159: 0.9341185581 | AV159: 0.9512008032 | AW159: 0 | AX159: No Time Shift | AY159: 0 | AZ159: 1 | BB159: 0.05136442392 | BC159: 0.9486355761 | BE159: 3.070555372 | BF159: 0.08226099959 | BH159: 0.9177390004 | BJ159: 0.9177390004 | BL159: 0.9563132679
A160: 152 | B160: 00:25:10 | C160: 92.39435038 | D160: 90 | E160: 3 | F160: 0.5 | G160: 90 | H160: 5 | I160: 20 | J160: 12.99955918 | K160: 3.249889796 | L160: 3.249889796 | M160: 93.2498898 | N160: 93.2498898 | O160: 2.394350377 | Q160: =IF(AND(ABS(SLOPE($L130:$L160,$A130:$A160)) > $Q$3, ABS(SLOPE(OFFSET($O130:$O160, Q$7, 0),$A130:$A160)) > $Q$3), (MAX(0,(CORREL( $L130:$L160, OFFSET($O130:$O160, Q$7, 0) )))), (1-ABS(SLOPE($L130:$L160, $A130:$A160)-SLOPE(OFFSET($O130:$O160, Q$7, 0),$A130:$A160))) ) -> 0.9134800418 | R160: 0.8653753754 | S160: 0.8147875186 | T160: 0.7143096007 | U160: 0.6444272886 | V160: 0.5605123749 | W160: 0.8273011507 | X160: 0.8189644255 | Y160: 0.8109172578 | Z160: 0.7976977249 | AA160: 0.7858650196 | AB160: 0.7832325075 | AC160: 0.7816565291 | AD160: 0.7775678149 | AE160: 0.779291551 | AF160: 0.7814086498 | AG160: 0.7844378216 | AH160: 0.7894814315 | AI160: 0.7961316031 | AJ160: 0.8027616078 | AK160: 0.8086793704 | AL160: 0.8205335805 | AM160: 0.4902749908 | AN160: 0.5502293099 | AO160: 0.6298544714 | AP160: 0.6874119167 | AQ160: 0.7473239933 | AR160: 0.8533584599 | AS160: 0.9327786119 | AT160: 0.9492486414 | AV160: 0.9492486414 | AW160: 29 | AX160: +290s | AY160: 280 | AZ160: 0.06666666667 | BB160: 0.1711078838 | BC160: 0.8288921162 | BE160: 3.249889796 | BF160: 0.2740321898 | BH160: 0.7259678102 | BJ160: 0.7259678102 | BL160: 0.5806277061
A161: 153 | B161: 00:25:20 | C161: 92.31912103 | D161: 90 | E161: 3 | F161: 0.5 | G161: 90 | H161: 5 | I161: 20 | J161: 13.68903929 | K161: 3.422259823 | L161: 3.422259823 | M161: 93.42225982 | N161: 93.42225982 | O161: 2.319121035 | Q161: =IF(AND(ABS(SLOPE($L131:$L161,$A131:$A161)) > $Q$3, ABS(SLOPE(OFFSET($O131:$O161, Q$7, 0),$A131:$A161)) > $Q$3), (MAX(0,(CORREL( $L131:$L161, OFFSET($O131:$O161, Q$7, 0) )))), (1-ABS(SLOPE($L131:$L161, $A131:$A161)-SLOPE(OFFSET($O131:$O161, Q$7, 0),$A131:$A161))) ) -> 0.8683576584 | R161: 0.8186138947 | S161: 0.7192690995 | T161: 0.6501835028 | U161: 0.5667416312 | V161: 0.8276700178 | W161: 0.8193332927 | X161: 0.8112861249 | Y161: 0.7980665921 | Z161: 0.7862338867 | AA161: 0.7836013747 | AB161: 0.7820253963 | AC161: 0.777936682 | AD161: 0.7796604181 | AE161: 0.781777517 | AF161: 0.7848066887 | AG161: 0.7898502986 | AH161: 0.7965004703 | AI161: 0.8031304749 | AJ161: 0.8090482376 | AK161: 0.8209024477 | AL161: 0.4841609652 | AM161: 0.5443574445 | AN161: 0.6246046158 | AO161: 0.6826925242 | AP161: 0.743267529 | AQ161: 0.850646437 | AR161: 0.9313665338 | AS161: 0.9490275493 | AT161: 0.9444034772 | AV161: 0.9490275493 | AW161: 28 | AX161: +280s | AY161: 270 | AZ161: 0.1 | BB161: 0.2206277577 | BC161: 0.7793722423 | BE161: 3.422259823 | BF161: 0.353339111 | BH161: 0.646660889 | BJ161: 0.646660889 | BL161: 0.5652294794
A162: 154 | B162: 00:25:30 | C162: 92.39922529 | D162: 90 | E162: 3 | F162: 0.5 | G162: 90 | H162: 5 | I162: 20 | J162: 14.34918428 | K162: 3.587296069 | L162: 3.587296069 | M162: 93.58729607 | N162: 93.58729607 | O162: 2.399225288 | Q162: =IF(AND(ABS(SLOPE($L132:$L162,$A132:$A162)) > $Q$3, ABS(SLOPE(OFFSET($O132:$O162, Q$7, 0),$A132:$A162)) > $Q$3), (MAX(0,(CORREL( $L132:$L162, OFFSET($O132:$O162, Q$7, 0) )))), (1-ABS(SLOPE($L132:$L162, $A132:$A162)-SLOPE(OFFSET($O132:$O162, Q$7, 0),$A132:$A162))) ) -> 0.8223982088 | R162: 0.7242001557 | S162: 0.655920792 | T162: 0.5729608501 | U162: 0.8285090911 | V162: 0.820172366 | W162: 0.8121251982 | X162: 0.7989056653 | Y162: 0.78707296 | Z162: 0.7844404479 | AA162: 0.7828644696 | AB162: 0.7787757553 | AC162: 0.7804994914 | AD162: 0.7826165902 | AE162: 0.785645762 | AF162: 0.7906893719 | AG162: 0.7973395436 | AH162: 0.8039695482 | AI162: 0.8098873109 | AJ162: 0.8217415209 | AK162: 0.4779774115 | AL162: 0.5384127488 | AM162: 0.619279123 | AN162: 0.6778958898 | AO162: 0.7391327348 | AP162: 0.8478550576 | AQ162: 0.9298758694 | AR162: 0.9487328715 | AS162: 0.9452555619 | AT162: 0.9303445036 | AV162: 0.9487328715 | AW162: 27 | AX162: +270s | AY162: 260 | AZ162: 0.1333333333 | BB162: 0.2376141562 | BC162: 0.7623858438 | BE162: 3.587296069 | BF162: 0.3805431174 | BH162: 0.6194568826 | BJ162: 0.6194568826 | BL162: 0.5671743625
A163: 155 | B163: 00:25:40 | C163: 91.58418314 | D163: 90 | E163: 3 | F163: 0.5 | G163: 90 | H163: 5 | I163: 20 | J163: 14.97857947 | K163: 3.744644868 | L163: 3.744644868 | M163: 93.74464487 | N163: 93.74464487 | O163: 1.584183138 | Q163: =IF(AND(ABS(SLOPE($L133:$L163,$A133:$A163)) > $Q$3, ABS(SLOPE(OFFSET($O133:$O163, Q$7, 0),$A133:$A163)) > $Q$3), (MAX(0,(CORREL( $L133:$L163, OFFSET($O133:$O163, Q$7, 0) )))), (1-ABS(SLOPE($L133:$L163, $A133:$A163)-SLOPE(OFFSET($O133:$O163, Q$7, 0),$A133:$A163))) ) -> 0.729121988 | R163: 0.6616618352 | S163: 0.579194851 | T163: 0.8298165725 | U163: 0.8214798473 | V163: 0.8134326796 | W163: 0.8002131467 | X163: 0.7883804413 | Y163: 0.7857479293 | Z163: 0.7841719509 | AA163: 0.7800832366 | AB163: 0.7818069727 | AC163: 0.7839240716 | AD163: 0.7869532433 | AE163: 0.7919968532 | AF163: 0.7986470249 | AG163: 0.8052770295 | AH163: 0.8111947922 | AI163: 0.8230490023 | AJ163: 0.4716978675 | AK163: 0.5323696486 | AL163: 0.6138548489 | AM163: 0.6730009635 | AN163: 0.7349012012 | AO163: 0.8449712992 | AP163: 0.9282988515 | AQ163: 0.9483617695 | AR163: 0.9460424156 | AS163: 0.9320368494 | AT163: 0.9162456838 | AV163: 0.9483617695 | AW163: 26 | AX163: +260s | AY163: 250 | AZ163: 0.1666666667 | BB163: 0.4320923461 | BC163: 0.5679076539 | BE163: 3.744644868 | BF163: 0.6920032504 | BH163: 0.3079967496 | BJ163: 0.3079967496 | BL163: 0.4743417286
A164: 156 | B164: 00:25:50 | C164: 92.22543677 | D164: 90 | E164: 3 | F164: 0.5 | G164: 90 | H164: 5 | I164: 20 | J164: 15.57587611 | K164: 3.893969027 | L164: 3.893969027 | M164: 93.89396903 | N164: 93.89396903 | O164: 2.225436773 | Q164: =IF(AND(ABS(SLOPE($L134:$L164,$A134:$A164)) > $Q$3, ABS(SLOPE(OFFSET($O134:$O164, Q$7, 0),$A134:$A164)) > $Q$3), (MAX(0,(CORREL( $L134:$L164, OFFSET($O134:$O164, Q$7, 0) )))), (1-ABS(SLOPE($L134:$L164, $A134:$A164)-SLOPE(OFFSET($O134:$O164, Q$7, 0),$A134:$A164))) ) -> 0.667429309 | R164: 0.5854686361 | S164: 0.83158966 | T164: 0.8232529348 | U164: 0.8152057671 | V164: 0.8019862342 | W164: 0.7901535288 | X164: 0.7875210168 | Y164: 0.7859450384 | Z164: 0.7818563241 | AA164: 0.7835800602 | AB164: 0.7856971591 | AC164: 0.7887263308 | AD164: 0.7937699407 | AE164: 0.8004201124 | AF164: 0.807050117 | AG164: 0.8129678797 | AH164: 0.8248220898 | AI164: 0.4652942801 | AJ164: 0.5262009338 | AK164: 0.6083070002 | AL164: 0.6679850478 | AM164: 0.7305528908 | AN164: 0.8419805709 | AO164: 0.9266262336 | AP164: 0.9479100831 | AQ164: 0.946764821 | AR164: 0.9336783352 | AS164: 0.9186567693 | AT164: 0.9040564978 | AV164: 0.9479100831 | AW164: 25 | AX164: +250s | AY164: 240 | AZ164: 0.2 | BB164: 0.3337064508 | BC164: 0.6662935492 | BE164: 3.893969027 | BF164: 0.5344365636 | BH164: 0.4655634364 | BJ164: 0.4655634364 | BL164: 0.5378245065
A165: 157 | B165: 00:26:00 | C165: 92.32204328 | D165: 90 | E165: 3 | F165: 0.5 | G165: 90 | H165: 5 | I165: 20 | J165: 16.1397942 | K165: 4.03494855 | L165: 4.03494855 | M165: 94.03494855 | N165: 94.03494855 | O165: 2.322043278 | Q165: =IF(AND(ABS(SLOPE($L135:$L165,$A135:$A165)) > $Q$3, ABS(SLOPE(OFFSET($O135:$O165, Q$7, 0),$A135:$A165)) > $Q$3), (MAX(0,(CORREL( $L135:$L165, OFFSET($O135:$O165, Q$7, 0) )))), (1-ABS(SLOPE($L135:$L165, $A135:$A165)-SLOPE(OFFSET($O135:$O165, Q$7, 0),$A135:$A165))) ) -> 0.5918077735 | R165: 0.833824554 | S165: 0.8254878288 | T165: 0.8174406611 | U165: 0.8042211282 | V165: 0.7923884228 | W165: 0.7897559108 | X165: 0.7881799324 | Y165: 0.7840912181 | Z165: 0.7858149542 | AA165: 0.7879320531 | AB165: 0.7909612248 | AC165: 0.7960048347 | AD165: 0.8026550064 | AE165: 0.809285011 | AF165: 0.8152027737 | AG165: 0.8270569838 | AH165: 0.4587364981 | AI165: 0.5198772618 | AJ165: 0.6026086724 | AK165: 0.6628233677 | AL165: 0.7260657483 | AM165: 0.8388664084 | AN165: 0.9248470694 | AO165: 0.9473721952 | AP165: 0.9474223683 | AQ165: 0.935272674 | AR165: 0.9210358726 | AS165: 0.9071300488 | AT165: 0.8820466883 | AV165: 0.9474223683 | AW165: 25 | AX165: +250s | AY165: 240 | AZ165: 0.2 | BB165: 0.3425810545 | BC165: 0.6574189455 | BE165: 4.03494855 | BF165: 0.5486493925 | BH165: 0.4513506075 | BJ165: 0.4513506075 | BL165: 0.5329243252
A166: 158 | B166: 00:26:10 | C166: 92.21012982 | D166: 90 | E166: 3 | F166: 0.5 | G166: 90 | H166: 5 | I166: 20 | J166: 16.66912529 | K166: 4.167281322 | L166: 4.167281322 | M166: 94.16728132 | N166: 94.16728132 | O166: 2.210129818 | Q166: =IF(AND(ABS(SLOPE($L136:$L166,$A136:$A166)) > $Q$3, ABS(SLOPE(OFFSET($O136:$O166, Q$7, 0),$A136:$A166)) > $Q$3), (MAX(0,(CORREL( $L136:$L166, OFFSET($O136:$O166, Q$7, 0) )))), (1-ABS(SLOPE($L136:$L166, $A136:$A166)-SLOPE(OFFSET($O136:$O166, Q$7, 0),$A136:$A166))) ) -> 0.8365164652 | R166: 0.82817974 | S166: 0.8201325723 | T166: 0.8069130394 | U166: 0.795080334 | V166: 0.792447822 | W166: 0.7908718436 | X166: 0.7867831293 | Y166: 0.7885068654 | Z166: 0.7906239643 | AA166: 0.793653136 | AB166: 0.7986967459 | AC166: 0.8053469176 | AD166: 0.8119769222 | AE166: 0.8178946849 | AF166: 0.829748895 | AG166: 0.4519916907 | AH166: 0.5133665839 | AI166: 0.5967303118 | AJ166: 0.6574885647 | AK166: 0.721415237 | AL166: 0.8356100987 | AM166: 0.922948428 | AN166: 0.9467408395 | AO166: 0.9480133553 | AP166: 0.9368225851 | AQ166: 0.9233894377 | AR166: 0.9101948893 | AS166: 0.8855479095 | AT166: 0.8513856101 | AV166: 0.9480133553 | AW166: 24 | AX166: +240s | AY166: 230 | AZ166: 0.2333333333 | BB166: 0.3914303008 | BC166: 0.6085696992 | BE166: 4.167281322 | BF166: 0.6268822923 | BH166: 0.3731177077 | BJ166: 0.3731177077 | BL166: 0.5181547988
A167: 159 | B167: 00:26:20 | C167: 92.90126474 | D167: 90 | E167: 3 | F167: 0.5 | G167: 90 | H167: 5 | I167: 20 | J167: 17.16273504 | K167: 4.290683759 | L167: 4.290683759 | M167: 94.29068376 | N167: 94.29068376 | O167: 2.901264743 | Q167: =IF(AND(ABS(SLOPE($L137:$L167,$A137:$A167)) > $Q$3, ABS(SLOPE(OFFSET($O137:$O167, Q$7, 0),$A137:$A167)) > $Q$3), (MAX(0,(CORREL( $L137:$L167, OFFSET($O137:$O167, Q$7, 0) )))), (1-ABS(SLOPE($L137:$L167, $A137:$A167)-SLOPE(OFFSET($O137:$O167, Q$7, 0),$A137:$A167))) ) -> 0.8313228997 | R167: 0.823275732 | S167: 0.8100561991 | T167: 0.7982234938 | U167: 0.7955909817 | V167: 0.7940150033 | W167: 0.7899262891 | X167: 0.7916500252 | Y167: 0.793767124 | Z167: 0.7967962957 | AA167: 0.8018399057 | AB167: 0.8084900773 | AC167: 0.8151200819 | AD167: 0.8210378446 | AE167: 0.8328920547 | AF167: 0.4450236657 | AG167: 0.5066334712 | AH167: 0.5906390776 | AI167: 0.6519500929 | AJ167: 0.7165737803 | AK167: 0.8321902175 | AL167: 0.9209150288 | AM167: 0.9460068397 | AN167: 0.9485346324 | AO167: 0.9383297247 | AP167: 0.9257231743 | AQ167: 0.913260325 | AR167: 0.8890637524 | AS167: 0.8555843248 | AT167: 0.8034889287 | AV167: =MAX(Q167:AT167) -> 0.9485346324 | AW167: =MATCH(AV167, Q167:AT167, 0)-1 -> 23 | AX167: +230s | AY167: 220 | AZ167: 0.2666666667 | BB167: 0.2778838034 | BC167: 0.7221161966 | BE167: 4.290683759 | BF167: 0.4450356431 | BH167: 0.5549643569 | BJ167: 0.5549643569 | BL167: =($BL$2*AV167+$BL$3*AZ167+BJ167*$BL$4)/SUM($BL$2:$BL$4) -> 0.5900552187
A168: 160 | B168: 00:26:30 | C168: 92.64488143 | D168: 90 | E168: 3 | F168: 0.5 | G168: 90 | H168: 5 | I168: 20 | J168: 17.61956566 | K168: 4.404891415 | L168: 4.404891415 | M168: 94.40489141 | N168: 94.40489141 | O168: 2.644881435 | Q168: =IF(AND(ABS(SLOPE($L138:$L168,$A138:$A168)) > $Q$3, ABS(SLOPE(OFFSET($O138:$O168, Q$7, 0),$A138:$A168)) > $Q$3), (MAX(0,(CORREL( $L138:$L168, OFFSET($O138:$O168, Q$7, 0) )))), (1-ABS(SLOPE($L138:$L168, $A138:$A168)-SLOPE(OFFSET($O138:$O168, Q$7, 0),$A138:$A168))) ) -> 0.8268634046 | R168: 0.8136438717 | S168: 0.8018111663 | T168: 0.7991786543 | U168: 0.7976026759 | V168: 0.7935139616 | W168: 0.7952376978 | X168: 0.7973547966 | Y168: 0.8003839683 | Z168: 0.8054275782 | AA168: 0.8120777499 | AB168: 0.8187077545 | AC168: 0.8246255172 | AD168: 0.8364797273 | AE168: 0.4377920602 | AF168: 0.4996383097 | AG168: 0.5842980757 | AH168: 0.6461734883 | AI168: 0.7115100802 | AJ168: 0.8285820532 | AK168: 0.9187287757 | AL168: 0.9451587636 | AM168: 0.9489813782 | AN168: 0.9397945608 | AO168: 0.9280420176 | AP168: 0.9163352561 | AQ168: 0.8926056896 | AR168: 0.8598339921 | AS168: 0.8085968933 | AT168: 0.726553101 | AV168: 0.9489813782 | AW168: 22 | AX168: =OFFSET($Q$6, 0, AW168) -> +220s | AY168: =MAX(AW168-1,0) * 10 -> 210 | AZ168: =ABS( 5*60 - AY168 ) / (5*60) -> 0.3 | BB168: 0.352001996 | BC168: 0.647998004 | BE168: 4.404891415 | BF168: 0.5637371907 | BH168: 0.4362628093 | BJ168: 0.4362628093 | BL168: 0.5617480625
A169: 161 | B169: 00:26:40 | C169: 92.45435992 | D169: 90 | E169: 3 | F169: 0.5 | G169: 90 | H169: 5 | I169: 20 | J169: 18.03863818 | K169: 4.509659545 | L169: 4.509659545 | M169: 94.50965955 | N169: 94.50965955 | O169: 2.454359915 | Q169: =IF(AND(ABS(SLOPE($L139:$L169,$A139:$A169)) > $Q$3, ABS(SLOPE(OFFSET($O139:$O169, Q$7, 0),$A139:$A169)) > $Q$3), (MAX(0,(CORREL( $L139:$L169, OFFSET($O139:$O169, Q$7, 0) )))), (1-ABS(SLOPE($L139:$L169, $A139:$A169)-SLOPE(OFFSET($O139:$O169, Q$7, 0),$A139:$A169))) ) -> 0.8176683689 | R169: 0.8058356635 | S169: 0.8032031515 | T169: 0.8016271731 | U169: 0.7975384588 | V169: 0.7992621949 | W169: 0.8013792938 | X169: 0.8044084655 | Y169: 0.8094520754 | Z169: 0.8161022471 | AA169: 0.8227322517 | AB169: 0.8286500144 | AC169: 0.8405042245 | AD169: 0.4302513614 | AE169: 0.4923363244 | AF169: 0.5776654241 | AG169: 0.6401194749 | AH169: 0.7061882784 | AI169: 0.8247568865 | AJ169: 0.9163681624 | AK169: 0.9441824682 | AL169: 0.949346789 | AM169: 0.9412161805 | AN169: 0.930350036 | AO169: 0.9194281736 | AP169: 0.8961851067 | AQ169: 0.8641503526 | AR169: 0.8138081618 | AS169: 0.7327643973 | AT169: 0.6171868031 | AV169: 0.949346789 | AW169: 21 | AX169: +210s | AY169: 200 | AZ169: 0.3333333333 | BB169: 0.411059926 | BC169: 0.588940074 | BE169: 4.509659545 | BF169: 0.6583194714 | BH169: 0.3416805286 | BJ169: 0.3416805286 | BL169: 0.5414535503
A170: 162 | B170: 00:26:50 | C170: 92.53378067 | D170: 90 | E170: 3 | F170: 0.5 | G170: 90 | H170: 5 | I170: 20 | J170: 18.41905455 | K170: 4.604763636 | L170: 4.604763636 | M170: 94.60476364 | N170: 94.60476364 | O170: 2.533780675 | Q170: =IF(AND(ABS(SLOPE($L140:$L170,$A140:$A170)) > $Q$3, ABS(SLOPE(OFFSET($O140:$O170, Q$7, 0),$A140:$A170)) > $Q$3), (MAX(0,(CORREL( $L140:$L170, OFFSET($O140:$O170, Q$7, 0) )))), (1-ABS(SLOPE($L140:$L170, $A140:$A170)-SLOPE(OFFSET($O140:$O170, Q$7, 0),$A140:$A170))) ) -> 0.810288361 | R170: 0.8076558489 | S170: 0.8060798705 | T170: 0.8019911563 | U170: 0.8037148924 | V170: 0.8058319912 | W170: 0.8088611629 | X170: 0.8139047729 | Y170: 0.8205549445 | Z170: 0.8271849492 | AA170: 0.8331027118 | AB170: 0.8449569219 | AC170: 0.4223497101 | AD170: 0.4846763829 | AE170: 0.570693101 | AF170: 0.633742857 | AG170: 0.700566912 | AH170: 0.8206810829 | AI170: 0.9138075098 | AJ170: 0.9430605046 | AK170: 0.9496216555 | AL170: 0.9425920084 | AM170: 0.9326502703 | AN170: 0.9225471074 | AO170: 0.8998133246 | AP170: 0.8685496743 | AQ170: 0.8191451485 | AR170: 0.739151951 | AS170: 0.6249370937 | AT170: 0.8367621283 | AV170: 0.9496216555 | AW170: 20 | AX170: +200s | AY170: 190 | AZ170: 0.3666666667 | BB170: 0.4141965924 | BC170: 0.5858034076 | BE170: 4.604763636 | BF170: 0.663342896 | BH170: 0.336657104 | BJ170: 0.336657104 | BL170: 0.5509818087
A171: 163 | B171: 00:27:00 | C171: 93.54831053 | D171: 90 | E171: 3 | F171: 0.5 | G171: 90 | H171: 5 | I171: 20 | J171: 18.75999954 | K171: 4.689999884 | L171: 4.689999884 | M171: 94.68999988 | N171: 94.68999988 | O171: 3.548310526 | Q171: =IF(AND(ABS(SLOPE($L141:$L171,$A141:$A171)) > $Q$3, ABS(SLOPE(OFFSET($O141:$O171, Q$7, 0),$A141:$A171)) > $Q$3), (MAX(0,(CORREL( $L141:$L171, OFFSET($O141:$O171, Q$7, 0) )))), (1-ABS(SLOPE($L141:$L171, $A141:$A171)-SLOPE(OFFSET($O141:$O171, Q$7, 0),$A141:$A171))) ) -> 0.8125272046 | R171: 0.8109512262 | S171: 0.806862512 | T171: 0.8085862481 | U171: 0.8107033469 | V171: 0.8137325187 | W171: 0.8187761286 | X171: 0.8254263002 | Y171: 0.8320563049 | Z171: 0.8379740675 | AA171: 0.8498282776 | AB171: 0.4140274175 | AC171: 0.4765995095 | AD171: 0.563325509 | AE171: 0.6269911335 | AF171: 0.6945975993 | AG171: 0.8163149373 | AH171: 0.9110159831 | AI171: 0.9417713354 | AJ171: 0.9497937908 | AK171: 0.9439174079 | AL171: 0.934944483 | AM171: 0.9256995063 | AN171: 0.903501573 | AO171: 0.8730488647 | AP171: 0.8246318331 | AQ171: 0.7457480306 | AR171: 0.6329734905 | AS171: 0.841633484 | AT171: 0.8224305001 | AV171: 0.9497937908 | AW171: 19 | AX171: +190s | AY171: 180 | AZ171: 0.4 | BB171: 0.2283378715 | BC171: 0.7716621285 | BE171: 4.689999884 | BF171: 0.3656869896 | BH171: 0.6343130104 | BJ171: 0.6343130104 | BL171: 0.6613689337
A172: 164 | B172: 00:27:10 | C172: 93.6459601 | D172: 90 | E172: 3 | F172: 0.5 | G172: 90 | H172: 5 | I172: 20 | J172: 19.06074252 | K172: 4.765185629 | L172: 4.765185629 | M172: 94.76518563 | N172: 94.76518563 | O172: 3.645960097 | Q172: =IF(AND(ABS(SLOPE($L142:$L172,$A142:$A172)) > $Q$3, ABS(SLOPE(OFFSET($O142:$O172, Q$7, 0),$A142:$A172)) > $Q$3), (MAX(0,(CORREL( $L142:$L172, OFFSET($O142:$O172, Q$7, 0) )))), (1-ABS(SLOPE($L142:$L172, $A142:$A172)-SLOPE(OFFSET($O142:$O172, Q$7, 0),$A142:$A172))) ) -> 0.8162308011 | R172: 0.8121420868 | S172: 0.8138658229 | T172: 0.8159829218 | U172: 0.8190120935 | V172: 0.8240557034 | W172: 0.8307058751 | X172: 0.8373358797 | Y172: 0.8432536424 | Z172: 0.8551078525 | AA172: 0.4052151089 | AB172: 0.4680370197 | AC172: 0.5554976645 | AD172: 0.619802745 | AE172: 0.688223372 | AF172: 0.8116111931 | AG172: 0.9079563148 | AH172: 0.9402883043 | AI172: 0.9498472567 | AJ172: 0.9451851207 | AK172: 0.9372327807 | AL172: 0.9288920247 | AM172: 0.9072608921 | AN172: 0.8776655447 | AO172: 0.8302940553 | AP172: 0.7525881534 | AQ172: 0.6413442628 | AR172: 0.8469130589 | AS172: 0.827710075 | AT172: 0.8065068093 | AV172: 0.9498472567 | AW172: 18 | AX172: +180s | AY172: 170 | AZ172: 0.4333333333 | BB172: 0.2238451064 | BC172: 0.7761548936 | BE172: 4.765185629 | BF172: 0.3584917498 | BH172: 0.6415082502 | BJ172: 0.6415082502 | BL172: 0.6748962801
A173: 165 | B173: 00:27:20 | C173: 93.40605861 | D173: 90 | E173: 3 | F173: 0.5 | G173: 90 | H173: 5 | I173: 20 | J173: 19.32063901 | K173: 4.830159752 | L173: 4.830159752 | M173: 94.83015975 | N173: 94.83015975 | O173: 3.406058611 | Q173: =IF(AND(ABS(SLOPE($L143:$L173,$A143:$A173)) > $Q$3, ABS(SLOPE(OFFSET($O143:$O173, Q$7, 0),$A143:$A173)) > $Q$3), (MAX(0,(CORREL( $L143:$L173, OFFSET($O143:$O173, Q$7, 0) )))), (1-ABS(SLOPE($L143:$L173, $A143:$A173)-SLOPE(OFFSET($O143:$O173, Q$7, 0),$A143:$A173))) ) -> 0.8178185669 | R173: 0.819542303 | S173: 0.8216594018 | T173: 0.8246885735 | U173: 0.8297321835 | V173: 0.8363823551 | W173: 0.8430123598 | X173: 0.8489301224 | Y173: 0.8607843325 | Z173: 0.3958313732 | AA173: 0.4589081533 | AB173: 0.5471328909 | AC173: 0.6121048332 | AD173: 0.6813765331 | AE173: 0.8065131221 | AF173: 0.9045831315 | AG173: 0.9385782663 | AH173: 0.9497613144 | AI173: 0.9463844847 | AJ173: 0.9395130609 | AK173: 0.9321301722 | AL173: 0.9111019293 | AM173: 0.8824180629 | AN173: 0.8361598074 | AO173: 0.759711718 | AP173: 0.6501038611 | AQ173: 0.8525895389 | AR173: 0.833386555 | AS173: 0.8121832893 | AT173: 0.7982313492 | AV173: 0.9497613144 | AW173: 17 | AX173: +170s | AY173: 160 | AZ173: 0.4666666667 | BB173: 0.2848202282 | BC173: 0.7151797718 | BE173: 4.830159752 | BF173: 0.4561444456 | BH173: 0.5438555544 | BJ173: 0.5438555544 | BL173: 0.6534278451
A174: 166 | B174: 00:27:30 | C174: 94.04316573 | D174: 90 | E174: 3 | F174: 0.5 | G174: 90 | H174: 5 | I174: 20 | J174: 19.53913206 | K174: 4.884783015 | L174: 4.884783015 | M174: 94.88478302 | N174: 94.88478302 | O174: 4.043165728 | Q174: =IF(AND(ABS(SLOPE($L144:$L174,$A144:$A174)) > $Q$3, ABS(SLOPE(OFFSET($O144:$O174, Q$7, 0),$A144:$A174)) > $Q$3), (MAX(0,(CORREL( $L144:$L174, OFFSET($O144:$O174, Q$7, 0) )))), (1-ABS(SLOPE($L144:$L174, $A144:$A174)-SLOPE(OFFSET($O144:$O174, Q$7, 0),$A144:$A174))) ) -> 0.8256035237 | R174: 0.8277206226 | S174: 0.8307497943 | T174: 0.8357934042 | U174: 0.8424435759 | V174: 0.8490735805 | W174: 0.8549913432 | X174: 0.8668455533 | Y174: 0.3857797551 | Z174: 0.4491170393 | AA174: 0.5381398497 | AB174: 0.6038103471 | AC174: 0.6739758796 | AD174: 0.8009520122 | AE174: 0.9008407407 | AF174: 0.9365997524 | AG174: 0.9495089916 | AH174: 0.9475003374 | AI174: 0.941780204 | AJ174: 0.9354177647 | AK174: 0.9150345759 | AL174: 0.8873254108 | AM174: 0.8422595042 | AN174: 0.7671627135 | AO174: 0.6593142105 | AP174: 0.8586507596 | AQ174: 0.8394477757 | AR174: 0.8182445101 | AS174: 0.80429257 | AT174: 0.7907826218 | AV174: 0.9495089916 | AW174: 16 | AX174: +160s | AY174: 150 | AZ174: 0.5 | BB174: 0.1683234575 | BC174: 0.8316765425 | BE174: 4.884783015 | BF174: 0.2695728835 | BH174: 0.7304271165 | BJ174: 0.7304271165 | BL174: 0.7266453693
A175: 167 | B175: 00:27:40 | C175: 94.26301627 | D175: 90 | E175: 3 | F175: 0.5 | G175: 90 | H175: 5 | I175: 20 | J175: 19.71575345 | K175: 4.928938363 | L175: 4.928938363 | M175: 94.92893836 | N175: 94.92893836 | O175: 4.263016274 | Q175: =IF(AND(ABS(SLOPE($L145:$L175,$A145:$A175)) > $Q$3, ABS(SLOPE(OFFSET($O145:$O175, Q$7, 0),$A145:$A175)) > $Q$3), (MAX(0,(CORREL( $L145:$L175, OFFSET($O145:$O175, Q$7, 0) )))), (1-ABS(SLOPE($L145:$L175, $A145:$A175)-SLOPE(OFFSET($O145:$O175, Q$7, 0),$A145:$A175))) ) -> 0.834153595 | R175: 0.8371827667 | S175: 0.8422263767 | T175: 0.8488765483 | U175: 0.855506553 | V175: 0.8614243156 | W175: 0.8732785257 | X175: 0.3749448654 | Y175: 0.4385487597 | Z175: 0.5284086746 | AA175: 0.5948142627 | AB175: 0.6659230599 | AC175: 0.7948438424 | AD175: 0.8966601707 | AE175: 0.9343004859 | AF175: 0.9490551084 | AG175: 0.9485114703 | AH175: 0.9440248965 | AI175: 0.9387560765 | AJ175: 0.919067361 | AK175: 0.8924069733 | AL175: 0.8486261946 | AM175: 0.7749904993 | AN175: 0.6690462523 | AO175: 0.8650837321 | AP175: 0.8458807482 | AQ175: 0.8246774825 | AR175: 0.8107255424 | AS175: 0.7972155942 | AT175: 0 | AV175: 0.9490551084 | AW175: 15 | AX175: +150s | AY175: 140 | AZ175: 0.5333333333 | BB175: 0.1331844178 | BC175: 0.8668155822 | BE175: 4.928938363 | BF175: 0.213297113 | BH175: 0.786702887 | BJ175: 0.786702887 | BL175: 0.7563637762
A176: 168 | B176: 00:27:50 | C176: 94.30389138 | D176: 90 | E176: 3 | F176: 0.5 | G176: 90 | H176: 5 | I176: 20 | J176: 19.85012469 | K176: 4.962531172 | L176: 4.962531172 | M176: 94.96253117 | N176: 94.96253117 | O176: 4.303891375 | Q176: =IF(AND(ABS(SLOPE($L146:$L176,$A146:$A176)) > $Q$3, ABS(SLOPE(OFFSET($O146:$O176, Q$7, 0),$A146:$A176)) > $Q$3), (MAX(0,(CORREL( $L146:$L176, OFFSET($O146:$O176, Q$7, 0) )))), (1-ABS(SLOPE($L146:$L176, $A146:$A176)-SLOPE(OFFSET($O146:$O176, Q$7, 0),$A146:$A176))) ) -> 0.8439737053 | R176: 0.8490173152 | S176: 0.8556674869 | T176: 0.8622974915 | U176: 0.8682152542 | V176: 0.8800694643 | W176: 0.3631872959 | X176: 0.4270641923 | Y176: 0.5178058837 | Z176: 0.5849885909 | AA176: 0.6570977422 | AB176: 0.7880848301 | AC176: 0.8919551649 | AD176: 0.9316139801 | AE176: 0.9483535278 | AF176: 0.9493884309 | AG176: 0.9462319085 | AH176: 0.9421425421 | AI176: 0.9232064671 | AJ176: 0.8976820114 | AK176: 0.8552956449 | AL176: 0.7832506372 | AM176: 0.6793817787 | AN176: 0.8718746706 | AO176: 0.8526716868 | AP176: 0.8314684211 | AQ176: 0.817516481 | AR176: 0.8040065328 | AS176: 0 | AT176: 0 | AV176: 0.9493884309 | AW176: 15 | AX176: +150s | AY176: 140 | AZ176: 0.5333333333 | BB176: 0.1317279594 | BC176: 0.8682720406 | BE176: 4.962531172 | BF176: 0.2109645702 | BH176: 0.7890354298 | BJ176: 0.7890354298 | BL176: 0.757252398
A177: 169 | B177: 00:28:00 | C177: 94.34430174 | D177: 90 | E177: 3 | F177: 0.5 | G177: 90 | H177: 5 | I177: 20 | J177: 19.94195782 | K177: 4.985489455 | L177: 4.985489455 | M177: 94.98548945 | N177: 94.98548945 | O177: 4.344301741 | Q177: =IF(AND(ABS(SLOPE($L147:$L177,$A147:$A177)) > $Q$3, ABS(SLOPE(OFFSET($O147:$O177, Q$7, 0),$A147:$A177)) > $Q$3), (MAX(0,(CORREL( $L147:$L177, OFFSET($O147:$O177, Q$7, 0) )))), (1-ABS(SLOPE($L147:$L177, $A147:$A177)-SLOPE(OFFSET($O147:$O177, Q$7, 0),$A147:$A177))) ) -> 0.8561516671 | R177: 0.8628018388 | S177: 0.8694318434 | T177: 0.8753496061 | U177: 0.8872038162 | V177: 0.3503368975 | W177: 0.4144931736 | X177: 0.5061676042 | Y177: 0.5741757045 | Z177: 0.6473511269 | AA177: 0.7805453952 | AB177: 0.8866166921 | AC177: 0.9284548207 | AD177: 0.94734328 | AE177: 0.9500903624 | AF177: 0.9483775509 | AG177: 0.9455687673 | AH177: 0.9274541554 | AI177: 0.9031687002 | AJ177: 0.8623061717 | AK177: 0.7920057198 | AL177: 0.6904155964 | AM177: 0.8790090225 | AN177: 0.8598060387 | AO177: 0.838602773 | AP177: 0.8246508329 | AQ177: 0.8111408847 | AR177: 0 | AS177: 0 | AT177: 0 | AV177: 0.9500903624 | AW177: 14 | AX177: +140s | AY177: 130 | AZ177: 0.5666666667 | BB177: 0.1282375428 | BC177: 0.8717624572 | BE177: 4.985489455 | BF177: 0.2053746085 | BH177: 0.7946253915 | BJ177: 0.7946253915 | BL177: 0.7704608069
A178: 170 | B178: 00:28:10 | C178: 94.3552837 | D178: 90 | E178: 3 | F178: 0.5 | G178: 90 | H178: 5 | I178: 20 | J178: 19.99105605 | K178: 4.997764011 | L178: 4.997764011 | M178: 94.99776401 | N178: 94.99776401 | O178: 4.355283696 | Q178: =IF(AND(ABS(SLOPE($L148:$L178,$A148:$A178)) > $Q$3, ABS(SLOPE(OFFSET($O148:$O178, Q$7, 0),$A148:$A178)) > $Q$3), (MAX(0,(CORREL( $L148:$L178, OFFSET($O148:$O178, Q$7, 0) )))), (1-ABS(SLOPE($L148:$L178, $A148:$A178)-SLOPE(OFFSET($O148:$O178, Q$7, 0),$A148:$A178))) ) -> 0.8702643154 | R178: 0.87689432 | S178: 0.8828120827 | T178: 0.8946662928 | U178: 0.3361837943 | V178: 0.4006253307 | W178: 0.4932904417 | X178: 0.5621793091 | Y178: 0.6364971264 | Z178: 0.7720618667 | AA178: 0.8805053205 | AB178: 0.9247120309 | AC178: 0.9459430233 | AD178: 0.9505604026 | AE178: 0.9504258867 | AF178: 0.9490174668 | AG178: 0.931806255 | AH178: 0.9088824354 | AI178: 0.8696980104 | AJ178: 0.8013260778 | AK178: 0.7022580354 | AL178: 0.8864714991 | AM178: 0.8672685153 | AN178: 0.8460652496 | AO178: 0.8321133095 | AP178: 0.8186033613 | AQ178: 0 | AR178: 0 | AS178: 0 | AT178: 0 | AV178: 0.9505604026 | AW178: 13 | AX178: +130s | AY178: 120 | AZ178: 0.6 | BB178: 0.1284960631 | BC178: 0.8715039369 | BE178: 4.997764011 | BF178: 0.2057886332 | BH178: 0.7942113668 | BJ178: 0.7942113668 | BL178: 0.7815905898
A179: 171 | B179: 00:28:20 | C179: 94.8600613 | D179: 90 | E179: 3 | F179: 0.5 | G179: 90 | H179: 5 | I179: 20 | J179: 19.99731415 | K179: 4.999328538 | L179: 4.999328538 | M179: 94.99932854 | N179: 94.99932854 | O179: 4.860061304 | Q179: =IF(AND(ABS(SLOPE($L149:$L179,$A149:$A179)) > $Q$3, ABS(SLOPE(OFFSET($O149:$O179, Q$7, 0),$A149:$A179)) > $Q$3), (MAX(0,(CORREL( $L149:$L179, OFFSET($O149:$O179, Q$7, 0) )))), (1-ABS(SLOPE($L149:$L179, $A149:$A179)-SLOPE(OFFSET($O149:$O179, Q$7, 0),$A149:$A179))) ) -> 0.8846689295 | R179: 0.8905866921 | S179: 0.9024409022 | T179: 0.3204662316 | U179: 0.3851976418 | V179: 0.4789190215 | W179: 0.548752068 | X179: 0.6243002114 | Y179: 0.7624249282 | Z179: 0.8734404659 | AA179: 0.9202396021 | AB179: 0.9440430103 | AC179: 0.9507188886 | AD179: 0.9523230108 | AE179: 0.9524577079 | AF179: 0.9362481511 | AG179: 0.9148329195 | AH179: 0.877511837 | AI179: 0.8112901274 | AJ179: 0.7150377541 | AK179: 0.8942461086 | AL179: 0.8750431247 | AM179: 0.8538398591 | AN179: 0.839887919 | AO179: 0.8263779707 | AP179: 0 | AQ179: 0 | AR179: 0 | AS179: 0 | AT179: 0 | AV179: 0.9524577079 | AW179: 14 | AX179: +140s | AY179: 130 | AZ179: 0.5666666667 | BB179: 0.02785344689 | BC179: 0.9721465531 | BE179: 4.999328538 | BF179: 0.04460776951 | BH179: 0.9553922305 | BJ179: 0.9553922305 | BL179: 0.8248388683
A180: 172 | B180: 00:28:30 | C180: 94.38518872 | D180: 90 | E180: 3 | F180: 0.5 | G180: 90 | H180: 5 | I180: 20 | J180: 19.96071873 | K180: 4.990179683 | L180: 4.990179683 | M180: 94.99017968 | N180: 94.99017968 | O180: 4.385188715 | Q180: =IF(AND(ABS(SLOPE($L150:$L180,$A150:$A180)) > $Q$3, ABS(SLOPE(OFFSET($O150:$O180, Q$7, 0),$A150:$A180)) > $Q$3), (MAX(0,(CORREL( $L150:$L180, OFFSET($O150:$O180, Q$7, 0) )))), (1-ABS(SLOPE($L150:$L180, $A150:$A180)-SLOPE(OFFSET($O150:$O180, Q$7, 0),$A150:$A180))) ) -> 0.8986567738 | R180: 0.9105109839 | S180: 0.3028539543 | T180: 0.3678773536 | U180: 0.4627287703 | V180: 0.5335784158 | W180: 0.6104584321 | X180: 0.7513632796 | Y180: 0.8651849982 | Z180: 0.9148427591 | AA180: 0.9414932459 | AB180: 0.9504531634 | AC180: 0.9539882931 | AD180: 0.9558374424 | AE180: 0.9407483297 | AF180: 0.9210192008 | AG180: 0.8857857707 | AH180: 0.8219838889 | AI180: 0.7289046581 | AJ180: 0.9023161902 | AK180: 0.8831132063 | AL180: 0.8619099407 | AM180: 0.8479580006 | AN180: 0.8344480524 | AO180: 0 | AP180: 0 | AQ180: 0 | AR180: 0 | AS180: 0 | AT180: 0 | AV180: 0.9558374424 | AW180: 13 | AX180: +130s | AY180: 120 | AZ180: 0.6 | BB180: 0.1209981935 | BC180: 0.8790018065 | BE180: 4.990179683 | BF180: 0.1937806674 | BH180: 0.8062193326 | BJ180: 0.8062193326 | BL180: 0.7873522583
A181: 173 | B181: 00:28:40 | C181: 95.04350756 | D181: 90 | E181: 3 | F181: 0.5 | G181: 90 | H181: 5 | I181: 20 | J181: 19.8813482 | K181: 4.970337051 | L181: 4.970337051 | M181: 94.97033705 | N181: 94.97033705 | O181: 5.043507563 | Q181: =IF(AND(ABS(SLOPE($L151:$L181,$A151:$A181)) > $Q$3, ABS(SLOPE(OFFSET($O151:$O181, Q$7, 0),$A151:$A181)) > $Q$3), (MAX(0,(CORREL( $L151:$L181, OFFSET($O151:$O181, Q$7, 0) )))), (1-ABS(SLOPE($L151:$L181, $A151:$A181)-SLOPE(OFFSET($O151:$O181, Q$7, 0),$A151:$A181))) ) -> 0.9188592437 | R181: 0.2829252155 | S181: 0.348238245 | T181: 0.4443018193 | U181: 0.5162503675 | V181: 0.5945793625 | W181: 0.7385201765 | X181: 0.8554228385 | Y181: 0.9082577003 | Z181: 0.9380857282 | AA181: 0.9496020231 | AB181: 0.9553007557 | AC181: 0.9590716182 | AD181: 0.9452478852 | AE181: 0.9274212327 | AF181: 0.8945496473 | AG181: 0.8334987765 | AH181: 0.7440324513 | AI181: 0.9106644501 | AJ181: 0.8914614662 | AK181: 0.8702582006 | AL181: 0.8563062605 | AM181: 0.8427963122 | AN181: 0 | AO181: 0 | AP181: 0 | AQ181: 0 | AR181: 0 | AS181: 0 | AT181: 0 | AV181: 0.9590716182 | AW181: 12 | AX181: +120s | AY181: 110 | AZ181: 0.6333333333 | BB181: 0.01463410241 | BC181: 0.9853658976 | BE181: 4.970337051 | BF181: 0.02343676421 | BH181: 0.9765632358 | BJ181: 0.9765632358 | BL181: 0.8563227291
A182: 174 | B182: 00:28:50 | C182: 95.16983048 | D182: 90 | E182: 3 | F182: 0.5 | G182: 90 | H182: 5 | I182: 20 | J182: 19.75937266 | K182: 4.939843164 | L182: 4.939843164 | M182: 94.93984316 | N182: 94.93984316 | O182: 5.169830484 | Q182: =IF(AND(ABS(SLOPE($L152:$L182,$A152:$A182)) > $Q$3, ABS(SLOPE(OFFSET($O152:$O182, Q$7, 0),$A152:$A182)) > $Q$3), (MAX(0,(CORREL( $L152:$L182, OFFSET($O152:$O182, Q$7, 0) )))), (1-ABS(SLOPE($L152:$L182, $A152:$A182)-SLOPE(OFFSET($O152:$O182, Q$7, 0),$A152:$A182))) ) -> 0.2601346584 | R182: 0.325727288 | S182: 0.4230928639 | T182: 0.4962330217 | U182: 0.5761455345 | V182: 0.7234192105 | W182: 0.8437258001 | X182: 0.9001211786 | Y182: 0.9335273291 | Z182: 0.9479315548 | AA182: 0.9560775124 | AB182: 0.9620229614 | AC182: 0.9496432411 | AD182: 0.9339854377 | AE182: 0.9038143738 | AF182: 0.8459259212 | AG182: 0.7606197091 | AH182: 0.9192729982 | AI182: 0.9000700144 | AJ182: 0.8788667487 | AK182: 0.8649148086 | AL182: 0.8514048604 | AM182: 0 | AN182: 0 | AO182: 0 | AP182: 0 | AQ182: 0 | AR182: 0 | AS182: 0 | AT182: 0 | AV182: 0.9620229614 | AW182: 11 | AX182: +110s | AY182: 100 | AZ182: 0.6666666667 | BB182: 0.04599746395 | BC182: 0.954002536 | BE182: 4.939843164 | BF182: 0.07366572181 | BH182: 0.9263342782 | BJ182: 0.9263342782 | BL182: 0.8516746354
A183: 175 | B183: 00:29:00 | C183: 95.00920893 | D183: 90 | E183: 3 | F183: 0.5 | G183: 90 | H183: 5 | I183: 20 | J183: 19.59505348 | K183: 4.89876337 | L183: 4.89876337 | M183: 94.89876337 | N183: 94.89876337 | O183: 5.009208926 | Q183: =IF(AND(ABS(SLOPE($L153:$L183,$A153:$A183)) > $Q$3, ABS(SLOPE(OFFSET($O153:$O183, Q$7, 0),$A153:$A183)) > $Q$3), (MAX(0,(CORREL( $L153:$L183, OFFSET($O153:$O183, Q$7, 0) )))), (1-ABS(SLOPE($L153:$L183, $A153:$A183)-SLOPE(OFFSET($O153:$O183, Q$7, 0),$A153:$A183))) ) -> 0.2996173997 | R183: 0.3983802786 | S183: 0.472814777 | T183: 0.5544641102 | U183: 0.7054136242 | V183: 0.82950367 | W183: 0.8899239971 | X183: 0.9273975958 | Y183: 0.9450968873 | Z183: 0.956039018 | AA183: 0.9644703818 | AB183: 0.953757266 | AC183: 0.9405997842 | AD183: 0.9135523386 | AE183: 0.8593436742 | AF183: 0.7788870586 | AG183: 0.9281233868 | AH183: 0.9089204029 | AI183: 0.8877171373 | AJ183: 0.8737651972 | AK183: 0.8602552489 | AL183: 0 | AM183: 0 | AN183: 0 | AO183: 0 | AP183: 0 | AQ183: 0 | AR183: 0 | AS183: 0 | AT183: 0 | AV183: 0.9644703818 | AW183: 10 | AX183: +100s | AY183: 90 | AZ183: 0.7 | BB183: 0.02208911107 | BC183: 0.9779108889 | BE183: 4.89876337 | BF183: 0.03537608753 | BH183: 0.9646239125 | BJ183: 0.9646239125 | BL183: 0.8763647648
A184: 176 | B184: 00:29:10 | C184: 95.14868431 | D184: 90 | E184: 3 | F184: 0.5 | G184: 90 | H184: 5 | I184: 20 | J184: 19.38874281 | K184: 4.847185702 | L184: 4.847185702 | M184: 94.8471857 | N184: 94.8471857 | O184: 5.148684305 | Q184: =IF(AND(ABS(SLOPE($L154:$L184,$A154:$A184)) > $Q$3, ABS(SLOPE(OFFSET($O154:$O184, Q$7, 0),$A154:$A184)) > $Q$3), (MAX(0,(CORREL( $L154:$L184, OFFSET($O154:$O184, Q$7, 0) )))), (1-ABS(SLOPE($L154:$L184, $A154:$A184)-SLOPE(OFFSET($O154:$O184, Q$7, 0),$A154:$A184))) ) -> 0.369195603 | R184: 0.445034829 | S184: 0.5285927977 | T184: 0.6836101821 | U184: 0.811927841 | V184: 0.8769386547 | W184: 0.9190818594 | X184: 0.9405804782 | Y184: 0.9547519936 | Z184: 0.9660561006 | AA184: 0.9572901933 | AB184: 0.9470502214 | AC184: 0.9236613696 | AD184: 0.8737917604 | AE184: 0.7990653049 | AF184: 0.9371966497 | AG184: 0.9179936658 | AH184: 0.8967904002 | AI184: 0.8828384601 | AJ184: 0.8693285119 | AK184: 0 | AL184: 0 | AM184: 0 | AN184: 0 | AO184: 0 | AP184: 0 | AQ184: 0 | AR184: 0 | AS184: 0 | AT184: 0 | AV184: 0.9660561006 | AW184: 9 | AX184: +90s | AY184: 80 | AZ184: 0.7333333333 | BB184: 0.06029972073 | BC184: 0.9397002793 | BE184: 4.847185702 | BF184: 0.0965710296 | BH184: 0.9034289704 | BJ184: 0.9034289704 | BL184: 0.8676061348
A185: 177 | B185: 00:29:20 | C185: 95.2844247 | D185: 90 | E185: 3 | F185: 0.5 | G185: 90 | H185: 5 | I185: 20 | J185: 19.14088275 | K185: 4.785220687 | L185: 4.785220687 | M185: 94.78522069 | N185: 94.78522069 | O185: 5.284424702 | Q185: =IF(AND(ABS(SLOPE($L155:$L185,$A155:$A185)) > $Q$3, ABS(SLOPE(OFFSET($O155:$O185, Q$7, 0),$A155:$A185)) > $Q$3), (MAX(0,(CORREL( $L155:$L185, OFFSET($O155:$O185, Q$7, 0) )))), (1-ABS(SLOPE($L155:$L185, $A155:$A185)-SLOPE(OFFSET($O155:$O185, Q$7, 0),$A155:$A185))) ) -> 0.4115772489 | R185: 0.4972301463 | S185: 0.656753639 | T185: 0.789812901 | U185: 0.860105012 | V185: 0.9076633717 | W185: 0.9335907555 | X185: 0.9515339953 | Y185: 0.9661956163 | Z185: 0.9597348389 | AA185: 0.9529434844 | AB185: 0.9338980752 | AC185: 0.8892192605 | AD185: 0.821363608 | AE185: 0.9464733433 | AF185: 0.9272703595 | AG185: 0.9060670938 | AH185: 0.8921151537 | AI185: 0.8786052055 | AJ185: 0 | AK185: 0 | AL185: 0 | AM185: 0 | AN185: 0 | AO185: 0 | AP185: 0 | AQ185: 0 | AR185: 0 | AS185: 0 | AT185: 0 | AV185: 0.9661956163 | AW185: 8 | AX185: +80s | AY185: 70 | AZ185: 0.7666666667 | BB185: 0.09984080295 | BC185: 0.900159197 | BE185: 4.785220687 | BF185: 0.1598967461 | BH185: 0.8401032539 | BJ185: 0.8401032539 | BL185: 0.857655179
A186: 178 | B186: 00:29:30 | C186: 95.48928593 | D186: 90 | E186: 3 | F186: 0.5 | G186: 90 | H186: 5 | I186: 20 | J186: 18.85200447 | K186: 4.713001116 | L186: 4.713001116 | M186: 94.71300112 | N186: 94.71300112 | O186: 5.489285926 | Q186: =IF(AND(ABS(SLOPE($L156:$L186,$A156:$A186)) > $Q$3, ABS(SLOPE(OFFSET($O156:$O186, Q$7, 0),$A156:$A186)) > $Q$3), (MAX(0,(CORREL( $L156:$L186, OFFSET($O156:$O186, Q$7, 0) )))), (1-ABS(SLOPE($L156:$L186, $A156:$A186)-SLOPE(OFFSET($O156:$O186, Q$7, 0),$A156:$A186))) ) -> 0.4585538439 | R186: 0.6230509847 | S186: 0.7614317089 | T186: 0.8378477327 | U186: 0.8917471294 | V186: 0.9228932565 | W186: 0.9452914485 | X186: 0.9639220905 | Y186: 0.9602280146 | Z186: 0.9575685582 | AA186: 0.9437536617 | AB186: 0.9053811181 | AC186: 0.8458947831 | AD186: 0.955933588 | AE186: 0.9367306041 | AF186: 0.9155273385 | AG186: 0.9015753984 | AH186: 0.8880654501 | AI186: 0 | AJ186: 0 | AK186: 0 | AL186: 0 | AM186: 0 | AN186: 0 | AO186: 0 | AP186: 0 | AQ186: 0 | AR186: 0 | AS186: 0 | AT186: 0 | AV186: 0.9639220905 | AW186: 7 | AX186: +70s | AY186: 60 | AZ186: 0.8 | BB186: 0.1552569619 | BC186: 0.8447430381 | BE186: 4.713001116 | BF186: 0.2486466683 | BH186: 0.7513533317 | BJ186: 0.7513533317 | BL186: 0.8384251407
A187: 179 | B187: 00:29:40 | C187: 95.42171925 | D187: 90 | E187: 3 | F187: 0.5 | G187: 90 | H187: 5 | I187: 20 | J187: 18.52272701 | K187: 4.630681752 | L187: 4.630681752 | M187: 94.63068175 | N187: 94.63068175 | O187: 5.421719245 | Q187: =IF(AND(ABS(SLOPE($L157:$L187,$A157:$A187)) > $Q$3, ABS(SLOPE(OFFSET($O157:$O187, Q$7, 0),$A157:$A187)) > $Q$3), (MAX(0,(CORREL( $L157:$L187, OFFSET($O157:$O187, Q$7, 0) )))), (1-ABS(SLOPE($L157:$L187, $A157:$A187)-SLOPE(OFFSET($O157:$O187, Q$7, 0),$A157:$A187))) ) -> 0.5799079891 | R187: 0.7242284709 | S187: 0.8077851154 | T187: 0.8691712444 | U187: 0.9065277178 | V187: 0.934242774 | W187: 0.9576152141 | X187: 0.9572879802 | Y187: 0.9596461674 | Z187: 0.952221531 | AA187: 0.9216335406 | AB187: 0.8725099528 | AC187: 0.9655571108 | AD187: 0.9463541269 | AE187: 0.9251508612 | AF187: 0.9111989211 | AG187: 0.8976889729 | AH187: 0 | AI187: 0 | AJ187: 0 | AK187: 0 | AL187: 0 | AM187: 0 | AN187: 0 | AO187: 0 | AP187: 0 | AQ187: 0 | AR187: 0 | AS187: 0 | AT187: 0 | AV187: 0.9655571108 | AW187: 12 | AX187: +120s | AY187: 110 | AZ187: 0.6333333333 | BB187: 0.1582074986 | BC187: 0.8417925014 | BE187: 4.630681752 | BF187: 0.2533720032 | BH187: 0.7466279968 | BJ187: 0.7466279968 | BL187: 0.7818394803
A188: 180 | B188: 00:29:50 | C188: 95.56318434 | D188: 90 | E188: 3 | F188: 0.5 | G188: 90 | H188: 5 | I188: 20 | J188: 18.15375601 | K188: 4.538439003 | L188: 4.538439003 | M188: 94.538439 | N188: 94.538439 | O188: 5.563184339 | Q188: =IF(AND(ABS(SLOPE($L158:$L188,$A158:$A188)) > $Q$3, ABS(SLOPE(OFFSET($O158:$O188, Q$7, 0),$A158:$A188)) > $Q$3), (MAX(0,(CORREL( $L158:$L188, OFFSET($O158:$O188, Q$7, 0) )))), (1-ABS(SLOPE($L158:$L188, $A158:$A188)-SLOPE(OFFSET($O158:$O188, Q$7, 0),$A158:$A188))) ) -> 0.6743898764 | R188: 0.7662769783 | S188: 0.8365428869 | T188: 0.8813405465 | U188: 0.9154499097 | V188: 0.9445325212 | W188: 0.9483536368 | X188: 0.9568783613 | Y188: 0.9573650483 | Z188: 0.9365341328 | AA188: 0.9004457529 | AB188: 0.9753232888 | AC188: 0.9561203049 | AD188: 0.9349170392 | AE188: 0.9209650991 | AF188: 0.9074551509 | AG188: 0 | AH188: 0 | AI188: 0 | AJ188: 0 | AK188: 0 | AL188: 0 | AM188: 0 | AN188: 0 | AO188: 0 | AP188: 0 | AQ188: 0 | AR188: 0 | AS188: 0 | AT188: 0 | AV188: 0.9753232888 | AW188: 11 | AX188: +110s | AY188: 100 | AZ188: 0.6666666667 | BB188: 0.2049490672 | BC188: 0.7950509328 | BE188: 4.538439003 | BF188: 0.3282294212 | BH188: 0.6717705788 | BJ188: 0.6717705788 | BL188: 0.7712535114
A189: 181 | B189: 00:30:00 | C189: 94.84474808 | D189: 90 | E189: 3 | F189: 0.5 | G189: 90 | H189: 5 | I189: 20 | J189: 17.74588216 | K189: 4.43647054 | L189: 4.43647054 | M189: 94.43647054 | N189: 94.43647054 | O189: 4.844748085 | Q189: =IF(AND(ABS(SLOPE($L159:$L189,$A159:$A189)) > $Q$3, ABS(SLOPE(OFFSET($O159:$O189, Q$7, 0),$A159:$A189)) > $Q$3), (MAX(0,(CORREL( $L159:$L189, OFFSET($O159:$O189, Q$7, 0) )))), (1-ABS(SLOPE($L159:$L189, $A159:$A189)-SLOPE(OFFSET($O159:$O189, Q$7, 0),$A159:$A189))) ) -> 0.9181434642 | R189: 0.9194980663 | S189: 0.9239765267 | T189: 0.929019393 | U189: 0.9336635956 | V189: 0.9456704787 | W189: 0.9554695049 | X189: 0.9672452124 | Y189: 0.9825515834 | Z189: 0.9963677534 | AA189: 0.9852111935 | AB189: 0.9660082096 | AC189: 0.9448049439 | AD189: 0.9308530038 | AE189: 0.9173430556 | AF189: 0.9013150454 | AG189: 0.8900140544 | AH189: 0.8765045698 | AI189: 0.8647176176 | AJ189: 0.8536536071 | AK189: 0.8424014416 | AL189: 0.8336188721 | AM189: 0.8195799304 | AN189: 0.8090899148 | AO189: 0.8051632082 | AP189: 0.8003411954 | AQ189: 0.7961872059 | AR189: 0.7910000119 | AS189: 0.7885871653 | AT189: 0.7877704086 | AV189: 0.9963677534 | AW189: 9 | AX189: +90s | AY189: 80 | AZ189: 0.7333333333 | BB189: 0.08165550881 | BC189: 0.9183444912 | BE189: 4.43647054 | BF189: 0.1307726879 | BH189: 0.8692273121 | BJ189: 0.8692273121 | BL189: 0.8663094663
A190: 182 | B190: 00:30:10 | C190: 94.57021306 | D190: 90 | E190: 3 | F190: 0.5 | G190: 90 | H190: 5 | I190: 20 | J190: 17.29997952 | K190: 4.324994881 | L190: 4.324994881 | M190: 94.32499488 | N190: 94.32499488 | O190: 4.570213065 | Q190: =IF(AND(ABS(SLOPE($L160:$L190,$A160:$A190)) > $Q$3, ABS(SLOPE(OFFSET($O160:$O190, Q$7, 0),$A160:$A190)) > $Q$3), (MAX(0,(CORREL( $L160:$L190, OFFSET($O160:$O190, Q$7, 0) )))), (1-ABS(SLOPE($L160:$L190, $A160:$A190)-SLOPE(OFFSET($O160:$O190, Q$7, 0),$A160:$A190))) ) -> 0.9095096244 | R190: 0.9139880848 | S190: 0.9190309511 | T190: 0.9236751537 | U190: 0.9356820368 | V190: 0.945481063 | W190: 0.9572567705 | X190: 0.9725631415 | Y190: 0.9863793115 | Z190: 0.9951996354 | AA190: 0.9759966515 | AB190: 0.9547933858 | AC190: 0.9408414457 | AD190: 0.9273314975 | AE190: 0.9113034873 | AF190: 0.9000024963 | AG190: 0.8864930117 | AH190: 0.8747060595 | AI190: 0.863642049 | AJ190: 0.8523898835 | AK190: 0.843607314 | AL190: 0.8295683723 | AM190: 0.8190783567 | AN190: 0.8151516501 | AO190: 0.8103296373 | AP190: 0.8061756478 | AQ190: 0.8009884538 | AR190: 0.7985756072 | AS190: 0.7977588505 | AT190: 0.7976244064 | AV190: 0.9951996354 | AW190: 9 | AX190: +90s | AY190: 80 | AZ190: 0.7333333333 | BB190: 0.04904363687 | BC190: 0.9509563631 | BE190: 4.324994881 | BF190: 0.07854421961 | BH190: 0.9214557804 | BJ190: 0.9214557804 | BL190: 0.883329583
A191: 183 | B191: 00:30:20 | C191: 94.61817556 | D191: 90 | E191: 3 | F191: 0.5 | G191: 90 | H191: 5 | I191: 20 | J191: 16.81700365 | K191: 4.204250911 | L191: 4.204250911 | M191: 94.20425091 | N191: 94.20425091 | O191: 4.618175559 | Q191: =IF(AND(ABS(SLOPE($L161:$L191,$A161:$A191)) > $Q$3, ABS(SLOPE(OFFSET($O161:$O191, Q$7, 0),$A161:$A191)) > $Q$3), (MAX(0,(CORREL( $L161:$L191, OFFSET($O161:$O191, Q$7, 0) )))), (1-ABS(SLOPE($L161:$L191, $A161:$A191)-SLOPE(OFFSET($O161:$O191, Q$7, 0),$A161:$A191))) ) -> 0.9039205106 | R191: 0.9089633769 | S191: 0.9136075794 | T191: 0.9256144626 | U191: 0.9354134888 | V191: 0.9471891962 | W191: 0.9624955672 | X191: 0.9763117373 | Y191: 0.9947327904 | Z191: 0.9860642257 | AA191: 0.9648609601 | AB191: 0.95090902 | AC191: 0.9373990718 | AD191: 0.9213710615 | AE191: 0.9100700706 | AF191: 0.896560586 | AG191: 0.8847736338 | AH191: 0.8737096233 | AI191: 0.8624574578 | AJ191: 0.8536748882 | AK191: 0.8396359465 | AL191: 0.829145931 | AM191: 0.8252192244 | AN191: 0.8203972116 | AO191: 0.816243222 | AP191: 0.8110560281 | AQ191: 0.8086431815 | AR191: 0.8078264247 | AS191: 0.8076919807 | AT191: 0.8026314318 | AV191: 0.9947327904 | AW191: 8 | AX191: +80s | AY191: 70 | AZ191: 0.7666666667 | BB191: 0.08278492945 | BC191: 0.9172150706 | BE191: 4.204250911 | BF191: 0.1325814742 | BH191: 0.8674185258 | BJ191: 0.8674185258 | BL191: 0.8762726609
A192: 184 | B192: 00:30:30 | C192: 94.75336009 | D192: 90 | E192: 3 | F192: 0.5 | G192: 90 | H192: 5 | I192: 20 | J192: 16.29798953 | K192: 4.074497383 | L192: 4.074497383 | M192: 94.07449738 | N192: 94.07449738 | O192: 4.753360091 | Q192: =IF(AND(ABS(SLOPE($L162:$L192,$A162:$A192)) > $Q$3, ABS(SLOPE(OFFSET($O162:$O192, Q$7, 0),$A162:$A192)) > $Q$3), (MAX(0,(CORREL( $L162:$L192, OFFSET($O162:$O192, Q$7, 0) )))), (1-ABS(SLOPE($L162:$L192, $A162:$A192)-SLOPE(OFFSET($O162:$O192, Q$7, 0),$A162:$A192))) ) -> 0.8988382447 | R192: 0.9034824473 | S192: 0.9154893304 | T192: 0.9252883566 | U192: 0.937064064 | V192: 0.952370435 | W192: 0.9661866051 | X192: 0.9846076582 | Y192: 0.9961893579 | Z192: 0.9749860923 | AA192: 0.9610341522 | AB192: 0.9475242039 | AC192: 0.9314961937 | AD192: 0.9201952027 | AE192: 0.9066857182 | AF192: 0.894898766 | AG192: 0.8838347554 | AH192: 0.8725825899 | AI192: 0.8638000204 | AJ192: 0.8497610787 | AK192: 0.8392710631 | AL192: 0.8353443565 | AM192: 0.8305223438 | AN192: 0.8263683542 | AO192: 0.8211811602 | AP192: 0.8187683136 | AQ192: 0.8179515569 | AR192: 0.8178171129 | AS192: 0.812756564 | AT192: 0.806849732 | AV192: 0.9961893579 | AW192: 8 | AX192: +80s | AY192: 70 | AZ192: 0.7666666667 | BB192: 0.1357725418 | BC192: 0.8642274582 | BE192: 4.074497383 | BF192: 0.2174420377 | BH192: 0.7825579623 | BJ192: 0.7825579623 | BL192: 0.848471329
A193: 185 | B193: 00:30:40 | C193: 94.89611056 | D193: 90 | E193: 3 | F193: 0.5 | G193: 90 | H193: 5 | I193: 20 | J193: 15.74404941 | K193: 3.936012352 | L193: 3.936012352 | M193: 93.93601235 | N193: 93.93601235 | O193: 4.89611056 | Q193: =IF(AND(ABS(SLOPE($L163:$L193,$A163:$A193)) > $Q$3, ABS(SLOPE(OFFSET($O163:$O193, Q$7, 0),$A163:$A193)) > $Q$3), (MAX(0,(CORREL( $L163:$L193, OFFSET($O163:$O193, Q$7, 0) )))), (1-ABS(SLOPE($L163:$L193, $A163:$A193)-SLOPE(OFFSET($O163:$O193, Q$7, 0),$A163:$A193))) ) -> 0.893321455 | R193: 0.9053283381 | S193: 0.9151273643 | T193: 0.9269030717 | U193: 0.9422094428 | V193: 0.9560256128 | W193: 0.9744466659 | X193: 0.9936496498 | Y193: 0.9851470845 | Z193: 0.9711951444 | AA193: 0.9576851962 | AB193: 0.941657186 | AC193: 0.930356195 | AD193: 0.9168467105 | AE193: 0.9050597583 | AF193: 0.8939957477 | AG193: 0.8827435822 | AH193: 0.8739610127 | AI193: 0.859922071 | AJ193: 0.8494320554 | AK193: 0.8455053488 | AL193: 0.8406833361 | AM193: 0.8365293465 | AN193: 0.8313421525 | AO193: 0.8289293059 | AP193: 0.8281125492 | AQ193: 0.8279781052 | AR193: 0.8229175563 | AS193: 0.8170107243 | AT193: 0.8174965684 | AV193: 0.9936496498 | AW193: 7 | AX193: +70s | AY193: 60 | AZ193: 0.8 | BB193: 0.1920196417 | BC193: 0.8079803583 | BE193: 3.936012352 | BF193: 0.3075227261 | BH193: 0.6924772739 | BJ193: 0.6924772739 | BL193: 0.8287089746
A194: 186 | B194: 00:30:50 | C194: 94.71465135 | D194: 90 | E194: 3 | F194: 0.5 | G194: 90 | H194: 5 | I194: 20 | J194: 15.15637035 | K194: 3.789092587 | L194: 3.789092587 | M194: 93.78909259 | N194: 93.78909259 | O194: 4.714651353 | Q194: =IF(AND(ABS(SLOPE($L164:$L194,$A164:$A194)) > $Q$3, ABS(SLOPE(OFFSET($O164:$O194, Q$7, 0),$A164:$A194)) > $Q$3), (MAX(0,(CORREL( $L164:$L194, OFFSET($O164:$O194, Q$7, 0) )))), (1-ABS(SLOPE($L164:$L194, $A164:$A194)-SLOPE(OFFSET($O164:$O194, Q$7, 0),$A164:$A194))) ) -> 0.8951532604 | R194: 0.9049522865 | S194: 0.916727994 | T194: 0.932034365 | U194: 0.9458505351 | V194: 0.9642715882 | W194: 0.983474572 | X194: 0.9953221623 | Y194: 0.9813702222 | Z194: 0.967860274 | AA194: 0.9518322638 | AB194: 0.9405312728 | AC194: 0.9270217882 | AD194: 0.915234836 | AE194: 0.9041708255 | AF194: 0.89291866 | AG194: 0.8841360904 | AH194: 0.8700971488 | AI194: 0.8596071332 | AJ194: 0.8556804266 | AK194: 0.8508584138 | AL194: 0.8467044242 | AM194: 0.8415172303 | AN194: 0.8391043837 | AO194: 0.838287627 | AP194: 0.8381531829 | AQ194: 0.8330926341 | AR194: 0.8271858021 | AS194: 0.8276716461 | AT194: 0.8278831852 | AV194: 0.9953221623 | AW194: 7 | AX194: +70s | AY194: 60 | AZ194: 0.8 | BB194: 0.1851117532 | BC194: 0.8148882468 | BE194: 3.789092587 | BF194: 0.296459625 | BH194: 0.703540375 | BJ194: 0.703540375 | BL194: 0.8329541791
A195: 187 | B195: 00:31:00 | C195: 94.60437771 | D195: 90 | E195: 3 | F195: 0.5 | G195: 90 | H195: 5 | I195: 20 | J195: 14.53621173 | K195: 3.634052932 | L195: 3.634052932 | M195: 93.63405293 | N195: 93.63405293 | O195: 4.604377706 | Q195: =IF(AND(ABS(SLOPE($L165:$L195,$A165:$A195)) > $Q$3, ABS(SLOPE(OFFSET($O165:$O195, Q$7, 0),$A165:$A195)) > $Q$3), (MAX(0,(CORREL( $L165:$L195, OFFSET($O165:$O195, Q$7, 0) )))), (1-ABS(SLOPE($L165:$L195, $A165:$A195)-SLOPE(OFFSET($O165:$O195, Q$7, 0),$A165:$A195))) ) -> 0.8947849281 | R195: 0.9065606356 | S195: 0.9218670066 | T195: 0.9356831767 | U195: 0.9541042297 | V195: 0.9733072136 | W195: 0.9945104793 | X195: 0.9915375806 | Y195: 0.9780276324 | Z195: 0.9619996222 | AA195: 0.9506986312 | AB195: 0.9371891466 | AC195: 0.9254021944 | AD195: 0.9143381839 | AE195: 0.9030860184 | AF195: 0.8943034488 | AG195: 0.8802645072 | AH195: 0.8697744916 | AI195: 0.865847785 | AJ195: 0.8610257722 | AK195: 0.8568717826 | AL195: 0.8516845887 | AM195: 0.8492717421 | AN195: 0.8484549854 | AO195: 0.8483205413 | AP195: 0.8432599925 | AQ195: 0.8373531605 | AR195: 0.8378390045 | AS195: 0.8380505436 | AT195: 0.8404285075 | AV195: 0.9945104793 | AW195: 6 | AX195: +60s | AY195: 50 | AZ195: 0.8333333333 | BB195: 0.1940649546 | BC195: 0.8059350454 | BE195: 3.634052932 | BF195: 0.3107983296 | BH195: 0.6892016704 | BJ195: 0.6892016704 | BL195: 0.839015161
A196: 188 | B196: 00:31:10 | C196: 94.33311553 | D196: 90 | E196: 3 | F196: 0.5 | G196: 90 | H196: 5 | I196: 20 | J196: 13.88490253 | K196: 3.471225632 | L196: 3.471225632 | M196: 93.47122563 | N196: 93.47122563 | O196: 4.333115531 | Q196: =IF(AND(ABS(SLOPE($L166:$L196,$A166:$A196)) > $Q$3, ABS(SLOPE(OFFSET($O166:$O196, Q$7, 0),$A166:$A196)) > $Q$3), (MAX(0,(CORREL( $L166:$L196, OFFSET($O166:$O196, Q$7, 0) )))), (1-ABS(SLOPE($L166:$L196, $A166:$A196)-SLOPE(OFFSET($O166:$O196, Q$7, 0),$A166:$A196))) ) -> 0.8964227848 | R196: 0.9117291558 | S196: 0.9255453259 | T196: 0.943966379 | U196: 0.9631693629 | V196: 0.9843726285 | W196: 0.9983245686 | X196: 0.9881654831 | Y196: 0.9721374729 | Z196: 0.9608364819 | AA196: 0.9473269974 | AB196: 0.9355400452 | AC196: 0.9244760346 | AD196: 0.9132238691 | AE196: 0.9044412996 | AF196: 0.8904023579 | AG196: 0.8799123423 | AH196: 0.8759856357 | AI196: 0.871163623 | AJ196: 0.8670096334 | AK196: 0.8618224394 | AL196: 0.8594095928 | AM196: 0.8585928361 | AN196: 0.8584583921 | AO196: 0.8533978432 | AP196: 0.8474910112 | AQ196: 0.8479768553 | AR196: 0.8481883944 | AS196: 0.8505663583 | AT196: 0.8541783001 | AV196: 0.9983245686 | AW196: 6 | AX196: +60s | AY196: 50 | AZ196: 0.8333333333 | BB196: 0.1723779798 | BC196: 0.8276220202 | BE196: 3.471225632 | BF196: 0.27606627 | BH196: 0.72393373 | BJ196: 0.72393373 | BL196: 0.8518638773
A197: 189 | B197: 00:31:20 | C197: 94.00282499 | D197: 90 | E197: 3 | F197: 0.5 | G197: 90 | H197: 5 | I197: 20 | J197: 13.20383848 | K197: 3.30095962 | L197: 3.30095962 | M197: 93.30095962 | N197: 93.30095962 | O197: 4.002824991 | Q197: =IF(AND(ABS(SLOPE($L167:$L197,$A167:$A197)) > $Q$3, ABS(SLOPE(OFFSET($O167:$O197, Q$7, 0),$A167:$A197)) > $Q$3), (MAX(0,(CORREL( $L167:$L197, OFFSET($O167:$O197, Q$7, 0) )))), (1-ABS(SLOPE($L167:$L197, $A167:$A197)-SLOPE(OFFSET($O167:$O197, Q$7, 0),$A167:$A197))) ) -> 0.9016425378 | R197: 0.9154587078 | S197: 0.9338797609 | T197: 0.9530827448 | U197: 0.9742860105 | V197: 0.9882379506 | W197: 0.9982521012 | X197: 0.982224091 | Y197: 0.9709231 | Z197: 0.9574136154 | AA197: 0.9456266632 | AB197: 0.9345626527 | AC197: 0.9233104872 | AD197: 0.9145279177 | AE197: 0.900488976 | AF197: 0.8899989604 | AG197: 0.8860722538 | AH197: 0.881250241 | AI197: 0.8770962515 | AJ197: 0.8719090575 | AK197: 0.8694962109 | AL197: 0.8686794542 | AM197: 0.8685450101 | AN197: 0.8634844613 | AO197: 0.8575776293 | AP197: 0.8580634733 | AQ197: 0.8582750125 | AR197: 0.8606529763 | AS197: 0.8642649182 | AT197: 0.8691414031 | AV197: 0.9982521012 | AW197: 6 | AX197: +60s | AY197: 50 | AZ197: 0.8333333333 | BB197: 0.1403730742 | BC197: 0.8596269258 | BE197: 3.30095962 | BF197: 0.2248098688 | BH197: 0.7751901312 | BJ197: 0.7751901312 | BL197: 0.8689251886
A198: 190 | B198: 00:31:30 | C198: 93.63150731 | D198: 90 | E198: 3 | F198: 0.5 | G198: 90 | H198: 5 | I198: 20 | J198: 12.49447908 | K198: 3.123619769 | L198: 3.123619769 | M198: 93.12361977 | N198: 93.12361977 | O198: 3.631507311 | Q198: =IF(AND(ABS(SLOPE($L168:$L198,$A168:$A198)) > $Q$3, ABS(SLOPE(OFFSET($O168:$O198, Q$7, 0),$A168:$A198)) > $Q$3), (MAX(0,(CORREL( $L168:$L198, OFFSET($O168:$O198, Q$7, 0) )))), (1-ABS(SLOPE($L168:$L198, $A168:$A198)-SLOPE(OFFSET($O168:$O198, Q$7, 0),$A168:$A198))) ) -> 0.9054449377 | R198: 0.9238659908 | S198: 0.9430689747 | T198: 0.9642722404 | U198: 0.9782241805 | V198: 0.9917341287 | W198: 0.9922378611 | X198: 0.9809368701 | Y198: 0.9674273856 | Z198: 0.9556404333 | AA198: 0.9445764228 | AB198: 0.9333242573 | AC198: 0.9245416878 | AD198: 0.9105027461 | AE198: 0.9000127305 | AF198: 0.8960860239 | AG198: 0.8912640111 | AH198: 0.8871100216 | AI198: 0.8819228276 | AJ198: 0.879509981 | AK198: 0.8786932243 | AL198: 0.8785587803 | AM198: 0.8734982314 | AN198: 0.8675913994 | AO198: 0.8680772434 | AP198: 0.8682887826 | AQ198: 0.8706667464 | AR198: 0.8742786883 | AS198: 0.8791551732 | AT198: 0.8829111788 | AV198: 0.9922378611 | AW198: 6 | AX198: +60s | AY198: 50 | AZ198: 0.8333333333 | BB198: 0.1015775084 | BC198: 0.8984224916 | BE198: 3.123619769 | BF198: 0.1626781094 | BH198: 0.8373218906 | BJ198: 0.8373218906 | BL198: 0.8876310283
A199: 191 | B199: 00:31:40 | C199: 93.19232501 | D199: 90 | E199: 3 | F199: 0.5 | G199: 90 | H199: 5 | I199: 20 | J199: 11.75834445 | K199: 2.939586112 | L199: 2.939586112 | M199: 92.93958611 | N199: 92.93958611 | O199: 3.192325013 | Q199: =IF(AND(ABS(SLOPE($L169:$L199,$A169:$A199)) > $Q$3, ABS(SLOPE(OFFSET($O169:$O199, Q$7, 0),$A169:$A199)) > $Q$3), (MAX(0,(CORREL( $L169:$L199, OFFSET($O169:$O199, Q$7, 0) )))), (1-ABS(SLOPE($L169:$L199, $A169:$A199)-SLOPE(OFFSET($O169:$O199, Q$7, 0),$A169:$A199))) ) -> 0.9139465278 | R199: 0.9331495117 | S199: 0.9543527774 | T199: 0.9683047175 | U199: 0.9818146657 | V199: 0.9173464841 | W199: 0.9380006694 | X199: 0.9542904559 | Y199: 0.9535565796 | Z199: 0.9415813141 | AA199: 0.9233239026 | AB199: 0.9097232673 | AC199: 0.8937243619 | AD199: 0.886242738 | AE199: 0.8606229659 | AF199: 0.8340913256 | AG199: 0.814765689 | AH199: 0.8104708011 | AI199: 0.8106854157 | AJ199: 0.807963272 | AK199: 0.8193092432 | AL199: 0.8189924108 | AM199: 0.8131850233 | AN199: 0.7882659763 | AO199: 0.7803475966 | AP199: 0.7809505865 | AQ199: 0.7777024033 | AR199: 0.7753579547 | AS199: 0.7761594527 | AT199: 0.7735016563 | AV199: 0.9818146657 | AW199: 4 | AX199: +40s | AY199: 30 | AZ199: 0.9 | BB199: 0.05054778021 | BC199: 0.9494522198 | BE199: 2.939586112 | BF199: 0.08095313078 | BH199: 0.9190468692 | BJ199: 0.9190468692 | BL199: 0.9336205116
A200: 192 | B200: 00:31:50 | C200: 93.30276498 | D200: 90 | E200: 3 | F200: 0.5 | G200: 90 | H200: 5 | I200: 20 | J200: 10.99701211 | K200: 2.749253028 | L200: 2.749253028 | M200: 92.74925303 | N200: 92.74925303 | O200: 3.302764982 | Q200: =IF(AND(ABS(SLOPE($L170:$L200,$A170:$A200)) > $Q$3, ABS(SLOPE(OFFSET($O170:$O200, Q$7, 0),$A170:$A200)) > $Q$3), (MAX(0,(CORREL( $L170:$L200, OFFSET($O170:$O200, Q$7, 0) )))), (1-ABS(SLOPE($L170:$L200, $A170:$A200)-SLOPE(OFFSET($O170:$O200, Q$7, 0),$A170:$A200))) ) -> 0.9233456129 | R200: 0.9445488785 | S200: 0.9585008186 | T200: 0.9720107669 | U200: 0.8938822433 | V200: 0.925291272 | W200: 0.9496525882 | X200: 0.9572713162 | Y200: 0.9535997752 | Z200: 0.943428987 | AA200: 0.9341513689 | AB200: 0.9239853217 | AC200: 0.9184156895 | AD200: 0.8967734312 | AE200: 0.8744187412 | AF200: 0.857959026 | AG200: 0.8543297145 | AH200: 0.854545312 | AI200: 0.8521856228 | AJ200: 0.8622528422 | AK200: 0.8619929413 | AL200: 0.8570680275 | AM200: 0.8349942578 | AN200: 0.8279698392 | AO200: 0.8285041313 | AP200: 0.8255771178 | AQ200: 0.8234576927 | AR200: 0.8241788862 | AS200: 0.8217766048 | AT200: 0.8192505445 | AV200: 0.9720107669 | AW200: 3 | AX200: +30s | AY200: 20 | AZ200: 0.9333333333 | BB200: 0.1107023909 | BC200: 0.8892976091 | BE200: 2.749253028 | BF200: 0.1772917642 | BH200: 0.8227082358 | BJ200: 0.8227082358 | BL200: 0.9093507787
A201: 193 | B201: 00:32:00 | C201: 92.94389659 | D201: 90 | E201: 3 | F201: =E201/6 -> 0.5 | G201: 90 | H201: 5 | I201: 20 | J201: 10.21211357 | K201: 2.553028392 | L201: 2.553028392 | M201: 92.55302839 | N201: 92.55302839 | O201: 2.943896589 | Q201: =IF(AND(ABS(SLOPE($L171:$L201,$A171:$A201)) > $Q$3, ABS(SLOPE(OFFSET($O171:$O201, Q$7, 0),$A171:$A201)) > $Q$3), (MAX(0,(CORREL( $L171:$L201, OFFSET($O171:$O201, Q$7, 0) )))), (1-ABS(SLOPE($L171:$L201, $A171:$A201)-SLOPE(OFFSET($O171:$O201, Q$7, 0),$A171:$A201))) ) -> 0.9348815533 | R201: 0.9488334934 | S201: 0.9623434416 | T201: 0.8703698786 | U201: 0.9103119165 | V201: 0.9410732594 | W201: 0.9554043637 | X201: 0.9584631224 | Y201: 0.9548802186 | Z201: 0.9491439443 | AA201: 0.9437441143 | AB201: 0.9397482128 | AC201: 0.9214309361 | AD201: 0.9025660493 | AE201: 0.88850649 | AF201: 0.8854336034 | AG201: 0.8856488985 | AH201: 0.8835941725 | AI201: 0.8925766096 | AJ201: 0.8923640466 | AK201: 0.8881774588 | AL201: 0.8685157167 | AM201: 0.8622495887 | AN201: 0.8627256369 | AO201: 0.8600731033 | AP201: 0.8581463383 | AQ201: 0.8587989559 | AR201: 0.8566154185 | AS201: 0.854327933 | AT201: 0.8582478818 | AV201: 0.9623434416 | AW201: 2 | AX201: +20s | AY201: 10 | AZ201: 0.9666666667 | BB201: 0.07817363924 | BC201: 0.9218263608 | BE201: 2.553028392 | BF201: 0.1251964145 | BH201: 0.8748035855 | BJ201: 0.8748035855 | BL201: 0.9346045646
... 198 more rows

Sheet Sheet3 (hidden)
B3: 0 | C3: 1 | D3: =B3 -> 0 | E3: =C3 -> 1 | F3: =STDEV(D3:D33) -> 0.02497310381 | G3: =STDEV(E3:E33) -> 0.02581988897
B4: 0 | C4: 1 | D4: =B4 -> 0 | E4: =C4 -> 1 | G4: =G3-F3 -> 0.0008467851632
B5: 0 | C5: 1 | D5: 0 | E5: 1
B6: 0 | C6: 1 | D6: 0 | E6: 1
B7: 0 | C7: 1 | D7: 0 | E7: 1
B8: 0 | C8: 1 | D8: 0 | E8: 1
B9: 0 | C9: 1 | D9: 0 | E9: 1
B10: 0 | C10: 1 | D10: 0 | E10: 1 | K10: =STDEV -> 
B11: 0 | C11: 1 | D11: 0 | E11: 1
B12: 0 | C12: 1 | D12: 0 | E12: 1
B13: 0 | C13: 1 | D13: 0.1 | E13: 1.1
B14: 0 | C14: 1 | D14: 0 | E14: 1
B15: 0 | C15: 1 | D15: 0 | E15: 1
B16: 0 | C16: 1 | D16: 0 | E16: 1
B17: 0 | C17: 1 | D17: 0 | E17: 1
B18: 0 | C18: 1 | D18: 0 | E18: 0.9
B19: 0 | C19: 1 | D19: 0 | E19: 1
B20: 0 | C20: 1 | D20: 0 | E20: 1
B21: 0 | C21: 1 | D21: 0 | E21: 1
B22: 0 | C22: 1 | D22: 0 | E22: 1
B23: 0 | C23: 1 | D23: 0.1 | E23: 1
B24: 0 | C24: 1 | D24: 0 | E24: 1
B25: 0 | C25: 1 | D25: 0 | E25: 1
B26: 0 | C26: 1 | D26: 0 | E26: 1
B27: 0 | C27: 1 | D27: 0 | E27: 1
B28: 0 | C28: 1 | D28: 0 | E28: 1
B29: 0 | C29: 1 | D29: 0 | E29: 1
B30: 0 | C30: 1 | D30: 0 | E30: 1
B31: 0 | C31: 1 | D31: 0 | E31: 1
B32: 0 | C32: 1 | D32: 0 | E32: 1
B33: 0 | C33: 1 | D33: 0 | E33: 1
